Workbook

Sheet CV Rotina <2A - procedência
E1: AO NASCER | I1: MENOR DE 1 ANO | U1: 1 ANO | AB1: MENOR DE 1 ANO
A2: Regional | B2: Município | C2: ¹População < 1 ano e 1 ano anual | D2: ²População < 1 ano e 1 ano proporcional | E2: Doses Aplicadas HB < 30 dias | F2: Cobertura Vacinal HB até 30 dias | G2: Doses Aplicadas BCG | H2: Cobertura Vacinal BCG | I2: Doses Aplicadas Pentavalente | J2: Cobertura Vacinal Pentavalente | K2: Doses Aplicadas Poliomielite | L2: Cobertura Vacinal Poliomielite | M2: Doses Aplicadas Pneumo 10 | N2: Cobertura Vacinal Pneumo 10 | O2: Doses Aplicadas Rotavírus | P2: Cobertura Vacinal Rotavírus | Q2: Doses Aplicadas Meningo C | R2: Cobertura Vacinal Meningo C | S2: Doses Aplicadas Febre Amarela | T2: Cobertura Vacinal Febre Amarela | U2: Doses Aplicadas Hepatite A | V2: Cobertura Vacinal Hepatite A | W2: Doses Aplicadas de Tríplice Viral | X2: Cobertura Vacinal Tríplice Viral | Y2: Doses Aplicadas Varicela | Z2: Cobertura Varicela | AB2: Doses Aplicadas COVID-19 | AC2: Cobertura Vacinal COVID-19 D1 | AD2: Doses Aplicadas COVID-19 | AE2: Cobertura Vacinal COVID-19 D2 | AG2: VACINAS QUE ATINGIRAM A META DE CV | AH2: HOMOGENEIDADE ENTRE AS 10 VACINAS | AI2: VACINAS DO PQA-VS QUE ATINGIRAM A META DE CV | AJ2: HOMOGENEIDADE ENTRE AS VACINAS DO PQA-VS
A3: Metropolitana | B3: Afonso Cláudio | C3: 383 | D3: 263 | E3: 193 | F3: =E3/D3 -> 0.7338403042 | G3: 205 | H3: =G3/D3 -> 0.7794676806 | I3: 242 | J3: =I3/D3 -> 0.9201520913 | K3: 240 | L3: =K3/D3 -> 0.9125475285 | M3: 242 | N3: =M3/D3 -> 0.9201520913 | O3: 236 | P3: =O3/D3 -> 0.897338403 | Q3: 235 | R3: =Q3/D3 -> 0.8935361217 | S3: 230 | T3: =S3/D3 -> 0.8745247148 | U3: 250 | V3: =U3/D3 -> 0.9505703422 | W3: 256 | X3: =W3/D3 -> 0.9733840304 | Y3: 129 | Z3: =Y3/D3 -> 0.4904942966 | AB3: 9 | AC3: =AB3/W3 -> 0.03515625 | AD3: 3 | AE3: =AD3/W3 -> 0.01171875 | AG3: =cálculos1!O3 -> 2 | AH3: =AG3*0.1 -> 0.2 | AI3: =cálculos1!P3 -> 1 | AJ3: =AI3*0.25 -> 0.25 | AL3: LEGENDA / HOMOGENEIDADE PQA-VS
A4: Norte | B4: Água Doce do Norte | C4: 202 | D4: 152 | E4: 61 | F4: 0.4013157895 | G4: 66 | H4: 0.4342105263 | I4: 112 | J4: 0.7368421053 | K4: 110 | L4: 0.7236842105 | M4: 118 | N4: 0.7763157895 | O4: 115 | P4: 0.7565789474 | Q4: 106 | R4: 0.6973684211 | S4: 79 | T4: 0.5197368421 | U4: 96 | V4: 0.6315789474 | W4: 103 | X4: 0.6776315789 | Y4: 36 | Z4: 0.2368421053 | AB4: 12 | AC4: =AB4/W4 -> 0.1165048544 | AD4: 6 | AE4: =AD4/W4 -> 0.05825242718 | AG4: =cálculos1!O4 -> 0 | AH4: =AG4*0.1 -> 0 | AI4: =cálculos1!P4 -> 0 | AJ4: =AI4*0.25 -> 0 | AL4: PERCENTUAL | AM4: Nº DE MUNICÍPIOS
A5: Central | B5: Águia Branca | C5: 172 | D5: 117 | E5: 62 | F5: 0.5299145299 | G5: 72 | H5: 0.6153846154 | I5: 108 | J5: 0.9230769231 | K5: 107 | L5: 0.9145299145 | M5: 111 | N5: 0.9487179487 | O5: 115 | P5: 0.9829059829 | Q5: 105 | R5: 0.8974358974 | S5: 93 | T5: 0.7948717949 | U5: 86 | V5: 0.735042735 | W5: 98 | X5: 0.8376068376 | Y5: 33 | Z5: 0.2820512821 | AB5: 5 | AC5: 0.05102040816 | AD5: 3 | AE5: 0.0306122449 | AG5: =cálculos1!O5 -> 1 | AH5: 0.1 | AI5: =cálculos1!P5 -> 0 | AJ5: 0 | AL5: 0 | AM5: =COUNTIF($AJ$3:$AJ$80,"=0") -> 19
A6: Sul | B6: Alegre | C6: 324 | D6: 213 | E6: 133 | F6: 0.6244131455 | G6: 136 | H6: 0.6384976526 | I6: 223 | J6: 1.046948357 | K6: 226 | L6: 1.061032864 | M6: 219 | N6: 1.028169014 | O6: 211 | P6: 0.9906103286 | Q6: 215 | R6: 1.009389671 | S6: 199 | T6: 0.9342723005 | U6: 199 | V6: 0.9342723005 | W6: 213 | X6: 1 | Y6: 61 | Z6: 0.2863849765 | AB6: 70 | AC6: 0.3286384977 | AD6: 25 | AE6: 0.117370892 | AG6: =cálculos1!O6 -> 6 | AH6: 0.6 | AI6: =cálculos1!P6 -> 4 | AJ6: 1 | AL6: 0.25 | AM6: =COUNTIF($AJ$3:$AJ$80,"=0,25") -> 14
A7: Sul | B7: Alfredo Chaves | C7: 139 | D7: 82 | E7: 14 | F7: 0.1707317073 | G7: 47 | H7: 0.5731707317 | I7: 103 | J7: 1.256097561 | K7: 101 | L7: 1.231707317 | M7: 102 | N7: 1.243902439 | O7: 104 | P7: 1.268292683 | Q7: 107 | R7: 1.304878049 | S7: 98 | T7: 1.195121951 | U7: 96 | V7: 1.170731707 | W7: 96 | X7: 1.170731707 | Y7: 59 | Z7: 0.7195121951 | AB7: 14 | AC7: 0.1458333333 | AD7: 8 | AE7: 0.08333333333 | AG7: =cálculos1!O7 -> 8 | AH7: 0.8 | AI7: =cálculos1!P7 -> 4 | AJ7: 1 | AL7: 0.5 | AM7: =COUNTIF($AJ$3:$AJ$80,"=0,5") -> 14
A8: Central | B8: Alto Rio Novo | C8: 88 | D8: 58 | E8: 8 | F8: 0.1379310345 | G8: 23 | H8: 0.3965517241 | I8: 61 | J8: 1.051724138 | K8: 59 | L8: 1.017241379 | M8: 65 | N8: 1.120689655 | O8: 66 | P8: 1.137931034 | Q8: 65 | R8: 1.120689655 | S8: 51 | T8: 0.8793103448 | U8: 72 | V8: 1.24137931 | W8: 65 | X8: 1.120689655 | Y8: 32 | Z8: 0.5517241379 | AB8: 0 | AC8: 0 | AD8: 0 | AE8: 0 | AG8: =cálculos1!O8 -> 7 | AH8: 0.7 | AI8: =cálculos1!P8 -> 4 | AJ8: 1 | AL8: 0.75 | AM8: =COUNTIF($AJ$3:$AJ$80,"=0,75") -> 11
A9: Sul | B9: Anchieta | C9: 374 | D9: 255 | E9: 18 | F9: 0.07058823529 | G9: 139 | H9: 0.5450980392 | I9: 253 | J9: 0.9921568627 | K9: 255 | L9: 1 | M9: 258 | N9: 1.011764706 | O9: 256 | P9: 1.003921569 | Q9: 257 | R9: 1.007843137 | S9: 200 | T9: 0.7843137255 | U9: 267 | V9: 1.047058824 | W9: 259 | X9: 1.015686275 | Y9: 111 | Z9: 0.4352941176 | AB9: 54 | AC9: 0.2084942085 | AD9: 26 | AE9: 0.1003861004 | AG9: =cálculos1!O9 -> 7 | AH9: 0.7 | AI9: =cálculos1!P9 -> 4 | AJ9: 1 | AL9: 1 | AM9: =COUNTIF($AJ$3:$AJ$80,"=1,0") -> 20
A10: Sul | B10: Apiacá | C10: 66 | D10: 46 | E10: 27 | F10: 0.5869565217 | G10: 37 | H10: 0.8043478261 | I10: 39 | J10: 0.847826087 | K10: 40 | L10: 0.8695652174 | M10: 46 | N10: 1 | O10: 46 | P10: 1 | Q10: 41 | R10: 0.8913043478 | S10: 41 | T10: 0.8913043478 | U10: 34 | V10: 0.7391304348 | W10: 53 | X10: 1.152173913 | Y10: 8 | Z10: 0.1739130435 | AB10: 0 | AC10: 0 | AD10: 0 | AE10: 0 | AG10: =cálculos1!O10 -> 3 | AH10: 0.3 | AI10: =cálculos1!P10 -> 2 | AJ10: 0.5
A11: Metropolitana | B11: Aracruz | C11: 1425 | D11: 951 | E11: 905 | F11: 0.9516298633 | G11: 929 | H11: 0.9768664564 | I11: 879 | J11: 0.9242902208 | K11: 879 | L11: 0.9242902208 | M11: 916 | N11: 0.9631966351 | O11: 900 | P11: 0.9463722397 | Q11: 893 | R11: 0.9390115668 | S11: 776 | T11: 0.8159831756 | U11: 1007 | V11: 1.058885384 | W11: 1047 | X11: 1.100946372 | Y11: 516 | Z11: 0.5425867508 | AB11: 244 | AC11: 0.2330468004 | AD11: 129 | AE11: 0.1232091691 | AG11: =cálculos1!O11 -> 5 | AH11: 0.5 | AI11: =cálculos1!P11 -> 2 | AJ11: 0.5
A12: Sul | B12: Atilio Vivacqua | C12: 136 | D12: 91 | E12: 0 | F12: 0 | G12: 3 | H12: 0.03296703297 | I12: 87 | J12: 0.956043956 | K12: 86 | L12: 0.9450549451 | M12: 87 | N12: 0.956043956 | O12: 86 | P12: 0.9450549451 | Q12: 85 | R12: 0.9340659341 | S12: 72 | T12: 0.7912087912 | U12: 100 | V12: 1.098901099 | W12: 107 | X12: 1.175824176 | Y12: 50 | Z12: 0.5494505495 | AB12: 0 | AC12: 0 | AD12: 0 | AE12: 0 | AG12: =cálculos1!O12 -> 5 | AH12: 0.5 | AI12: =cálculos1!P12 -> 3 | AJ12: 0.75 | AL12: LEGENDA / HOMOGENEIDADE 10 VACINAS
A13: Central | B13: Baixo Guandu | C13: 392 | D13: 251 | E13: 61 | F13: 0.2430278884 | G13: 139 | H13: 0.5537848606 | I13: 263 | J13: 1.047808765 | K13: 264 | L13: 1.051792829 | M13: 284 | N13: 1.131474104 | O13: 274 | P13: 1.091633466 | Q13: 272 | R13: 1.083665339 | S13: 200 | T13: 0.796812749 | U13: 263 | V13: 1.047808765 | W13: 270 | X13: 1.075697211 | Y13: 122 | Z13: 0.4860557769 | AB13: 19 | AC13: 0.07037037037 | AD13: 8 | AE13: 0.02962962963 | AG13: =cálculos1!O13 -> 7 | AH13: 0.7 | AI13: =cálculos1!P13 -> 4 | AJ13: 1 | AL13: PERCENTUAL | AM13: Nº DE MUNICÍPIOS
A14: Norte | B14: Barra de São Francisco | C14: 545 | D14: 380 | E14: 314 | F14: 0.8263157895 | G14: 336 | H14: 0.8842105263 | I14: 342 | J14: 0.9 | K14: 338 | L14: 0.8894736842 | M14: 369 | N14: 0.9710526316 | O14: 355 | P14: 0.9342105263 | Q14: 347 | R14: 0.9131578947 | S14: 315 | T14: 0.8289473684 | U14: 308 | V14: 0.8105263158 | W14: 381 | X14: 1.002631579 | Y14: 186 | Z14: 0.4894736842 | AB14: 3 | AC14: 0.007874015748 | AD14: 3 | AE14: 0.007874015748 | AG14: =cálculos1!O14 -> 3 | AH14: 0.3 | AI14: =cálculos1!P14 -> 2 | AJ14: 0.5 | AL14: 0 | AM14: =COUNTIF($AH$3:$AH$80,"=0") -> 13
A15: Norte | B15: Boa Esperança | C15: 205 | D15: 139 | E15: 8 | F15: 0.05755395683 | G15: 50 | H15: 0.3597122302 | I15: 115 | J15: 0.8273381295 | K15: 119 | L15: 0.8561151079 | M15: 132 | N15: 0.9496402878 | O15: 137 | P15: 0.9856115108 | Q15: 123 | R15: 0.8848920863 | S15: 110 | T15: 0.7913669065 | U15: 102 | V15: 0.7338129496 | W15: 146 | X15: 1.050359712 | Y15: 82 | Z15: 0.5899280576 | AB15: 21 | AC15: 0.1438356164 | AD15: 11 | AE15: 0.07534246575 | AG15: =cálculos1!O15 -> 2 | AH15: 0.2 | AI15: =cálculos1!P15 -> 1 | AJ15: 0.25 | AL15: 0.1 | AM15: =COUNTIFS($AH$3:$AH$80,">=0,10",$AH$3:$AH$80,"<0,20") -> 10
A16: Sul | B16: Bom Jesus do Norte | C16: 89 | D16: 65 | E16: 34 | F16: 0.5230769231 | G16: 57 | H16: 0.8769230769 | I16: 79 | J16: 1.215384615 | K16: 77 | L16: 1.184615385 | M16: 78 | N16: 1.2 | O16: 76 | P16: 1.169230769 | Q16: 67 | R16: 1.030769231 | S16: 60 | T16: 0.9230769231 | U16: 60 | V16: 0.9230769231 | W16: 100 | X16: 1.538461538 | Y16: 23 | Z16: 0.3538461538 | AB16: 33 | AC16: 0.33 | AD16: 22 | AE16: 0.22 | AG16: =cálculos1!O16 -> 6 | AH16: 0.6 | AI16: =cálculos1!P16 -> 4 | AJ16: 1 | AL16: 0.2 | AM16: =COUNTIFS($AH$3:$AH$80,">=0,20",$AH$3:$AH$80,"<0,30") -> 10
A17: Metropolitana | B17: Brejetuba | C17: 204 | D17: 137 | E17: 24 | F17: 0.1751824818 | G17: 109 | H17: 0.795620438 | I17: 142 | J17: 1.03649635 | K17: 142 | L17: 1.03649635 | M17: 140 | N17: 1.02189781 | O17: 145 | P17: 1.058394161 | Q17: 134 | R17: 0.9781021898 | S17: 123 | T17: 0.897810219 | U17: 106 | V17: 0.7737226277 | W17: 141 | X17: 1.02919708 | Y17: 59 | Z17: 0.4306569343 | AB17: 0 | AC17: 0 | AD17: 0 | AE17: 0 | AG17: =cálculos1!O17 -> 6 | AH17: 0.6 | AI17: =cálculos1!P17 -> 4 | AJ17: 1 | AL17: 0.3 | AM17: =COUNTIFS($AH$3:$AH$80,">=0,30",$AH$3:$AH$80,"<0,40") -> 4
A18: Sul | B18: Cachoeiro de Itapemirim | C18: 2416 | D18: 1690 | E18: 3423 | F18: 2.025443787 | G18: 3386 | H18: 2.003550296 | I18: 1450 | J18: 0.8579881657 | K18: 1436 | L18: 0.849704142 | M18: 1542 | N18: 0.9124260355 | O18: 1505 | P18: 0.8905325444 | Q18: 1421 | R18: 0.8408284024 | S18: 1066 | T18: 0.6307692308 | U18: 1382 | V18: 0.8177514793 | W18: 1579 | X18: 0.9343195266 | Y18: 593 | Z18: 0.350887574 | AB18: 191 | AC18: 0.1209626346 | AD18: 71 | AE18: 0.04496516783 | AG18: =cálculos1!O18 -> 1 | AH18: 0.1 | AI18: =cálculos1!P18 -> 0 | AJ18: 0 | AL18: 0.4 | AM18: =COUNTIFS($AH$3:$AH$80,">=0,40",$AH$3:$AH$80,"<0,50") -> 9
A19: Metropolitana | B19: Cariacica | C19: 4860 | D19: 3332 | E19: 1768 | F19: 0.5306122449 | G19: 1765 | H19: 0.5297118848 | I19: 2785 | J19: 0.8358343337 | K19: 2754 | L19: 0.8265306122 | M19: 2939 | N19: 0.8820528211 | O19: 2826 | P19: 0.8481392557 | Q19: 2826 | R19: 0.8481392557 | S19: 2218 | T19: 0.6656662665 | U19: 2151 | V19: 0.6455582233 | W19: 3047 | X19: 0.9144657863 | Y19: 1130 | Z19: 0.3391356543 | AB19: 639 | AC19: 0.2097144733 | AD19: 223 | AE19: 0.07318674106 | AG19: =cálculos1!O19 -> 0 | AH19: 0 | AI19: =cálculos1!P19 -> 0 | AJ19: 0 | AL19: 0.5 | AM19: =COUNTIFS($AH$3:$AH$80,">=0,50",$AH$3:$AH$80,"<0,60") -> 11
A20: Sul | B20: Castelo | C20: 444 | D20: 301 | E20: 148 | F20: 0.4916943522 | G20: 166 | H20: 0.5514950166 | I20: 285 | J20: 0.9468438538 | K20: 285 | L20: 0.9468438538 | M20: 286 | N20: 0.950166113 | O20: 280 | P20: 0.9302325581 | Q20: 268 | R20: 0.8903654485 | S20: 250 | T20: 0.8305647841 | U20: 243 | V20: 0.8073089701 | W20: 324 | X20: 1.07641196 | Y20: 147 | Z20: 0.488372093 | AB20: 31 | AC20: 0.09567901235 | AD20: 9 | AE20: 0.02777777778 | AG20: =cálculos1!O20 -> 3 | AH20: 0.3 | AI20: =cálculos1!P20 -> 2 | AJ20: 0.5 | AL20: 0.6 | AM20: =COUNTIFS($AH$3:$AH$80,">=0,60",$AH$3:$AH$80,"<0,70") -> 7
A21: Central | B21: Colatina | C21: 1525 | D21: 1055 | E21: 2472 | F21: 2.343127962 | G21: 2237 | H21: 2.120379147 | I21: 981 | J21: 0.9298578199 | K21: 971 | L21: 0.9203791469 | M21: 1016 | N21: 0.9630331754 | O21: 959 | P21: 0.9090047393 | Q21: 935 | R21: 0.8862559242 | S21: 802 | T21: 0.7601895735 | U21: 711 | V21: 0.6739336493 | W21: 1090 | X21: 1.033175355 | Y21: 529 | Z21: 0.5014218009 | AB21: 89 | AC21: 0.08165137615 | AD21: 40 | AE21: 0.03669724771 | AG21: =cálculos1!O21 -> 4 | AH21: 0.4 | AI21: =cálculos1!P21 -> 2 | AJ21: 0.5 | AL21: 0.7 | AM21: =COUNTIFS($AH$3:$AH$80,">=0,70",$AH$3:$AH$80,"<0,80") -> 6
A22: Norte | B22: Conceição da Barra | C22: 381 | D22: 254 | E22: 7 | F22: 0.02755905512 | G22: 15 | H22: 0.05905511811 | I22: 239 | J22: 0.9409448819 | K22: 240 | L22: 0.9448818898 | M22: 258 | N22: 1.015748031 | O22: 253 | P22: 0.9960629921 | Q22: 248 | R22: 0.9763779528 | S22: 228 | T22: 0.8976377953 | U22: 196 | V22: 0.7716535433 | W22: 260 | X22: 1.023622047 | Y22: 122 | Z22: 0.4803149606 | AB22: 49 | AC22: 0.1884615385 | AD22: 15 | AE22: 0.05769230769 | AG22: =cálculos1!O22 -> 4 | AH22: 0.4 | AI22: =cálculos1!P22 -> 2 | AJ22: 0.5 | AL22: 0.8 | AM22: =COUNTIFS($AH$3:$AH$80,">=0,80",$AH$3:$AH$80,"<0,90") -> 7
A23: Metropolitana | B23: Conceição do Castelo | C23: 152 | D23: 109 | E23: 0 | F23: 0 | G23: 0 | H23: 0 | I23: 90 | J23: 0.8256880734 | K23: 88 | L23: 0.8073394495 | M23: 96 | N23: 0.880733945 | O23: 93 | P23: 0.8532110092 | Q23: 90 | R23: 0.8256880734 | S23: 101 | T23: 0.9266055046 | U23: 97 | V23: 0.8899082569 | W23: 96 | X23: 0.880733945 | Y23: 59 | Z23: 0.5412844037 | AB23: 0 | AC23: 0 | AD23: 0 | AE23: 0 | AG23: =cálculos1!O23 -> 0 | AH23: 0 | AI23: =cálculos1!P23 -> 0 | AJ23: 0 | AL23: 0.9 | AM23: =COUNTIFS($AH$3:$AH$80,">=0,90",$AH$3:$AH$80,"<1,0") -> 1
A24: Sul | B24: Divino de São Lourenço | C24: 69 | D24: 46 | E24: 37 | F24: 0.8043478261 | G24: 38 | H24: 0.8260869565 | I24: 55 | J24: 1.195652174 | K24: 54 | L24: 1.173913043 | M24: 55 | N24: 1.195652174 | O24: 54 | P24: 1.173913043 | Q24: 55 | R24: 1.195652174 | S24: 43 | T24: 0.9347826087 | U24: 35 | V24: 0.7608695652 | W24: 40 | X24: 0.8695652174 | Y24: 25 | Z24: 0.5434782609 | AB24: 11 | AC24: 0.275 | AD24: 0 | AE24: 0 | AG24: =cálculos1!O24 -> 5 | AH24: 0.5 | AI24: =cálculos1!P24 -> 3 | AJ24: 0.75 | AL24: 1 | AM24: =COUNTIF($AH$3:$AH$80,">=1,0") -> 0
A25: Metropolitana | B25: Domingos Martins | C25: 409 | D25: 270 | E25: 24 | F25: 0.08888888889 | G25: 56 | H25: 0.2074074074 | I25: 257 | J25: 0.9518518519 | K25: 257 | L25: 0.9518518519 | M25: 272 | N25: 1.007407407 | O25: 268 | P25: 0.9925925926 | Q25: 254 | R25: 0.9407407407 | S25: 231 | T25: 0.8555555556 | U25: 240 | V25: 0.8888888889 | W25: 278 | X25: 1.02962963 | Y25: 175 | Z25: 0.6481481481 | AB25: 55 | AC25: 0.1978417266 | AD25: 33 | AE25: 0.118705036 | AG25: =cálculos1!O25 -> 5 | AH25: 0.5 | AI25: =cálculos1!P25 -> 4 | AJ25: 1
A26: Sul | B26: Dores do Rio Preto | C26: 97 | D26: 68 | E26: 26 | F26: 0.3823529412 | G26: 46 | H26: 0.6764705882 | I26: 70 | J26: 1.029411765 | K26: 73 | L26: 1.073529412 | M26: 75 | N26: 1.102941176 | O26: 72 | P26: 1.058823529 | Q26: 68 | R26: 1 | S26: 60 | T26: 0.8823529412 | U26: 57 | V26: 0.8382352941 | W26: 78 | X26: 1.147058824 | Y26: 29 | Z26: 0.4264705882 | AB26: 26 | AC26: 0.3333333333 | AD26: 13 | AE26: 0.1666666667 | AG26: =cálculos1!O26 -> 6 | AH26: 0.6 | AI26: =cálculos1!P26 -> 4 | AJ26: 1
A27: Norte | B27: Ecoporanga | C27: 265 | D27: 189 | E27: 91 | F27: 0.4814814815 | G27: 90 | H27: 0.4761904762 | I27: 159 | J27: 0.8412698413 | K27: 156 | L27: 0.8253968254 | M27: 172 | N27: 0.9100529101 | O27: 163 | P27: 0.8624338624 | Q27: 158 | R27: 0.835978836 | S27: 140 | T27: 0.7407407407 | U27: 152 | V27: 0.8042328042 | W27: 179 | X27: 0.9470899471 | Y27: 97 | Z27: 0.5132275132 | AB27: 19 | AC27: 0.1061452514 | AD27: 2 | AE27: 0.01117318436 | AG27: =cálculos1!O27 -> 0 | AH27: 0 | AI27: =cálculos1!P27 -> 0 | AJ27: 0
A28: Metropolitana | B28: Fundão | C28: 222 | D28: 158 | E28: 11 | F28: 0.06962025316 | G28: 66 | H28: 0.417721519 | I28: 156 | J28: 0.9873417722 | K28: 156 | L28: 0.9873417722 | M28: 164 | N28: 1.037974684 | O28: 164 | P28: 1.037974684 | Q28: 145 | R28: 0.917721519 | S28: 115 | T28: 0.7278481013 | U28: 157 | V28: 0.9936708861 | W28: 136 | X28: 0.8607594937 | Y28: 92 | Z28: 0.582278481 | AB28: 15 | AC28: 0.1102941176 | AD28: 4 | AE28: 0.02941176471 | AG28: =cálculos1!O28 -> 5 | AH28: 0.5 | AI28: =cálculos1!P28 -> 3 | AJ28: 0.75
A29: Central | B29: Governador Lindenberg | C29: 128 | D29: 82 | E29: 14 | F29: 0.1707317073 | G29: 16 | H29: 0.1951219512 | I29: 85 | J29: 1.036585366 | K29: 82 | L29: 1 | M29: 78 | N29: 0.9512195122 | O29: 80 | P29: 0.9756097561 | Q29: 84 | R29: 1.024390244 | S29: 87 | T29: 1.06097561 | U29: 83 | V29: 1.012195122 | W29: 93 | X29: 1.134146341 | Y29: 45 | Z29: 0.5487804878 | AB29: 5 | AC29: 0.05376344086 | AD29: 2 | AE29: 0.02150537634 | AG29: =cálculos1!O29 -> 8 | AH29: 0.8 | AI29: =cálculos1!P29 -> 4 | AJ29: 1
A30: Sul | B30: Guaçuí | C30: 394 | D30: 265 | E30: 125 | F30: 0.4716981132 | G30: 149 | H30: 0.5622641509 | I30: 258 | J30: 0.9735849057 | K30: 251 | L30: 0.9471698113 | M30: 259 | N30: 0.9773584906 | O30: 240 | P30: 0.9056603774 | Q30: 232 | R30: 0.8754716981 | S30: 197 | T30: 0.7433962264 | U30: 231 | V30: 0.8716981132 | W30: 296 | X30: 1.116981132 | Y30: 101 | Z30: 0.3811320755 | AB30: 59 | AC30: 0.1993243243 | AD30: 12 | AE30: 0.04054054054 | AG30: =cálculos1!O30 -> 4 | AH30: 0.4 | AI30: =cálculos1!P30 -> 3 | AJ30: 0.75
A31: Metropolitana | B31: Guarapari | C31: 1606 | D31: 1058 | E31: 911 | F31: 0.8610586011 | G31: 958 | H31: 0.9054820416 | I31: 921 | J31: 0.870510397 | K31: 894 | L31: 0.8449905482 | M31: 1031 | N31: 0.9744801512 | O31: 985 | P31: 0.9310018904 | Q31: 946 | R31: 0.8941398866 | S31: 696 | T31: 0.6578449905 | U31: 889 | V31: 0.8402646503 | W31: 1006 | X31: 0.9508506616 | Y31: 503 | Z31: 0.4754253308 | AB31: 126 | AC31: 0.1252485089 | AD31: 39 | AE31: 0.03876739563 | AG31: =cálculos1!O31 -> 4 | AH31: 0.4 | AI31: =cálculos1!P31 -> 2 | AJ31: 0.5
A32: Metropolitana | B32: Ibatiba | C32: 362 | D32: 247 | E32: 109 | F32: 0.4412955466 | G32: 221 | H32: 0.8947368421 | I32: 252 | J32: 1.020242915 | K32: 252 | L32: 1.020242915 | M32: 253 | N32: 1.024291498 | O32: 242 | P32: 0.979757085 | Q32: 249 | R32: 1.008097166 | S32: 228 | T32: 0.9230769231 | U32: 228 | V32: 0.9230769231 | W32: 265 | X32: 1.072874494 | Y32: 55 | Z32: 0.2226720648 | AB32: 104 | AC32: 0.3924528302 | AD32: 51 | AE32: 0.1924528302 | AG32: =cálculos1!O32 -> 6 | AH32: 0.6 | AI32: =cálculos1!P32 -> 4 | AJ32: 1
A33: Metropolitana | B33: Ibiraçu | C33: 159 | D33: 117 | E33: 21 | F33: 0.1794871795 | G33: 19 | H33: 0.1623931624 | I33: 83 | J33: 0.7094017094 | K33: 82 | L33: 0.7008547009 | M33: 92 | N33: 0.7863247863 | O33: 91 | P33: 0.7777777778 | Q33: 96 | R33: 0.8205128205 | S33: 86 | T33: 0.735042735 | U33: 77 | V33: 0.6581196581 | W33: 99 | X33: 0.8461538462 | Y33: 44 | Z33: 0.3760683761 | AB33: 17 | AC33: 0.1717171717 | AD33: 18 | AE33: 0.1818181818 | AG33: =cálculos1!O33 -> 0 | AH33: 0 | AI33: =cálculos1!P33 -> 0 | AJ33: 0
A34: Sul | B34: Ibitirama | C34: 143 | D34: 97 | E34: 50 | F34: 0.5154639175 | G34: 61 | H34: 0.6288659794 | I34: 80 | J34: 0.824742268 | K34: 84 | L34: 0.8659793814 | M34: 85 | N34: 0.8762886598 | O34: 86 | P34: 0.8865979381 | Q34: 72 | R34: 0.7422680412 | S34: 63 | T34: 0.6494845361 | U34: 84 | V34: 0.8659793814 | W34: 99 | X34: 1.020618557 | Y34: 48 | Z34: 0.4948453608 | AB34: 21 | AC34: 0.2121212121 | AD34: 4 | AE34: 0.0404040404 | AG34: =cálculos1!O34 -> 1 | AH34: 0.1 | AI34: =cálculos1!P34 -> 1 | AJ34: 0.25
A35: Sul | B35: Iconha | C35: 116 | D35: 79 | E35: 7 | F35: =E35/D35 -> 0.08860759494 | G35: 27 | H35: =G35/D35 -> 0.3417721519 | I35: 73 | J35: =I35/D35 -> 0.9240506329 | K35: 71 | L35: =K35/D35 -> 0.8987341772 | M35: 76 | N35: =M35/D35 -> 0.9620253165 | O35: 78 | P35: =O35/D35 -> 0.9873417722 | Q35: 72 | R35: =Q35/D35 -> 0.9113924051 | S35: 84 | T35: =S35/D35 -> 1.063291139 | U35: 87 | V35: =U35/D35 -> 1.101265823 | W35: 105 | X35: =W35/D35 -> 1.329113924 | Y35: 30 | Z35: =Y35/D35 -> 0.3797468354 | AB35: 5 | AC35: 0.04761904762 | AD35: 3 | AE35: 0.02857142857 | AG35: =cálculos1!O35 -> 5 | AH35: 0.5 | AI35: =cálculos1!P35 -> 2 | AJ35: 0.5
A36: Sul | B36: Irupi | C36: 207 | D36: 147 | E36: 77 | F36: 0.5238095238 | G36: 92 | H36: 0.6258503401 | I36: 140 | J36: 0.9523809524 | K36: 139 | L36: 0.9455782313 | M36: 151 | N36: 1.027210884 | O36: 151 | P36: 1.027210884 | Q36: 150 | R36: 1.020408163 | S36: 121 | T36: 0.8231292517 | U36: 130 | V36: 0.8843537415 | W36: 158 | X36: 1.074829932 | Y36: 29 | Z36: 0.1972789116 | AB36: 54 | AC36: 0.3417721519 | AD36: 33 | AE36: 0.2088607595 | AG36: =cálculos1!O36 -> 5 | AH36: 0.5 | AI36: =cálculos1!P36 -> 3 | AJ36: 0.75
A37: Metropolitana | B37: Itaguaçu | C37: 138 | D37: 98 | E37: 9 | F37: 0.09183673469 | G37: 62 | H37: 0.6326530612 | I37: 83 | J37: 0.8469387755 | K37: 83 | L37: 0.8469387755 | M37: 95 | N37: 0.9693877551 | O37: 95 | P37: 0.9693877551 | Q37: 90 | R37: 0.9183673469 | S37: 94 | T37: 0.9591836735 | U37: 99 | V37: 1.010204082 | W37: 100 | X37: 1.020408163 | Y37: 65 | Z37: 0.6632653061 | AB37: 20 | AC37: 0.2 | AD37: 9 | AE37: 0.09 | AG37: =cálculos1!O37 -> 5 | AH37: 0.5 | AI37: =cálculos1!P37 -> 2 | AJ37: 0.5
A38: Sul | B38: Itapemirim | C38: 543 | D38: 354 | E38: 618 | F38: 1.745762712 | G38: 167 | H38: 0.4717514124 | I38: 309 | J38: 0.8728813559 | K38: 306 | L38: 0.8644067797 | M38: 324 | N38: 0.9152542373 | O38: 295 | P38: 0.8333333333 | Q38: 302 | R38: 0.8531073446 | S38: 187 | T38: 0.5282485876 | U38: 276 | V38: 0.7796610169 | W38: 326 | X38: 0.9209039548 | Y38: 135 | Z38: 0.3813559322 | AB38: 19 | AC38: 0.05828220859 | AD38: 8 | AE38: 0.0245398773 | AG38: =cálculos1!O38 -> 0 | AH38: 0 | AI38: =cálculos1!P38 -> 0 | AJ38: 0
A39: Metropolitana | B39: Itarana | C39: 141 | D39: 101 | E39: 14 | F39: 0.1386138614 | G39: 90 | H39: 0.8910891089 | I39: 87 | J39: 0.8613861386 | K39: 86 | L39: 0.8514851485 | M39: 85 | N39: 0.8415841584 | O39: 87 | P39: 0.8613861386 | Q39: 78 | R39: 0.7722772277 | S39: 85 | T39: 0.8415841584 | U39: 62 | V39: 0.6138613861 | W39: 92 | X39: 0.9108910891 | Y39: 59 | Z39: 0.5841584158 | AB39: 19 | AC39: 0.2065217391 | AD39: 10 | AE39: 0.1086956522 | AG39: =cálculos1!O39 -> 0 | AH39: 0 | AI39: =cálculos1!P39 -> 0 | AJ39: 0
A40: Sul | B40: Iúna | C40: 481 | D40: 314 | E40: 189 | F40: 0.601910828 | G40: 213 | H40: 0.678343949 | I40: 298 | J40: 0.949044586 | K40: 296 | L40: 0.9426751592 | M40: 296 | N40: 0.9426751592 | O40: 294 | P40: 0.9363057325 | Q40: 278 | R40: 0.8853503185 | S40: 276 | T40: 0.8789808917 | U40: 220 | V40: 0.7006369427 | W40: 293 | X40: 0.9331210191 | Y40: 146 | Z40: 0.4649681529 | AB40: 48 | AC40: 0.1638225256 | AD40: 16 | AE40: 0.05460750853 | AG40: =cálculos1!O40 -> 1 | AH40: 0.1 | AI40: =cálculos1!P40 -> 0 | AJ40: 0
A41: Norte | B41: Jaguaré | C41: 472 | D41: 321 | E41: 258 | F41: 0.8037383178 | G41: 256 | H41: 0.7975077882 | I41: 299 | J41: 0.9314641745 | K41: 296 | L41: 0.9221183801 | M41: 290 | N41: 0.9034267913 | O41: 287 | P41: 0.8940809969 | Q41: 288 | R41: 0.8971962617 | S41: 274 | T41: 0.8535825545 | U41: 263 | V41: 0.8193146417 | W41: 334 | X41: 1.040498442 | Y41: 128 | Z41: 0.3987538941 | AB41: 47 | AC41: 0.1407185629 | AD41: 14 | AE41: 0.04191616766 | AG41: =cálculos1!O41 -> 1 | AH41: 0.1 | AI41: =cálculos1!P41 -> 1 | AJ41: 0.25
A42: Sul | B42: Jerônimo Monteiro | C42: 153 | D42: 102 | E42: 10 | F42: 0.09803921569 | G42: 11 | H42: 0.1078431373 | I42: 110 | J42: 1.078431373 | K42: 110 | L42: 1.078431373 | M42: 100 | N42: 0.9803921569 | O42: 99 | P42: 0.9705882353 | Q42: 100 | R42: 0.9803921569 | S42: 104 | T42: 1.019607843 | U42: 110 | V42: 1.078431373 | W42: 105 | X42: 1.029411765 | Y42: 32 | Z42: 0.3137254902 | AB42: 41 | AC42: 0.3904761905 | AD42: 25 | AE42: 0.2380952381 | AG42: =cálculos1!O42 -> 8 | AH42: 0.8 | AI42: =cálculos1!P42 -> 4 | AJ42: 1
A43: Metropolitana | B43: João Neiva | C43: 164 | D43: 111 | E43: 22 | F43: 0.1981981982 | G43: 32 | H43: 0.2882882883 | I43: 103 | J43: 0.9279279279 | K43: 105 | L43: 0.9459459459 | M43: 114 | N43: 1.027027027 | O43: 114 | P43: 1.027027027 | Q43: 101 | R43: 0.9099099099 | S43: 110 | T43: 0.990990991 | U43: 103 | V43: 0.9279279279 | W43: 134 | X43: 1.207207207 | Y43: 56 | Z43: 0.5045045045 | AB43: 9 | AC43: 0.0671641791 | AD43: 4 | AE43: 0.02985074627 | AG43: =cálculos1!O43 -> 4 | AH43: 0.4 | AI43: =cálculos1!P43 -> 2 | AJ43: 0.5
A44: Metropolitana | B44: Laranja da Terra | C44: 87 | D44: 62 | E44: 3 | F44: 0.04838709677 | G44: 54 | H44: 0.8709677419 | I44: 64 | J44: 1.032258065 | K44: 64 | L44: 1.032258065 | M44: 61 | N44: 0.9838709677 | O44: 60 | P44: 0.9677419355 | Q44: 64 | R44: 1.032258065 | S44: 81 | T44: 1.306451613 | U44: 84 | V44: 1.35483871 | W44: 94 | X44: 1.516129032 | Y44: 64 | Z44: 1.032258065 | AB44: 19 | AC44: 0.2021276596 | AD44: 12 | AE44: 0.1276595745 | AG44: =cálculos1!O44 -> 9 | AH44: 0.9 | AI44: =cálculos1!P44 -> 4 | AJ44: 1
A45: Central | B45: Linhares | C45: 2621 | D45: 1822 | E45: 1580 | F45: 0.8671789243 | G45: 1631 | H45: 0.8951701427 | I45: 1438 | J45: 0.7892425906 | K45: 1434 | L45: 0.7870472009 | M45: 1494 | N45: 0.8199780461 | O45: 1510 | P45: 0.8287596048 | Q45: 1461 | R45: 0.8018660812 | S45: 1209 | T45: 0.6635565313 | U45: 1377 | V45: 0.7557628979 | W45: 1532 | X45: 0.8408342481 | Y45: 736 | Z45: 0.4039517014 | AB45: 64 | AC45: 0.04177545692 | AD45: 20 | AE45: 0.01305483029 | AG45: =cálculos1!O45 -> 0 | AH45: 0 | AI45: =cálculos1!P45 -> 0 | AJ45: 0
A46: Central | B46: Mantenópolis | C46: 153 | D46: 106 | E46: 43 | F46: 0.4056603774 | G46: 54 | H46: 0.5094339623 | I46: 97 | J46: 0.9150943396 | K46: 101 | L46: 0.9528301887 | M46: 93 | N46: 0.8773584906 | O46: 90 | P46: 0.8490566038 | Q46: 87 | R46: 0.820754717 | S46: 93 | T46: 0.8773584906 | U46: 94 | V46: 0.8867924528 | W46: 115 | X46: 1.08490566 | Y46: 55 | Z46: 0.5188679245 | AB46: 28 | AC46: 0.2434782609 | AD46: 4 | AE46: 0.0347826087 | AG46: =cálculos1!O46 -> 2 | AH46: 0.2 | AI46: =cálculos1!P46 -> 2 | AJ46: 0.5
A47: Sul | B47: Marataízes | C47: 552 | D47: 394 | E47: 11 | F47: 0.02791878173 | G47: 165 | H47: 0.4187817259 | I47: 372 | J47: 0.9441624365 | K47: 372 | L47: 0.9441624365 | M47: 400 | N47: 1.015228426 | O47: 380 | P47: 0.9644670051 | Q47: 383 | R47: 0.9720812183 | S47: 249 | T47: 0.6319796954 | U47: 372 | V47: 0.9441624365 | W47: 393 | X47: 0.9974619289 | Y47: 177 | Z47: 0.4492385787 | AB47: 48 | AC47: 0.1221374046 | AD47: 12 | AE47: 0.03053435115 | AG47: =cálculos1!O47 -> 4 | AH47: 0.4 | AI47: =cálculos1!P47 -> 2 | AJ47: 0.5
A48: Metropolitana | B48: Marechal Floriano | C48: 221 | D48: 139 | E48: 26 | F48: 0.1870503597 | G48: 30 | H48: 0.2158273381 | I48: 133 | J48: 0.9568345324 | K48: 132 | L48: 0.9496402878 | M48: 147 | N48: 1.057553957 | O48: 145 | P48: 1.043165468 | Q48: 145 | R48: 1.043165468 | S48: 112 | T48: 0.8057553957 | U48: 150 | V48: 1.079136691 | W48: 152 | X48: 1.09352518 | Y48: 106 | Z48: 0.7625899281 | AB48: 26 | AC48: 0.1710526316 | AD48: 12 | AE48: 0.07894736842 | AG48: =cálculos1!O48 -> 6 | AH48: 0.6 | AI48: =cálculos1!P48 -> 3 | AJ48: 0.75
A49: Central | B49: Marilândia | C49: 163 | D49: 112 | E49: 30 | F49: 0.2678571429 | G49: 40 | H49: 0.3571428571 | I49: 88 | J49: 0.7857142857 | K49: 88 | L49: 0.7857142857 | M49: 89 | N49: 0.7946428571 | O49: 100 | P49: 0.8928571429 | Q49: 89 | R49: 0.7946428571 | S49: 97 | T49: 0.8660714286 | U49: 88 | V49: 0.7857142857 | W49: 94 | X49: 0.8392857143 | Y49: 63 | Z49: 0.5625 | AB49: 35 | AC49: 0.3723404255 | AD49: 13 | AE49: 0.1382978723 | AG49: =cálculos1!O49 -> 0 | AH49: 0 | AI49: =cálculos1!P49 -> 0 | AJ49: 0
A50: Sul | B50: Mimoso do Sul | C50: 266 | D50: 181 | E50: 25 | F50: 0.138121547 | G50: 31 | H50: 0.1712707182 | I50: 130 | J50: 0.7182320442 | K50: 129 | L50: 0.7127071823 | M50: 123 | N50: 0.679558011 | O50: 119 | P50: 0.6574585635 | Q50: 122 | R50: 0.6740331492 | S50: 117 | T50: 0.6464088398 | U50: 115 | V50: 0.635359116 | W50: 149 | X50: 0.8232044199 | Y50: 79 | Z50: 0.4364640884 | AB50: 6 | AC50: 0.04026845638 | AD50: 2 | AE50: 0.01342281879 | AG50: =cálculos1!O50 -> 0 | AH50: 0 | AI50: =cálculos1!P50 -> 0 | AJ50: 0
A51: Norte | B51: Montanha | C51: 239 | D51: 165 | E51: 53 | F51: 0.3212121212 | G51: 63 | H51: 0.3818181818 | I51: 190 | J51: 1.151515152 | K51: 192 | L51: 1.163636364 | M51: 174 | N51: 1.054545455 | O51: 174 | P51: 1.054545455 | Q51: 177 | R51: 1.072727273 | S51: 179 | T51: 1.084848485 | U51: 174 | V51: 1.054545455 | W51: 193 | X51: 1.16969697 | Y51: 97 | Z51: 0.5878787879 | AB51: 91 | AC51: 0.4715025907 | AD51: 36 | AE51: 0.1865284974 | AG51: =cálculos1!O51 -> 8 | AH51: 0.8 | AI51: =cálculos1!P51 -> 4 | AJ51: 1
A52: Norte | B52: Mucurici | C52: 77 | D52: 47 | E52: 9 | F52: 0.1914893617 | G52: 9 | H52: 0.1914893617 | I52: 56 | J52: 1.191489362 | K52: 56 | L52: 1.191489362 | M52: 52 | N52: 1.106382979 | O52: 51 | P52: 1.085106383 | Q52: 51 | R52: 1.085106383 | S52: 61 | T52: 1.29787234 | U52: 43 | V52: 0.914893617 | W52: 62 | X52: 1.319148936 | Y52: 27 | Z52: 0.5744680851 | AB52: 21 | AC52: 0.3387096774 | AD52: 12 | AE52: 0.1935483871 | AG52: =cálculos1!O52 -> 7 | AH52: 0.7 | AI52: =cálculos1!P52 -> 4 | AJ52: 1
A53: Sul | B53: Muniz Freire | C53: 213 | D53: 145 | E53: 87 | F53: 0.6 | G53: 95 | H53: 0.6551724138 | I53: 152 | J53: 1.048275862 | K53: 147 | L53: 1.013793103 | M53: 153 | N53: 1.055172414 | O53: 154 | P53: 1.062068966 | Q53: 147 | R53: 1.013793103 | S53: 153 | T53: 1.055172414 | U53: 156 | V53: 1.075862069 | W53: 176 | X53: 1.213793103 | Y53: 68 | Z53: 0.4689655172 | AB53: 29 | AC53: 0.1647727273 | AD53: 4 | AE53: 0.02272727273 | AG53: =cálculos1!O53 -> 8 | AH53: 0.8 | AI53: =cálculos1!P53 -> 4 | AJ53: 1
A54: Sul | B54: Muqui | C54: 163 | D54: 118 | E54: 9 | F54: 0.07627118644 | G54: 15 | H54: 0.1271186441 | I54: 114 | J54: 0.9661016949 | K54: 114 | L54: 0.9661016949 | M54: 97 | N54: 0.8220338983 | O54: 97 | P54: 0.8220338983 | Q54: 109 | R54: 0.9237288136 | S54: 110 | T54: 0.9322033898 | U54: 88 | V54: 0.7457627119 | W54: 122 | X54: 1.033898305 | Y54: 49 | Z54: 0.4152542373 | AB54: 36 | AC54: 0.2950819672 | AD54: 20 | AE54: 0.1639344262 | AG54: =cálculos1!O54 -> 3 | AH54: 0.3 | AI54: =cálculos1!P54 -> 3 | AJ54: 0.75
A55: Norte | B55: Nova Venécia | C55: 653 | D55: 465 | E55: 56 | F55: 0.1204301075 | G55: 265 | H55: 0.5698924731 | I55: 421 | J55: 0.9053763441 | K55: 419 | L55: 0.9010752688 | M55: 393 | N55: 0.8451612903 | O55: 394 | P55: 0.847311828 | Q55: 417 | R55: 0.8967741935 | S55: 413 | T55: 0.888172043 | U55: 371 | V55: 0.7978494624 | W55: 481 | X55: 1.034408602 | Y55: 215 | Z55: 0.4623655914 | AB55: 13 | AC55: 0.02702702703 | AD55: 5 | AE55: 0.0103950104 | AG55: =cálculos1!O55 -> 1 | AH55: 0.1 | AI55: =cálculos1!P55 -> 1 | AJ55: 0.25
A56: Central | B56: Pancas | C56: 210 | D56: 145 | E56: 35 | F56: 0.2413793103 | G56: 68 | H56: 0.4689655172 | I56: 144 | J56: 0.9931034483 | K56: 144 | L56: 0.9931034483 | M56: 135 | N56: 0.9310344828 | O56: 133 | P56: 0.9172413793 | Q56: 147 | R56: 1.013793103 | S56: 137 | T56: 0.9448275862 | U56: 134 | V56: 0.924137931 | W56: 137 | X56: 0.9448275862 | Y56: 109 | Z56: 0.7517241379 | AB56: 11 | AC56: 0.0802919708 | AD56: 4 | AE56: 0.02919708029 | AG56: =cálculos1!O56 -> 4 | AH56: 0.4 | AI56: =cálculos1!P56 -> 2 | AJ56: 0.5
A57: Norte | B57: Pedro Canário | C57: 323 | D57: 231 | E57: 18 | F57: 0.07792207792 | G57: 14 | H57: 0.06060606061 | I57: 214 | J57: 0.9264069264 | K57: 214 | L57: 0.9264069264 | M57: 213 | N57: 0.9220779221 | O57: 209 | P57: 0.9047619048 | Q57: 212 | R57: 0.9177489177 | S57: 187 | T57: 0.8095238095 | U57: 153 | V57: 0.6623376623 | W57: 250 | X57: 1.082251082 | Y57: 122 | Z57: 0.5281385281 | AB57: 31 | AC57: 0.124 | AD57: 6 | AE57: 0.024 | AG57: =cálculos1!O57 -> 2 | AH57: 0.2 | AI57: =cálculos1!P57 -> 1 | AJ57: 0.25
A58: Norte | B58: Pinheiros | C58: 326 | D58: 222 | E58: 10 | F58: 0.04504504505 | G58: 9 | H58: 0.04054054054 | I58: 230 | J58: 1.036036036 | K58: 229 | L58: 1.031531532 | M58: 211 | N58: 0.9504504505 | O58: 210 | P58: 0.9459459459 | Q58: 205 | R58: 0.9234234234 | S58: 182 | T58: 0.8198198198 | U58: 170 | V58: 0.7657657658 | W58: 209 | X58: 0.9414414414 | Y58: 74 | Z58: 0.3333333333 | AB58: 41 | AC58: 0.1961722488 | AD58: 18 | AE58: 0.08612440191 | AG58: =cálculos1!O58 -> 4 | AH58: 0.4 | AI58: =cálculos1!P58 -> 3 | AJ58: 0.75
A59: Sul | B59: Piúma | C59: 291 | D59: 193 | E59: 8 | F59: 0.0414507772 | G59: 121 | H59: 0.6269430052 | I59: 182 | J59: 0.9430051813 | K59: 181 | L59: 0.9378238342 | M59: 195 | N59: 1.010362694 | O59: 182 | P59: 0.9430051813 | Q59: 162 | R59: 0.8393782383 | S59: 123 | T59: 0.6373056995 | U59: 158 | V59: 0.8186528497 | W59: 182 | X59: 0.9430051813 | Y59: 77 | Z59: 0.3989637306 | AB59: 54 | AC59: 0.2967032967 | AD59: 20 | AE59: 0.1098901099 | AG59: =cálculos1!O59 -> 2 | AH59: 0.2 | AI59: =cálculos1!P59 -> 1 | AJ59: 0.25
A60: Norte | B60: Ponto Belo | C60: 77 | D60: 50 | E60: 14 | F60: 0.28 | G60: 7 | H60: 0.14 | I60: 47 | J60: 0.94 | K60: 46 | L60: 0.92 | M60: 47 | N60: 0.94 | O60: 48 | P60: 0.96 | Q60: 44 | R60: 0.88 | S60: 46 | T60: 0.92 | U60: 33 | V60: 0.66 | W60: 61 | X60: 1.22 | Y60: 23 | Z60: 0.46 | AB60: 12 | AC60: 0.1967213115 | AD60: 7 | AE60: 0.1147540984 | AG60: =cálculos1!O60 -> 2 | AH60: 0.2 | AI60: =cálculos1!P60 -> 1 | AJ60: 0.25
A61: Sul | B61: Presidente Kennedy | C61: 191 | D61: 137 | E61: 4 | F61: 0.02919708029 | G61: 12 | H61: 0.08759124088 | I61: 108 | J61: 0.7883211679 | K61: 109 | L61: 0.795620438 | M61: 121 | N61: 0.8832116788 | O61: 121 | P61: 0.8832116788 | Q61: 124 | R61: 0.9051094891 | S61: 101 | T61: 0.7372262774 | U61: 141 | V61: 1.02919708 | W61: 156 | X61: 1.138686131 | Y61: 63 | Z61: 0.4598540146 | AB61: 23 | AC61: 0.1474358974 | AD61: 4 | AE61: 0.02564102564 | AG61: =cálculos1!O61 -> 2 | AH61: 0.2 | AI61: =cálculos1!P61 -> 1 | AJ61: 0.25
A62: Central | B62: Rio Bananal | C62: 281 | D62: 197 | E62: 47 | F62: 0.2385786802 | G62: 36 | H62: 0.1827411168 | I62: 183 | J62: 0.9289340102 | K62: 182 | L62: 0.923857868 | M62: 184 | N62: 0.9340101523 | O62: 191 | P62: 0.9695431472 | Q62: 161 | R62: 0.8172588832 | S62: 189 | T62: 0.9593908629 | U62: 208 | V62: 1.055837563 | W62: 229 | X62: 1.162436548 | Y62: 108 | Z62: 0.5482233503 | AB62: 44 | AC62: 0.192139738 | AD62: 19 | AE62: 0.08296943231 | AG62: =cálculos1!O62 -> 4 | AH62: 0.4 | AI62: =cálculos1!P62 -> 1 | AJ62: 0.25
A63: Sul | B63: Rio Novo do Sul | C63: 111 | D63: 71 | E63: 5 | F63: 0.07042253521 | G63: 26 | H63: 0.3661971831 | I63: 87 | J63: 1.225352113 | K63: 85 | L63: 1.197183099 | M63: 67 | N63: 0.9436619718 | O63: 68 | P63: 0.9577464789 | Q63: 76 | R63: 1.070422535 | S63: 67 | T63: 0.9436619718 | U63: 81 | V63: 1.14084507 | W63: 83 | X63: 1.169014085 | Y63: 51 | Z63: 0.7183098592 | AB63: 20 | AC63: 0.2409638554 | AD63: 7 | AE63: 0.0843373494 | AG63: =cálculos1!O63 -> 6 | AH63: 0.6 | AI63: =cálculos1!P63 -> 3 | AJ63: 0.75
A64: Metropolitana | B64: Santa Leopoldina | C64: 100 | D64: 62 | E64: 3 | F64: 0.04838709677 | G64: 17 | H64: 0.2741935484 | I64: 69 | J64: 1.112903226 | K64: 70 | L64: 1.129032258 | M64: 63 | N64: 1.016129032 | O64: 66 | P64: 1.064516129 | Q64: 70 | R64: 1.129032258 | S64: 60 | T64: 0.9677419355 | U64: 84 | V64: 1.35483871 | W64: 79 | X64: 1.274193548 | Y64: 13 | Z64: 0.2096774194 | AB64: 4 | AC64: 0.05063291139 | AD64: 0 | AE64: 0 | AG64: =cálculos1!O64 -> 8 | AH64: 0.8 | AI64: =cálculos1!P64 -> 4 | AJ64: 1
A65: Metropolitana | B65: Santa Maria de Jetibá | C65: 612 | D65: 396 | E65: 295 | F65: 0.7449494949 | G65: 338 | H65: 0.8535353535 | I65: 380 | J65: 0.9595959596 | K65: 379 | L65: 0.9570707071 | M65: 393 | N65: 0.9924242424 | O65: 402 | P65: 1.015151515 | Q65: 397 | R65: 1.002525253 | S65: 313 | T65: 0.7904040404 | U65: 429 | V65: 1.083333333 | W65: 429 | X65: 1.083333333 | Y65: 180 | Z65: 0.4545454545 | AB65: 38 | AC65: 0.08857808858 | AD65: 18 | AE65: 0.04195804196 | AG65: =cálculos1!O65 -> 7 | AH65: 0.7 | AI65: =cálculos1!P65 -> 4 | AJ65: 1
A66: Metropolitana | B66: Santa Teresa | C66: 308 | D66: 212 | E66: 449 | F66: 2.117924528 | G66: 148 | H66: 0.6981132075 | I66: 193 | J66: 0.9103773585 | K66: 194 | L66: 0.9150943396 | M66: 198 | N66: 0.9339622642 | O66: 190 | P66: 0.8962264151 | Q66: 176 | R66: 0.8301886792 | S66: 152 | T66: 0.7169811321 | U66: 153 | V66: 0.7216981132 | W66: 192 | X66: 0.9056603774 | Y66: 113 | Z66: 0.5330188679 | AB66: 9 | AC66: 0.046875 | AD66: 3 | AE66: 0.015625 | AG66: =cálculos1!O66 -> 0 | AH66: 0 | AI66: =cálculos1!P66 -> 0 | AJ66: 0
A67: Central | B67: São Domingos do Norte | C67: 115 | D67: 74 | E67: 18 | F67: =E67/D67 -> 0.2432432432 | G67: 34 | H67: =G67/D67 -> 0.4594594595 | I67: 69 | J67: =I67/D67 -> 0.9324324324 | K67: 69 | L67: =K67/D67 -> 0.9324324324 | M67: 77 | N67: =M67/D67 -> 1.040540541 | O67: 75 | P67: =O67/D67 -> 1.013513514 | Q67: 71 | R67: =Q67/D67 -> 0.9594594595 | S67: 72 | T67: =S67/D67 -> 0.972972973 | U67: 49 | V67: =U67/D67 -> 0.6621621622 | W67: 78 | X67: =W67/D67 -> 1.054054054 | Y67: 29 | Z67: =Y67/D67 -> 0.3918918919 | AB67: 3 | AC67: 0.03846153846 | AD67: 1 | AE67: 0.01282051282 | AG67: =cálculos1!O67 -> 5 | AH67: 0.5 | AI67: =cálculos1!P67 -> 2 | AJ67: 0.5
A68: Central | B68: São Gabriel da Palha | C68: 464 | D68: 320 | E68: 108 | F68: 0.3375 | G68: 181 | H68: 0.565625 | I68: 280 | J68: 0.875 | K68: 282 | L68: 0.88125 | M68: 288 | N68: 0.9 | O68: 281 | P68: 0.878125 | Q68: 272 | R68: 0.85 | S68: 227 | T68: 0.709375 | U68: 234 | V68: 0.73125 | W68: 265 | X68: 0.828125 | Y68: 121 | Z68: 0.378125 | AB68: 6 | AC68: =AB68/W68 -> 0.02264150943 | AD68: 4 | AE68: =AD68/W68 -> 0.01509433962 | AG68: =cálculos1!O68 -> 0 | AH68: =AG68*0.1 -> 0 | AI68: =cálculos1!P68 -> 0 | AJ68: =AI68*0.25 -> 0
A69: Sul | B69: São José do Calçado | C69: 101 | D69: 78 | E69: 47 | F69: 0.6025641026 | G69: 52 | H69: 0.6666666667 | I69: 85 | J69: 1.08974359 | K69: 85 | L69: 1.08974359 | M69: 76 | N69: 0.9743589744 | O69: 68 | P69: 0.8717948718 | Q69: 75 | R69: 0.9615384615 | S69: 66 | T69: 0.8461538462 | U69: 69 | V69: 0.8846153846 | W69: 92 | X69: 1.179487179 | Y69: 41 | Z69: 0.5256410256 | AB69: 0 | AC69: 0 | AD69: 0 | AE69: 0 | AG69: =cálculos1!O69 -> 5 | AH69: 0.5 | AI69: =cálculos1!P69 -> 4 | AJ69: 1
A70: Norte | B70: São Mateus | C70: 1947 | D70: 1333 | E70: 1973 | F70: 1.48012003 | G70: 1903 | H70: 1.427606902 | I70: 1163 | J70: 0.872468117 | K70: 1140 | L70: 0.8552138035 | M70: 1182 | N70: 0.8867216804 | O70: 1099 | P70: 0.824456114 | Q70: 1069 | R70: 0.8019504876 | S70: 845 | T70: 0.6339084771 | U70: 940 | V70: 0.7051762941 | W70: 1108 | X70: 0.831207802 | Y70: 486 | Z70: 0.3645911478 | AB70: 266 | AC70: 0.2400722022 | AD70: 90 | AE70: 0.08122743682 | AG70: =cálculos1!O70 -> 1 | AH70: 0.1 | AI70: =cálculos1!P70 -> 0 | AJ70: 0
A71: Central | B71: São Roque do Canaã | C71: 123 | D71: 96 | E71: 31 | F71: 0.3229166667 | G71: 29 | H71: 0.3020833333 | I71: 79 | J71: 0.8229166667 | K71: 78 | L71: 0.8125 | M71: 71 | N71: 0.7395833333 | O71: 79 | P71: 0.8229166667 | Q71: 82 | R71: 0.8541666667 | S71: 71 | T71: 0.7395833333 | U71: 85 | V71: 0.8854166667 | W71: 100 | X71: 1.041666667 | Y71: 39 | Z71: 0.40625 | AB71: 42 | AC71: 0.42 | AD71: 19 | AE71: 0.19 | AG71: =cálculos1!O71 -> 1 | AH71: 0.1 | AI71: =cálculos1!P71 -> 1 | AJ71: 0.25
A72: Metropolitana | B72: Serra | C72: 7293 | D72: 5065 | E72: 6002 | F72: 1.184995064 | G72: 5766 | H72: 1.13840079 | I72: 4058 | J72: 0.8011846002 | K72: 4034 | L72: 0.7964461994 | M72: 4306 | N72: 0.850148075 | O72: 4167 | P72: 0.8227048371 | Q72: 4087 | R72: 0.8069101678 | S72: 3228 | T72: 0.6373149062 | U72: 2444 | V72: 0.4825271471 | W72: 4261 | X72: 0.8412635735 | Y72: 1385 | Z72: 0.2734452122 | AB72: 692 | AC72: 0.1624031917 | AD72: 241 | AE72: 0.05655949308 | AG72: =cálculos1!O72 -> 1 | AH72: 0.1 | AI72: =cálculos1!P72 -> 0 | AJ72: 0
A73: Central | B73: Sooretama | C73: 433 | D73: 304 | E73: 29 | F73: 0.09539473684 | G73: 27 | H73: 0.08881578947 | I73: 255 | J73: 0.8388157895 | K73: 257 | L73: 0.8453947368 | M73: 287 | N73: 0.9440789474 | O73: 286 | P73: 0.9407894737 | Q73: 241 | R73: 0.7927631579 | S73: 237 | T73: 0.7796052632 | U73: 264 | V73: 0.8684210526 | W73: 281 | X73: 0.9243421053 | Y73: 107 | Z73: 0.3519736842 | AB73: 21 | AC73: 0.07473309609 | AD73: 6 | AE73: 0.02135231317 | AG73: =cálculos1!O73 -> 1 | AH73: 0.1 | AI73: =cálculos1!P73 -> 0 | AJ73: 0
A74: Sul | B74: Vargem Alta | C74: 261 | D74: 180 | E74: 6 | F74: 0.03333333333 | G74: 18 | H74: 0.1 | I74: 147 | J74: 0.8166666667 | K74: 147 | L74: 0.8166666667 | M74: 160 | N74: 0.8888888889 | O74: 168 | P74: 0.9333333333 | Q74: 161 | R74: 0.8944444444 | S74: 139 | T74: 0.7722222222 | U74: 165 | V74: 0.9166666667 | W74: 173 | X74: 0.9611111111 | Y74: 81 | Z74: 0.45 | AB74: 29 | AC74: 0.1676300578 | AD74: 10 | AE74: 0.05780346821 | AG74: =cálculos1!O74 -> 2 | AH74: 0.2 | AI74: =cálculos1!P74 -> 1 | AJ74: 0.25
A75: Metropolitana | B75: Venda Nova do Imigrante | C75: 377 | D75: 254 | E75: 110 | F75: 0.4330708661 | G75: 285 | H75: 1.122047244 | I75: 261 | J75: 1.027559055 | K75: 261 | L75: 1.027559055 | M75: 234 | N75: 0.9212598425 | O75: 228 | P75: 0.8976377953 | Q75: 241 | R75: 0.9488188976 | S75: 245 | T75: 0.9645669291 | U75: 179 | V75: 0.7047244094 | W75: 304 | X75: 1.196850394 | Y75: 116 | Z75: 0.4566929134 | AB75: 50 | AC75: 0.1644736842 | AD75: 33 | AE75: 0.1085526316 | AG75: =cálculos1!O75 -> 5 | AH75: 0.5 | AI75: =cálculos1!P75 -> 3 | AJ75: 0.75
A76: Metropolitana | B76: Viana | C76: 938 | D76: 635 | E76: 121 | F76: 0.1905511811 | G76: 111 | H76: 0.1748031496 | I76: 557 | J76: 0.8771653543 | K76: 545 | L76: 0.8582677165 | M76: 618 | N76: 0.9732283465 | O76: 593 | P76: 0.9338582677 | Q76: 590 | R76: 0.9291338583 | S76: 418 | T76: 0.6582677165 | U76: 506 | V76: 0.7968503937 | W76: 603 | X76: 0.9496062992 | Y76: 184 | Z76: 0.2897637795 | AB76: 115 | AC76: 0.1907131012 | AD76: 48 | AE76: 0.07960199005 | AG76: =cálculos1!O76 -> 2 | AH76: 0.2 | AI76: =cálculos1!P76 -> 1 | AJ76: 0.25
A77: Norte | B77: Vila Pavão | C77: 91 | D77: 65 | E77: 22 | F77: 0.3384615385 | G77: 43 | H77: 0.6615384615 | I77: 62 | J77: 0.9538461538 | K77: 61 | L77: 0.9384615385 | M77: 66 | N77: 1.015384615 | O77: 65 | P77: 1 | Q77: 63 | R77: 0.9692307692 | S77: 68 | T77: 1.046153846 | U77: 89 | V77: 1.369230769 | W77: 85 | X77: 1.307692308 | Y77: 42 | Z77: 0.6461538462 | AB77: 16 | AC77: 0.1882352941 | AD77: 3 | AE77: 0.03529411765 | AG77: =cálculos1!O77 -> 7 | AH77: 0.7 | AI77: =cálculos1!P77 -> 3 | AJ77: 0.75
A78: Central | B78: Vila Valério | C78: 254 | D78: 172 | E78: 24 | F78: 0.1395348837 | G78: 51 | H78: 0.2965116279 | I78: 145 | J78: 0.8430232558 | K78: 140 | L78: 0.8139534884 | M78: 151 | N78: 0.8779069767 | O78: 157 | P78: 0.9127906977 | Q78: 161 | R78: 0.9360465116 | S78: 139 | T78: 0.8081395349 | U78: 150 | V78: 0.8720930233 | W78: 169 | X78: 0.9825581395 | Y78: 70 | Z78: 0.4069767442 | AB78: 3 | AC78: 0.01775147929 | AD78: 1 | AE78: 0.005917159763 | AG78: =cálculos1!O78 -> 2 | AH78: 0.2 | AI78: =cálculos1!P78 -> 1 | AJ78: 0.25
A79: Metropolitana | B79: Vila Velha | C79: 5636 | D79: 3799 | E79: 2945 | F79: 0.7752040011 | G79: 2922 | H79: 0.7691497763 | I79: 3065 | J79: 0.8067912609 | K79: 3064 | L79: 0.8065280337 | M79: 3282 | N79: 0.8639115557 | O79: 3224 | P79: 0.8486443801 | Q79: 3174 | R79: 0.8354830218 | S79: 2543 | T79: 0.6693866807 | U79: 2832 | V79: 0.7454593314 | W79: 3413 | X79: 0.8983943143 | Y79: 1468 | Z79: 0.3864174783 | AB79: 618 | AC79: 0.1810723703 | AD79: 276 | AE79: 0.08086727219 | AG79: =cálculos1!O79 -> 0 | AH79: 0 | AI79: =cálculos1!P79 -> 0 | AJ79: 0
A80: Metropolitana | B80: Vitória | C80: 3631 | D80: 2463 | E80: 4489 | F80: 1.822574097 | G80: 4872 | H80: 1.978075518 | I80: 2681 | J80: 1.088509947 | K80: 2681 | L80: 1.088509947 | M80: 2590 | N80: 1.051563134 | O80: 2459 | P80: 0.9983759643 | Q80: 2530 | R80: 1.027202598 | S80: 1771 | T80: 0.7190418189 | U80: 2613 | V80: 1.06090134 | W80: 2788 | X80: 1.131952903 | Y80: 1344 | Z80: 0.5456760049 | AB80: 749 | AC80: 0.268651363 | AD80: 374 | AE80: 0.1341463415 | AG80: =cálculos1!O80 -> 8 | AH80: 0.8 | AI80: =cálculos1!P80 -> 4 | AJ80: 1
B82: Total Norte | C82: =SUMIF($A$3:$A$80,"Norte",C$3:C$80) -> 5803 | D82: =SUMIF($A$3:$A$80,"Norte",D$3:D$80) -> 4013 | E82: =SUMIF($A$3:$A$80,"Norte",E$3:E$80) -> 2894 | F82: =E82/D82 -> 0.7211562422 | G82: =SUMIF($A$3:$A$80,"Norte",G$3:G$80) -> 3126 | H82: =G82/D82 -> 0.7789683529 | I82: =SUMIF($A$3:$A$80,"Norte",I$3:I$80) -> 3649 | J82: =I82/D82 -> 0.9092947919 | K82: =SUMIF($A$3:$A$80,"Norte",K$3:K$80) -> 3616 | L82: =K82/D82 -> 0.9010715176 | M82: =SUMIF($A$3:$A$80,"Norte",M$3:M$80) -> 3677 | N82: =M82/D82 -> 0.9162721156 | O82: =SUMIF($A$3:$A$80,"Norte",O$3:O$80) -> 3560 | P82: =O82/D82 -> 0.8871168702 | Q82: =SUMIF($A$3:$A$80,"Norte",Q$3:Q$80) -> 3508 | R82: =Q82/D82 -> 0.8741589833 | S82: =SUMIF($A$3:$A$80,"Norte",S$3:S$80) -> 3127 | T82: =S82/D82 -> 0.779217543 | U82: =SUMIF($A$3:$A$80,"Norte",U$3:U$80) -> 3090 | V82: =U82/D82 -> 0.7699975081 | W82: =SUMIF($A$3:$A$80,"Norte",W$3:W$80) -> 3852 | X82: =W82/D82 -> 0.9598803887 | Y82: =SUMIF($A$3:$A$80,"Norte",Y$3:Y$80) -> 1737 | Z82: =Y82/D82 -> 0.4328432594 | AB82: =SUMIF($A$3:$A$80,"Norte",AB$3:AB$80) -> 642 | AC82: =AB82/W82 -> 0.1666666667 | AD82: =SUMIF($A$3:$A$80,"Norte",AD$3:AD$80) -> 228 | AE82: =AD82/W82 -> 0.05919003115 | AG82: =cálculos1!O82 -> 1 | AH82: =AG82*0.1 -> 0.1 | AI82: =cálculos1!P82 -> 1 | AJ82: 0.25
B83: Total Central | C83: =SUMIF($A$3:$A$80,"Central",C$3:C$80) -> 7122 | D83: =SUMIF($A$3:$A$80,"Central",D$3:D$80) -> 4911 | E83: =SUMIF($A$3:$A$80,"Central",E$3:E$80) -> 4562 | F83: =E83/D83 -> 0.9289350438 | G83: =SUMIF($A$3:$A$80,"Central",G$3:G$80) -> 4638 | H83: =G83/D83 -> 0.944410507 | I83: =SUMIF($A$3:$A$80,"Central",I$3:I$80) -> 4276 | J83: =I83/D83 -> 0.8706984321 | K83: =SUMIF($A$3:$A$80,"Central",K$3:K$80) -> 4258 | L83: =K83/D83 -> 0.8670331908 | M83: =SUMIF($A$3:$A$80,"Central",M$3:M$80) -> 4423 | N83: =M83/D83 -> 0.900631236 | O83: =SUMIF($A$3:$A$80,"Central",O$3:O$80) -> 4396 | P83: =O83/D83 -> 0.8951333741 | Q83: =SUMIF($A$3:$A$80,"Central",Q$3:Q$80) -> 4233 | R83: =Q83/D83 -> 0.8619425779 | S83: =SUMIF($A$3:$A$80,"Central",S$3:S$80) -> 3704 | T83: =S83/D83 -> 0.7542252087 | U83: =SUMIF($A$3:$A$80,"Central",U$3:U$80) -> 3898 | V83: =U83/D83 -> 0.7937283649 | W83: =SUMIF($A$3:$A$80,"Central",W$3:W$80) -> 4616 | X83: =W83/D83 -> 0.9399307677 | Y83: =SUMIF($A$3:$A$80,"Central",Y$3:Y$80) -> 2198 | Z83: =Y83/D83 -> 0.447566687 | AB83: =SUMIF($A$3:$A$80,"Central",AB$3:AB$80) -> 375 | AC83: =AB83/W83 -> 0.08123916811 | AD83: =SUMIF($A$3:$A$80,"Central",AD$3:AD$80) -> 144 | AE83: =AD83/W83 -> 0.03119584055 | AG83: =cálculos1!O83 -> 1 | AH83: =AG83*0.1 -> 0.1 | AI83: =cálculos1!P83 -> 0 | AJ83: 0
B84: Total Metropolitana | C84: =SUMIF($A$3:$A$80,"Metropolitana",C$3:C$80) -> 29428 | D84: =SUMIF($A$3:$A$80,"Metropolitana",D$3:D$80) -> 20039 | E84: =SUMIF($A$3:$A$80,"Metropolitana",E$3:E$80) -> 18454 | F84: =E84/D84 -> 0.9209042367 | G84: =SUMIF($A$3:$A$80,"Metropolitana",G$3:G$80) -> 19055 | H84: =G84/D84 -> 0.9508957533 | I84: =SUMIF($A$3:$A$80,"Metropolitana",I$3:I$80) -> 17541 | J84: =I84/D84 -> 0.875343081 | K84: =SUMIF($A$3:$A$80,"Metropolitana",K$3:K$80) -> 17442 | L84: =K84/D84 -> 0.8704027147 | M84: =SUMIF($A$3:$A$80,"Metropolitana",M$3:M$80) -> 18331 | N84: =M84/D84 -> 0.9147662059 | O84: =SUMIF($A$3:$A$80,"Metropolitana",O$3:O$80) -> 17780 | P84: =O84/D84 -> 0.8872698238 | Q84: =SUMIF($A$3:$A$80,"Metropolitana",Q$3:Q$80) -> 17611 | R84: =Q84/D84 -> 0.8788362693 | S84: =SUMIF($A$3:$A$80,"Metropolitana",S$3:S$80) -> 14016 | T84: =S84/D84 -> 0.6994360996 | U84: =SUMIF($A$3:$A$80,"Metropolitana",U$3:U$80) -> 14940 | V84: =U84/D84 -> 0.7455461849 | W84: =SUMIF($A$3:$A$80,"Metropolitana",W$3:W$80) -> 19012 | X84: =W84/D84 -> 0.9487499376 | Y84: =SUMIF($A$3:$A$80,"Metropolitana",Y$3:Y$80) -> 7915 | Z84: =Y84/D84 -> 0.3949797894 | AB84: =SUMIF($A$3:$A$80,"Metropolitana",AB$3:AB$80) -> 3577 | AC84: 0.1881443299 | AD84: =SUMIF($A$3:$A$80,"Metropolitana",AD$3:AD$80) -> 1540 | AE84: 0.08100147275 | AG84: =cálculos1!O84 -> 1 | AH84: 0.1 | AI84: =cálculos1!P84 -> 0 | AJ84: 0
B85: Total Sul | C85: =SUMIF($A$3:$A$80,"sul",C$3:C$80) -> 8340 | D85: =SUMIF($A$3:$A$80,"sul",D$3:D$80) -> 5712 | E85: =SUMIF($A$3:$A$80,"Sul",E$3:E$80) -> 5138 | F85: =E85/D85 -> 0.8995098039 | G85: =SUMIF($A$3:$A$80,"Sul",G$3:G$80) -> 5310 | H85: =G85/D85 -> 0.9296218487 | I85: =SUMIF($A$3:$A$80,"Sul",I$3:I$80) -> 5289 | J85: =I85/D85 -> 0.9259453782 | K85: =SUMIF($A$3:$A$80,"Sul",K$3:K$80) -> 5259 | L85: =K85/D85 -> 0.9206932773 | M85: =SUMIF($A$3:$A$80,"Sul",M$3:M$80) -> 5431 | N85: =M85/D85 -> 0.9508053221 | O85: =SUMIF($A$3:$A$80,"Sul",O$3:O$80) -> 5290 | P85: =O85/D85 -> 0.9261204482 | Q85: =SUMIF($A$3:$A$80,"Sul",Q$3:Q$80) -> 5149 | R85: =Q85/D85 -> 0.9014355742 | S85: =SUMIF($A$3:$A$80,"Sul",S$3:S$80) -> 4246 | T85: =S85/D85 -> 0.7433473389 | U85: =SUMIF($A$3:$A$80,"Sul",U$3:U$80) -> 4956 | V85: =U85/D85 -> 0.8676470588 | W85: =SUMIF($A$3:$A$80,"Sul",W$3:W$80) -> 5757 | X85: =W85/D85 -> 1.007878151 | Y85: =SUMIF($A$3:$A$80,"Sul",Y$3:Y$80) -> 2313 | Z85: =Y85/D85 -> 0.4049369748 | AB85: =SUMIF($A$3:$A$80,"Sul",AB$3:AB$80) -> 922 | AC85: 0.1601528574 | AD85: =SUMIF($A$3:$A$80,"Sul",AD$3:AD$80) -> 354 | AE85: 0.06149035956 | AG85: =cálculos1!O85 -> 4 | AH85: 0.4 | AI85: =cálculos1!P85 -> 2 | AJ85: 0.5
B86: Total Espírito Santo | C86: =SUM(C3:C80) -> 50693 | D86: =SUM(D3:D80) -> 34675 | E86: =SUM(E82:E85) -> 31048 | F86: =E86/D86 -> 0.8954001442 | G86: =SUM(G82:G85) -> 32129 | H86: =G86/D86 -> 0.9265753425 | I86: =SUM(I82:I85) -> 30755 | J86: =I86/D86 -> 0.8869502523 | K86: =SUM(K82:K85) -> 30575 | L86: =K86/D86 -> 0.8817591925 | M86: =SUM(M82:M85) -> 31862 | N86: =M86/D86 -> 0.9188752704 | O86: =SUM(O82:O85) -> 31026 | P86: =O86/D86 -> 0.8947656813 | Q86: =SUM(Q82:Q85) -> 30501 | R86: =Q86/D86 -> 0.8796250901 | S86: =SUM(S82:S85) -> 25093 | T86: =S86/D86 -> 0.7236625811 | U86: =SUM(U82:U85) -> 26884 | V86: =U86/D86 -> 0.7753136265 | W86: =SUM(W82:W85) -> 33237 | X86: =W86/D86 -> 0.9585291997 | Y86: =SUM(Y82:Y85) -> 14163 | Z86: =Y86/D86 -> 0.4084498919 | AB86: =SUM(AB82:AB85) -> 5516 | AC86: 0.1659596233 | AD86: =SUM(AD82:AD85) -> 2266 | AE86: 0.06817703162 | AG86: =cálculos1!O86 -> 2 | AH86: 0.2 | AI86: =cálculos1!P86 -> 1 | AJ86: 0.25
E87: =COUNTIF(F3:F80,">=0,95") -> 8 | G87: =COUNTIF(H3:H80,">=0,9") -> 8 | I87: =COUNTIF(J3:J80,">=0,95") -> 32 | K87: =COUNTIF(L3:L80,">=0,95") -> 28 | M87: =COUNTIF(N3:N80,">=0,95") -> 42 | O87: =COUNTIF(P3:P80,">=0,9") -> 52 | Q87: =COUNTIF(R3:R80,">=0,95") -> 28 | S87: =COUNTIF(T3:T80,">=0,95") -> 15 | U87: =COUNTIF(V3:V80,">=0,95") -> 23 | W87: =COUNTIF(X3:X80,">=0,95") -> 53 | Y87: =COUNTIF(Z3:Z80,">=0,95") -> 1 | AB87: =COUNTIF(AC3:AC80,">=0,9") -> 0 | AD87: =COUNTIF(AE3:AE80,">=0,9") -> 0
B88: HOMOGENEIDADE ENTRE MUNICÍPIOS | E88: =E87/78 -> 0.1025641026 | G88: =G87/78 -> 0.1025641026 | I88: =I87/78 -> 0.4102564103 | K88: =K87/78 -> 0.358974359 | M88: =M87/78 -> 0.5384615385 | O88: =O87/78 -> 0.6666666667 | Q88: =Q87/78 -> 0.358974359 | S88: =S87/78 -> 0.1923076923 | U88: =U87/78 -> 0.2948717949 | W88: =W87/78 -> 0.6794871795 | Y88: =Y87/78 -> 0.01282051282 | AB88: =AB87/78 -> 0 | AD88: =AD87/78 -> 0
A90: Fonte: Vacina e Confia, em 10 de Setembro de 2024.**
A91: **Dados referente às doses aplicadas no período de Janeiro a Agosto de 2024
A92: Cobertura Calculada por município de procedência/ocorrência da vacinação
A93: 1 População anual extraída do MS/SVS/DASIS - SINASC/DASIS/SVS/MS 2023 (hoje preliminares) referente ao período de julho a dezembro de 2023 e SINASC/DASIS/SVS/MS 2024 referente ao período de janeiro a junho de 2024.
A94: ² População proporcional extraída do MS/SVS/DASIS - SINASC/DASIS/SVS/MS 2023 (hoje preliminares) referente ao período de julho e agosto de 2023 somada a população extraída do SINASC/DASIS/SVS/MS 2024 referente ao período de janeiro e junho de 2024.
A95: Sinasc, atualizado em 05 de Setembro de 2024.
A96: Homogeineidade: O cálculo da Homogeineidade entre vacinas é feito de acordo com a pactuação estabelecida no Plano Plurianual (PPA) vigente no período 2024-2027.
A97: Observações:
A98: Imunobiológicos que foram recebidos parcialmente pelo estado no mês da análise, sendo distribuídos em quantidades reduzidas às regionais e municípios: Típlice Bacteriana (DTP),Varicela, Hepatite A - Rotina Pediátrica, COVID-19 Monovalente (XBB) - FRASCO .
A99: Imunobiológicos indisponíveis no mês da análise, não sendo possível a distribuição às regionais e municípios: Meningo C Conjugada, Tríplice Bacteriana Acelular (dTpa - CRIE).
A100: Imunobiológicos em falta e sem previsão de entrega: Febre Amarela, Varicela, Tríplice Viral (SCR), COVID-19 Monovalente (XBB) - FRASCO, Tríplice Bacteriana (DTP).

Sheet CV Rotina <2A - residência
E1: AO NASCER | I1: MENOR DE 1 ANO | U1: 1 ANO | AB1: MENOR DE 1 ANO
A2: Regional | B2: Município | C2: ¹População < 1 ano e 1 ano anual | D2: ²População < 1 ano e 1 ano proporcional | E2: Doses Aplicadas HB < 30 dias | F2: Cobertura Vacinal HB até 30 dias | G2: Doses Aplicadas BCG | H2: Cobertura Vacinal BCG | I2: Doses Aplicadas Pentavalente | J2: Cobertura Vacinal Pentavalente | K2: Doses Aplicadas Poliomielite | L2: Cobertura Vacinal Poliomielite | M2: Doses Aplicadas Pneumo 10 | N2: Cobertura Vacinal Pneumo 10 | O2: Doses Aplicadas Rotavírus | P2: Cobertura Vacinal Rotavírus | Q2: Doses Aplicadas Meningo C | R2: Cobertura Vacinal Meningo C | S2: Doses Aplicadas Febre Amarela | T2: Cobertura Vacinal Febre Amarela | U2: Doses Aplicadas Hepatite A | V2: Cobertura Vacinal Hepatite A | W2: Doses Aplicadas de Tríplice Viral | X2: Cobertura Vacinal Tríplice Viral | Y2: Doses Aplicadas Varicela | Z2: Cobertura Varicela | AB2: Doses Aplicadas COVID-19 | AC2: Cobertura Vacinal COVID-19 D1 | AD2: Doses Aplicadas COVID-19 | AE2: Cobertura Vacinal COVID-19 D2 | AG2: VACINAS QUE ATINGIRAM A META DE CV | AH2: HOMOGENEIDADE ENTRE AS 10 VACINAS | AI2: VACINAS DO PQA-VS QUE ATINGIRAM A META DE CV | AJ2: HOMOGENEIDADE ENTRE AS VACINAS DO PQA-VS
A3: Metropolitana | B3: Afonso Cláudio | C3: 383 | D3: 263 | E3: 211 | F3: =E3/D3 -> 0.8022813688 | G3: 228 | H3: =G3/D3 -> 0.8669201521 | I3: 265 | J3: =I3/D3 -> 1.007604563 | K3: 262 | L3: =K3/D3 -> 0.9961977186 | M3: 254 | N3: =M3/D3 -> 0.9657794677 | O3: 251 | P3: =O3/D3 -> 0.9543726236 | Q3: 252 | R3: =Q3/D3 -> 0.9581749049 | S3: 252 | T3: =S3/D3 -> 0.9581749049 | U3: 260 | V3: =U3/D3 -> 0.9885931559 | W3: 268 | X3: =W3/D3 -> 1.019011407 | Y3: 133 | Z3: =Y3/D3 -> 0.5057034221 | AB3: 15 | AC3: =AB3/W3 -> 0.05597014925 | AD3: 4 | AE3: =AD3/W3 -> 0.01492537313 | AG3: =cálculos2!O3 -> 8 | AH3: =AG3*0.1 -> 0.8 | AI3: =cálculos2!P3 -> 4 | AJ3: =AI3*0.25 -> 1 | AL3: LEGENDA / HOMOGENEIDADE PQA-VS
A4: Norte | B4: Água Doce do Norte | C4: 202 | D4: 152 | E4: 137 | F4: 0.9013157895 | G4: 137 | H4: =G4/D4 -> 0.9013157895 | I4: 118 | J4: 0.7763157895 | K4: 115 | L4: 0.7565789474 | M4: 122 | N4: 0.8026315789 | O4: 119 | P4: 0.7828947368 | Q4: 112 | R4: 0.7368421053 | S4: 82 | T4: 0.5394736842 | U4: 90 | V4: 0.5921052632 | W4: 103 | X4: 0.6776315789 | Y4: 33 | Z4: 0.2171052632 | AB4: 15 | AC4: =AB4/W4 -> 0.145631068 | AD4: 7 | AE4: =AD4/W4 -> 0.06796116505 | AG4: =cálculos2!O4 -> 1 | AH4: =AG4*0.1 -> 0.1 | AI4: =cálculos2!P4 -> 0 | AJ4: =AI4*0.25 -> 0 | AL4: PERCENTUAL | AM4: Nº DE MUNICÍPIOS
A5: Central | B5: Águia Branca | C5: 172 | D5: 117 | E5: 101 | F5: 0.8632478632 | G5: 107 | H5: 0.9145299145 | I5: 110 | J5: 0.9401709402 | K5: 110 | L5: 0.9401709402 | M5: 117 | N5: 1 | O5: 116 | P5: 0.9914529915 | Q5: 104 | R5: 0.8888888889 | S5: 93 | T5: 0.7948717949 | U5: 93 | V5: 0.7948717949 | W5: 101 | X5: 0.8632478632 | Y5: 36 | Z5: 0.3076923077 | AB5: 5 | AC5: 0.0495049505 | AD5: 2 | AE5: 0.0198019802 | AG5: =cálculos2!O5 -> 3 | AH5: 0.3 | AI5: =cálculos2!P5 -> 1 | AJ5: 0.25 | AL5: 0 | AM5: =COUNTIF($AJ$3:$AJ$80,"=0") -> 18
A6: Sul | B6: Alegre | C6: 324 | D6: 213 | E6: 191 | F6: 0.896713615 | G6: 192 | H6: 0.9014084507 | I6: 208 | J6: 0.9765258216 | K6: 210 | L6: 0.985915493 | M6: 217 | N6: 1.018779343 | O6: 212 | P6: 0.9953051643 | Q6: 206 | R6: 0.9671361502 | S6: 197 | T6: 0.9248826291 | U6: 195 | V6: 0.9154929577 | W6: 208 | X6: 0.9765258216 | Y6: 60 | Z6: 0.2816901408 | AB6: 66 | AC6: 0.3173076923 | AD6: 23 | AE6: 0.1105769231 | AG6: =cálculos2!O6 -> 7 | AH6: 0.7 | AI6: =cálculos2!P6 -> 4 | AJ6: 1 | AL6: 0.25 | AM6: =COUNTIF($AJ$3:$AJ$80,"=0,25") -> 16
A7: Sul | B7: Alfredo Chaves | C7: 139 | D7: 82 | E7: 59 | F7: 0.7195121951 | G7: 69 | H7: 0.8414634146 | I7: 99 | J7: 1.207317073 | K7: 98 | L7: 1.195121951 | M7: 98 | N7: 1.195121951 | O7: 100 | P7: 1.219512195 | Q7: 100 | R7: 1.219512195 | S7: 99 | T7: 1.207317073 | U7: 90 | V7: 1.097560976 | W7: 89 | X7: 1.085365854 | Y7: 60 | Z7: 0.7317073171 | AB7: 14 | AC7: 0.1573033708 | AD7: 8 | AE7: 0.08988764045 | AG7: =cálculos2!O7 -> 8 | AH7: 0.8 | AI7: =cálculos2!P7 -> 4 | AJ7: 1 | AL7: 0.5 | AM7: =COUNTIF($AJ$3:$AJ$80,"=0,5") -> 14
A8: Central | B8: Alto Rio Novo | C8: 88 | D8: 58 | E8: 47 | F8: 0.8103448276 | G8: 52 | H8: 0.8965517241 | I8: 61 | J8: 1.051724138 | K8: 60 | L8: 1.034482759 | M8: 63 | N8: 1.086206897 | O8: 63 | P8: 1.086206897 | Q8: 61 | R8: 1.051724138 | S8: 47 | T8: 0.8103448276 | U8: 60 | V8: 1.034482759 | W8: 61 | X8: 1.051724138 | Y8: 25 | Z8: 0.4310344828 | AB8: 1 | AC8: 0.01639344262 | AD8: 1 | AE8: 0.01639344262 | AG8: =cálculos2!O8 -> 7 | AH8: 0.7 | AI8: =cálculos2!P8 -> 4 | AJ8: 1 | AL8: 0.75 | AM8: =COUNTIF($AJ$3:$AJ$80,"=0,75") -> 6
A9: Sul | B9: Anchieta | C9: 374 | D9: 255 | E9: 219 | F9: 0.8588235294 | G9: 227 | H9: 0.8901960784 | I9: 275 | J9: 1.078431373 | K9: 277 | L9: 1.08627451 | M9: 268 | N9: 1.050980392 | O9: 264 | P9: 1.035294118 | Q9: 271 | R9: 1.062745098 | S9: 214 | T9: 0.8392156863 | U9: 262 | V9: 1.02745098 | W9: 276 | X9: 1.082352941 | Y9: 123 | Z9: 0.4823529412 | AB9: 55 | AC9: 0.1992753623 | AD9: 28 | AE9: 0.1014492754 | AG9: =cálculos2!O9 -> 7 | AH9: 0.7 | AI9: =cálculos2!P9 -> 4 | AJ9: 1 | AL9: 1 | AM9: =COUNTIF($AJ$3:$AJ$80,"=1,0") -> 24
A10: Sul | B10: Apiacá | C10: 66 | D10: 46 | E10: 33 | F10: 0.7173913043 | G10: 48 | H10: 1.043478261 | I10: 40 | J10: 0.8695652174 | K10: 40 | L10: 0.8695652174 | M10: 44 | N10: 0.9565217391 | O10: 43 | P10: 0.9347826087 | Q10: 43 | R10: 0.9347826087 | S10: 38 | T10: 0.8260869565 | U10: 28 | V10: 0.6086956522 | W10: 47 | X10: 1.02173913 | Y10: 6 | Z10: 0.1304347826 | AB10: 0 | AC10: 0 | AD10: 0 | AE10: 0 | AG10: =cálculos2!O10 -> 4 | AH10: 0.4 | AI10: =cálculos2!P10 -> 2 | AJ10: 0.5
A11: Metropolitana | B11: Aracruz | C11: 1425 | D11: 951 | E11: 933 | F11: 0.9810725552 | G11: 930 | H11: 0.9779179811 | I11: 869 | J11: 0.9137749737 | K11: 870 | L11: 0.9148264984 | M11: 916 | N11: 0.9631966351 | O11: 903 | P11: 0.9495268139 | Q11: 886 | R11: 0.9316508938 | S11: 741 | T11: 0.7791798107 | U11: 945 | V11: 0.9936908517 | W11: 997 | X11: 1.048370137 | Y11: 490 | Z11: 0.5152471083 | AB11: 230 | AC11: 0.2306920762 | AD11: 119 | AE11: 0.1193580742 | AG11: =cálculos2!O11 -> 5 | AH11: 0.5 | AI11: =cálculos2!P11 -> 2 | AJ11: 0.5
A12: Sul | B12: Atilio Vivacqua | C12: 136 | D12: 91 | E12: 94 | F12: 1.032967033 | G12: 92 | H12: 1.010989011 | I12: 82 | J12: 0.9010989011 | K12: 81 | L12: 0.8901098901 | M12: 81 | N12: 0.8901098901 | O12: 80 | P12: 0.8791208791 | Q12: 83 | R12: 0.9120879121 | S12: 63 | T12: 0.6923076923 | U12: 89 | V12: 0.978021978 | W12: 92 | X12: 1.010989011 | Y12: 43 | Z12: 0.4725274725 | AB12: 1 | AC12: 0.01086956522 | AD12: 0 | AE12: 0 | AG12: =cálculos2!O12 -> 3 | AH12: 0.3 | AI12: =cálculos2!P12 -> 1 | AJ12: 0.25 | AL12: LEGENDA / HOMOGENEIDADE 10 VACINAS
A13: Central | B13: Baixo Guandu | C13: 392 | D13: 251 | E13: 195 | F13: 0.7768924303 | G13: 246 | H13: 0.9800796813 | I13: 254 | J13: 1.011952191 | K13: 255 | L13: 1.015936255 | M13: 275 | N13: 1.09561753 | O13: 269 | P13: 1.071713147 | Q13: 268 | R13: 1.067729084 | S13: 203 | T13: 0.8087649402 | U13: 259 | V13: 1.03187251 | W13: 256 | X13: 1.019920319 | Y13: 126 | Z13: 0.5019920319 | AB13: 22 | AC13: 0.0859375 | AD13: 9 | AE13: 0.03515625 | AG13: =cálculos2!O13 -> 8 | AH13: 0.8 | AI13: =cálculos2!P13 -> 4 | AJ13: 1 | AL13: PERCENTUAL | AM13: Nº DE MUNICÍPIOS
A14: Norte | B14: Barra de São Francisco | C14: 545 | D14: 380 | E14: 380 | F14: 1 | G14: 383 | H14: 1.007894737 | I14: 339 | J14: 0.8921052632 | K14: 333 | L14: 0.8763157895 | M14: 361 | N14: 0.95 | O14: 345 | P14: 0.9078947368 | Q14: 347 | R14: 0.9131578947 | S14: 320 | T14: 0.8421052632 | U14: 310 | V14: 0.8157894737 | W14: 373 | X14: 0.9815789474 | Y14: 191 | Z14: 0.5026315789 | AB14: 12 | AC14: 0.03217158177 | AD14: 3 | AE14: 0.008042895442 | AG14: =cálculos2!O14 -> 4 | AH14: 0.4 | AI14: =cálculos2!P14 -> 2 | AJ14: 0.5 | AL14: 0 | AM14: =COUNTIF($AH$3:$AH$80,"=0") -> 6
A15: Norte | B15: Boa Esperança | C15: 205 | D15: 139 | E15: 59 | F15: 0.4244604317 | G15: 95 | H15: 0.6834532374 | I15: 118 | J15: 0.8489208633 | K15: 123 | L15: 0.8848920863 | M15: 135 | N15: 0.9712230216 | O15: 136 | P15: 0.9784172662 | Q15: 127 | R15: 0.9136690647 | S15: 115 | T15: 0.8273381295 | U15: 99 | V15: 0.7122302158 | W15: 139 | X15: 1 | Y15: 82 | Z15: 0.5899280576 | AB15: 19 | AC15: 0.1366906475 | AD15: 9 | AE15: 0.06474820144 | AG15: =cálculos2!O15 -> 3 | AH15: 0.3 | AI15: =cálculos2!P15 -> 2 | AJ15: 0.5 | AL15: 0.1 | AM15: =COUNTIFS($AH$3:$AH$80,">=0,10",$AH$3:$AH$80,"<0,20") -> 12
A16: Sul | B16: Bom Jesus do Norte | C16: 89 | D16: 65 | E16: 34 | F16: 0.5230769231 | G16: 48 | H16: 0.7384615385 | I16: 72 | J16: 1.107692308 | K16: 70 | L16: 1.076923077 | M16: 67 | N16: 1.030769231 | O16: 65 | P16: 1 | Q16: 56 | R16: 0.8615384615 | S16: 58 | T16: 0.8923076923 | U16: 37 | V16: 0.5692307692 | W16: 71 | X16: 1.092307692 | Y16: 10 | Z16: 0.1538461538 | AB16: 31 | AC16: 0.4366197183 | AD16: 22 | AE16: 0.3098591549 | AG16: =cálculos2!O16 -> 5 | AH16: 0.5 | AI16: =cálculos2!P16 -> 4 | AJ16: 1 | AL16: 0.2 | AM16: =COUNTIFS($AH$3:$AH$80,">=0,20",$AH$3:$AH$80,"<0,30") -> 8
A17: Metropolitana | B17: Brejetuba | C17: 204 | D17: 137 | E17: 61 | F17: 0.4452554745 | G17: 126 | H17: 0.9197080292 | I17: 137 | J17: 1 | K17: 137 | L17: 1 | M17: 137 | N17: 1 | O17: 142 | P17: 1.03649635 | Q17: 132 | R17: 0.9635036496 | S17: 120 | T17: 0.8759124088 | U17: 109 | V17: 0.795620438 | W17: 139 | X17: 1.01459854 | Y17: 58 | Z17: 0.4233576642 | AB17: 0 | AC17: 0 | AD17: 0 | AE17: 0 | AG17: =cálculos2!O17 -> 7 | AH17: 0.7 | AI17: =cálculos2!P17 -> 4 | AJ17: 1 | AL17: 0.3 | AM17: =COUNTIFS($AH$3:$AH$80,">=0,30",$AH$3:$AH$80,"<0,40") -> 9
A18: Sul | B18: Cachoeiro de Itapemirim | C18: 2416 | D18: 1690 | E18: 1853 | F18: 1.096449704 | G18: 1866 | H18: 1.104142012 | I18: 1418 | J18: 0.8390532544 | K18: 1403 | L18: 0.8301775148 | M18: 1503 | N18: 0.8893491124 | O18: 1479 | P18: 0.875147929 | Q18: 1387 | R18: 0.8207100592 | S18: 1083 | T18: 0.6408284024 | U18: 1421 | V18: 0.8408284024 | W18: 1592 | X18: 0.9420118343 | Y18: 609 | Z18: 0.3603550296 | AB18: 199 | AC18: 0.125 | AD18: 71 | AE18: 0.04459798995 | AG18: =cálculos2!O18 -> 1 | AH18: 0.1 | AI18: =cálculos2!P18 -> 0 | AJ18: 0 | AL18: 0.4 | AM18: =COUNTIFS($AH$3:$AH$80,">=0,40",$AH$3:$AH$80,"<0,50") -> 11
A19: Metropolitana | B19: Cariacica | C19: 4860 | D19: 3332 | E19: 3036 | F19: 0.9111644658 | G19: 3034 | H19: 0.9105642257 | I19: 2877 | J19: 0.8634453782 | K19: 2848 | L19: 0.8547418968 | M19: 3035 | N19: 0.9108643457 | O19: 2889 | P19: 0.8670468187 | Q19: 2872 | R19: 0.8619447779 | S19: 2224 | T19: 0.6674669868 | U19: 2287 | V19: 0.6863745498 | W19: 3057 | X19: 0.9174669868 | Y19: 1197 | Z19: 0.3592436975 | AB19: 638 | AC19: 0.2087013412 | AD19: 223 | AE19: 0.07294733399 | AG19: =cálculos2!O19 -> 1 | AH19: 0.1 | AI19: =cálculos2!P19 -> 0 | AJ19: 0 | AL19: 0.5 | AM19: =COUNTIFS($AH$3:$AH$80,">=0,50",$AH$3:$AH$80,"<0,60") -> 8
A20: Sul | B20: Castelo | C20: 444 | D20: 301 | E20: 231 | F20: 0.7674418605 | G20: 237 | H20: 0.7873754153 | I20: 295 | J20: 0.9800664452 | K20: 295 | L20: 0.9800664452 | M20: 295 | N20: 0.9800664452 | O20: 284 | P20: 0.9435215947 | Q20: 276 | R20: 0.9169435216 | S20: 257 | T20: 0.853820598 | U20: 245 | V20: 0.8139534884 | W20: 311 | X20: 1.033222591 | Y20: 145 | Z20: 0.4817275748 | AB20: 36 | AC20: 0.115755627 | AD20: 13 | AE20: 0.04180064309 | AG20: =cálculos2!O20 -> 5 | AH20: 0.5 | AI20: =cálculos2!P20 -> 4 | AJ20: 1 | AL20: 0.6 | AM20: =COUNTIFS($AH$3:$AH$80,">=0,60",$AH$3:$AH$80,"<0,70") -> 6
A21: Central | B21: Colatina | C21: 1525 | D21: 1055 | E21: 1046 | F21: 0.9914691943 | G21: 1045 | H21: 0.990521327 | I21: 950 | J21: 0.9004739336 | K21: 939 | L21: 0.8900473934 | M21: 959 | N21: 0.9090047393 | O21: 941 | P21: 0.891943128 | Q21: 930 | R21: 0.8815165877 | S21: 811 | T21: 0.7687203791 | U21: 738 | V21: 0.6995260664 | W21: 1036 | X21: 0.9819905213 | Y21: 514 | Z21: 0.4872037915 | AB21: 88 | AC21: 0.08494208494 | AD21: 41 | AE21: 0.03957528958 | AG21: =cálculos2!O21 -> 2 | AH21: 0.2 | AI21: =cálculos2!P21 -> 1 | AJ21: 0.25 | AL21: 0.7 | AM21: =COUNTIFS($AH$3:$AH$80,">=0,70",$AH$3:$AH$80,"<0,80") -> 6
A22: Norte | B22: Conceição da Barra | C22: 381 | D22: 254 | E22: 109 | F22: 0.4291338583 | G22: 111 | H22: 0.437007874 | I22: 244 | J22: 0.9606299213 | K22: 247 | L22: 0.9724409449 | M22: 244 | N22: 0.9606299213 | O22: 236 | P22: 0.9291338583 | Q22: 247 | R22: 0.9724409449 | S22: 233 | T22: 0.9173228346 | U22: 205 | V22: 0.8070866142 | W22: 262 | X22: 1.031496063 | Y22: 125 | Z22: 0.4921259843 | AB22: 45 | AC22: 0.1717557252 | AD22: 15 | AE22: 0.0572519084 | AG22: =cálculos2!O22 -> 6 | AH22: 0.6 | AI22: =cálculos2!P22 -> 4 | AJ22: 1 | AL22: 0.8 | AM22: =COUNTIFS($AH$3:$AH$80,">=0,80",$AH$3:$AH$80,"<0,90") -> 9
A23: Metropolitana | B23: Conceição do Castelo | C23: 152 | D23: 109 | E23: 37 | F23: 0.3394495413 | G23: 96 | H23: 0.880733945 | I23: 81 | J23: 0.7431192661 | K23: 78 | L23: 0.7155963303 | M23: 85 | N23: 0.7798165138 | O23: 83 | P23: 0.7614678899 | Q23: 78 | R23: 0.7155963303 | S23: 86 | T23: 0.7889908257 | U23: 88 | V23: 0.8073394495 | W23: 88 | X23: 0.8073394495 | Y23: 55 | Z23: 0.504587156 | AB23: 0 | AC23: 0 | AD23: 0 | AE23: 0 | AG23: =cálculos2!O23 -> 0 | AH23: 0 | AI23: =cálculos2!P23 -> 0 | AJ23: 0 | AL23: 0.9 | AM23: =COUNTIFS($AH$3:$AH$80,">=0,90",$AH$3:$AH$80,"<1,0") -> 3
A24: Sul | B24: Divino de São Lourenço | C24: 69 | D24: 46 | E24: 46 | F24: 1 | G24: 47 | H24: 1.02173913 | I24: 54 | J24: 1.173913043 | K24: 54 | L24: 1.173913043 | M24: 56 | N24: 1.217391304 | O24: 55 | P24: 1.195652174 | Q24: 54 | R24: 1.173913043 | S24: 42 | T24: 0.9130434783 | U24: 33 | V24: 0.7173913043 | W24: 38 | X24: 0.8260869565 | Y24: 21 | Z24: 0.4565217391 | AB24: 14 | AC24: 0.3684210526 | AD24: 4 | AE24: 0.1052631579 | AG24: =cálculos2!O24 -> 6 | AH24: 0.6 | AI24: =cálculos2!P24 -> 3 | AJ24: 0.75 | AL24: 1 | AM24: =COUNTIF($AH$3:$AH$80,">=1,0") -> 0
A25: Metropolitana | B25: Domingos Martins | C25: 409 | D25: 270 | E25: 211 | F25: 0.7814814815 | G25: 258 | H25: 0.9555555556 | I25: 252 | J25: 0.9333333333 | K25: 250 | L25: 0.9259259259 | M25: 275 | N25: 1.018518519 | O25: 272 | P25: 1.007407407 | Q25: 253 | R25: 0.937037037 | S25: 220 | T25: 0.8148148148 | U25: 240 | V25: 0.8888888889 | W25: 267 | X25: 0.9888888889 | Y25: 174 | Z25: 0.6444444444 | AB25: 49 | AC25: 0.1835205993 | AD25: 32 | AE25: 0.1198501873 | AG25: =cálculos2!O25 -> 4 | AH25: 0.4 | AI25: =cálculos2!P25 -> 2 | AJ25: 0.5
A26: Sul | B26: Dores do Rio Preto | C26: 97 | D26: 68 | E26: 39 | F26: 0.5735294118 | G26: 44 | H26: 0.6470588235 | I26: 59 | J26: 0.8676470588 | K26: 62 | L26: 0.9117647059 | M26: 66 | N26: 0.9705882353 | O26: 63 | P26: 0.9264705882 | Q26: 60 | R26: 0.8823529412 | S26: 50 | T26: 0.7352941176 | U26: 51 | V26: 0.75 | W26: 53 | X26: 0.7794117647 | Y26: 22 | Z26: 0.3235294118 | AB26: 21 | AC26: 0.3962264151 | AD26: 10 | AE26: 0.1886792453 | AG26: =cálculos2!O26 -> 2 | AH26: 0.2 | AI26: =cálculos2!P26 -> 1 | AJ26: 0.25
A27: Norte | B27: Ecoporanga | C27: 265 | D27: 189 | E27: 178 | F27: 0.9417989418 | G27: 179 | H27: 0.9470899471 | I27: 165 | J27: 0.873015873 | K27: 162 | L27: 0.8571428571 | M27: 183 | N27: 0.9682539683 | O27: 174 | P27: 0.9206349206 | Q27: 164 | R27: 0.8677248677 | S27: 146 | T27: 0.7724867725 | U27: 158 | V27: 0.835978836 | W27: 172 | X27: 0.9100529101 | Y27: 98 | Z27: 0.5185185185 | AB27: 20 | AC27: 0.1162790698 | AD27: 3 | AE27: 0.01744186047 | AG27: =cálculos2!O27 -> 3 | AH27: 0.3 | AI27: =cálculos2!P27 -> 1 | AJ27: 0.25
A28: Metropolitana | B28: Fundão | C28: 222 | D28: 158 | E28: 130 | F28: 0.8227848101 | G28: 132 | H28: 0.835443038 | I28: 148 | J28: 0.9367088608 | K28: 147 | L28: 0.9303797468 | M28: 150 | N28: 0.9493670886 | O28: 152 | P28: 0.9620253165 | Q28: 134 | R28: 0.8481012658 | S28: 120 | T28: 0.7594936709 | U28: 144 | V28: 0.9113924051 | W28: 139 | X28: 0.8797468354 | Y28: 90 | Z28: 0.5696202532 | AB28: 17 | AC28: 0.1223021583 | AD28: 6 | AE28: 0.04316546763 | AG28: =cálculos2!O28 -> 1 | AH28: 0.1 | AI28: =cálculos2!P28 -> 0 | AJ28: 0
A29: Central | B29: Governador Lindenberg | C29: 128 | D29: 82 | E29: 68 | F29: 0.8292682927 | G29: 66 | H29: 0.8048780488 | I29: 87 | J29: 1.06097561 | K29: 85 | L29: 1.036585366 | M29: 87 | N29: 1.06097561 | O29: 86 | P29: 1.048780488 | Q29: 85 | R29: 1.036585366 | S29: 93 | T29: 1.134146341 | U29: 79 | V29: 0.9634146341 | W29: 92 | X29: 1.12195122 | Y29: 50 | Z29: 0.6097560976 | AB29: 9 | AC29: 0.09782608696 | AD29: 3 | AE29: 0.03260869565 | AG29: =cálculos2!O29 -> 8 | AH29: 0.8 | AI29: =cálculos2!P29 -> 4 | AJ29: 1
A30: Sul | B30: Guaçuí | C30: 394 | D30: 265 | E30: 197 | F30: 0.7433962264 | G30: 212 | H30: 0.8 | I30: 271 | J30: 1.022641509 | K30: 267 | L30: 1.00754717 | M30: 269 | N30: 1.01509434 | O30: 247 | P30: 0.9320754717 | Q30: 244 | R30: 0.920754717 | S30: 204 | T30: 0.7698113208 | U30: 235 | V30: 0.8867924528 | W30: 221 | X30: 0.8339622642 | Y30: 110 | Z30: 0.4150943396 | AB30: 61 | AC30: 0.2760180995 | AD30: 11 | AE30: 0.04977375566 | AG30: =cálculos2!O30 -> 4 | AH30: 0.4 | AI30: =cálculos2!P30 -> 3 | AJ30: 0.75
A31: Metropolitana | B31: Guarapari | C31: 1606 | D31: 1058 | E31: 1059 | F31: 1.00094518 | G31: 1107 | H31: 1.0463138 | I31: 961 | J31: 0.9083175803 | K31: 934 | L31: 0.8827977316 | M31: 1079 | N31: 1.019848771 | O31: 1034 | P31: 0.97731569 | Q31: 987 | R31: 0.9328922495 | S31: 736 | T31: 0.6956521739 | U31: 908 | V31: 0.8582230624 | W31: 1022 | X31: 0.965973535 | Y31: 497 | Z31: 0.4697542533 | AB31: 136 | AC31: 0.133072407 | AD31: 45 | AE31: 0.04403131115 | AG31: =cálculos2!O31 -> 4 | AH31: 0.4 | AI31: =cálculos2!P31 -> 2 | AJ31: 0.5
A32: Metropolitana | B32: Ibatiba | C32: 362 | D32: 247 | E32: 154 | F32: 0.6234817814 | G32: 265 | H32: 1.072874494 | I32: 243 | J32: 0.983805668 | K32: 242 | L32: 0.979757085 | M32: 248 | N32: 1.004048583 | O32: 237 | P32: 0.95951417 | Q32: 243 | R32: 0.983805668 | S32: 222 | T32: 0.8987854251 | U32: 222 | V32: 0.8987854251 | W32: 248 | X32: 1.004048583 | Y32: 62 | Z32: 0.2510121457 | AB32: 96 | AC32: 0.3870967742 | AD32: 44 | AE32: 0.1774193548 | AG32: =cálculos2!O32 -> 7 | AH32: 0.7 | AI32: =cálculos2!P32 -> 4 | AJ32: 1
A33: Metropolitana | B33: Ibiraçu | C33: 159 | D33: 117 | E33: 97 | F33: 0.8290598291 | G33: 96 | H33: 0.8205128205 | I33: 86 | J33: 0.735042735 | K33: 84 | L33: 0.7179487179 | M33: 90 | N33: 0.7692307692 | O33: 89 | P33: 0.7606837607 | Q33: 90 | R33: 0.7692307692 | S33: 87 | T33: 0.7435897436 | U33: 75 | V33: 0.641025641 | W33: 89 | X33: 0.7606837607 | Y33: 35 | Z33: 0.2991452991 | AB33: 19 | AC33: 0.2134831461 | AD33: 17 | AE33: 0.191011236 | AG33: =cálculos2!O33 -> 0 | AH33: 0 | AI33: =cálculos2!P33 -> 0 | AJ33: 0
A34: Sul | B34: Ibitirama | C34: 143 | D34: 97 | E34: 77 | F34: 0.793814433 | G34: 87 | H34: 0.8969072165 | I34: 81 | J34: 0.8350515464 | K34: 81 | L34: 0.8350515464 | M34: 82 | N34: 0.8453608247 | O34: 84 | P34: 0.8659793814 | Q34: 73 | R34: 0.7525773196 | S34: 64 | T34: 0.6597938144 | U34: 77 | V34: 0.793814433 | W34: 81 | X34: 0.8350515464 | Y34: 41 | Z34: 0.4226804124 | AB34: 18 | AC34: 0.2222222222 | AD34: 3 | AE34: 0.03703703704 | AG34: =cálculos2!O34 -> 0 | AH34: 0 | AI34: =cálculos2!P34 -> 0 | AJ34: 0
A35: Sul | B35: Iconha | C35: 116 | D35: 79 | E35: 54 | F35: =E35/D35 -> 0.6835443038 | G35: 54 | H35: 0.6835443038 | I35: 76 | J35: =I35/D35 -> 0.9620253165 | K35: 72 | L35: =K35/D35 -> 0.9113924051 | M35: 79 | N35: =M35/D35 -> 1 | O35: 79 | P35: =O35/D35 -> 1 | Q35: 69 | R35: =Q35/D35 -> 0.8734177215 | S35: 75 | T35: =S35/D35 -> 0.9493670886 | U35: 87 | V35: =U35/D35 -> 1.101265823 | W35: 102 | X35: =W35/D35 -> 1.291139241 | Y35: 43 | Z35: =Y35/D35 -> 0.5443037975 | AB35: 5 | AC35: 0.04901960784 | AD35: 2 | AE35: 0.01960784314 | AG35: =cálculos2!O35 -> 5 | AH35: 0.5 | AI35: =cálculos2!P35 -> 3 | AJ35: 0.75
A36: Sul | B36: Irupi | C36: 207 | D36: 147 | E36: 97 | F36: 0.6598639456 | G36: 111 | H36: 0.7551020408 | I36: 133 | J36: 0.9047619048 | K36: 132 | L36: 0.8979591837 | M36: 142 | N36: 0.9659863946 | O36: 142 | P36: 0.9659863946 | Q36: 142 | R36: 0.9659863946 | S36: 120 | T36: 0.8163265306 | U36: 131 | V36: 0.8911564626 | W36: 152 | X36: 1.034013605 | Y36: 37 | Z36: 0.2517006803 | AB36: 50 | AC36: 0.3289473684 | AD36: 30 | AE36: 0.1973684211 | AG36: =cálculos2!O36 -> 4 | AH36: 0.4 | AI36: =cálculos2!P36 -> 2 | AJ36: 0.5
A37: Metropolitana | B37: Itaguaçu | C37: 138 | D37: 98 | E37: 96 | F37: 0.9795918367 | G37: 95 | H37: 0.9693877551 | I37: 86 | J37: 0.8775510204 | K37: 85 | L37: 0.8673469388 | M37: 93 | N37: 0.9489795918 | O37: 93 | P37: 0.9489795918 | Q37: 91 | R37: 0.9285714286 | S37: 90 | T37: 0.9183673469 | U37: 99 | V37: 1.010204082 | W37: 101 | X37: 1.030612245 | Y37: 61 | Z37: 0.6224489796 | AB37: 22 | AC37: 0.2178217822 | AD37: 10 | AE37: 0.09900990099 | AG37: =cálculos2!O37 -> 4 | AH37: 0.4 | AI37: =cálculos2!P37 -> 1 | AJ37: 0.25
A38: Sul | B38: Itapemirim | C38: 543 | D38: 354 | E38: 297 | F38: 0.8389830508 | G38: 300 | H38: 0.8474576271 | I38: 325 | J38: 0.918079096 | K38: 327 | L38: 0.9237288136 | M38: 342 | N38: 0.9661016949 | O38: 307 | P38: 0.8672316384 | Q38: 316 | R38: 0.8926553672 | S38: 200 | T38: 0.5649717514 | U38: 299 | V38: 0.8446327684 | W38: 324 | X38: 0.9152542373 | Y38: 143 | Z38: 0.4039548023 | AB38: 23 | AC38: 0.07098765432 | AD38: 11 | AE38: 0.03395061728 | AG38: =cálculos2!O38 -> 1 | AH38: 0.1 | AI38: =cálculos2!P38 -> 1 | AJ38: 0.25
A39: Metropolitana | B39: Itarana | C39: 141 | D39: 101 | E39: 98 | F39: 0.9702970297 | G39: 112 | H39: 1.108910891 | I39: 88 | J39: 0.8712871287 | K39: 87 | L39: 0.8613861386 | M39: 95 | N39: 0.9405940594 | O39: 91 | P39: 0.900990099 | Q39: 82 | R39: 0.8118811881 | S39: 84 | T39: 0.8316831683 | U39: 62 | V39: 0.6138613861 | W39: 89 | X39: 0.8811881188 | Y39: 59 | Z39: 0.5841584158 | AB39: 19 | AC39: 0.2134831461 | AD39: 9 | AE39: 0.1011235955 | AG39: =cálculos2!O39 -> 2 | AH39: 0.2 | AI39: =cálculos2!P39 -> 0 | AJ39: 0
A40: Sul | B40: Iúna | C40: 481 | D40: 314 | E40: 218 | F40: 0.6942675159 | G40: 223 | H40: 0.7101910828 | I40: 294 | J40: 0.9363057325 | K40: 292 | L40: 0.9299363057 | M40: 297 | N40: 0.9458598726 | O40: 294 | P40: 0.9363057325 | Q40: 278 | R40: 0.8853503185 | S40: 270 | T40: 0.8598726115 | U40: 228 | V40: 0.7261146497 | W40: 300 | X40: 0.9554140127 | Y40: 138 | Z40: 0.4394904459 | AB40: 53 | AC40: 0.1766666667 | AD40: 21 | AE40: 0.07 | AG40: =cálculos2!O40 -> 2 | AH40: 0.2 | AI40: =cálculos2!P40 -> 1 | AJ40: 0.25
A41: Norte | B41: Jaguaré | C41: 472 | D41: 321 | E41: 309 | F41: 0.9626168224 | G41: 309 | H41: 0.9626168224 | I41: 320 | J41: 0.9968847352 | K41: 317 | L41: 0.9875389408 | M41: 316 | N41: 0.984423676 | O41: 306 | P41: 0.953271028 | Q41: 304 | R41: 0.9470404984 | S41: 274 | T41: 0.8535825545 | U41: 268 | V41: 0.8348909657 | W41: 317 | X41: 0.9875389408 | Y41: 135 | Z41: 0.4205607477 | AB41: 45 | AC41: 0.141955836 | AD41: 14 | AE41: 0.04416403785 | AG41: =cálculos2!O41 -> 6 | AH41: 0.6 | AI41: =cálculos2!P41 -> 4 | AJ41: 1
A42: Sul | B42: Jerônimo Monteiro | C42: 153 | D42: 102 | E42: 90 | F42: 0.8823529412 | G42: 94 | H42: 0.9215686275 | I42: 110 | J42: 1.078431373 | K42: 109 | L42: 1.068627451 | M42: 110 | N42: 1.078431373 | O42: 107 | P42: 1.049019608 | Q42: 101 | R42: 0.9901960784 | S42: 106 | T42: 1.039215686 | U42: 102 | V42: 1 | W42: 106 | X42: 1.039215686 | Y42: 32 | Z42: 0.3137254902 | AB42: 37 | AC42: 0.3490566038 | AD42: 20 | AE42: 0.1886792453 | AG42: =cálculos2!O42 -> 9 | AH42: 0.9 | AI42: =cálculos2!P42 -> 4 | AJ42: 1
A43: Metropolitana | B43: João Neiva | C43: 164 | D43: 111 | E43: 95 | F43: 0.8558558559 | G43: 97 | H43: 0.8738738739 | I43: 102 | J43: 0.9189189189 | K43: 101 | L43: 0.9099099099 | M43: 113 | N43: 1.018018018 | O43: 112 | P43: 1.009009009 | Q43: 102 | R43: 0.9189189189 | S43: 103 | T43: 0.9279279279 | U43: 104 | V43: 0.9369369369 | W43: 129 | X43: 1.162162162 | Y43: 58 | Z43: 0.5225225225 | AB43: 9 | AC43: 0.06976744186 | AD43: 2 | AE43: 0.01550387597 | AG43: =cálculos2!O43 -> 3 | AH43: 0.3 | AI43: =cálculos2!P43 -> 2 | AJ43: 0.5
A44: Metropolitana | B44: Laranja da Terra | C44: 87 | D44: 62 | E44: 63 | F44: 1.016129032 | G44: 65 | H44: 1.048387097 | I44: 56 | J44: 0.9032258065 | K44: 56 | L44: 0.9032258065 | M44: 53 | N44: 0.8548387097 | O44: 53 | P44: 0.8548387097 | Q44: 59 | R44: 0.9516129032 | S44: 68 | T44: 1.096774194 | U44: 81 | V44: 1.306451613 | W44: 86 | X44: 1.387096774 | Y44: 59 | Z44: 0.9516129032 | AB44: 16 | AC44: 0.1860465116 | AD44: 10 | AE44: 0.1162790698 | AG44: =cálculos2!O44 -> 6 | AH44: 0.6 | AI44: =cálculos2!P44 -> 1 | AJ44: 0.25
A45: Central | B45: Linhares | C45: 2621 | D45: 1822 | E45: 1268 | F45: 0.6959385291 | G45: 1289 | H45: 0.7074643249 | I45: 1467 | J45: 0.8051591658 | K45: 1464 | L45: 0.8035126235 | M45: 1503 | N45: 0.8249176729 | O45: 1523 | P45: 0.8358946213 | Q45: 1468 | R45: 0.8057080132 | S45: 1240 | T45: 0.6805708013 | U45: 1398 | V45: 0.7672886937 | W45: 1535 | X45: 0.8424807903 | Y45: 718 | Z45: 0.3940724479 | AB45: 78 | AC45: 0.05081433225 | AD45: 28 | AE45: 0.01824104235 | AG45: =cálculos2!O45 -> 0 | AH45: 0 | AI45: =cálculos2!P45 -> 0 | AJ45: 0
A46: Central | B46: Mantenópolis | C46: 153 | D46: 106 | E46: 105 | F46: 0.9905660377 | G46: 113 | H46: 1.066037736 | I46: 97 | J46: 0.9150943396 | K46: 99 | L46: 0.9339622642 | M46: 96 | N46: 0.9056603774 | O46: 91 | P46: 0.858490566 | Q46: 88 | R46: 0.8301886792 | S46: 96 | T46: 0.9056603774 | U46: 90 | V46: 0.8490566038 | W46: 115 | X46: 1.08490566 | Y46: 51 | Z46: 0.4811320755 | AB46: 27 | AC46: 0.2347826087 | AD46: 4 | AE46: 0.0347826087 | AG46: =cálculos2!O46 -> 2 | AH46: 0.2 | AI46: =cálculos2!P46 -> 1 | AJ46: 0.25
A47: Sul | B47: Marataízes | C47: 552 | D47: 394 | E47: 348 | F47: 0.883248731 | G47: 344 | H47: 0.8730964467 | I47: 353 | J47: 0.8959390863 | K47: 352 | L47: 0.8934010152 | M47: 390 | N47: 0.9898477157 | O47: 376 | P47: 0.9543147208 | Q47: 377 | R47: 0.9568527919 | S47: 236 | T47: 0.5989847716 | U47: 330 | V47: 0.8375634518 | W47: 381 | X47: 0.9670050761 | Y47: 158 | Z47: 0.4010152284 | AB47: 42 | AC47: 0.1102362205 | AD47: 11 | AE47: 0.02887139108 | AG47: =cálculos2!O47 -> 4 | AH47: 0.4 | AI47: =cálculos2!P47 -> 2 | AJ47: 0.5
A48: Metropolitana | B48: Marechal Floriano | C48: 221 | D48: 139 | E48: 119 | F48: 0.8561151079 | G48: 127 | H48: 0.9136690647 | I48: 141 | J48: 1.014388489 | K48: 140 | L48: 1.007194245 | M48: 151 | N48: 1.086330935 | O48: 149 | P48: 1.071942446 | Q48: 151 | R48: 1.086330935 | S48: 108 | T48: 0.7769784173 | U48: 142 | V48: 1.021582734 | W48: 145 | X48: 1.043165468 | Y48: 95 | Z48: 0.6834532374 | AB48: 27 | AC48: 0.1862068966 | AD48: 12 | AE48: 0.08275862069 | AG48: =cálculos2!O48 -> 8 | AH48: 0.8 | AI48: =cálculos2!P48 -> 4 | AJ48: 1
A49: Central | B49: Marilândia | C49: 163 | D49: 112 | E49: 92 | F49: 0.8214285714 | G49: 89 | H49: 0.7946428571 | I49: 112 | J49: 1 | K49: 111 | L49: 0.9910714286 | M49: 106 | N49: 0.9464285714 | O49: 106 | P49: 0.9464285714 | Q49: 103 | R49: 0.9196428571 | S49: 102 | T49: 0.9107142857 | U49: 93 | V49: 0.8303571429 | W49: 104 | X49: 0.9285714286 | Y49: 67 | Z49: 0.5982142857 | AB49: 33 | AC49: 0.3173076923 | AD49: 15 | AE49: 0.1442307692 | AG49: =cálculos2!O49 -> 3 | AH49: 0.3 | AI49: =cálculos2!P49 -> 2 | AJ49: 0.5
A50: Sul | B50: Mimoso do Sul | C50: 266 | D50: 181 | E50: 147 | F50: 0.8121546961 | G50: 149 | H50: 0.8232044199 | I50: 155 | J50: 0.8563535912 | K50: 154 | L50: 0.8508287293 | M50: 145 | N50: 0.8011049724 | O50: 143 | P50: 0.7900552486 | Q50: 144 | R50: 0.7955801105 | S50: 127 | T50: 0.7016574586 | U50: 127 | V50: 0.7016574586 | W50: 158 | X50: 0.8729281768 | Y50: 81 | Z50: 0.4475138122 | AB50: 10 | AC50: 0.06329113924 | AD50: 2 | AE50: 0.01265822785 | AG50: =cálculos2!O50 -> 0 | AH50: 0 | AI50: =cálculos2!P50 -> 0 | AJ50: 0
A51: Norte | B51: Montanha | C51: 239 | D51: 165 | E51: 96 | F51: 0.5818181818 | G51: 95 | H51: 0.5757575758 | I51: 175 | J51: 1.060606061 | K51: 176 | L51: 1.066666667 | M51: 144 | N51: 0.8727272727 | O51: 147 | P51: 0.8909090909 | Q51: 147 | R51: 0.8909090909 | S51: 171 | T51: 1.036363636 | U51: 161 | V51: 0.9757575758 | W51: 171 | X51: 1.036363636 | Y51: 86 | Z51: 0.5212121212 | AB51: 85 | AC51: 0.4970760234 | AD51: 36 | AE51: 0.2105263158 | AG51: =cálculos2!O51 -> 5 | AH51: 0.5 | AI51: =cálculos2!P51 -> 3 | AJ51: 0.75
A52: Norte | B52: Mucurici | C52: 77 | D52: 47 | E52: 29 | F52: 0.6170212766 | G52: 31 | H52: 0.6595744681 | I52: 59 | J52: 1.255319149 | K52: 59 | L52: 1.255319149 | M52: 54 | N52: 1.14893617 | O52: 54 | P52: 1.14893617 | Q52: 53 | R52: 1.127659574 | S52: 60 | T52: 1.276595745 | U52: 45 | V52: 0.9574468085 | W52: 55 | X52: 1.170212766 | Y52: 30 | Z52: 0.6382978723 | AB52: 22 | AC52: 0.4 | AD52: 12 | AE52: 0.2181818182 | AG52: =cálculos2!O52 -> 8 | AH52: 0.8 | AI52: =cálculos2!P52 -> 4 | AJ52: 1
A53: Sul | B53: Muniz Freire | C53: 213 | D53: 145 | E53: 134 | F53: 0.924137931 | G53: 142 | H53: 0.9793103448 | I53: 154 | J53: 1.062068966 | K53: 150 | L53: 1.034482759 | M53: 156 | N53: 1.075862069 | O53: 152 | P53: 1.048275862 | Q53: 147 | R53: 1.013793103 | S53: 149 | T53: 1.027586207 | U53: 142 | V53: 0.9793103448 | W53: 160 | X53: 1.103448276 | Y53: 61 | Z53: 0.4206896552 | AB53: 26 | AC53: 0.1625 | AD53: 5 | AE53: 0.03125 | AG53: =cálculos2!O53 -> 9 | AH53: 0.9 | AI53: =cálculos2!P53 -> 4 | AJ53: 1
A54: Sul | B54: Muqui | C54: 163 | D54: 118 | E54: 93 | F54: 0.7881355932 | G54: 92 | H54: 0.7796610169 | I54: 106 | J54: 0.8983050847 | K54: 106 | L54: 0.8983050847 | M54: 90 | N54: 0.7627118644 | O54: 90 | P54: 0.7627118644 | Q54: 102 | R54: 0.8644067797 | S54: 105 | T54: 0.8898305085 | U54: 93 | V54: 0.7881355932 | W54: 109 | X54: 0.9237288136 | Y54: 48 | Z54: 0.406779661 | AB54: 38 | AC54: 0.3486238532 | AD54: 21 | AE54: 0.1926605505 | AG54: =cálculos2!O54 -> 0 | AH54: 0 | AI54: =cálculos2!P54 -> 0 | AJ54: 0
A55: Norte | B55: Nova Venécia | C55: 653 | D55: 465 | E55: 217 | F55: 0.4666666667 | G55: 404 | H55: 0.8688172043 | I55: 452 | J55: 0.9720430108 | K55: 451 | L55: 0.9698924731 | M55: 426 | N55: 0.9161290323 | O55: 409 | P55: 0.8795698925 | Q55: 444 | R55: 0.9548387097 | S55: 413 | T55: 0.888172043 | U55: 367 | V55: 0.7892473118 | W55: 473 | X55: 1.017204301 | Y55: 228 | Z55: 0.4903225806 | AB55: 14 | AC55: 0.02959830867 | AD55: 3 | AE55: 0.006342494715 | AG55: =cálculos2!O55 -> 4 | AH55: 0.4 | AI55: =cálculos2!P55 -> 3 | AJ55: 0.75
A56: Central | B56: Pancas | C56: 210 | D56: 145 | E56: 132 | F56: 0.9103448276 | G56: 135 | H56: 0.9310344828 | I56: 157 | J56: 1.082758621 | K56: 157 | L56: 1.082758621 | M56: 149 | N56: 1.027586207 | O56: 147 | P56: 1.013793103 | Q56: 154 | R56: 1.062068966 | S56: 140 | T56: 0.9655172414 | U56: 142 | V56: 0.9793103448 | W56: 148 | X56: 1.020689655 | Y56: 117 | Z56: 0.8068965517 | AB56: 10 | AC56: 0.06756756757 | AD56: 4 | AE56: 0.02702702703 | AG56: =cálculos2!O56 -> 9 | AH56: 0.9 | AI56: =cálculos2!P56 -> 4 | AJ56: 1
A57: Norte | B57: Pedro Canário | C57: 323 | D57: 231 | E57: 114 | F57: 0.4935064935 | G57: 114 | H57: 0.4935064935 | I57: 211 | J57: 0.9134199134 | K57: 209 | L57: 0.9047619048 | M57: 184 | N57: 0.7965367965 | O57: 178 | P57: 0.7705627706 | Q57: 194 | R57: 0.8398268398 | S57: 184 | T57: 0.7965367965 | U57: 169 | V57: 0.7316017316 | W57: 254 | X57: 1.0995671 | Y57: 127 | Z57: 0.5497835498 | AB57: 36 | AC57: 0.1417322835 | AD57: 7 | AE57: 0.02755905512 | AG57: =cálculos2!O57 -> 1 | AH57: 0.1 | AI57: =cálculos2!P57 -> 1 | AJ57: 0.25
A58: Norte | B58: Pinheiros | C58: 326 | D58: 222 | E58: 85 | F58: 0.3828828829 | G58: 82 | H58: 0.3693693694 | I58: 214 | J58: 0.963963964 | K58: 213 | L58: 0.9594594595 | M58: 180 | N58: 0.8108108108 | O58: 176 | P58: 0.7927927928 | Q58: 189 | R58: 0.8513513514 | S58: 173 | T58: 0.7792792793 | U58: 171 | V58: 0.7702702703 | W58: 204 | X58: 0.9189189189 | Y58: 80 | Z58: 0.3603603604 | AB58: 38 | AC58: 0.1862745098 | AD58: 17 | AE58: 0.08333333333 | AG58: =cálculos2!O58 -> 2 | AH58: 0.2 | AI58: =cálculos2!P58 -> 2 | AJ58: 0.5
A59: Sul | B59: Piúma | C59: 291 | D59: 193 | E59: 165 | F59: 0.8549222798 | G59: 169 | H59: 0.8756476684 | I59: 186 | J59: 0.9637305699 | K59: 185 | L59: 0.9585492228 | M59: 194 | N59: 1.005181347 | O59: 180 | P59: 0.932642487 | Q59: 170 | R59: 0.8808290155 | S59: 124 | T59: 0.6424870466 | U59: 161 | V59: 0.8341968912 | W59: 191 | X59: 0.9896373057 | Y59: 84 | Z59: 0.4352331606 | AB59: 53 | AC59: 0.277486911 | AD59: 21 | AE59: 0.109947644 | AG59: =cálculos2!O59 -> 5 | AH59: 0.5 | AI59: =cálculos2!P59 -> 4 | AJ59: 1
A60: Norte | B60: Ponto Belo | C60: 77 | D60: 50 | E60: 31 | F60: 0.62 | G60: 29 | H60: 0.58 | I60: 47 | J60: 0.94 | K60: 47 | L60: 0.94 | M60: 43 | N60: 0.86 | O60: 44 | P60: 0.88 | Q60: 46 | R60: 0.92 | S60: 44 | T60: 0.88 | U60: 36 | V60: 0.72 | W60: 50 | X60: 1 | Y60: 25 | Z60: 0.5 | AB60: 11 | AC60: 0.22 | AD60: 5 | AE60: 0.1 | AG60: =cálculos2!O60 -> 1 | AH60: 0.1 | AI60: =cálculos2!P60 -> 1 | AJ60: 0.25
A61: Sul | B61: Presidente Kennedy | C61: 191 | D61: 137 | E61: 141 | F61: 1.02919708 | G61: 143 | H61: 1.04379562 | I61: 117 | J61: 0.8540145985 | K61: 119 | L61: 0.8686131387 | M61: 125 | N61: 0.9124087591 | O61: 126 | P61: 0.9197080292 | Q61: 123 | R61: 0.897810219 | S61: 102 | T61: 0.7445255474 | U61: 142 | V61: 1.03649635 | W61: 150 | X61: 1.094890511 | Y61: 69 | Z61: 0.503649635 | AB61: 22 | AC61: 0.1466666667 | AD61: 4 | AE61: 0.02666666667 | AG61: =cálculos2!O61 -> 4 | AH61: 0.4 | AI61: =cálculos2!P61 -> 1 | AJ61: 0.25
A62: Central | B62: Rio Bananal | C62: 281 | D62: 197 | E62: 153 | F62: 0.7766497462 | G62: 155 | H62: 0.7868020305 | I62: 173 | J62: 0.8781725888 | K62: 172 | L62: 0.8730964467 | M62: 182 | N62: 0.923857868 | O62: 184 | P62: 0.9340101523 | Q62: 158 | R62: 0.8020304569 | S62: 181 | T62: 0.9187817259 | U62: 204 | V62: 1.035532995 | W62: 209 | X62: 1.060913706 | Y62: 120 | Z62: 0.6091370558 | AB62: 38 | AC62: 0.1818181818 | AD62: 18 | AE62: 0.08612440191 | AG62: =cálculos2!O62 -> 3 | AH62: 0.3 | AI62: =cálculos2!P62 -> 1 | AJ62: 0.25
A63: Sul | B63: Rio Novo do Sul | C63: 111 | D63: 71 | E63: 57 | F63: 0.8028169014 | G63: 55 | H63: 0.7746478873 | I63: 84 | J63: 1.183098592 | K63: 81 | L63: 1.14084507 | M63: 68 | N63: 0.9577464789 | O63: 70 | P63: 0.985915493 | Q63: 79 | R63: 1.112676056 | S63: 73 | T63: 1.028169014 | U63: 72 | V63: 1.014084507 | W63: 83 | X63: 1.169014085 | Y63: 41 | Z63: 0.5774647887 | AB63: 18 | AC63: 0.2168674699 | AD63: 6 | AE63: 0.07228915663 | AG63: =cálculos2!O63 -> 8 | AH63: 0.8 | AI63: =cálculos2!P63 -> 4 | AJ63: 1
A64: Metropolitana | B64: Santa Leopoldina | C64: 100 | D64: 62 | E64: 47 | F64: 0.7580645161 | G64: 43 | H64: 0.6935483871 | I64: 67 | J64: 1.080645161 | K64: 68 | L64: 1.096774194 | M64: 61 | N64: 0.9838709677 | O64: 61 | P64: 0.9838709677 | Q64: 65 | R64: 1.048387097 | S64: 60 | T64: 0.9677419355 | U64: 80 | V64: 1.290322581 | W64: 83 | X64: 1.338709677 | Y64: 15 | Z64: 0.2419354839 | AB64: 4 | AC64: 0.04819277108 | AD64: 0 | AE64: 0 | AG64: =cálculos2!O64 -> 8 | AH64: 0.8 | AI64: =cálculos2!P64 -> 4 | AJ64: 1
A65: Metropolitana | B65: Santa Maria de Jetibá | C65: 612 | D65: 396 | E65: 381 | F65: 0.9621212121 | G65: 394 | H65: 0.9949494949 | I65: 364 | J65: 0.9191919192 | K65: 364 | L65: 0.9191919192 | M65: 397 | N65: 1.002525253 | O65: 398 | P65: 1.005050505 | Q65: 389 | R65: 0.9823232323 | S65: 303 | T65: 0.7651515152 | U65: 420 | V65: 1.060606061 | W65: 419 | X65: 1.058080808 | Y65: 190 | Z65: 0.4797979798 | AB65: 37 | AC65: 0.08830548926 | AD65: 20 | AE65: 0.0477326969 | AG65: =cálculos2!O65 -> 6 | AH65: 0.6 | AI65: =cálculos2!P65 -> 2 | AJ65: 0.5
A66: Metropolitana | B66: Santa Teresa | C66: 308 | D66: 212 | E66: 200 | F66: 0.9433962264 | G66: 199 | H66: 0.9386792453 | I66: 213 | J66: 1.004716981 | K66: 214 | L66: 1.009433962 | M66: 208 | N66: 0.9811320755 | O66: 208 | P66: 0.9811320755 | Q66: 193 | R66: 0.9103773585 | S66: 177 | T66: 0.8349056604 | U66: 158 | V66: 0.7452830189 | W66: 190 | X66: 0.8962264151 | Y66: 109 | Z66: 0.5141509434 | AB66: 14 | AC66: 0.07368421053 | AD66: 8 | AE66: 0.04210526316 | AG66: =cálculos2!O66 -> 5 | AH66: 0.5 | AI66: =cálculos2!P66 -> 3 | AJ66: 0.75
A67: Central | B67: São Domingos do Norte | C67: 115 | D67: 74 | E67: 81 | F67: =E67/D67 -> 1.094594595 | G67: 80 | H67: 1.081081081 | I67: 79 | J67: =I67/D67 -> 1.067567568 | K67: 79 | L67: =K67/D67 -> 1.067567568 | M67: 76 | N67: =M67/D67 -> 1.027027027 | O67: 73 | P67: =O67/D67 -> 0.9864864865 | Q67: 77 | R67: =Q67/D67 -> 1.040540541 | S67: 72 | T67: =S67/D67 -> 0.972972973 | U67: 55 | V67: =U67/D67 -> 0.7432432432 | W67: 77 | X67: =W67/D67 -> 1.040540541 | Y67: 32 | Z67: =Y67/D67 -> 0.4324324324 | AB67: 3 | AC67: 0.03896103896 | AD67: 1 | AE67: 0.01298701299 | AG67: =cálculos2!O67 -> 8 | AH67: 0.8 | AI67: =cálculos2!P67 -> 4 | AJ67: 1
A68: Central | B68: São Gabriel da Palha | C68: 464 | D68: 320 | E68: 273 | F68: 0.853125 | G68: 296 | H68: =G68/D68 -> 0.925 | I68: 274 | J68: 0.85625 | K68: 274 | L68: 0.85625 | M68: 294 | N68: 0.91875 | O68: 293 | P68: 0.915625 | Q68: 270 | R68: 0.84375 | S68: 225 | T68: 0.703125 | U68: 219 | V68: 0.684375 | W68: 263 | X68: 0.821875 | Y68: 113 | Z68: 0.353125 | AB68: 7 | AC68: =AB68/W68 -> 0.02661596958 | AD68: 3 | AE68: =AD68/W68 -> 0.01140684411 | AG68: =cálculos2!O68 -> 2 | AH68: =AG68*0.1 -> 0.2 | AI68: =cálculos2!P68 -> 0 | AJ68: =AI68*0.25 -> 0
A69: Sul | B69: São José do Calçado | C69: 101 | D69: 78 | E69: 66 | F69: 0.8461538462 | G69: 71 | H69: 0.9102564103 | I69: 80 | J69: 1.025641026 | K69: 81 | L69: 1.038461538 | M69: 75 | N69: 0.9615384615 | O69: 67 | P69: 0.858974359 | Q69: 73 | R69: 0.9358974359 | S69: 65 | T69: 0.8333333333 | U69: 72 | V69: 0.9230769231 | W69: 85 | X69: 1.08974359 | Y69: 43 | Z69: 0.5512820513 | AB69: 1 | AC69: 0.01176470588 | AD69: 0 | AE69: 0 | AG69: =cálculos2!O69 -> 5 | AH69: 0.5 | AI69: =cálculos2!P69 -> 4 | AJ69: 1
A70: Norte | B70: São Mateus | C70: 1947 | D70: 1333 | E70: 1619 | F70: 1.214553638 | G70: 1569 | H70: 1.177044261 | I70: 1151 | J70: 0.8634658665 | K70: 1130 | L70: 0.847711928 | M70: 1269 | N70: 0.951987997 | O70: 1207 | P70: 0.9054763691 | Q70: 1110 | R70: 0.832708177 | S70: 851 | T70: 0.6384096024 | U70: 937 | V70: 0.7029257314 | W70: 1073 | X70: 0.8049512378 | Y70: 455 | Z70: 0.3413353338 | AB70: 265 | AC70: 0.246971109 | AD70: 90 | AE70: 0.08387698043 | AG70: =cálculos2!O70 -> 3 | AH70: 0.3 | AI70: =cálculos2!P70 -> 1 | AJ70: 0.25
A71: Central | B71: São Roque do Canaã | C71: 123 | D71: 96 | E71: 98 | F71: 1.020833333 | G71: 95 | H71: 0.9895833333 | I71: 69 | J71: 0.71875 | K71: 68 | L71: 0.7083333333 | M71: 77 | N71: 0.8020833333 | O71: 78 | P71: 0.8125 | Q71: 77 | R71: 0.8020833333 | S71: 62 | T71: 0.6458333333 | U71: 82 | V71: 0.8541666667 | W71: 86 | X71: 0.8958333333 | Y71: 46 | Z71: 0.4791666667 | AB71: 33 | AC71: 0.3837209302 | AD71: 16 | AE71: 0.1860465116 | AG71: =cálculos2!O71 -> 1 | AH71: 0.1 | AI71: =cálculos2!P71 -> 0 | AJ71: 0
A72: Metropolitana | B72: Serra | C72: 7293 | D72: 5065 | E72: 4766 | F72: 0.9409674235 | G72: 4765 | H72: 0.9407699901 | I72: 4162 | J72: 0.8217176703 | K72: 4137 | L72: 0.8167818361 | M72: 4403 | N72: 0.8692991115 | O72: 4238 | P72: 0.8367226061 | Q72: 4180 | R72: 0.8252714709 | S72: 3218 | T72: 0.6353405726 | U72: 2691 | V72: 0.5312931885 | W72: 4268 | X72: 0.8426456071 | Y72: 1535 | Z72: 0.3030602172 | AB72: 715 | AC72: 0.1675257732 | AD72: 245 | AE72: 0.05740393627 | AG72: =cálculos2!O72 -> 1 | AH72: 0.1 | AI72: =cálculos2!P72 -> 0 | AJ72: 0
A73: Central | B73: Sooretama | C73: 433 | D73: 304 | E73: 209 | F73: 0.6875 | G73: 212 | H73: 0.6973684211 | I73: 251 | J73: 0.8256578947 | K73: 254 | L73: 0.8355263158 | M73: 279 | N73: 0.9177631579 | O73: 275 | P73: 0.9046052632 | Q73: 236 | R73: 0.7763157895 | S73: 227 | T73: 0.7467105263 | U73: 253 | V73: 0.8322368421 | W73: 271 | X73: 0.8914473684 | Y73: 115 | Z73: 0.3782894737 | AB73: 24 | AC73: 0.08856088561 | AD73: 8 | AE73: 0.0295202952 | AG73: =cálculos2!O73 -> 1 | AH73: 0.1 | AI73: =cálculos2!P73 -> 0 | AJ73: 0
A74: Sul | B74: Vargem Alta | C74: 261 | D74: 180 | E74: 168 | F74: 0.9333333333 | G74: 173 | H74: 0.9611111111 | I74: 155 | J74: 0.8611111111 | K74: 155 | L74: 0.8611111111 | M74: 168 | N74: 0.9333333333 | O74: 170 | P74: 0.9444444444 | Q74: 163 | R74: 0.9055555556 | S74: 136 | T74: 0.7555555556 | U74: 168 | V74: 0.9333333333 | W74: 173 | X74: 0.9611111111 | Y74: 88 | Z74: 0.4888888889 | AB74: 27 | AC74: 0.1560693642 | AD74: 10 | AE74: 0.05780346821 | AG74: =cálculos2!O74 -> 3 | AH74: 0.3 | AI74: =cálculos2!P74 -> 1 | AJ74: 0.25
A75: Metropolitana | B75: Venda Nova do Imigrante | C75: 377 | D75: 254 | E75: 83 | F75: 0.3267716535 | G75: 208 | H75: 0.8188976378 | I75: 257 | J75: 1.011811024 | K75: 258 | L75: 1.015748031 | M75: 243 | N75: 0.9566929134 | O75: 239 | P75: 0.9409448819 | Q75: 245 | R75: 0.9645669291 | S75: 246 | T75: 0.968503937 | U75: 189 | V75: 0.7440944882 | W75: 288 | X75: 1.133858268 | Y75: 119 | Z75: 0.468503937 | AB75: 50 | AC75: 0.1736111111 | AD75: 32 | AE75: 0.1111111111 | AG75: =cálculos2!O75 -> 7 | AH75: 0.7 | AI75: =cálculos2!P75 -> 4 | AJ75: 1
A76: Metropolitana | B76: Viana | C76: 938 | D76: 635 | E76: 580 | F76: 0.9133858268 | G76: 575 | H76: 0.905511811 | I76: 572 | J76: 0.9007874016 | K76: 564 | L76: 0.8881889764 | M76: 617 | N76: 0.9716535433 | O76: 587 | P76: 0.9244094488 | Q76: 573 | R76: 0.9023622047 | S76: 418 | T76: 0.6582677165 | U76: 516 | V76: 0.8125984252 | W76: 633 | X76: 0.9968503937 | Y76: 206 | Z76: 0.3244094488 | AB76: 112 | AC76: 0.1769352291 | AD76: 46 | AE76: 0.07266982622 | AG76: =cálculos2!O76 -> 4 | AH76: 0.4 | AI76: =cálculos2!P76 -> 2 | AJ76: 0.5
A77: Norte | B77: Vila Pavão | C77: 91 | D77: 65 | E77: 62 | F77: 0.9538461538 | G77: 80 | H77: 1.230769231 | I77: 59 | J77: 0.9076923077 | K77: 59 | L77: 0.9076923077 | M77: 64 | N77: 0.9846153846 | O77: 63 | P77: 0.9692307692 | Q77: 58 | R77: 0.8923076923 | S77: 64 | T77: 0.9846153846 | U77: 78 | V77: 1.2 | W77: 74 | X77: 1.138461538 | Y77: 36 | Z77: 0.5538461538 | AB77: 12 | AC77: 0.1621621622 | AD77: 3 | AE77: 0.04054054054 | AG77: =cálculos2!O77 -> 6 | AH77: 0.6 | AI77: =cálculos2!P77 -> 2 | AJ77: 0.5
A78: Central | B78: Vila Valério | C78: 254 | D78: 172 | E78: 139 | F78: 0.8081395349 | G78: 156 | H78: 0.9069767442 | I78: 151 | J78: 0.8779069767 | K78: 147 | L78: 0.8546511628 | M78: 154 | N78: 0.8953488372 | O78: 157 | P78: 0.9127906977 | Q78: 161 | R78: 0.9360465116 | S78: 133 | T78: 0.773255814 | U78: 142 | V78: 0.8255813953 | W78: 152 | X78: 0.8837209302 | Y78: 75 | Z78: 0.4360465116 | AB78: 4 | AC78: 0.02631578947 | AD78: 1 | AE78: 0.006578947368 | AG78: =cálculos2!O78 -> 2 | AH78: 0.2 | AI78: =cálculos2!P78 -> 0 | AJ78: 0
A79: Metropolitana | B79: Vila Velha | C79: 5636 | D79: 3799 | E79: 3434 | F79: 0.9039220848 | G79: 3427 | H79: 0.9020794946 | I79: 3158 | J79: 0.8312713872 | K79: 3159 | L79: 0.8315346144 | M79: 3279 | N79: 0.8631218742 | O79: 3215 | P79: 0.8462753356 | Q79: 3202 | R79: 0.8428533825 | S79: 2582 | T79: 0.6796525401 | U79: 2875 | V79: 0.7567780995 | W79: 3360 | X79: 0.8844432745 | Y79: 1484 | Z79: 0.3906291129 | AB79: 626 | AC79: 0.1863095238 | AD79: 277 | AE79: 0.08244047619 | AG79: =cálculos2!O79 -> 1 | AH79: 0.1 | AI79: =cálculos2!P79 -> 0 | AJ79: 0
A80: Metropolitana | B80: Vitória | C80: 3631 | D80: 2463 | E80: 2487 | F80: 1.009744214 | G80: 2598 | H80: 1.054811206 | I80: 2218 | J80: 0.9005278116 | K80: 2218 | L80: 0.9005278116 | M80: 2214 | N80: 0.8989037759 | O80: 2163 | P80: 0.8781973203 | Q80: 2221 | R80: 0.9017458384 | S80: 1646 | T80: 0.6682907024 | U80: 2133 | V80: 0.8660170524 | W80: 2239 | X80: 0.9090539992 | Y80: 1038 | Z80: 0.4214372716 | AB80: 701 | AC80: 0.3130861992 | AD80: 361 | AE80: 0.1612326932 | AG80: =cálculos2!O80 -> 1 | AH80: 0.1 | AI80: =cálculos2!P80 -> 0 | AJ80: 0
B82: Total Norte | C82: =SUMIF($A$3:$A$80,"Norte",C$3:C$80) -> 5803 | D82: =SUMIF($A$3:$A$80,"Norte",D$3:D$80) -> 4013 | E82: =SUMIF($A$3:$A$80,"Norte",E$3:E$80) -> 3425 | F82: =E82/D82 -> 0.8534762023 | G82: =SUMIF($A$3:$A$80,"Norte",G$3:G$80) -> 3618 | H82: =G82/D82 -> 0.9015698978 | I82: =SUMIF($A$3:$A$80,"Norte",I$3:I$80) -> 3672 | J82: =I82/D82 -> 0.915026165 | K82: =SUMIF($A$3:$A$80,"Norte",K$3:K$80) -> 3641 | L82: =K82/D82 -> 0.9073012709 | M82: =SUMIF($A$3:$A$80,"Norte",M$3:M$80) -> 3725 | N82: =M82/D82 -> 0.928233242 | O82: =SUMIF($A$3:$A$80,"Norte",O$3:O$80) -> 3594 | P82: =O82/D82 -> 0.8955893347 | Q82: =SUMIF($A$3:$A$80,"Norte",Q$3:Q$80) -> 3542 | R82: =Q82/D82 -> 0.8826314478 | S82: =SUMIF($A$3:$A$80,"Norte",S$3:S$80) -> 3130 | T82: =S82/D82 -> 0.7799651134 | U82: =SUMIF($A$3:$A$80,"Norte",U$3:U$80) -> 3094 | V82: =U82/D82 -> 0.7709942686 | W82: =SUMIF($A$3:$A$80,"Norte",W$3:W$80) -> 3720 | X82: =W82/D82 -> 0.9269872913 | Y82: =SUMIF($A$3:$A$80,"Norte",Y$3:Y$80) -> 1731 | Z82: =Y82/D82 -> 0.4313481186 | AB82: =SUMIF($A$3:$A$80,"Norte",AB$3:AB$80) -> 639 | AC82: =AB82/W82 -> 0.1717741935 | AD82: =SUMIF($A$3:$A$80,"Norte",AD$3:AD$80) -> 224 | AE82: =AD82/W82 -> 0.06021505376 | AG82: =cálculos2!O82 -> 1 | AH82: =AG82*0.1 -> 0.1 | AI82: =cálculos2!P82 -> 0 | AJ82: 0
B83: Total Central | C83: =SUMIF($A$3:$A$80,"Central",C$3:C$80) -> 7122 | D83: =SUMIF($A$3:$A$80,"Central",D$3:D$80) -> 4911 | E83: =SUMIF($A$3:$A$80,"Central",E$3:E$80) -> 4007 | F83: =E83/D83 -> 0.8159234372 | G83: =SUMIF($A$3:$A$80,"Central",G$3:G$80) -> 4136 | H83: =G83/D83 -> 0.8421909998 | I83: =SUMIF($A$3:$A$80,"Central",I$3:I$80) -> 4292 | J83: =I83/D83 -> 0.8739564244 | K83: =SUMIF($A$3:$A$80,"Central",K$3:K$80) -> 4274 | L83: =K83/D83 -> 0.8702911831 | M83: =SUMIF($A$3:$A$80,"Central",M$3:M$80) -> 4417 | N83: =M83/D83 -> 0.8994094889 | O83: =SUMIF($A$3:$A$80,"Central",O$3:O$80) -> 4402 | P83: =O83/D83 -> 0.8963551212 | Q83: =SUMIF($A$3:$A$80,"Central",Q$3:Q$80) -> 4240 | R83: =Q83/D83 -> 0.8633679495 | S83: =SUMIF($A$3:$A$80,"Central",S$3:S$80) -> 3725 | T83: =S83/D83 -> 0.7585013236 | U83: =SUMIF($A$3:$A$80,"Central",U$3:U$80) -> 3907 | V83: =U83/D83 -> 0.7955609855 | W83: =SUMIF($A$3:$A$80,"Central",W$3:W$80) -> 4506 | X83: =W83/D83 -> 0.9175320709 | Y83: =SUMIF($A$3:$A$80,"Central",Y$3:Y$80) -> 2205 | Z83: =Y83/D83 -> 0.4489920586 | AB83: =SUMIF($A$3:$A$80,"Central",AB$3:AB$80) -> 382 | AC83: =AB83/W83 -> 0.08477585442 | AD83: =SUMIF($A$3:$A$80,"Central",AD$3:AD$80) -> 154 | AE83: =AD83/W83 -> 0.03417665335 | AG83: =cálculos2!O83 -> 0 | AH83: =AG83*0.1 -> 0 | AI83: =cálculos2!P83 -> 0 | AJ83: 0
B84: Total Metropolitana | C84: =SUMIF($A$3:$A$80,"Metropolitana",C$3:C$80) -> 29428 | D84: =SUMIF($A$3:$A$80,"Metropolitana",D$3:D$80) -> 20039 | E84: =SUMIF($A$3:$A$80,"Metropolitana",E$3:E$80) -> 18378 | F84: =E84/D84 -> 0.9171116323 | G84: =SUMIF($A$3:$A$80,"Metropolitana",G$3:G$80) -> 18977 | H84: =G84/D84 -> 0.9470033435 | I84: =SUMIF($A$3:$A$80,"Metropolitana",I$3:I$80) -> 17403 | J84: =I84/D84 -> 0.8684565098 | K84: =SUMIF($A$3:$A$80,"Metropolitana",K$3:K$80) -> 17303 | L84: =K84/D84 -> 0.8634662408 | M84: =SUMIF($A$3:$A$80,"Metropolitana",M$3:M$80) -> 18196 | N84: =M84/D84 -> 0.9080293428 | O84: =SUMIF($A$3:$A$80,"Metropolitana",O$3:O$80) -> 17659 | P84: =O84/D84 -> 0.8812315984 | Q84: =SUMIF($A$3:$A$80,"Metropolitana",Q$3:Q$80) -> 17480 | R84: =Q84/D84 -> 0.8722990169 | S84: =SUMIF($A$3:$A$80,"Metropolitana",S$3:S$80) -> 13911 | T84: =S84/D84 -> 0.6941963172 | U84: =SUMIF($A$3:$A$80,"Metropolitana",U$3:U$80) -> 14828 | V84: =U84/D84 -> 0.7399570837 | W84: =SUMIF($A$3:$A$80,"Metropolitana",W$3:W$80) -> 18344 | X84: =W84/D84 -> 0.9154149409 | Y84: =SUMIF($A$3:$A$80,"Metropolitana",Y$3:Y$80) -> 7819 | Z84: =Y84/D84 -> 0.3901891312 | AB84: =SUMIF($A$3:$A$80,"Metropolitana",AB$3:AB$80) -> 3552 | AC84: 0.1936327955 | AD84: =SUMIF($A$3:$A$80,"Metropolitana",AD$3:AD$80) -> 1522 | AE84: 0.08296990842 | AG84: =cálculos2!O84 -> 1 | AH84: 0.1 | AI84: =cálculos2!P84 -> 0 | AJ84: 0
B85: Total Sul | C85: =SUMIF($A$3:$A$80,"sul",C$3:C$80) -> 8340 | D85: =SUMIF($A$3:$A$80,"sul",D$3:D$80) -> 5712 | E85: =SUMIF($A$3:$A$80,"Sul",E$3:E$80) -> 5148 | F85: =E85/D85 -> 0.9012605042 | G85: =SUMIF($A$3:$A$80,"Sul",G$3:G$80) -> 5289 | H85: =G85/D85 -> 0.9259453782 | I85: =SUMIF($A$3:$A$80,"Sul",I$3:I$80) -> 5282 | J85: =I85/D85 -> 0.924719888 | K85: =SUMIF($A$3:$A$80,"Sul",K$3:K$80) -> 5253 | L85: =K85/D85 -> 0.9196428571 | M85: =SUMIF($A$3:$A$80,"Sul",M$3:M$80) -> 5427 | N85: =M85/D85 -> 0.950105042 | O85: =SUMIF($A$3:$A$80,"Sul",O$3:O$80) -> 5279 | P85: =O85/D85 -> 0.9241946779 | Q85: =SUMIF($A$3:$A$80,"Sul",Q$3:Q$80) -> 5137 | R85: =Q85/D85 -> 0.8993347339 | S85: =SUMIF($A$3:$A$80,"Sul",S$3:S$80) -> 4257 | T85: =S85/D85 -> 0.7452731092 | U85: =SUMIF($A$3:$A$80,"Sul",U$3:U$80) -> 4917 | V85: =U85/D85 -> 0.8608193277 | W85: =SUMIF($A$3:$A$80,"Sul",W$3:W$80) -> 5553 | X85: =W85/D85 -> 0.9721638655 | Y85: =SUMIF($A$3:$A$80,"Sul",Y$3:Y$80) -> 2316 | Z85: =Y85/D85 -> 0.4054621849 | AB85: =SUMIF($A$3:$A$80,"Sul",AB$3:AB$80) -> 921 | AC85: 0.1658562939 | AD85: =SUMIF($A$3:$A$80,"Sul",AD$3:AD$80) -> 357 | AE85: 0.0642895732 | AG85: =cálculos2!O85 -> 4 | AH85: 0.4 | AI85: =cálculos2!P85 -> 2 | AJ85: 0.5
B86: Total Espírito Santo | C86: =SUM(C3:C80) -> 50693 | D86: =SUM(D3:D80) -> 34675 | E86: =SUM(E82:E85) -> 30958 | F86: =E86/D86 -> 0.8928046143 | G86: =SUM(G82:G85) -> 32020 | H86: =G86/D86 -> 0.9234318673 | I86: =SUM(I82:I85) -> 30649 | J86: =I86/D86 -> 0.8838932949 | K86: =SUM(K82:K85) -> 30471 | L86: =K86/D86 -> 0.8787599135 | M86: =SUM(M82:M85) -> 31765 | N86: =M86/D86 -> 0.9160778659 | O86: =SUM(O82:O85) -> 30934 | P86: =O86/D86 -> 0.892112473 | Q86: =SUM(Q82:Q85) -> 30399 | R86: =Q86/D86 -> 0.8766834895 | S86: =SUM(S82:S85) -> 25023 | T86: =S86/D86 -> 0.7216438356 | U86: =SUM(U82:U85) -> 26746 | V86: =U86/D86 -> 0.771333814 | W86: =SUM(W82:W85) -> 32123 | X86: =W86/D86 -> 0.9264023071 | Y86: =SUM(Y82:Y85) -> 14071 | Z86: =Y86/D86 -> 0.4057966835 | AB86: =SUM(AB82:AB85) -> 5494 | AC86: 0.171030103 | AD86: =SUM(AD82:AD85) -> 2257 | AE86: 0.07026118358 | AG86: =cálculos2!O86 -> 1 | AH86: 0.1 | AI86: =cálculos2!P86 -> 0 | AJ86: 0
E87: =COUNTIF(F3:F80,">=0,95") -> 19 | G87: =COUNTIF(H3:H80,">=0,9") -> 41 | I87: =COUNTIF(J3:J80,">=0,95") -> 32 | K87: =COUNTIF(L3:L80,">=0,95") -> 31 | M87: =COUNTIF(N3:N80,">=0,95") -> 45 | O87: =COUNTIF(P3:P80,">=0,9") -> 54 | Q87: =COUNTIF(R3:R80,">=0,95") -> 25 | S87: =COUNTIF(T3:T80,">=0,95") -> 14 | U87: =COUNTIF(V3:V80,">=0,95") -> 23 | W87: =COUNTIF(X3:X80,">=0,95") -> 50 | Y87: =COUNTIF(Z3:Z80,">=0,95") -> 1 | AB87: =COUNTIF(AC3:AC80,">=0,9") -> 0 | AD87: =COUNTIF(AE3:AE80,">=0,9") -> 0
B88: HOMOGENEIDADE ENTRE MUNICÍPIOS | E88: =E87/78 -> 0.2435897436 | G88: =G87/78 -> 0.5256410256 | I88: =I87/78 -> 0.4102564103 | K88: =K87/78 -> 0.3974358974 | M88: =M87/78 -> 0.5769230769 | O88: =O87/78 -> 0.6923076923 | Q88: =Q87/78 -> 0.3205128205 | S88: =S87/78 -> 0.1794871795 | U88: =U87/78 -> 0.2948717949 | W88: =W87/78 -> 0.641025641 | Y88: =Y87/78 -> 0.01282051282 | AB88: =AB87/78 -> 0 | AD88: =AD87/78 -> 0
A90: Fonte: Vacina e Confia, em 10 de Setembro de 2024.**
A91: **Dados referente às doses aplicadas no período de Janeiro a Agosto de 2024
A92: Cobertura Calculada por município de residência do cidadão (no Vacina e Confia, a origem da informação é o endereço que consta no cadastro do cidadão preenchido manualmente por meio do autocadastro ou pelo cadastro realizado por um profissional de saúde no momento do atendimento).
A93: 1 População anual extraída do MS/SVS/DASIS - SINASC/DASIS/SVS/MS 2023 (hoje preliminares) referente ao período de julho a dezembro de 2023 e SINASC/DASIS/SVS/MS 2024 referente ao período de janeiro a junho de 2024.
A94: ² População proporcional extraída do MS/SVS/DASIS - SINASC/DASIS/SVS/MS 2023 (hoje preliminares) referente ao período de julho e agosto de 2023 somada a população extraída do SINASC/DASIS/SVS/MS 2024 referente ao período de janeiro e junho de 2024.
A95: Sinasc, atualizado em 05 de Setembro de 2024.
A96: Homogeineidade: O cálculo da Homogeineidade entre vacinas é feito de acordo com a pactuação estabelecida no Plano Plurianual (PPA) vigente no período 2024-2027.
A97: Observações:
A98: Imunobiológicos que foram recebidos parcialmente pelo estado no mês da análise, sendo distribuídos em quantidades reduzidas às regionais e municípios: Típlice Bacteriana (DTP),Varicela, Hepatite A - Rotina Pediátrica, COVID-19 Monovalente (XBB) - FRASCO .
A99: Imunobiológicos indisponíveis no mês da análise, não sendo possível a distribuição às regionais e municípios: Meningo C Conjugada, Tríplice Bacteriana Acelular (dTpa - CRIE).
A100: Imunobiológicos em falta e sem previsão de entrega: Febre Amarela, Varicela, Tríplice Viral (SCR), COVID-19 Monovalente (XBB) - FRASCO, Tríplice Bacteriana (DTP).

Sheet CV REF 1A e 4A - procedência
G1: D2 | K1: REFORÇOS 1 ANO | S1: REFORÇOS 4 ANOS
A2: Regional | B2: Município | C2: ¹População 1 ano anual | D2: ²População 1 ano proporcional | E2: ³População 4 anos anual | F2: ³População 4 anos proporcional | G2: DOSES APLICADAS D2 TRÍPLICE VIRAL | H2: COBERTURA D2 TRÍPLICE VIRAL | I2: DOSES APLICADAS D2 VARICELA | J2: COBERTURA D2 VARICELA | K2: DOSES APLICADAS REF PNEUMO | L2: COBERTURA REF PNEUMO | M2: DOSES APLICADAS REF MENINGO | N2: COBERTURA REF MENINGO | O2: DOSES APLICADAS R1 POLIO | P2: COBERTURA R1 POLIO | Q2: DOSES APLICADAS R1 TRÍPLICE BACTERIANA | R2: COBERTURA R1 TRÍPLICE BACTERIANA | S2: DOSES APLICADAS REF FEBRE AMARELA | T2: COBERTURA REF FEBRE AMARELA | U2: DOSES APLICADAS R2 POLIO | V2: COBERTURA R2 POLIO | W2: DOSES APLICADAS R2 TRÍPLICE BACTERIANA | X2: COBERTURA R2 TRÍPLICE BACTERIANA
A3: Metropolitana | B3: Afonso Cláudio | C3: 383 | D3: 263 | E3: 416 | F3: =E3/12*8 -> 277.3333333 | G3: 236 | H3: =G3/D3 -> 0.897338403 | I3: 82 | J3: =I3/F3 -> 0.2956730769 | K3: 230 | L3: =K3/D3 -> 0.8745247148 | M3: 235 | N3: =M3/D3 -> 0.8935361217 | O3: 549 | P3: =O3/D3 -> 2.087452471 | Q3: 244 | R3: =Q3/D3 -> 0.927756654 | S3: 179 | T3: =S3/F3 -> 0.6454326923 | U3: 477 | V3: =U3/F3 -> 1.719951923 | W3: 198 | X3: =W3/F3 -> 0.7139423077
A4: Norte | B4: Água Doce do Norte | C4: 202 | D4: 152 | E4: 151 | F4: =E4/12*8 -> 100.6666667 | G4: 79 | H4: 0.5197368421 | I4: 39 | J4: 0.3874172185 | K4: 106 | L4: 0.6973684211 | M4: 106 | N4: 0.6973684211 | O4: 162 | P4: 1.065789474 | Q4: 95 | R4: 0.625 | S4: 74 | T4: 0.7350993377 | U4: 141 | V4: 1.400662252 | W4: 89 | X4: 0.8841059603
A5: Central | B5: Águia Branca | C5: 172 | D5: 117 | E5: 129 | F5: 86 | G5: 67 | H5: 0.5726495726 | I5: 30 | J5: 0.3488372093 | K5: 89 | L5: 0.7606837607 | M5: 91 | N5: 0.7777777778 | O5: 104 | P5: 0.8888888889 | Q5: 84 | R5: 0.7179487179 | S5: 66 | T5: 0.7674418605 | U5: 116 | V5: 1.348837209 | W5: 85 | X5: 0.988372093
A6: Sul | B6: Alegre | C6: 324 | D6: 213 | E6: 372 | F6: 248 | G6: 185 | H6: 0.8685446009 | I6: 103 | J6: 0.4153225806 | K6: 205 | L6: 0.9624413146 | M6: 208 | N6: 0.9765258216 | O6: 411 | P6: 1.929577465 | Q6: 202 | R6: 0.9483568075 | S6: 220 | T6: 0.8870967742 | U6: 468 | V6: 1.887096774 | W6: 241 | X6: 0.9717741935
A7: Sul | B7: Alfredo Chaves | C7: 139 | D7: 82 | E7: 138 | F7: 92 | G7: 72 | H7: 0.8780487805 | I7: 48 | J7: 0.5217391304 | K7: 93 | L7: 1.134146341 | M7: 98 | N7: 1.195121951 | O7: 200 | P7: 2.43902439 | Q7: 89 | R7: 1.085365854 | S7: 80 | T7: 0.8695652174 | U7: 237 | V7: 2.576086957 | W7: 95 | X7: 1.032608696
A8: Central | B8: Alto Rio Novo | C8: 88 | D8: 58 | E8: 102 | F8: 68 | G8: 64 | H8: 1.103448276 | I8: 23 | J8: 0.3382352941 | K8: 64 | L8: 1.103448276 | M8: 64 | N8: 1.103448276 | O8: 112 | P8: 1.931034483 | Q8: 64 | R8: 1.103448276 | S8: 48 | T8: 0.7058823529 | U8: 99 | V8: 1.455882353 | W8: 47 | X8: 0.6911764706
A9: Sul | B9: Anchieta | C9: 374 | D9: 255 | E9: 390 | F9: 260 | G9: 215 | H9: 0.8431372549 | I9: 108 | J9: 0.4153846154 | K9: 272 | L9: 1.066666667 | M9: 275 | N9: 1.078431373 | O9: 477 | P9: 1.870588235 | Q9: 272 | R9: 1.066666667 | S9: 217 | T9: 0.8346153846 | U9: 499 | V9: 1.919230769 | W9: 296 | X9: 1.138461538
A10: Sul | B10: Apiacá | C10: 66 | D10: 46 | E10: 90 | F10: 60 | G10: 29 | H10: 0.6304347826 | I10: 23 | J10: 0.3833333333 | K10: 45 | L10: 0.9782608696 | M10: 53 | N10: 1.152173913 | O10: 71 | P10: 1.543478261 | Q10: 34 | R10: 0.7391304348 | S10: 5 | T10: 0.08333333333 | U10: 90 | V10: 1.5 | W10: 48 | X10: 0.8
A11: Metropolitana | B11: Aracruz | C11: 1425 | D11: 951 | E11: 1420 | F11: 946.6666667 | G11: 860 | H11: 0.9043112513 | I11: 440 | J11: 0.4647887324 | K11: 1045 | L11: 1.098843323 | M11: 1070 | N11: 1.125131441 | O11: 1540 | P11: 1.619348055 | Q11: 988 | R11: 1.038906414 | S11: 676 | T11: 0.714084507 | U11: 1355 | V11: 1.431338028 | W11: 877 | X11: 0.9264084507
A12: Sul | B12: Atilio Vivacqua | C12: 136 | D12: 91 | E12: 138 | F12: 92 | G12: 74 | H12: 0.8131868132 | I12: 28 | J12: 0.3043478261 | K12: 106 | L12: 1.164835165 | M12: 107 | N12: 1.175824176 | O12: 179 | P12: 1.967032967 | Q12: 101 | R12: 1.10989011 | S12: 68 | T12: 0.7391304348 | U12: 129 | V12: 1.402173913 | W12: 82 | X12: 0.8913043478
A13: Central | B13: Baixo Guandu | C13: 392 | D13: 251 | E13: 427 | F13: 284.6666667 | G13: 222 | H13: 0.8844621514 | I13: 109 | J13: 0.3829039813 | K13: 238 | L13: 0.9482071713 | M13: 244 | N13: 0.9721115538 | O13: 470 | P13: 1.87250996 | Q13: 259 | R13: 1.03187251 | S13: 200 | T13: 0.7025761124 | U13: 466 | V13: 1.637002342 | W13: 248 | X13: 0.8711943794
A14: Norte | B14: Barra de São Francisco | C14: 545 | D14: 380 | E14: 589 | F14: 392.6666667 | G14: 339 | H14: 0.8921052632 | I14: 169 | J14: 0.4303904924 | K14: 365 | L14: 0.9605263158 | M14: 364 | N14: 0.9578947368 | O14: 506 | P14: 1.331578947 | Q14: 334 | R14: 0.8789473684 | S14: 315 | T14: 0.8022071307 | U14: 452 | V14: 1.151103565 | W14: 325 | X14: 0.8276740238
A15: Norte | B15: Boa Esperança | C15: 205 | D15: 139 | E15: 200 | F15: 133.3333333 | G15: 86 | H15: 0.618705036 | I15: 50 | J15: 0.375 | K15: 134 | L15: 0.964028777 | M15: 140 | N15: 1.007194245 | O15: 254 | P15: 1.827338129 | Q15: 139 | R15: 1 | S15: 95 | T15: 0.7125 | U15: 211 | V15: 1.5825 | W15: 122 | X15: 0.915
A16: Sul | B16: Bom Jesus do Norte | C16: 89 | D16: 65 | E16: 146 | F16: 97.33333333 | G16: 50 | H16: 0.7692307692 | I16: 31 | J16: 0.3184931507 | K16: 99 | L16: 1.523076923 | M16: 100 | N16: 1.538461538 | O16: 140 | P16: 2.153846154 | Q16: 82 | R16: 1.261538462 | S16: 70 | T16: 0.7191780822 | U16: 142 | V16: 1.45890411 | W16: 82 | X16: 0.8424657534
A17: Metropolitana | B17: Brejetuba | C17: 204 | D17: 137 | E17: 169 | F17: 112.6666667 | G17: 133 | H17: 0.9708029197 | I17: 61 | J17: 0.5414201183 | K17: 141 | L17: 1.02919708 | M17: 146 | N17: 1.065693431 | O17: 271 | P17: 1.97810219 | Q17: 131 | R17: 0.9562043796 | S17: 126 | T17: 1.118343195 | U17: 298 | V17: 2.644970414 | W17: 145 | X17: 1.286982249
A18: Sul | B18: Cachoeiro de Itapemirim | C18: 2416 | D18: 1690 | E18: 2417 | F18: 1611.333333 | G18: 1211 | H18: 0.7165680473 | I18: 558 | J18: 0.3462970625 | K18: 1595 | L18: 0.9437869822 | M18: 1651 | N18: 0.9769230769 | O18: 2116 | P18: 1.252071006 | Q18: 1471 | R18: 0.8704142012 | S18: 931 | T18: 0.5777823748 | U18: 1775 | V18: 1.101572197 | W18: 1302 | X18: 0.8080264791
A19: Metropolitana | B19: Cariacica | C19: 4860 | D19: 3332 | E19: 5005 | F19: 3336.666667 | G19: 2123 | H19: 0.6371548619 | I19: 1165 | J19: 0.3491508492 | K19: 3133 | L19: 0.9402761104 | M19: 3201 | N19: 0.9606842737 | O19: 3793 | P19: 1.138355342 | Q19: 2780 | R19: 0.8343337335 | S19: 2341 | T19: 0.7015984016 | U19: 3911 | V19: 1.172127872 | W19: 3049 | X19: 0.9137862138
A20: Sul | B20: Castelo | C20: 444 | D20: 301 | E20: 399 | F20: 266 | G20: 261 | H20: 0.8671096346 | I20: 100 | J20: 0.3759398496 | K20: 312 | L20: 1.03654485 | M20: 309 | N20: 1.026578073 | O20: 547 | P20: 1.817275748 | Q20: 289 | R20: 0.9601328904 | S20: 191 | T20: 0.7180451128 | U20: 470 | V20: 1.766917293 | W20: 254 | X20: 0.954887218
A21: Central | B21: Colatina | C21: 1525 | D21: 1055 | E21: 1561 | F21: 1040.666667 | G21: 746 | H21: 0.7071090047 | I21: 289 | J21: 0.2777065983 | K21: 978 | L21: 0.927014218 | M21: 1020 | N21: 0.9668246445 | O21: 1066 | P21: 1.01042654 | Q21: 872 | R21: 0.8265402844 | S21: 556 | T21: 0.534272902 | U21: 994 | V21: 0.9551569507 | W21: 723 | X21: 0.6947469571
A22: Norte | B22: Conceição da Barra | C22: 381 | D22: 254 | E22: 391 | F22: 260.6666667 | G22: 203 | H22: 0.7992125984 | I22: 117 | J22: 0.4488491049 | K22: 265 | L22: 1.043307087 | M22: 269 | N22: 1.059055118 | O22: 490 | P22: 1.929133858 | Q22: 257 | R22: 1.011811024 | S22: 223 | T22: 0.8554987212 | U22: 518 | V22: 1.987212276 | W22: 300 | X22: 1.150895141
A23: Metropolitana | B23: Conceição do Castelo | C23: 152 | D23: 109 | E23: 144 | F23: 96 | G23: 94 | H23: 0.8623853211 | I23: 53 | J23: 0.5520833333 | K23: 87 | L23: 0.7981651376 | M23: 93 | N23: 0.8532110092 | O23: 194 | P23: 1.779816514 | Q23: 92 | R23: 0.8440366972 | S23: 80 | T23: 0.8333333333 | U23: 204 | V23: 2.125 | W23: 90 | X23: 0.9375
A24: Sul | B24: Divino de São Lourenço | C24: 69 | D24: 46 | E24: 68 | F24: 45.33333333 | G24: 32 | H24: 0.6956521739 | I24: 27 | J24: 0.5955882353 | K24: 39 | L24: 0.847826087 | M24: 39 | N24: 0.847826087 | O24: 72 | P24: 1.565217391 | Q24: 35 | R24: 0.7608695652 | S24: 51 | T24: 1.125 | U24: 72 | V24: 1.588235294 | W24: 45 | X24: 0.9926470588
A25: Metropolitana | B25: Domingos Martins | C25: 409 | D25: 270 | E25: 411 | F25: 274 | G25: 233 | H25: 0.862962963 | I25: 155 | J25: 0.5656934307 | K25: 278 | L25: 1.02962963 | M25: 270 | N25: 1 | O25: 526 | P25: 1.948148148 | Q25: 288 | R25: 1.066666667 | S25: 230 | T25: 0.8394160584 | U25: 495 | V25: 1.806569343 | W25: 284 | X25: 1.03649635
A26: Sul | B26: Dores do Rio Preto | C26: 97 | D26: 68 | E26: 92 | F26: 61.33333333 | G26: 43 | H26: 0.6323529412 | I26: 21 | J26: 0.3423913043 | K26: 83 | L26: 1.220588235 | M26: 83 | N26: 1.220588235 | O26: 109 | P26: 1.602941176 | Q26: 63 | R26: 0.9264705882 | S26: 44 | T26: 0.7173913043 | U26: 87 | V26: 1.418478261 | W26: 50 | X26: 0.8152173913
A27: Norte | B27: Ecoporanga | C27: 265 | D27: 189 | E27: 283 | F27: 188.6666667 | G27: 153 | H27: 0.8095238095 | I27: 85 | J27: 0.4505300353 | K27: 170 | L27: 0.8994708995 | M27: 176 | N27: 0.9312169312 | O27: 260 | P27: 1.375661376 | Q27: 158 | R27: 0.835978836 | S27: 169 | T27: 0.8957597173 | U27: 259 | V27: 1.372791519 | W27: 179 | X27: 0.9487632509
A28: Metropolitana | B28: Fundão | C28: 222 | D28: 158 | E28: 218 | F28: 145.3333333 | G28: 126 | H28: 0.7974683544 | I28: 75 | J28: 0.5160550459 | K28: 147 | L28: 0.9303797468 | M28: 151 | N28: 0.9556962025 | O28: 250 | P28: 1.582278481 | Q28: 137 | R28: 0.8670886076 | S28: 109 | T28: 0.75 | U28: 205 | V28: 1.410550459 | W28: 134 | X28: 0.9220183486
A29: Central | B29: Governador Lindenberg | C29: 128 | D29: 82 | E29: 142 | F29: 94.66666667 | G29: 66 | H29: 0.8048780488 | I29: 46 | J29: 0.485915493 | K29: 94 | L29: 1.146341463 | M29: 96 | N29: 1.170731707 | O29: 163 | P29: 1.987804878 | Q29: 79 | R29: 0.9634146341 | S29: 74 | T29: 0.7816901408 | U29: 143 | V29: 1.51056338 | W29: 86 | X29: 0.9084507042
A30: Sul | B30: Guaçuí | C30: 394 | D30: 265 | E30: 407 | F30: 271.3333333 | G30: 192 | H30: 0.7245283019 | I30: 66 | J30: 0.2432432432 | K30: 282 | L30: 1.064150943 | M30: 280 | N30: 1.056603774 | O30: 441 | P30: 1.664150943 | Q30: 254 | R30: 0.958490566 | S30: 181 | T30: 0.6670761671 | U30: 366 | V30: 1.348894349 | W30: 219 | X30: 0.8071253071
A31: Metropolitana | B31: Guarapari | C31: 1606 | D31: 1058 | E31: 1557 | F31: 1038 | G31: 736 | H31: 0.6956521739 | I31: 389 | J31: 0.3747591522 | K31: 1096 | L31: 1.035916824 | M31: 1072 | N31: 1.013232514 | O31: 1338 | P31: 1.264650284 | Q31: 969 | R31: 0.915879017 | S31: 621 | T31: 0.598265896 | U31: 1203 | V31: 1.158959538 | W31: 920 | X31: 0.8863198459
A32: Metropolitana | B32: Ibatiba | C32: 362 | D32: 247 | E32: 354 | F32: 236 | G32: 199 | H32: 0.8056680162 | I32: 64 | J32: 0.2711864407 | K32: 258 | L32: 1.044534413 | M32: 261 | N32: 1.056680162 | O32: 359 | P32: 1.453441296 | Q32: 233 | R32: 0.9433198381 | S32: 172 | T32: 0.7288135593 | U32: 271 | V32: 1.148305085 | W32: 198 | X32: 0.8389830508
A33: Metropolitana | B33: Ibiraçu | C33: 159 | D33: 117 | E33: 160 | F33: 106.6666667 | G33: 58 | H33: 0.4957264957 | I33: 50 | J33: 0.46875 | K33: 95 | L33: 0.811965812 | M33: 96 | N33: 0.8205128205 | O33: 180 | P33: 1.538461538 | Q33: 72 | R33: 0.6153846154 | S33: 85 | T33: 0.796875 | U33: 231 | V33: 2.165625 | W33: 102 | X33: 0.95625
A34: Sul | B34: Ibitirama | C34: 143 | D34: 97 | E34: 148 | F34: 98.66666667 | G34: 75 | H34: 0.7731958763 | I34: 20 | J34: 0.2027027027 | K34: 92 | L34: 0.9484536082 | M34: 97 | N34: 1 | O34: 157 | P34: 1.618556701 | Q34: 94 | R34: 0.9690721649 | S34: 32 | T34: 0.3243243243 | U34: 125 | V34: 1.266891892 | W34: 44 | X34: 0.4459459459
A35: Sul | B35: Iconha | C35: 116 | D35: 79 | E35: 156 | F35: 104 | G35: 90 | H35: =G35/D35 -> 1.139240506 | I35: 29 | J35: =I35/F35 -> 0.2788461538 | K35: 97 | L35: =K35/D35 -> 1.227848101 | M35: 104 | N35: =M35/D35 -> 1.316455696 | O35: 134 | P35: =O35/D35 -> 1.696202532 | Q35: 81 | R35: =Q35/D35 -> 1.025316456 | S35: 86 | T35: =S35/F35 -> 0.8269230769 | U35: 140 | V35: =U35/F35 -> 1.346153846 | W35: 94 | X35: =W35/F35 -> 0.9038461538
A36: Sul | B36: Irupi | C36: 207 | D36: 147 | E36: 200 | F36: 133.3333333 | G36: 112 | H36: 0.7619047619 | I36: 46 | J36: 0.345 | K36: 154 | L36: 1.047619048 | M36: 156 | N36: 1.06122449 | O36: 220 | P36: 1.496598639 | Q36: 130 | R36: 0.8843537415 | S36: 130 | T36: 0.975 | U36: 222 | V36: 1.665 | W36: 145 | X36: 1.0875
A37: Metropolitana | B37: Itaguaçu | C37: 138 | D37: 98 | E37: 154 | F37: 102.6666667 | G37: 102 | H37: 1.040816327 | I37: 44 | J37: 0.4285714286 | K37: 95 | L37: 0.9693877551 | M37: 101 | N37: 1.030612245 | O37: 186 | P37: 1.897959184 | Q37: 94 | R37: 0.9591836735 | S37: 75 | T37: 0.7305194805 | U37: 169 | V37: 1.646103896 | W37: 91 | X37: 0.8863636364
A38: Sul | B38: Itapemirim | C38: 543 | D38: 354 | E38: 556 | F38: 370.6666667 | G38: 238 | H38: 0.6723163842 | I38: 126 | J38: 0.3399280576 | K38: 328 | L38: 0.9265536723 | M38: 337 | N38: 0.9519774011 | O38: 504 | P38: 1.423728814 | Q38: 305 | R38: 0.8615819209 | S38: 159 | T38: 0.4289568345 | U38: 464 | V38: 1.251798561 | W38: 306 | X38: 0.8255395683
A39: Metropolitana | B39: Itarana | C39: 141 | D39: 101 | E39: 128 | F39: 85.33333333 | G39: 59 | H39: 0.5841584158 | I39: 51 | J39: 0.59765625 | K39: 86 | L39: 0.8514851485 | M39: 89 | N39: 0.8811881188 | O39: 163 | P39: 1.613861386 | Q39: 70 | R39: 0.6930693069 | S39: 79 | T39: 0.92578125 | U39: 176 | V39: 2.0625 | W39: 87 | X39: 1.01953125
A40: Sul | B40: Iúna | C40: 481 | D40: 314 | E40: 410 | F40: 273.3333333 | G40: 233 | H40: 0.7420382166 | I40: 94 | J40: 0.343902439 | K40: 298 | L40: 0.949044586 | M40: 312 | N40: 0.9936305732 | O40: 416 | P40: 1.324840764 | Q40: 250 | R40: 0.7961783439 | S40: 194 | T40: 0.7097560976 | U40: 415 | V40: 1.518292683 | W40: 244 | X40: 0.8926829268
A41: Norte | B41: Jaguaré | C41: 472 | D41: 321 | E41: 445 | F41: 296.6666667 | G41: 236 | H41: 0.7352024922 | I41: 119 | J41: 0.4011235955 | K41: 336 | L41: 1.046728972 | M41: 332 | N41: 1.034267913 | O41: 499 | P41: 1.554517134 | Q41: 296 | R41: 0.9221183801 | S41: 256 | T41: 0.8629213483 | U41: 514 | V41: 1.73258427 | W41: 326 | X41: 1.098876404
A42: Sul | B42: Jerônimo Monteiro | C42: 153 | D42: 102 | E42: 157 | F42: 104.6666667 | G42: 101 | H42: 0.9901960784 | I42: 22 | J42: 0.2101910828 | K42: 108 | L42: 1.058823529 | M42: 109 | N42: 1.068627451 | O42: 178 | P42: 1.745098039 | Q42: 116 | R42: 1.137254902 | S42: 75 | T42: 0.7165605096 | U42: 148 | V42: 1.414012739 | W42: 88 | X42: 0.8407643312
A43: Metropolitana | B43: João Neiva | C43: 164 | D43: 111 | E43: 142 | F43: 94.66666667 | G43: 97 | H43: 0.8738738739 | I43: 36 | J43: 0.3802816901 | K43: 127 | L43: 1.144144144 | M43: 133 | N43: 1.198198198 | O43: 177 | P43: 1.594594595 | Q43: 101 | R43: 0.9099099099 | S43: 74 | T43: 0.7816901408 | U43: 151 | V43: 1.595070423 | W43: 89 | X43: 0.9401408451
A44: Metropolitana | B44: Laranja da Terra | C44: 87 | D44: 62 | E44: 133 | F44: 88.66666667 | G44: 83 | H44: 1.338709677 | I44: 62 | J44: 0.6992481203 | K44: 88 | L44: 1.419354839 | M44: 93 | N44: 1.5 | O44: 186 | P44: 3 | Q44: 85 | R44: 1.370967742 | S44: 80 | T44: 0.9022556391 | U44: 182 | V44: 2.052631579 | W44: 81 | X44: 0.9135338346
A45: Central | B45: Linhares | C45: 2621 | D45: 1822 | E45: 2452 | F45: 1634.666667 | G45: 1156 | H45: 0.634467618 | I45: 547 | J45: 0.3346247961 | K45: 1423 | L45: 0.7810098793 | M45: 1490 | N45: 0.8177826564 | O45: 2306 | P45: 1.265642151 | Q45: 1462 | R45: 0.8024149286 | S45: 999 | T45: 0.6111337684 | U45: 2079 | V45: 1.271818923 | W45: 1412 | X45: 0.8637846656
A46: Central | B46: Mantenópolis | C46: 153 | D46: 106 | E46: 166 | F46: 110.6666667 | G46: 88 | H46: 0.8301886792 | I46: 46 | J46: 0.4156626506 | K46: 118 | L46: 1.113207547 | M46: 116 | N46: 1.094339623 | O46: 176 | P46: 1.660377358 | Q46: 101 | R46: 0.9528301887 | S46: 91 | T46: 0.8222891566 | U46: 168 | V46: 1.518072289 | W46: 100 | X46: 0.9036144578
A47: Sul | B47: Marataízes | C47: 552 | D47: 394 | E47: 579 | F47: 386 | G47: 310 | H47: 0.7868020305 | I47: 143 | J47: 0.3704663212 | K47: 425 | L47: 1.078680203 | M47: 422 | N47: 1.07106599 | O47: 554 | P47: 1.406091371 | Q47: 384 | R47: 0.9746192893 | S47: 204 | T47: 0.5284974093 | U47: 525 | V47: 1.360103627 | W47: 373 | X47: 0.9663212435
A48: Metropolitana | B48: Marechal Floriano | C48: 221 | D48: 139 | E48: 236 | F48: 157.3333333 | G48: 123 | H48: 0.8848920863 | I48: 95 | J48: 0.6038135593 | K48: 146 | L48: 1.050359712 | M48: 143 | N48: 1.028776978 | O48: 239 | P48: 1.71942446 | Q48: 143 | R48: 1.028776978 | S48: 106 | T48: 0.6737288136 | U48: 240 | V48: 1.525423729 | W48: 120 | X48: 0.7627118644
A49: Central | B49: Marilândia | C49: 163 | D49: 112 | E49: 164 | F49: 109.3333333 | G49: 82 | H49: 0.7321428571 | I49: 50 | J49: 0.4573170732 | K49: 85 | L49: 0.7589285714 | M49: 90 | N49: 0.8035714286 | O49: 176 | P49: 1.571428571 | Q49: 86 | R49: 0.7678571429 | S49: 86 | T49: 0.7865853659 | U49: 204 | V49: 1.865853659 | W49: 95 | X49: 0.868902439
A50: Sul | B50: Mimoso do Sul | C50: 266 | D50: 181 | E50: 276 | F50: 184 | G50: 102 | H50: 0.5635359116 | I50: 96 | J50: 0.5217391304 | K50: 139 | L50: 0.7679558011 | M50: 147 | N50: 0.8121546961 | O50: 193 | P50: 1.066298343 | Q50: 117 | R50: 0.6464088398 | S50: 133 | T50: 0.722826087 | U50: 223 | V50: 1.211956522 | W50: 141 | X50: 0.7663043478
A51: Norte | B51: Montanha | C51: 239 | D51: 165 | E51: 278 | F51: 185.3333333 | G51: 159 | H51: 0.9636363636 | I51: 85 | J51: 0.4586330935 | K51: 176 | L51: 1.066666667 | M51: 186 | N51: 1.127272727 | O51: 314 | P51: 1.903030303 | Q51: 172 | R51: 1.042424242 | S51: 154 | T51: 0.8309352518 | U51: 331 | V51: 1.785971223 | W51: 171 | X51: 0.9226618705
A52: Norte | B52: Mucurici | C52: 77 | D52: 47 | E52: 97 | F52: 64.66666667 | G52: 43 | H52: 0.914893617 | I52: 27 | J52: 0.4175257732 | K52: 61 | L52: 1.29787234 | M52: 63 | N52: 1.340425532 | O52: 58 | P52: 1.234042553 | Q52: 43 | R52: 0.914893617 | S52: 42 | T52: 0.6494845361 | U52: 72 | V52: 1.113402062 | W52: 45 | X52: 0.6958762887
A53: Sul | B53: Muniz Freire | C53: 213 | D53: 145 | E53: 275 | F53: 183.3333333 | G53: 157 | H53: 1.082758621 | I53: 29 | J53: 0.1581818182 | K53: 171 | L53: 1.179310345 | M53: 169 | N53: 1.165517241 | O53: 300 | P53: 2.068965517 | Q53: 162 | R53: 1.117241379 | S53: 154 | T53: 0.84 | U53: 343 | V53: 1.870909091 | W53: 164 | X53: 0.8945454545
A54: Sul | B54: Muqui | C54: 163 | D54: 118 | E54: 152 | F54: 101.3333333 | G54: 86 | H54: 0.7288135593 | I54: 58 | J54: 0.5723684211 | K54: 121 | L54: 1.025423729 | M54: 120 | N54: 1.016949153 | O54: 229 | P54: 1.940677966 | Q54: 89 | R54: 0.7542372881 | S54: 84 | T54: 0.8289473684 | U54: 208 | V54: 2.052631579 | W54: 88 | X54: 0.8684210526
A55: Norte | B55: Nova Venécia | C55: 653 | D55: 465 | E55: 656 | F55: 437.3333333 | G55: 425 | H55: 0.9139784946 | I55: 150 | J55: 0.3429878049 | K55: 449 | L55: 0.9655913978 | M55: 483 | N55: 1.038709677 | O55: 662 | P55: 1.423655914 | Q55: 414 | R55: 0.8903225806 | S55: 329 | T55: 0.7522865854 | U55: 566 | V55: 1.294207317 | W55: 381 | X55: 0.8711890244
A56: Central | B56: Pancas | C56: 210 | D56: 145 | E56: 244 | F56: 162.6666667 | G56: 136 | H56: 0.9379310345 | I56: 49 | J56: 0.3012295082 | K56: 141 | L56: 0.9724137931 | M56: 149 | N56: 1.027586207 | O56: 282 | P56: 1.944827586 | Q56: 140 | R56: 0.9655172414 | S56: 117 | T56: 0.7192622951 | U56: 253 | V56: 1.555327869 | W56: 136 | X56: 0.8360655738
A57: Norte | B57: Pedro Canário | C57: 323 | D57: 231 | E57: 338 | F57: 225.3333333 | G57: 196 | H57: 0.8484848485 | I57: 111 | J57: 0.4926035503 | K57: 242 | L57: 1.047619048 | M57: 239 | N57: 1.034632035 | O57: 389 | P57: 1.683982684 | Q57: 243 | R57: 1.051948052 | S57: 168 | T57: 0.7455621302 | U57: 338 | V57: 1.5 | W57: 207 | X57: 0.9186390533
A58: Norte | B58: Pinheiros | C58: 326 | D58: 222 | E58: 383 | F58: 255.3333333 | G58: 136 | H58: 0.6126126126 | I58: 98 | J58: 0.3838120104 | K58: 201 | L58: 0.9054054054 | M58: 206 | N58: 0.9279279279 | O58: 278 | P58: 1.252252252 | Q58: 169 | R58: 0.7612612613 | S58: 163 | T58: 0.638381201 | U58: 276 | V58: 1.080939948 | W58: 194 | X58: 0.7597911227
A59: Sul | B59: Piúma | C59: 291 | D59: 193 | E59: 311 | F59: 207.3333333 | G59: 126 | H59: 0.6528497409 | I59: 64 | J59: 0.308681672 | K59: 180 | L59: 0.932642487 | M59: 170 | N59: 0.8808290155 | O59: 302 | P59: 1.564766839 | Q59: 180 | R59: 0.932642487 | S59: 136 | T59: 0.6559485531 | U59: 290 | V59: 1.398713826 | W59: 206 | X59: 0.9935691318
A60: Norte | B60: Ponto Belo | C60: 77 | D60: 50 | E60: 85 | F60: 56.66666667 | G60: 43 | H60: 0.86 | I60: 25 | J60: 0.4411764706 | K60: 60 | L60: 1.2 | M60: 62 | N60: 1.24 | O60: 112 | P60: 2.24 | Q60: 53 | R60: 1.06 | S60: 53 | T60: 0.9352941176 | U60: 105 | V60: 1.852941176 | W60: 54 | X60: 0.9529411765
A61: Sul | B61: Presidente Kennedy | C61: 191 | D61: 137 | E61: 239 | F61: 159.3333333 | G61: 137 | H61: 1 | I61: 61 | J61: 0.3828451883 | K61: 162 | L61: 1.182481752 | M61: 161 | N61: 1.175182482 | O61: 274 | P61: 2 | Q61: 145 | R61: 1.058394161 | S61: 131 | T61: 0.8221757322 | U61: 247 | V61: 1.550209205 | W61: 146 | X61: 0.9163179916
A62: Central | B62: Rio Bananal | C62: 281 | D62: 197 | E62: 229 | F62: 152.6666667 | G62: 205 | H62: 1.040609137 | I62: 65 | J62: 0.4257641921 | K62: 211 | L62: 1.07106599 | M62: 227 | N62: 1.152284264 | O62: 432 | P62: 2.192893401 | Q62: 205 | R62: 1.040609137 | S62: 181 | T62: 1.18558952 | U62: 378 | V62: 2.475982533 | W62: 184 | X62: 1.205240175
A63: Sul | B63: Rio Novo do Sul | C63: 111 | D63: 71 | E63: 144 | F63: 96 | G63: 75 | H63: 1.056338028 | I63: 54 | J63: 0.5625 | K63: 86 | L63: 1.211267606 | M63: 88 | N63: 1.23943662 | O63: 148 | P63: 2.084507042 | Q63: 84 | R63: 1.183098592 | S63: 62 | T63: 0.6458333333 | U63: 151 | V63: 1.572916667 | W63: 83 | X63: 0.8645833333
A64: Metropolitana | B64: Santa Leopoldina | C64: 100 | D64: 62 | E64: 155 | F64: 103.3333333 | G64: 47 | H64: 0.7580645161 | I64: 15 | J64: 0.1451612903 | K64: 83 | L64: 1.338709677 | M64: 83 | N64: 1.338709677 | O64: 150 | P64: 2.419354839 | Q64: 75 | R64: 1.209677419 | S64: 61 | T64: 0.5903225806 | U64: 156 | V64: 1.509677419 | W64: 78 | X64: 0.7548387097
A65: Metropolitana | B65: Santa Maria de Jetibá | C65: 612 | D65: 396 | E65: 685 | F65: 456.6666667 | G65: 391 | H65: 0.9873737374 | I65: 139 | J65: 0.304379562 | K65: 429 | L65: 1.083333333 | M65: 450 | N65: 1.136363636 | O65: 700 | P65: 1.767676768 | Q65: 441 | R65: 1.113636364 | S65: 294 | T65: 0.6437956204 | U65: 585 | V65: 1.281021898 | W65: 394 | X65: 0.8627737226
A66: Metropolitana | B66: Santa Teresa | C66: 308 | D66: 212 | E66: 260 | F66: 173.3333333 | G66: 131 | H66: 0.6179245283 | I66: 113 | J66: 0.6519230769 | K66: 192 | L66: 0.9056603774 | M66: 190 | N66: 0.8962264151 | O66: 279 | P66: 1.316037736 | Q66: 138 | R66: 0.6509433962 | S66: 151 | T66: 0.8711538462 | U66: 274 | V66: 1.580769231 | W66: 150 | X66: 0.8653846154
A67: Central | B67: São Domingos do Norte | C67: 115 | D67: 74 | E67: 117 | F67: 78 | G67: 60 | H67: =G67/D67 -> 0.8108108108 | I67: 29 | J67: =I67/F67 -> 0.3717948718 | K67: 78 | L67: =K67/D67 -> 1.054054054 | M67: 79 | N67: =M67/D67 -> 1.067567568 | O67: 96 | P67: =O67/D67 -> 1.297297297 | Q67: 57 | R67: =Q67/D67 -> 0.7702702703 | S67: 61 | T67: =S67/F67 -> 0.7820512821 | U67: 96 | V67: =U67/F67 -> 1.230769231 | W67: 61 | X67: =W67/F67 -> 0.7820512821
A68: Central | B68: São Gabriel da Palha | C68: 464 | D68: 320 | E68: 426 | F68: =E68/12*8 -> 284 | G68: 227 | H68: 0.709375 | I68: 117 | J68: 0.411971831 | K68: 262 | L68: 0.81875 | M68: 259 | N68: 0.809375 | O68: 402 | P68: 1.25625 | Q68: 237 | R68: 0.740625 | S68: 274 | T68: 0.9647887324 | U68: 459 | V68: 1.616197183 | W68: 278 | X68: 0.9788732394
A69: Sul | B69: São José do Calçado | C69: 101 | D69: 78 | E69: 150 | F69: 100 | G69: 70 | H69: 0.8974358974 | I69: 34 | J69: 0.34 | K69: 94 | L69: 1.205128205 | M69: 92 | N69: 1.179487179 | O69: 107 | P69: 1.371794872 | Q69: 73 | R69: 0.9358974359 | S69: 89 | T69: 0.89 | U69: 142 | V69: 1.42 | W69: 91 | X69: 0.91
A70: Norte | B70: São Mateus | C70: 1947 | D70: 1333 | E70: 1766 | F70: 1177.333333 | G70: 746 | H70: 0.55963991 | I70: 457 | J70: 0.3881653454 | K70: 1166 | L70: 0.8747186797 | M70: 1145 | N70: 0.8589647412 | O70: 1396 | P70: 1.047261815 | Q70: 971 | R70: 0.728432108 | S70: 734 | T70: 0.6234428086 | U70: 1315 | V70: 1.116930917 | W70: 940 | X70: 0.798414496
A71: Central | B71: São Roque do Canaã | C71: 123 | D71: 96 | E71: 100 | F71: 66.66666667 | G71: 77 | H71: 0.8020833333 | I71: 47 | J71: 0.705 | K71: 89 | L71: 0.9270833333 | M71: 92 | N71: 0.9583333333 | O71: 163 | P71: 1.697916667 | Q71: 83 | R71: 0.8645833333 | S71: 62 | T71: 0.93 | U71: 161 | V71: 2.415 | W71: 68 | X71: 1.02
A72: Metropolitana | B72: Serra | C72: 7293 | D72: 5065 | E72: 7550 | F72: 5033.333333 | G72: 3146 | H72: 0.6211253702 | I72: 1381 | J72: 0.2743708609 | K72: 4311 | L72: 0.8511352419 | M72: 4351 | N72: 0.8590325765 | O72: 5112 | P72: 1.009279368 | Q72: 3875 | R72: 0.7650542942 | S72: 3789 | T72: 0.752781457 | U72: 5391 | V72: 1.071059603 | W72: 4467 | X72: 0.8874834437
A73: Central | B73: Sooretama | C73: 433 | D73: 304 | E73: 415 | F73: 276.6666667 | G73: 206 | H73: 0.6776315789 | I73: 115 | J73: 0.4156626506 | K73: 279 | L73: 0.9177631579 | M73: 290 | N73: 0.9539473684 | O73: 526 | P73: 1.730263158 | Q73: 258 | R73: 0.8486842105 | S73: 295 | T73: 1.06626506 | U73: 630 | V73: 2.277108434 | W73: 287 | X73: 1.037349398
A74: Sul | B74: Vargem Alta | C74: 261 | D74: 180 | E74: 278 | F74: 185.3333333 | G74: 154 | H74: 0.8555555556 | I74: 66 | J74: 0.3561151079 | K74: 176 | L74: 0.9777777778 | M74: 175 | N74: 0.9722222222 | O74: 321 | P74: 1.783333333 | Q74: 164 | R74: 0.9111111111 | S74: 121 | T74: 0.6528776978 | U74: 327 | V74: 1.764388489 | W74: 157 | X74: 0.8471223022
A75: Metropolitana | B75: Venda Nova do Imigrante | C75: 377 | D75: 254 | E75: 328 | F75: 218.6666667 | G75: 236 | H75: 0.9291338583 | I75: 65 | J75: 0.2972560976 | K75: 291 | L75: 1.145669291 | M75: 286 | N75: 1.125984252 | O75: 527 | P75: 2.07480315 | Q75: 262 | R75: 1.031496063 | S75: 164 | T75: 0.75 | U75: 376 | V75: 1.719512195 | W75: 178 | X75: 0.8140243902
A76: Metropolitana | B76: Viana | C76: 938 | D76: 635 | E76: 1064 | F76: 709.3333333 | G76: 270 | H76: 0.4251968504 | I76: 208 | J76: 0.2932330827 | K76: 643 | L76: 1.012598425 | M76: 653 | N76: 1.028346457 | O76: 751 | P76: 1.182677165 | Q76: 531 | R76: 0.8362204724 | S76: 479 | T76: 0.6752819549 | U76: 858 | V76: 1.209586466 | W76: 614 | X76: 0.8656015038
A77: Norte | B77: Vila Pavão | C77: 91 | D77: 65 | E77: 127 | F77: 84.66666667 | G77: 78 | H77: 1.2 | I77: 24 | J77: 0.2834645669 | K77: 79 | L77: 1.215384615 | M77: 83 | N77: 1.276923077 | O77: 154 | P77: 2.369230769 | Q77: 81 | R77: 1.246153846 | S77: 69 | T77: 0.8149606299 | U77: 171 | V77: 2.019685039 | W77: 72 | X77: 0.8503937008
A78: Central | B78: Vila Valério | C78: 254 | D78: 172 | E78: 169 | F78: 112.6666667 | G78: 127 | H78: 0.738372093 | I78: 65 | J78: 0.5769230769 | K78: 147 | L78: 0.8546511628 | M78: 132 | N78: 0.7674418605 | O78: 277 | P78: 1.610465116 | Q78: 140 | R78: 0.8139534884 | S78: 139 | T78: 1.233727811 | U78: 299 | V78: 2.653846154 | W78: 171 | X78: 1.517751479
A79: Metropolitana | B79: Vila Velha | C79: 5636 | D79: 3799 | E79: 5675 | F79: 3783.333333 | G79: 2598 | H79: 0.6838641748 | I79: 1178 | J79: 0.3113656388 | K79: 3234 | L79: 0.8512766518 | M79: 3292 | N79: 0.8665438273 | O79: 4021 | P79: 1.058436431 | Q79: 2892 | R79: 0.7612529613 | S79: 2779 | T79: 0.7345374449 | U79: 4049 | V79: 1.070220264 | W79: 3035 | X79: 0.8022026432
A80: Metropolitana | B80: Vitória | C80: 3631 | D80: 2463 | E80: 3833 | F80: 2555.333333 | G80: 1847 | H80: 0.7498984978 | I80: 854 | J80: 0.3342029742 | K80: 2480 | L80: 1.006902152 | M80: 2271 | N80: 0.922046285 | O80: 3027 | P80: 1.228989038 | Q80: 2473 | R80: 1.004060089 | S80: 1618 | T80: 0.6331854944 | U80: 2906 | V80: 1.137229324 | W80: 2232 | X80: 0.873467258
B82: Total Norte | C82: =SUMIF($A$3:$A$80,"Norte",C$3:C$80) -> 5803 | D82: =SUMIF($A$3:$A$80,"Norte",D$3:D$80) -> 4013 | E82: =SUMIF($A$3:$A$80,"Norte",E$3:E$80) -> 5789 | F82: =SUMIF($A$3:$A$80,"Norte",F$3:F$80) -> 3859.333333 | G82: =SUMIF($A$3:$A$80,"Norte",G$3:G$80) -> 2922 | H82: =G82/D82 -> 0.7281335659 | I82: =SUMIF($A$3:$A$80,"Norte",I$3:I$80) -> 1556 | J82: =I82/F82 -> 0.4031784419 | K82: =SUMIF($A$3:$A$80,"Norte",K$3:K$80) -> 3810 | L82: =K82/D82 -> 0.9494144032 | M82: =SUMIF($A$3:$A$80,"Norte",M$3:M$80) -> 3854 | N82: =M82/D82 -> 0.960378769 | O82: =SUMIF($A$3:$A$80,"Norte",O$3:O$80) -> 5534 | P82: =O82/D82 -> 1.379018191 | Q82: =SUMIF($A$3:$A$80,"Norte",Q$3:Q$80) -> 3425 | R82: =Q82/D82 -> 0.8534762023 | S82: =SUMIF($A$3:$A$80,"Norte",S$3:S$80) -> 2844 | T82: =S82/F82 -> 0.7369148385 | U82: =SUMIF($A$3:$A$80,"Norte",U$3:U$80) -> 5269 | V82: =U82/F82 -> 1.365261703 | W82: =SUMIF($A$3:$A$80,"Norte",W$3:W$80) -> 3405 | X82: =W82/F82 -> 0.8822767317
B83: Total Central | C83: =SUMIF($A$3:$A$80,"Central",C$3:C$80) -> 7122 | D83: =SUMIF($A$3:$A$80,"Central",D$3:D$80) -> 4911 | E83: =SUMIF($A$3:$A$80,"Central",E$3:E$80) -> 6843 | F83: =SUMIF($A$3:$A$80,"Central",F$3:F$80) -> 4562 | G83: =SUMIF($A$3:$A$80,"Central",G$3:G$80) -> 3529 | H83: =G83/D83 -> 0.7185909183 | I83: =SUMIF($A$3:$A$80,"Central",I$3:I$80) -> 1627 | J83: =I83/F83 -> 0.3566418238 | K83: =SUMIF($A$3:$A$80,"Central",K$3:K$80) -> 4296 | L83: =K83/D83 -> 0.8747709224 | M83: =SUMIF($A$3:$A$80,"Central",M$3:M$80) -> 4439 | N83: =M83/D83 -> 0.9038892283 | O83: =SUMIF($A$3:$A$80,"Central",O$3:O$80) -> 6751 | P83: =O83/D83 -> 1.37466911 | Q83: =SUMIF($A$3:$A$80,"Central",Q$3:Q$80) -> 4127 | R83: =Q83/D83 -> 0.8403583791 | S83: =SUMIF($A$3:$A$80,"Central",S$3:S$80) -> 3249 | T83: =S83/F83 -> 0.712187637 | U83: =SUMIF($A$3:$A$80,"Central",U$3:U$80) -> 6545 | V83: =U83/F83 -> 1.434677773 | W83: =SUMIF($A$3:$A$80,"Central",W$3:W$80) -> 3981 | X83: =W83/F83 -> 0.8726435774
B84: Total Metropolitana | C84: =SUMIF($A$3:$A$80,"Metropolitana",C$3:C$80) -> 29428 | D84: =SUMIF($A$3:$A$80,"Metropolitana",D$3:D$80) -> 20039 | E84: =SUMIF($A$3:$A$80,"Metropolitana",E$3:E$80) -> 30197 | F84: =SUMIF($A$3:$A$80,"Metropolitana",F$3:F$80) -> 20131.33333 | G84: =SUMIF($A$3:$A$80,"Metropolitana",G$3:G$80) -> 13928 | H84: =G84/D84 -> 0.6950446629 | I84: =SUMIF($A$3:$A$80,"Metropolitana",I$3:I$80) -> 6775 | J84: =I84/F84 -> 0.3365400536 | K84: =SUMIF($A$3:$A$80,"Metropolitana",K$3:K$80) -> 18715 | L84: =K84/D84 -> 0.9339288388 | M84: =SUMIF($A$3:$A$80,"Metropolitana",M$3:M$80) -> 18730 | N84: =M84/D84 -> 0.9346773791 | O84: =SUMIF($A$3:$A$80,"Metropolitana",O$3:O$80) -> 24518 | P84: =O84/D84 -> 1.223514147 | Q84: =SUMIF($A$3:$A$80,"Metropolitana",Q$3:Q$80) -> 17114 | R84: =Q84/D84 -> 0.8540346325 | S84: =SUMIF($A$3:$A$80,"Metropolitana",S$3:S$80) -> 14368 | T84: =S84/F84 -> 0.7137132828 | U84: =SUMIF($A$3:$A$80,"Metropolitana",U$3:U$80) -> 24163 | V84: =U84/F84 -> 1.200268239 | W84: =SUMIF($A$3:$A$80,"Metropolitana",W$3:W$80) -> 17613 | X84: =W84/F84 -> 0.8749047919
B85: Total Sul | C85: =SUMIF($A$3:$A$80,"sul",C$3:C$80) -> 8340 | D85: =SUMIF($A$3:$A$80,"sul",D$3:D$80) -> 5712 | E85: =SUMIF($A$3:$A$80,"sul",E$3:E$80) -> 8688 | F85: =SUMIF($A$3:$A$80,"sul",F$3:F$80) -> 5792 | G85: =SUMIF($A$3:$A$80,"sul",G$3:G$80) -> 4430 | H85: =G85/D85 -> 0.7755602241 | I85: =SUMIF($A$3:$A$80,"sul",I$3:I$80) -> 2055 | J85: =I85/F85 -> 0.3547997238 | K85: =SUMIF($A$3:$A$80,"sul",K$3:K$80) -> 5762 | L85: =K85/D85 -> 1.008753501 | M85: =SUMIF($A$3:$A$80,"sul",M$3:M$80) -> 5862 | N85: =M85/D85 -> 1.026260504 | O85: =SUMIF($A$3:$A$80,"sul",O$3:O$80) -> 8800 | P85: =O85/D85 -> 1.540616246 | Q85: =SUMIF($A$3:$A$80,"sul",Q$3:Q$80) -> 5266 | R85: =Q85/D85 -> 0.9219187675 | S85: =SUMIF($A$3:$A$80,"sul",S$3:S$80) -> 3848 | T85: =S85/F85 -> 0.6643646409 | U85: =SUMIF($A$3:$A$80,"sul",U$3:U$80) -> 8305 | V85: =U85/F85 -> 1.433874309 | W85: =SUMIF($A$3:$A$80,"sul",W$3:W$80) -> 5084 | X85: =W85/F85 -> 0.8777624309
B86: Total Espírito Santo | C86: =SUM(C3:C80) -> 50693 | D86: =SUM(D3:D80) -> 34675 | E86: =SUM(E3:E80) -> 51517 | F86: =SUM(F3:F80) -> 34344.66667 | G86: =SUM(G3:G80) -> 24809 | H86: =G86/D86 -> 0.7154722422 | I86: =SUM(I3:I80) -> 12013 | J86: =I86/F86 -> 0.3497777433 | K86: =SUM(K3:K80) -> 32583 | L86: =K86/D86 -> 0.939668349 | M86: =SUM(M3:M80) -> 32885 | N86: =M86/D86 -> 0.9483777938 | O86: =SUM(O3:O80) -> 45603 | P86: =O86/D86 -> 1.315155011 | Q86: =SUM(Q3:Q80) -> 29932 | R86: =Q86/D86 -> 0.8632155732 | S86: =SUM(S3:S80) -> 24309 | T86: =S86/F86 -> 0.707795485 | U86: =SUM(U3:U80) -> 44282 | V86: =U86/F86 -> 1.289341382 | W86: =SUM(W3:W80) -> 30083 | X86: =W86/F86 -> 0.8759147466
A90: Fonte: Vacina e Confia, em 10 de Setembro de 2024.**
A91: **Dados referente às doses aplicadas no período de Agosto de 2024
A92: Cobertura Calculada por município de procedência da vacinação
A93: 1 População anual extraída do MS/SVS/DASIS - SINASC/DASIS/SVS/MS 2023 (hoje preliminares) referente ao período de julho a dezembro de 2023 e SINASC/DASIS/SVS/MS 2024 referente ao período de janeiro a junho de 2024.
A94: ² População proporcional extraída do MS/SVS/DASIS - SINASC/DASIS/SVS/MS 2023 (hoje preliminares) referente ao período de julho e agosto de 2023 somada a população extraída do SINASC/DASIS/SVS/MS 2024 referente ao período de janeiro e junho de 2024.
A95: Sinasc, atualizado em 05 de Setembro de 2024.
A96: ³ População anual e proporcional extraída do Censo IBGE 2022.
A97: Observações:
A98: Imunobiológicos que foram recebidos parcialmente pelo estado no mês da análise, sendo distribuídos em quantidades reduzidas às regionais e municípios: Típlice Bacteriana (DTP),Varicela, Hepatite A - Rotina Pediátrica, COVID-19 Monovalente (XBB) - FRASCO .
A99: Imunobiológicos indisponíveis no mês da análise, não sendo possível a distribuição às regionais e municípios: Meningo C Conjugada, Tríplice Bacteriana Acelular (dTpa - CRIE).
A100: Imunobiológicos em falta e sem previsão de entrega: Febre Amarela, Varicela, Tríplice Viral (SCR), COVID-19 Monovalente (XBB) - FRASCO, Tríplice Bacteriana (DTP).

Sheet CV REF 1A e 4A - residência
G1: D2 | K1: REFORÇOS 1 ANO | S1: REFORÇOS 4 ANOS
A2: Regional | B2: Município | C2: ¹População 1 ano anual | D2: ²População 1 ano proporcional | E2: ³População 4 anos anual | F2: ³População 4 anos proporcional | G2: DOSES APLICADAS D2 TRÍPLICE VIRAL | H2: COBERTURA D2 TRÍPLICE VIRAL | I2: DOSES APLICADAS D2 VARICELA | J2: COBERTURA D2 VARICELA | K2: DOSES APLICADAS REF PNEUMO | L2: COBERTURA REF PNEUMO | M2: DOSES APLICADAS REF MENINGO | N2: COBERTURA REF MENINGO | O2: DOSES APLICADAS R1 POLIO | P2: COBERTURA R1 POLIO | Q2: DOSES APLICADAS R1 TRÍPLICE BACTERIANA | R2: COBERTURA R1 TRÍPLICE BACTERIANA | S2: DOSES APLICADAS REF FEBRE AMARELA | T2: COBERTURA REF FEBRE AMARELA | U2: DOSES APLICADAS R2 POLIO | V2: COBERTURA R2 POLIO | W2: DOSES APLICADAS R2 TRÍPLICE BACTERIANA | X2: COBERTURA R2 TRÍPLICE BACTERIANA
A3: Metropolitana | B3: Afonso Cláudio | C3: 383 | D3: 263 | E3: 416 | F3: =E3/12*8 -> 277.3333333 | G3: 252 | H3: =G3/D3 -> 0.9581749049 | I3: 90 | J3: =I3/F3 -> 0.3245192308 | K3: 249 | L3: =K3/D3 -> 0.9467680608 | M3: 251 | N3: =M3/D3 -> 0.9543726236 | O3: 577 | P3: =O3/D3 -> 2.19391635 | Q3: 262 | R3: =Q3/D3 -> 0.9961977186 | S3: 190 | T3: =S3/F3 -> 0.6850961538 | U3: 505 | V3: =U3/F3 -> 1.820913462 | W3: 216 | X3: =W3/F3 -> 0.7788461538
A4: Norte | B4: Água Doce do Norte | C4: 202 | D4: 152 | E4: 151 | F4: =E4/12*8 -> 100.6666667 | G4: 71 | H4: 0.4671052632 | I4: 36 | J4: 0.357615894 | K4: 107 | L4: 0.7039473684 | M4: 107 | N4: 0.7039473684 | O4: 146 | P4: 0.9605263158 | Q4: 87 | R4: 0.5723684211 | S4: 70 | T4: 0.6953642384 | U4: 138 | V4: 1.370860927 | W4: 84 | X4: 0.8344370861
A5: Central | B5: Águia Branca | C5: 172 | D5: 117 | E5: 129 | F5: 86 | G5: 75 | H5: 0.641025641 | I5: 27 | J5: 0.3139534884 | K5: 92 | L5: 0.7863247863 | M5: 94 | N5: 0.8034188034 | O5: 117 | P5: 1 | Q5: 92 | R5: 0.7863247863 | S5: 58 | T5: 0.6744186047 | U5: 109 | V5: 1.26744186 | W5: 77 | X5: 0.8953488372
A6: Sul | B6: Alegre | C6: 324 | D6: 213 | E6: 372 | F6: 248 | G6: 178 | H6: 0.8356807512 | I6: 100 | J6: 0.4032258065 | K6: 203 | L6: 0.9530516432 | M6: 207 | N6: 0.9718309859 | O6: 409 | P6: 1.920187793 | Q6: 199 | R6: 0.9342723005 | S6: 220 | T6: 0.8870967742 | U6: 464 | V6: 1.870967742 | W6: 240 | X6: 0.9677419355
A7: Sul | B7: Alfredo Chaves | C7: 139 | D7: 82 | E7: 138 | F7: 92 | G7: 66 | H7: 0.8048780488 | I7: 52 | J7: 0.5652173913 | K7: 95 | L7: 1.158536585 | M7: 97 | N7: 1.182926829 | O7: 184 | P7: 2.243902439 | Q7: 91 | R7: 1.109756098 | S7: 85 | T7: 0.9239130435 | U7: 245 | V7: 2.663043478 | W7: 102 | X7: 1.108695652
A8: Central | B8: Alto Rio Novo | C8: 88 | D8: 58 | E8: 102 | F8: 68 | G8: 53 | H8: 0.9137931034 | I8: 24 | J8: 0.3529411765 | K8: 65 | L8: 1.120689655 | M8: 63 | N8: 1.086206897 | O8: 91 | P8: 1.568965517 | Q8: 54 | R8: 0.9310344828 | S8: 48 | T8: 0.7058823529 | U8: 98 | V8: 1.441176471 | W8: 49 | X8: 0.7205882353
A9: Sul | B9: Anchieta | C9: 374 | D9: 255 | E9: 390 | F9: 260 | G9: 213 | H9: 0.8352941176 | I9: 110 | J9: 0.4230769231 | K9: 289 | L9: 1.133333333 | M9: 283 | N9: 1.109803922 | O9: 475 | P9: 1.862745098 | Q9: 270 | R9: 1.058823529 | S9: 210 | T9: 0.8076923077 | U9: 480 | V9: 1.846153846 | W9: 282 | X9: 1.084615385
A10: Sul | B10: Apiacá | C10: 66 | D10: 46 | E10: 90 | F10: 60 | G10: 21 | H10: 0.4565217391 | I10: 24 | J10: 0.4 | K10: 41 | L10: 0.8913043478 | M10: 47 | N10: 1.02173913 | O10: 58 | P10: 1.260869565 | Q10: 29 | R10: 0.6304347826 | S10: 12 | T10: 0.2 | U10: 84 | V10: 1.4 | W10: 48 | X10: 0.8
A11: Metropolitana | B11: Aracruz | C11: 1425 | D11: 951 | E11: 1420 | F11: 946.6666667 | G11: 811 | H11: 0.8527865405 | I11: 406 | J11: 0.4288732394 | K11: 1002 | L11: 1.05362776 | M11: 1033 | N11: 1.086225026 | O11: 1503 | P11: 1.58044164 | Q11: 938 | R11: 0.9863301788 | S11: 641 | T11: 0.6771126761 | U11: 1280 | V11: 1.352112676 | W11: 831 | X11: 0.8778169014
A12: Sul | B12: Atilio Vivacqua | C12: 136 | D12: 91 | E12: 138 | F12: 92 | G12: 67 | H12: 0.7362637363 | I12: 32 | J12: 0.347826087 | K12: 100 | L12: 1.098901099 | M12: 100 | N12: 1.098901099 | O12: 168 | P12: 1.846153846 | Q12: 93 | R12: 1.021978022 | S12: 66 | T12: 0.7173913043 | U12: 125 | V12: 1.358695652 | W12: 80 | X12: 0.8695652174
A13: Central | B13: Baixo Guandu | C13: 392 | D13: 251 | E13: 427 | F13: 284.6666667 | G13: 227 | H13: 0.9043824701 | I13: 105 | J13: 0.368852459 | K13: 230 | L13: 0.9163346614 | M13: 238 | N13: 0.9482071713 | O13: 481 | P13: 1.916334661 | Q13: 260 | R13: 1.035856574 | S13: 195 | T13: 0.6850117096 | U13: 451 | V13: 1.584309133 | W13: 240 | X13: 0.8430913349
A14: Norte | B14: Barra de São Francisco | C14: 545 | D14: 380 | E14: 589 | F14: 392.6666667 | G14: 337 | H14: 0.8868421053 | I14: 156 | J14: 0.3972835314 | K14: 359 | L14: 0.9447368421 | M14: 359 | N14: 0.9447368421 | O14: 533 | P14: 1.402631579 | Q14: 329 | R14: 0.8657894737 | S14: 298 | T14: 0.7589134126 | U14: 438 | V14: 1.115449915 | W14: 310 | X14: 0.7894736842
A15: Norte | B15: Boa Esperança | C15: 205 | D15: 139 | E15: 200 | F15: 133.3333333 | G15: 84 | H15: 0.6043165468 | I15: 54 | J15: 0.405 | K15: 136 | L15: 0.9784172662 | M15: 141 | N15: 1.014388489 | O15: 248 | P15: 1.784172662 | Q15: 135 | R15: 0.9712230216 | S15: 94 | T15: 0.705 | U15: 206 | V15: 1.545 | W15: 121 | X15: 0.9075
A16: Sul | B16: Bom Jesus do Norte | C16: 89 | D16: 65 | E16: 146 | F16: 97.33333333 | G16: 29 | H16: 0.4461538462 | I16: 16 | J16: 0.1643835616 | K16: 80 | L16: 1.230769231 | M16: 79 | N16: 1.215384615 | O16: 97 | P16: 1.492307692 | Q16: 52 | R16: 0.8 | S16: 35 | T16: 0.3595890411 | U16: 80 | V16: 0.8219178082 | W16: 41 | X16: 0.4212328767
A17: Metropolitana | B17: Brejetuba | C17: 204 | D17: 137 | E17: 169 | F17: 112.6666667 | G17: 137 | H17: 1 | I17: 54 | J17: 0.4792899408 | K17: 141 | L17: 1.02919708 | M17: 144 | N17: 1.051094891 | O17: 270 | P17: 1.97080292 | Q17: 137 | R17: 1 | S17: 122 | T17: 1.082840237 | U17: 280 | V17: 2.485207101 | W17: 139 | X17: 1.233727811
A18: Sul | B18: Cachoeiro de Itapemirim | C18: 2416 | D18: 1690 | E18: 2417 | F18: 1611.333333 | G18: 1239 | H18: 0.7331360947 | I18: 565 | J18: 0.3506412909 | K18: 1623 | L18: 0.9603550296 | M18: 1656 | N18: 0.9798816568 | O18: 2247 | P18: 1.329585799 | Q18: 1508 | R18: 0.8923076923 | S18: 952 | T18: 0.59081506 | U18: 1855 | V18: 1.151220521 | W18: 1328 | X18: 0.8241621845
A19: Metropolitana | B19: Cariacica | C19: 4860 | D19: 3332 | E19: 5005 | F19: 3336.666667 | G19: 2175 | H19: 0.6527611044 | I19: 1178 | J19: 0.353046953 | K19: 3167 | L19: 0.9504801921 | M19: 3188 | N19: 0.9567827131 | O19: 3927 | P19: 1.178571429 | Q19: 2872 | R19: 0.8619447779 | S19: 2325 | T19: 0.6968031968 | U19: 3900 | V19: 1.168831169 | W19: 3031 | X19: 0.9083916084
A20: Sul | B20: Castelo | C20: 444 | D20: 301 | E20: 399 | F20: 266 | G20: 258 | H20: 0.8571428571 | I20: 103 | J20: 0.3872180451 | K20: 299 | L20: 0.9933554817 | M20: 294 | N20: 0.976744186 | O20: 541 | P20: 1.797342193 | Q20: 283 | R20: 0.9401993355 | S20: 181 | T20: 0.6804511278 | U20: 447 | V20: 1.680451128 | W20: 248 | X20: 0.9323308271
A21: Central | B21: Colatina | C21: 1525 | D21: 1055 | E21: 1561 | F21: 1040.666667 | G21: 766 | H21: 0.7260663507 | I21: 282 | J21: 0.2709801409 | K21: 950 | L21: 0.9004739336 | M21: 1005 | N21: 0.9526066351 | O21: 1220 | P21: 1.156398104 | Q21: 874 | R21: 0.828436019 | S21: 544 | T21: 0.5227418322 | U21: 999 | V21: 0.9599615631 | W21: 709 | X21: 0.6812940423
A22: Norte | B22: Conceição da Barra | C22: 381 | D22: 254 | E22: 391 | F22: 260.6666667 | G22: 210 | H22: 0.8267716535 | I22: 110 | J22: 0.4219948849 | K22: 281 | L22: 1.106299213 | M22: 281 | N22: 1.106299213 | O22: 507 | P22: 1.996062992 | Q22: 266 | R22: 1.047244094 | S22: 212 | T22: 0.8132992327 | U22: 499 | V22: 1.914322251 | W22: 297 | X22: 1.139386189
A23: Metropolitana | B23: Conceição do Castelo | C23: 152 | D23: 109 | E23: 144 | F23: 96 | G23: 83 | H23: 0.7614678899 | I23: 48 | J23: 0.5 | K23: 79 | L23: 0.7247706422 | M23: 85 | N23: 0.7798165138 | O23: 171 | P23: 1.568807339 | Q23: 85 | R23: 0.7798165138 | S23: 72 | T23: 0.75 | U23: 191 | V23: 1.989583333 | W23: 81 | X23: 0.84375
A24: Sul | B24: Divino de São Lourenço | C24: 69 | D24: 46 | E24: 68 | F24: 45.33333333 | G24: 28 | H24: 0.6086956522 | I24: 21 | J24: 0.4632352941 | K24: 37 | L24: 0.8043478261 | M24: 38 | N24: 0.8260869565 | O24: 66 | P24: 1.434782609 | Q24: 33 | R24: 0.7173913043 | S24: 45 | T24: 0.9926470588 | U24: 73 | V24: 1.610294118 | W24: 45 | X24: 0.9926470588
A25: Metropolitana | B25: Domingos Martins | C25: 409 | D25: 270 | E25: 411 | F25: 274 | G25: 227 | H25: 0.8407407407 | I25: 139 | J25: 0.5072992701 | K25: 278 | L25: 1.02962963 | M25: 267 | N25: 0.9888888889 | O25: 514 | P25: 1.903703704 | Q25: 285 | R25: 1.055555556 | S25: 217 | T25: 0.7919708029 | U25: 483 | V25: 1.762773723 | W25: 263 | X25: 0.9598540146
A26: Sul | B26: Dores do Rio Preto | C26: 97 | D26: 68 | E26: 92 | F26: 61.33333333 | G26: 37 | H26: 0.5441176471 | I26: 15 | J26: 0.2445652174 | K26: 73 | L26: 1.073529412 | M26: 72 | N26: 1.058823529 | O26: 98 | P26: 1.441176471 | Q26: 56 | R26: 0.8235294118 | S26: 33 | T26: 0.5380434783 | U26: 66 | V26: 1.076086957 | W26: 37 | X26: 0.6032608696
A27: Norte | B27: Ecoporanga | C27: 265 | D27: 189 | E27: 283 | F27: 188.6666667 | G27: 158 | H27: 0.835978836 | I27: 87 | J27: 0.461130742 | K27: 178 | L27: 0.9417989418 | M27: 183 | N27: 0.9682539683 | O27: 272 | P27: 1.439153439 | Q27: 170 | R27: 0.8994708995 | S27: 164 | T27: 0.8692579505 | U27: 252 | V27: 1.335689046 | W27: 176 | X27: 0.9328621908
A28: Metropolitana | B28: Fundão | C28: 222 | D28: 158 | E28: 218 | F28: 145.3333333 | G28: 124 | H28: 0.7848101266 | I28: 58 | J28: 0.3990825688 | K28: 143 | L28: 0.9050632911 | M28: 148 | N28: 0.9367088608 | O28: 236 | P28: 1.493670886 | Q28: 134 | R28: 0.8481012658 | S28: 88 | T28: 0.6055045872 | U28: 166 | V28: 1.142201835 | W28: 110 | X28: 0.7568807339
A29: Central | B29: Governador Lindenberg | C29: 128 | D29: 82 | E29: 142 | F29: 94.66666667 | G29: 65 | H29: 0.7926829268 | I29: 47 | J29: 0.4964788732 | K29: 95 | L29: 1.158536585 | M29: 95 | N29: 1.158536585 | O29: 148 | P29: 1.804878049 | Q29: 77 | R29: 0.9390243902 | S29: 78 | T29: 0.823943662 | U29: 147 | V29: 1.552816901 | W29: 91 | X29: 0.9612676056
A30: Sul | B30: Guaçuí | C30: 394 | D30: 265 | E30: 407 | F30: 271.3333333 | G30: 205 | H30: 0.7735849057 | I30: 67 | J30: 0.2469287469 | K30: 291 | L30: 1.098113208 | M30: 291 | N30: 1.098113208 | O30: 457 | P30: 1.724528302 | Q30: 261 | R30: 0.9849056604 | S30: 174 | T30: 0.6412776413 | U30: 357 | V30: 1.315724816 | W30: 211 | X30: 0.7776412776
A31: Metropolitana | B31: Guarapari | C31: 1606 | D31: 1058 | E31: 1557 | F31: 1038 | G31: 747 | H31: 0.7060491493 | I31: 376 | J31: 0.3622350674 | K31: 1112 | L31: 1.051039698 | M31: 1102 | N31: 1.041587902 | O31: 1399 | P31: 1.322306238 | Q31: 981 | R31: 0.927221172 | S31: 616 | T31: 0.5934489403 | U31: 1184 | V31: 1.140655106 | W31: 898 | X31: 0.8651252408
A32: Metropolitana | B32: Ibatiba | C32: 362 | D32: 247 | E32: 354 | F32: 236 | G32: 195 | H32: 0.7894736842 | I32: 65 | J32: 0.2754237288 | K32: 258 | L32: 1.044534413 | M32: 259 | N32: 1.048582996 | O32: 365 | P32: 1.477732794 | Q32: 227 | R32: 0.9190283401 | S32: 163 | T32: 0.6906779661 | U32: 271 | V32: 1.148305085 | W32: 194 | X32: 0.8220338983
A33: Metropolitana | B33: Ibiraçu | C33: 159 | D33: 117 | E33: 160 | F33: 106.6666667 | G33: 52 | H33: 0.4444444444 | I33: 49 | J33: 0.459375 | K33: 99 | L33: 0.8461538462 | M33: 98 | N33: 0.8376068376 | O33: 164 | P33: 1.401709402 | Q33: 71 | R33: 0.6068376068 | S33: 86 | T33: 0.80625 | U33: 221 | V33: 2.071875 | W33: 103 | X33: 0.965625
A34: Sul | B34: Ibitirama | C34: 143 | D34: 97 | E34: 148 | F34: 98.66666667 | G34: 68 | H34: 0.7010309278 | I34: 29 | J34: 0.2939189189 | K34: 86 | L34: 0.8865979381 | M34: 90 | N34: 0.9278350515 | O34: 141 | P34: 1.453608247 | Q34: 86 | R34: 0.8865979381 | S34: 44 | T34: 0.4459459459 | U34: 133 | V34: 1.347972973 | W34: 57 | X34: 0.5777027027
A35: Sul | B35: Iconha | C35: 116 | D35: 79 | E35: 156 | F35: 104 | G35: 86 | H35: =G35/D35 -> 1.088607595 | I35: 28 | J35: =I35/F35 -> 0.2692307692 | K35: 98 | L35: =K35/D35 -> 1.240506329 | M35: 106 | N35: =M35/D35 -> 1.341772152 | O35: 133 | P35: =O35/D35 -> 1.683544304 | Q35: 83 | R35: =Q35/D35 -> 1.050632911 | S35: 80 | T35: =S35/F35 -> 0.7692307692 | U35: 125 | V35: =U35/F35 -> 1.201923077 | W35: 86 | X35: =W35/F35 -> 0.8269230769
A36: Sul | B36: Irupi | C36: 207 | D36: 147 | E36: 200 | F36: 133.3333333 | G36: 118 | H36: 0.8027210884 | I36: 48 | J36: 0.36 | K36: 149 | L36: 1.013605442 | M36: 151 | N36: 1.027210884 | O36: 223 | P36: 1.517006803 | Q36: 131 | R36: 0.8911564626 | S36: 130 | T36: 0.975 | U36: 214 | V36: 1.605 | W36: 144 | X36: 1.08
A37: Metropolitana | B37: Itaguaçu | C37: 138 | D37: 98 | E37: 154 | F37: 102.6666667 | G37: 103 | H37: 1.051020408 | I37: 43 | J37: 0.4188311688 | K37: 102 | L37: 1.040816327 | M37: 105 | N37: 1.071428571 | O37: 192 | P37: 1.959183673 | Q37: 99 | R37: 1.010204082 | S37: 78 | T37: 0.7597402597 | U37: 169 | V37: 1.646103896 | W37: 91 | X37: 0.8863636364
A38: Sul | B38: Itapemirim | C38: 543 | D38: 354 | E38: 556 | F38: 370.6666667 | G38: 262 | H38: 0.7401129944 | I38: 129 | J38: 0.3480215827 | K38: 337 | L38: 0.9519774011 | M38: 342 | N38: 0.9661016949 | O38: 525 | P38: 1.483050847 | Q38: 327 | R38: 0.9237288136 | S38: 183 | T38: 0.493705036 | U38: 492 | V38: 1.327338129 | W38: 334 | X38: 0.9010791367
A39: Metropolitana | B39: Itarana | C39: 141 | D39: 101 | E39: 128 | F39: 85.33333333 | G39: 60 | H39: 0.5940594059 | I39: 48 | J39: 0.5625 | K39: 85 | L39: 0.8415841584 | M39: 87 | N39: 0.8613861386 | O39: 150 | P39: 1.485148515 | Q39: 69 | R39: 0.6831683168 | S39: 67 | T39: 0.78515625 | U39: 161 | V39: 1.88671875 | W39: 78 | X39: 0.9140625
A40: Sul | B40: Iúna | C40: 481 | D40: 314 | E40: 410 | F40: 273.3333333 | G40: 233 | H40: 0.7420382166 | I40: 85 | J40: 0.3109756098 | K40: 305 | L40: 0.9713375796 | M40: 322 | N40: 1.025477707 | O40: 423 | P40: 1.347133758 | Q40: 259 | R40: 0.8248407643 | S40: 171 | T40: 0.6256097561 | U40: 389 | V40: 1.423170732 | W40: 220 | X40: 0.8048780488
A41: Norte | B41: Jaguaré | C41: 472 | D41: 321 | E41: 445 | F41: 296.6666667 | G41: 238 | H41: 0.7414330218 | I41: 115 | J41: 0.3876404494 | K41: 332 | L41: 1.034267913 | M41: 329 | N41: 1.024922118 | O41: 513 | P41: 1.598130841 | Q41: 304 | R41: 0.9470404984 | S41: 255 | T41: 0.8595505618 | U41: 506 | V41: 1.705617978 | W41: 318 | X41: 1.071910112
A42: Sul | B42: Jerônimo Monteiro | C42: 153 | D42: 102 | E42: 157 | F42: 104.6666667 | G42: 95 | H42: 0.931372549 | I42: 29 | J42: 0.2770700637 | K42: 106 | L42: 1.039215686 | M42: 111 | N42: 1.088235294 | O42: 166 | P42: 1.62745098 | Q42: 104 | R42: 1.019607843 | S42: 73 | T42: 0.6974522293 | U42: 144 | V42: 1.375796178 | W42: 86 | X42: 0.821656051
A43: Metropolitana | B43: João Neiva | C43: 164 | D43: 111 | E43: 142 | F43: 94.66666667 | G43: 97 | H43: 0.8738738739 | I43: 40 | J43: 0.4225352113 | K43: 124 | L43: 1.117117117 | M43: 127 | N43: 1.144144144 | O43: 177 | P43: 1.594594595 | Q43: 105 | R43: 0.9459459459 | S43: 78 | T43: 0.823943662 | U43: 152 | V43: 1.605633803 | W43: 92 | X43: 0.9718309859
A44: Metropolitana | B44: Laranja da Terra | C44: 87 | D44: 62 | E44: 133 | F44: 88.66666667 | G44: 78 | H44: 1.258064516 | I44: 53 | J44: 0.5977443609 | K44: 82 | L44: 1.322580645 | M44: 86 | N44: 1.387096774 | O44: 177 | P44: 2.85483871 | Q44: 81 | R44: 1.306451613 | S44: 75 | T44: 0.8458646617 | U44: 168 | V44: 1.894736842 | W44: 76 | X44: 0.8571428571
A45: Central | B45: Linhares | C45: 2621 | D45: 1822 | E45: 2452 | F45: 1634.666667 | G45: 1196 | H45: 0.6564215148 | I45: 591 | J45: 0.3615415987 | K45: 1483 | L45: 0.8139407245 | M45: 1529 | N45: 0.8391877058 | O45: 2372 | P45: 1.301866081 | Q45: 1486 | R45: 0.8155872667 | S45: 1062 | T45: 0.6496737357 | U45: 2217 | V45: 1.356239804 | W45: 1507 | X45: 0.9219004894
A46: Central | B46: Mantenópolis | C46: 153 | D46: 106 | E46: 166 | F46: 110.6666667 | G46: 84 | H46: 0.7924528302 | I46: 45 | J46: 0.406626506 | K46: 118 | L46: 1.113207547 | M46: 116 | N46: 1.094339623 | O46: 173 | P46: 1.632075472 | Q46: 100 | R46: 0.9433962264 | S46: 84 | T46: 0.7590361446 | U46: 154 | V46: 1.391566265 | W46: 94 | X46: 0.8493975904
A47: Sul | B47: Marataízes | C47: 552 | D47: 394 | E47: 579 | F47: 386 | G47: 280 | H47: 0.7106598985 | I47: 134 | J47: 0.3471502591 | K47: 401 | L47: 1.017766497 | M47: 408 | N47: 1.035532995 | O47: 510 | P47: 1.294416244 | Q47: 351 | R47: 0.8908629442 | S47: 190 | T47: 0.4922279793 | U47: 482 | V47: 1.248704663 | W47: 337 | X47: 0.8730569948
A48: Metropolitana | B48: Marechal Floriano | C48: 221 | D48: 139 | E48: 236 | F48: 157.3333333 | G48: 119 | H48: 0.8561151079 | I48: 76 | J48: 0.4830508475 | K48: 145 | L48: 1.043165468 | M48: 142 | N48: 1.021582734 | O48: 231 | P48: 1.661870504 | Q48: 141 | R48: 1.014388489 | S48: 101 | T48: 0.6419491525 | U48: 212 | V48: 1.347457627 | W48: 116 | X48: 0.7372881356
A49: Central | B49: Marilândia | C49: 163 | D49: 112 | E49: 164 | F49: 109.3333333 | G49: 87 | H49: 0.7767857143 | I49: 51 | J49: 0.4664634146 | K49: 103 | L49: 0.9196428571 | M49: 104 | N49: 0.9285714286 | O49: 185 | P49: 1.651785714 | Q49: 98 | R49: 0.875 | S49: 81 | T49: 0.7408536585 | U49: 184 | V49: 1.682926829 | W49: 92 | X49: 0.8414634146
A50: Sul | B50: Mimoso do Sul | C50: 266 | D50: 181 | E50: 276 | F50: 184 | G50: 114 | H50: 0.6298342541 | I50: 108 | J50: 0.5869565217 | K50: 147 | L50: 0.8121546961 | M50: 158 | N50: 0.8729281768 | O50: 218 | P50: 1.20441989 | Q50: 129 | R50: 0.7127071823 | S50: 149 | T50: 0.8097826087 | U50: 255 | V50: 1.385869565 | W50: 163 | X50: 0.8858695652
A51: Norte | B51: Montanha | C51: 239 | D51: 165 | E51: 278 | F51: 185.3333333 | G51: 152 | H51: 0.9212121212 | I51: 82 | J51: 0.4424460432 | K51: 170 | L51: 1.03030303 | M51: 177 | N51: 1.072727273 | O51: 300 | P51: 1.818181818 | Q51: 167 | R51: 1.012121212 | S51: 151 | T51: 0.8147482014 | U51: 308 | V51: 1.661870504 | W51: 165 | X51: 0.8902877698
A52: Norte | B52: Mucurici | C52: 77 | D52: 47 | E52: 97 | F52: 64.66666667 | G52: 45 | H52: 0.9574468085 | I52: 31 | J52: 0.4793814433 | K52: 61 | L52: 1.29787234 | M52: 61 | N52: 1.29787234 | O52: 65 | P52: 1.382978723 | Q52: 45 | R52: 0.9574468085 | S52: 48 | T52: 0.7422680412 | U52: 84 | V52: 1.298969072 | W52: 52 | X52: 0.8041237113
A53: Sul | B53: Muniz Freire | C53: 213 | D53: 145 | E53: 275 | F53: 183.3333333 | G53: 147 | H53: 1.013793103 | I53: 38 | J53: 0.2072727273 | K53: 165 | L53: 1.137931034 | M53: 164 | N53: 1.131034483 | O53: 278 | P53: 1.917241379 | Q53: 151 | R53: 1.04137931 | S53: 160 | T53: 0.8727272727 | U53: 336 | V53: 1.832727273 | W53: 173 | X53: 0.9436363636
A54: Sul | B54: Muqui | C54: 163 | D54: 118 | E54: 152 | F54: 101.3333333 | G54: 85 | H54: 0.7203389831 | I54: 47 | J54: 0.4638157895 | K54: 121 | L54: 1.025423729 | M54: 124 | N54: 1.050847458 | O54: 220 | P54: 1.86440678 | Q54: 92 | R54: 0.7796610169 | S54: 66 | T54: 0.6513157895 | U54: 176 | V54: 1.736842105 | W54: 74 | X54: 0.7302631579
A55: Norte | B55: Nova Venécia | C55: 653 | D55: 465 | E55: 656 | F55: 437.3333333 | G55: 404 | H55: 0.8688172043 | I55: 144 | J55: 0.3292682927 | K55: 470 | L55: 1.010752688 | M55: 475 | N55: 1.021505376 | O55: 653 | P55: 1.404301075 | Q55: 416 | R55: 0.8946236559 | S55: 319 | T55: 0.7294207317 | U55: 556 | V55: 1.271341463 | W55: 370 | X55: 0.8460365854
A56: Central | B56: Pancas | C56: 210 | D56: 145 | E56: 244 | F56: 162.6666667 | G56: 145 | H56: 1 | I56: 52 | J56: 0.3196721311 | K56: 159 | L56: 1.096551724 | M56: 163 | N56: 1.124137931 | O56: 279 | P56: 1.924137931 | Q56: 145 | R56: 1 | S56: 121 | T56: 0.743852459 | U56: 254 | V56: 1.56147541 | W56: 135 | X56: 0.8299180328
A57: Norte | B57: Pedro Canário | C57: 323 | D57: 231 | E57: 338 | F57: 225.3333333 | G57: 198 | H57: 0.8571428571 | I57: 110 | J57: 0.4881656805 | K57: 249 | L57: 1.077922078 | M57: 247 | N57: 1.069264069 | O57: 390 | P57: 1.688311688 | Q57: 252 | R57: 1.090909091 | S57: 162 | T57: 0.7189349112 | U57: 339 | V57: 1.50443787 | W57: 210 | X57: 0.9319526627
A58: Norte | B58: Pinheiros | C58: 326 | D58: 222 | E58: 383 | F58: 255.3333333 | G58: 138 | H58: 0.6216216216 | I58: 98 | J58: 0.3838120104 | K58: 207 | L58: 0.9324324324 | M58: 206 | N58: 0.9279279279 | O58: 282 | P58: 1.27027027 | Q58: 178 | R58: 0.8018018018 | S58: 166 | T58: 0.6501305483 | U58: 275 | V58: 1.077023499 | W58: 191 | X58: 0.7480417755
A59: Sul | B59: Piúma | C59: 291 | D59: 193 | E59: 311 | F59: 207.3333333 | G59: 131 | H59: 0.6787564767 | I59: 61 | J59: 0.2942122186 | K59: 186 | L59: 0.9637305699 | M59: 177 | N59: 0.9170984456 | O59: 298 | P59: 1.544041451 | Q59: 183 | R59: 0.9481865285 | S59: 121 | T59: 0.5836012862 | U59: 263 | V59: 1.268488746 | W59: 185 | X59: 0.8922829582
A60: Norte | B60: Ponto Belo | C60: 77 | D60: 50 | E60: 85 | F60: 56.66666667 | G60: 43 | H60: 0.86 | I60: 21 | J60: 0.3705882353 | K60: 56 | L60: 1.12 | M60: 59 | N60: 1.18 | O60: 111 | P60: 2.22 | Q60: 55 | R60: 1.1 | S60: 44 | T60: 0.7764705882 | U60: 96 | V60: 1.694117647 | W60: 49 | X60: 0.8647058824
A61: Sul | B61: Presidente Kennedy | C61: 191 | D61: 137 | E61: 239 | F61: 159.3333333 | G61: 134 | H61: 0.9781021898 | I61: 59 | J61: 0.370292887 | K61: 159 | L61: 1.160583942 | M61: 158 | N61: 1.153284672 | O61: 267 | P61: 1.948905109 | Q61: 143 | R61: 1.04379562 | S61: 137 | T61: 0.859832636 | U61: 240 | V61: 1.506276151 | W61: 146 | X61: 0.9163179916
A62: Central | B62: Rio Bananal | C62: 281 | D62: 197 | E62: 229 | F62: 152.6666667 | G62: 184 | H62: 0.9340101523 | I62: 70 | J62: 0.4585152838 | K62: 192 | L62: 0.9746192893 | M62: 208 | N62: 1.055837563 | O62: 406 | P62: 2.060913706 | Q62: 193 | R62: 0.9796954315 | S62: 186 | T62: 1.218340611 | U62: 380 | V62: 2.489082969 | W62: 187 | X62: 1.22489083
A63: Sul | B63: Rio Novo do Sul | C63: 111 | D63: 71 | E63: 144 | F63: 96 | G63: 64 | H63: 0.9014084507 | I63: 54 | J63: 0.5625 | K63: 82 | L63: 1.154929577 | M63: 86 | N63: 1.211267606 | O63: 136 | P63: 1.915492958 | Q63: 75 | R63: 1.056338028 | S63: 68 | T63: 0.7083333333 | U63: 153 | V63: 1.59375 | W63: 85 | X63: 0.8854166667
A64: Metropolitana | B64: Santa Leopoldina | C64: 100 | D64: 62 | E64: 155 | F64: 103.3333333 | G64: 46 | H64: 0.7419354839 | I64: 21 | J64: 0.2032258065 | K64: 88 | L64: 1.419354839 | M64: 87 | N64: 1.403225806 | O64: 139 | P64: 2.241935484 | Q64: 77 | R64: 1.241935484 | S64: 70 | T64: 0.6774193548 | U64: 155 | V64: 1.5 | W64: 89 | X64: 0.8612903226
A65: Metropolitana | B65: Santa Maria de Jetibá | C65: 612 | D65: 396 | E65: 685 | F65: 456.6666667 | G65: 385 | H65: 0.9722222222 | I65: 147 | J65: 0.3218978102 | K65: 419 | L65: 1.058080808 | M65: 428 | N65: 1.080808081 | O65: 708 | P65: 1.787878788 | Q65: 432 | R65: 1.090909091 | S65: 291 | T65: 0.6372262774 | U65: 571 | V65: 1.250364964 | W65: 376 | X65: 0.8233576642
A66: Metropolitana | B66: Santa Teresa | C66: 308 | D66: 212 | E66: 260 | F66: 173.3333333 | G66: 138 | H66: 0.6509433962 | I66: 111 | J66: 0.6403846154 | K66: 196 | L66: 0.9245283019 | M66: 203 | N66: 0.9575471698 | O66: 288 | P66: 1.358490566 | Q66: 148 | R66: 0.6981132075 | S66: 157 | T66: 0.9057692308 | U66: 290 | V66: 1.673076923 | W66: 161 | X66: 0.9288461538
A67: Central | B67: São Domingos do Norte | C67: 115 | D67: 74 | E67: 117 | F67: 78 | G67: 63 | H67: =G67/D67 -> 0.8513513514 | I67: 30 | J67: =I67/F67 -> 0.3846153846 | K67: 77 | L67: =K67/D67 -> 1.040540541 | M67: 79 | N67: =M67/D67 -> 1.067567568 | O67: 99 | P67: =O67/D67 -> 1.337837838 | Q67: 62 | R67: =Q67/D67 -> 0.8378378378 | S67: 68 | T67: =S67/F67 -> 0.8717948718 | U67: 107 | V67: =U67/F67 -> 1.371794872 | W67: 72 | X67: =W67/F67 -> 0.9230769231
A68: Central | B68: São Gabriel da Palha | C68: 464 | D68: 320 | E68: 426 | F68: =E68/12*8 -> 284 | G68: 213 | H68: 0.665625 | I68: 114 | J68: 0.4014084507 | K68: 254 | L68: 0.79375 | M68: 255 | N68: 0.796875 | O68: 380 | P68: 1.1875 | Q68: 223 | R68: 0.696875 | S68: 255 | T68: 0.8978873239 | U68: 440 | V68: 1.549295775 | W68: 259 | X68: 0.911971831
A69: Sul | B69: São José do Calçado | C69: 101 | D69: 78 | E69: 150 | F69: 100 | G69: 72 | H69: 0.9230769231 | I69: 29 | J69: 0.29 | K69: 92 | L69: 1.179487179 | M69: 90 | N69: 1.153846154 | O69: 110 | P69: 1.41025641 | Q69: 78 | R69: 1 | S69: 85 | T69: 0.85 | U69: 134 | V69: 1.34 | W69: 88 | X69: 0.88
A70: Norte | B70: São Mateus | C70: 1947 | D70: 1333 | E70: 1766 | F70: 1177.333333 | G70: 766 | H70: 0.5746436609 | I70: 453 | J70: 0.3847678369 | K70: 1131 | L70: 0.8484621155 | M70: 1157 | N70: 0.8679669917 | O70: 1456 | P70: 1.092273068 | Q70: 953 | R70: 0.7149287322 | S70: 741 | T70: 0.6293884485 | U70: 1311 | V70: 1.113533409 | W70: 927 | X70: 0.7873725934
A71: Central | B71: São Roque do Canaã | C71: 123 | D71: 96 | E71: 100 | F71: 66.66666667 | G71: 73 | H71: 0.7604166667 | I71: 42 | J71: 0.63 | K71: 86 | L71: 0.8958333333 | M71: 87 | N71: 0.90625 | O71: 156 | P71: 1.625 | Q71: 85 | R71: 0.8854166667 | S71: 59 | T71: 0.885 | U71: 149 | V71: 2.235 | W71: 65 | X71: 0.975
A72: Metropolitana | B72: Serra | C72: 7293 | D72: 5065 | E72: 7550 | F72: 5033.333333 | G72: 3230 | H72: 0.637709773 | I72: 1383 | J72: 0.2747682119 | K72: 4380 | L72: 0.8647581441 | M72: 4388 | N72: 0.8663376111 | O72: 5298 | P72: 1.046001974 | Q72: 4001 | R72: 0.7899308983 | S72: 3712 | T72: 0.7374834437 | U72: 5360 | V72: 1.064900662 | W72: 4416 | X72: 0.8773509934
A73: Central | B73: Sooretama | C73: 433 | D73: 304 | E73: 415 | F73: 276.6666667 | G73: 202 | H73: 0.6644736842 | I73: 121 | J73: 0.4373493976 | K73: 269 | L73: 0.8848684211 | M73: 274 | N73: 0.9013157895 | O73: 494 | P73: 1.625 | Q73: 251 | R73: 0.8256578947 | S73: 290 | T73: 1.048192771 | U73: 618 | V73: 2.23373494 | W73: 292 | X73: 1.055421687
A74: Sul | B74: Vargem Alta | C74: 261 | D74: 180 | E74: 278 | F74: 185.3333333 | G74: 160 | H74: 0.8888888889 | I74: 69 | J74: 0.3723021583 | K74: 177 | L74: 0.9833333333 | M74: 178 | N74: 0.9888888889 | O74: 324 | P74: 1.8 | Q74: 172 | R74: 0.9555555556 | S74: 121 | T74: 0.6528776978 | U74: 325 | V74: 1.753597122 | W74: 162 | X74: 0.8741007194
A75: Metropolitana | B75: Venda Nova do Imigrante | C75: 377 | D75: 254 | E75: 328 | F75: 218.6666667 | G75: 241 | H75: 0.9488188976 | I75: 66 | J75: 0.3018292683 | K75: 275 | L75: 1.082677165 | M75: 273 | N75: 1.07480315 | O75: 536 | P75: 2.11023622 | Q75: 261 | R75: 1.027559055 | S75: 165 | T75: 0.7545731707 | U75: 385 | V75: 1.760670732 | W75: 181 | X75: 0.8277439024
A76: Metropolitana | B76: Viana | C76: 938 | D76: 635 | E76: 1064 | F76: 709.3333333 | G76: 309 | H76: 0.4866141732 | I76: 231 | J76: 0.3256578947 | K76: 667 | L76: 1.050393701 | M76: 674 | N76: 1.061417323 | O76: 777 | P76: 1.223622047 | Q76: 555 | R76: 0.874015748 | S76: 523 | T76: 0.7373120301 | U76: 898 | V76: 1.265977444 | W76: 643 | X76: 0.9064849624
A77: Norte | B77: Vila Pavão | C77: 91 | D77: 65 | E77: 127 | F77: 84.66666667 | G77: 66 | H77: 1.015384615 | I77: 25 | J77: 0.2952755906 | K77: 73 | L77: 1.123076923 | M77: 73 | N77: 1.123076923 | O77: 128 | P77: 1.969230769 | Q77: 69 | R77: 1.061538462 | S77: 69 | T77: 0.8149606299 | U77: 160 | V77: 1.88976378 | W77: 72 | X77: 0.8503937008
A78: Central | B78: Vila Valério | C78: 254 | D78: 172 | E78: 169 | F78: 112.6666667 | G78: 127 | H78: 0.738372093 | I78: 58 | J78: 0.5147928994 | K78: 154 | L78: 0.8953488372 | M78: 136 | N78: 0.7906976744 | O78: 266 | P78: 1.546511628 | Q78: 135 | R78: 0.7848837209 | S78: 127 | T78: 1.127218935 | U78: 268 | V78: 2.378698225 | W78: 160 | X78: 1.420118343
A79: Metropolitana | B79: Vila Velha | C79: 5636 | D79: 3799 | E79: 5675 | F79: 3783.333333 | G79: 2577 | H79: 0.6783364043 | I79: 1168 | J79: 0.308722467 | K79: 3298 | L79: 0.8681231903 | M79: 3335 | N79: 0.8778625954 | O79: 4121 | P79: 1.084759147 | Q79: 2916 | R79: 0.7675704133 | S79: 2740 | T79: 0.7242290749 | U79: 4072 | V79: 1.076299559 | W79: 3060 | X79: 0.8088105727
A80: Metropolitana | B80: Vitória | C80: 3631 | D80: 2463 | E80: 3833 | F80: 2555.333333 | G80: 1628 | H80: 0.6609825416 | I80: 790 | J80: 0.309157318 | K80: 2176 | L80: 0.8834754365 | M80: 2103 | N80: 0.8538367844 | O80: 2878 | P80: 1.168493707 | Q80: 2088 | R80: 0.8477466504 | S80: 1551 | T80: 0.6069658231 | U80: 2718 | V80: 1.063657709 | W80: 2051 | X80: 0.8026350117
B82: Total Norte | C82: =SUMIF($A$3:$A$80,"Norte",C$3:C$80) -> 5803 | D82: =SUMIF($A$3:$A$80,"Norte",D$3:D$80) -> 4013 | E82: =SUMIF($A$3:$A$80,"Norte",E$3:E$80) -> 5789 | F82: =SUMIF($A$3:$A$80,"Norte",F$3:F$80) -> 3859.333333 | G82: =SUMIF($A$3:$A$80,"Norte",G$3:G$80) -> 2910 | H82: =G82/D82 -> 0.7251432843 | I82: =SUMIF($A$3:$A$80,"Norte",I$3:I$80) -> 1522 | J82: =I82/F82 -> 0.3943686302 | K82: =SUMIF($A$3:$A$80,"Norte",K$3:K$80) -> 3810 | L82: =K82/D82 -> 0.9494144032 | M82: =SUMIF($A$3:$A$80,"Norte",M$3:M$80) -> 3855 | N82: =M82/D82 -> 0.9606279591 | O82: =SUMIF($A$3:$A$80,"Norte",O$3:O$80) -> 5604 | P82: =O82/D82 -> 1.3964615 | Q82: =SUMIF($A$3:$A$80,"Norte",Q$3:Q$80) -> 3426 | R82: =Q82/D82 -> 0.8537253925 | S82: =SUMIF($A$3:$A$80,"Norte",S$3:S$80) -> 2793 | T82: =S82/F82 -> 0.7237001209 | U82: =SUMIF($A$3:$A$80,"Norte",U$3:U$80) -> 5168 | V82: =U82/F82 -> 1.33909138 | W82: =SUMIF($A$3:$A$80,"Norte",W$3:W$80) -> 3342 | X82: =W82/F82 -> 0.8659526689
B83: Total Central | C83: =SUMIF($A$3:$A$80,"Central",C$3:C$80) -> 7122 | D83: =SUMIF($A$3:$A$80,"Central",D$3:D$80) -> 4911 | E83: =SUMIF($A$3:$A$80,"Central",E$3:E$80) -> 6843 | F83: =SUMIF($A$3:$A$80,"Central",F$3:F$80) -> 4562 | G83: =SUMIF($A$3:$A$80,"Central",G$3:G$80) -> 3560 | H83: =G83/D83 -> 0.7249032784 | I83: =SUMIF($A$3:$A$80,"Central",I$3:I$80) -> 1659 | J83: =I83/F83 -> 0.3636562911 | K83: =SUMIF($A$3:$A$80,"Central",K$3:K$80) -> 4327 | L83: =K83/D83 -> 0.8810832824 | M83: =SUMIF($A$3:$A$80,"Central",M$3:M$80) -> 4446 | N83: =M83/D83 -> 0.9053145999 | O83: =SUMIF($A$3:$A$80,"Central",O$3:O$80) -> 6867 | P83: =O83/D83 -> 1.398289554 | Q83: =SUMIF($A$3:$A$80,"Central",Q$3:Q$80) -> 4135 | R83: =Q83/D83 -> 0.8419873753 | S83: =SUMIF($A$3:$A$80,"Central",S$3:S$80) -> 3256 | T83: =S83/F83 -> 0.7137220517 | U83: =SUMIF($A$3:$A$80,"Central",U$3:U$80) -> 6575 | V83: =U83/F83 -> 1.441253836 | W83: =SUMIF($A$3:$A$80,"Central",W$3:W$80) -> 4029 | X83: =W83/F83 -> 0.8831652784
B84: Total Metropolitana | C84: =SUMIF($A$3:$A$80,"Metropolitana",C$3:C$80) -> 29428 | D84: =SUMIF($A$3:$A$80,"Metropolitana",D$3:D$80) -> 20039 | E84: =SUMIF($A$3:$A$80,"Metropolitana",E$3:E$80) -> 30197 | F84: =SUMIF($A$3:$A$80,"Metropolitana",F$3:F$80) -> 20131.33333 | G84: =SUMIF($A$3:$A$80,"Metropolitana",G$3:G$80) -> 13814 | H84: =G84/D84 -> 0.6893557563 | I84: =SUMIF($A$3:$A$80,"Metropolitana",I$3:I$80) -> 6640 | J84: =I84/F84 -> 0.3298340895 | K84: =SUMIF($A$3:$A$80,"Metropolitana",K$3:K$80) -> 18565 | L84: =K84/D84 -> 0.9264434353 | M84: =SUMIF($A$3:$A$80,"Metropolitana",M$3:M$80) -> 18613 | N84: =M84/D84 -> 0.9288387644 | O84: =SUMIF($A$3:$A$80,"Metropolitana",O$3:O$80) -> 24798 | P84: =O84/D84 -> 1.237486901 | Q84: =SUMIF($A$3:$A$80,"Metropolitana",Q$3:Q$80) -> 16965 | R84: =Q84/D84 -> 0.8465991317 | S84: =SUMIF($A$3:$A$80,"Metropolitana",S$3:S$80) -> 14128 | T84: =S84/F84 -> 0.7017915687 | U84: =SUMIF($A$3:$A$80,"Metropolitana",U$3:U$80) -> 23792 | V84: =U84/F84 -> 1.181839256 | W84: =SUMIF($A$3:$A$80,"Metropolitana",W$3:W$80) -> 17296 | X84: =W84/F84 -> 0.8591581945
B85: Total Sul | C85: =SUMIF($A$3:$A$80,"sul",C$3:C$80) -> 8340 | D85: =SUMIF($A$3:$A$80,"sul",D$3:D$80) -> 5712 | E85: =SUMIF($A$3:$A$80,"sul",E$3:E$80) -> 8688 | F85: =SUMIF($A$3:$A$80,"sul",F$3:F$80) -> 5792 | G85: =SUMIF($A$3:$A$80,"sul",G$3:G$80) -> 4390 | H85: =G85/D85 -> 0.768557423 | I85: =SUMIF($A$3:$A$80,"sul",I$3:I$80) -> 2052 | J85: =I85/F85 -> 0.354281768 | K85: =SUMIF($A$3:$A$80,"sul",K$3:K$80) -> 5742 | L85: =K85/D85 -> 1.005252101 | M85: =SUMIF($A$3:$A$80,"sul",M$3:M$80) -> 5829 | N85: =M85/D85 -> 1.020483193 | O85: =SUMIF($A$3:$A$80,"sul",O$3:O$80) -> 8772 | P85: =O85/D85 -> 1.535714286 | Q85: =SUMIF($A$3:$A$80,"sul",Q$3:Q$80) -> 5239 | R85: =Q85/D85 -> 0.9171918768 | S85: =SUMIF($A$3:$A$80,"sul",S$3:S$80) -> 3791 | T85: =S85/F85 -> 0.6545234807 | U85: =SUMIF($A$3:$A$80,"sul",U$3:U$80) -> 8137 | V85: =U85/F85 -> 1.404868785 | W85: =SUMIF($A$3:$A$80,"sul",W$3:W$80) -> 5002 | X85: =W85/F85 -> 0.8636049724
B86: Total Espírito Santo | C86: =SUM(C3:C80) -> 50693 | D86: =SUM(D3:D80) -> 34675 | E86: =SUM(E3:E80) -> 51517 | F86: =SUM(F3:F80) -> 34344.66667 | G86: =SUM(G3:G80) -> 24674 | H86: =G86/D86 -> 0.7115789474 | I86: =SUM(I3:I80) -> 11873 | J86: =I86/F86 -> 0.3457014189 | K86: =SUM(K3:K80) -> 32444 | L86: =K86/D86 -> 0.9356596972 | M86: =SUM(M3:M80) -> 32743 | N86: =M86/D86 -> 0.9442826244 | O86: =SUM(O3:O80) -> 46041 | P86: =O86/D86 -> 1.32778659 | Q86: =SUM(Q3:Q80) -> 29765 | R86: =Q86/D86 -> 0.8583994232 | S86: =SUM(S3:S80) -> 23968 | T86: =S86/F86 -> 0.6978667236 | U86: =SUM(U3:U80) -> 43672 | V86: =U86/F86 -> 1.271580255 | W86: =SUM(W3:W80) -> 29669 | X86: =W86/F86 -> 0.8638604732
A90: Fonte: Vacina e Confia, em 10 de Setembro de 2024.**
A91: **Dados referente às doses aplicadas no período de Agosto de 2024
A92: Cobertura Calculada por município de residência do cidadão (no Vacina e Confia, a origem da informação é o endereço que consta no cadastro do cidadão preenchido manualmente por meio do autocadastro ou pelo cadastro realizado por um profissional de saúde no momento do atendimento).
A93: ² População proporcional extraída do MS/SVS/DASIS - SINASC/DASIS/SVS/MS 2023 (hoje preliminares) referente ao período de julho e agosto de 2023 somada a população extraída do SINASC/DASIS/SVS/MS 2024 referente ao período de janeiro e junho de 2024.
A95: Sinasc, atualizado em 12 de Agosto de 2024.
A96: ³ População anual e proporcional extraída do Censo IBGE 2022.
A97: Observações:
A98: Imunobiológicos que foram recebidos parcialmente pelo estado no mês da análise, sendo distribuídos em quantidades reduzidas às regionais e municípios: Típlice Bacteriana (DTP),Varicela, Hepatite A - Rotina Pediátrica, COVID-19 Monovalente (XBB) - FRASCO .
A99: Imunobiológicos indisponíveis no mês da análise, não sendo possível a distribuição às regionais e municípios: Meningo C Conjugada, Tríplice Bacteriana Acelular (dTpa - CRIE).
A100: Imunobiológicos em falta e sem previsão de entrega: Febre Amarela, Varicela, Tríplice Viral (SCR), COVID-19 Monovalente (XBB) - FRASCO, Tríplice Bacteriana (DTP).

Sheet Cobert. COVID-19 Menores 4 anos (hidden)
A1: Regional | B1: Município | C1: Série Histórica
A2: Região Metropolitana | B2: Afonso Cláudio
A3: Região Norte | B3: Água Doce do Norte
A4: Região Central | B4: Águia Branca
A5: Região Sul | B5: Alegre
A6: Região Sul | B6: Alfredo Chaves
A7: Região Central | B7: Alto Rio Novo
A8: Região Sul | B8: Anchieta
A9: Região Sul | B9: Apiacá
A10: Região Metropolitana | B10: Aracruz
A11: Região Sul | B11: Atilio Vivacqua
A12: Região Central | B12: Baixo Guandu
A13: Região Norte | B13: Barra de São Francisco
A14: Região Norte | B14: Boa Esperança
A15: Região Sul | B15: Bom Jesus do Norte
A16: Região Metropolitana | B16: Brejetuba
A17: Região Sul | B17: Cachoeiro de Itapemirim
A18: Região Metropolitana | B18: Cariacica
A19: Região Sul | B19: Castelo
A20: Região Central | B20: Colatina
A21: Região Norte | B21: Conceição da Barra
A22: Região Metropolitana | B22: Conceição do Castelo
A23: Região Sul | B23: Divino de São Lourenço
A24: Região Metropolitana | B24: Domingos Martins
A25: Região Sul | B25: Dores do Rio Preto
A26: Região Norte | B26: Ecoporanga
A27: Região Metropolitana | B27: Fundão
A28: Região Central | B28: Governador Lindenberg
A29: Região Sul | B29: Guaçuí
A30: Região Metropolitana | B30: Guarapari
A31: Região Metropolitana | B31: Ibatiba
A32: Região Metropolitana | B32: Ibiraçu
A33: Região Sul | B33: Ibitirama
A34: Região Sul | B34: Iconha
A35: Região Sul | B35: Irupi
A36: Região Metropolitana | B36: Itaguaçu
A37: Região Sul | B37: Itapemirim
A38: Região Metropolitana | B38: Itarana
A39: Região Sul | B39: Iúna
A40: Região Norte | B40: Jaguaré
A41: Região Sul | B41: Jerônimo Monteiro
A42: Região Metropolitana | B42: João Neiva
A43: Região Metropolitana | B43: Laranja da Terra
A44: Região Central | B44: Linhares
A45: Região Central | B45: Mantenópolis
A46: Região Sul | B46: Marataízes
A47: Região Metropolitana | B47: Marechal Floriano
A48: Região Central | B48: Marilândia
A49: Região Sul | B49: Mimoso do Sul
A50: Região Norte | B50: Montanha
A51: Região Norte | B51: Mucurici
A52: Região Sul | B52: Muniz Freire
A53: Região Sul | B53: Muqui
A54: Região Norte | B54: Nova Venécia
A55: Região Central | B55: Pancas
A56: Região Norte | B56: Pedro Canário
A57: Região Norte | B57: Pinheiros
A58: Região Sul | B58: Piúma
A59: Região Norte | B59: Ponto Belo
A60: Região Sul | B60: Presidente Kennedy
A61: Região Central | B61: Rio Bananal
A62: Região Sul | B62: Rio Novo do Sul
A63: Região Metropolitana | B63: Santa Leopoldina
A64: Região Metropolitana | B64: Santa Maria de Jetibá
A65: Região Metropolitana | B65: Santa Teresa
A66: Região Central | B66: São Domingos do Norte
A67: Região Central | B67: São Gabriel da Palha
A68: Região Sul | B68: São José do Calçado
A69: Região Norte | B69: São Mateus
A70: Região Central | B70: São Roque do Canaã
A71: Região Metropolitana | B71: Serra
A72: Região Central | B72: Sooretama
A73: Região Sul | B73: Vargem Alta
A74: Região Metropolitana | B74: Venda Nova do Imigrante
A75: Região Metropolitana | B75: Viana
A76: Região Norte | B76: Vila Pavão
A77: Região Central | B77: Vila Valério
A78: Região Metropolitana | B78: Vila Velha
A79: Região Metropolitana | B79: Vitória
B81: Espírito Santo
B82: Região Norte
B83: Região Central
B84: Região Metropolitana
B85: Região Sul
A87: Pfizer Pediátrica Menor de 5 anos e Coronavac
A88: Período avaliado: 2021-2024
A89: Fonte: https://www.vacinaeconfia.es.gov.br
A90: *Dados de janeiro/2024 extraídos do Vacina e Confia em 04/01/2024
A91: População proporcional extraída do SINASC 2022 (menores de 1 ano) e Censo IBGE 2022 (demais idades)
A92: Cobertura Calculada por município de procedência da vacinação

Sheet Cobert. Meningo C Adolescentes
A1: Regional | B1: Município | C1: Série Histórica
A2: Metropolitana | B2: Afonso Cláudio | C2: 57.46773202
A3: Central Norte | B3: Água Doce do Norte | C3: 67.31927711
A4: Central Norte | B4: Águia Branca | C4: 60.91269841
A5: Sul | B5: Alegre | C5: 73.79718727
A6: Sul | B6: Alfredo Chaves | C6: 44.30379747
A7: Central Norte | B7: Alto Rio Novo | C7: 89.32038835
A8: Sul | B8: Anchieta | C8: 78.7037037
A9: Sul | B9: Apiacá | C9: 30.21978022
A10: Metropolitana | B10: Aracruz | C10: 79.38125232
A11: Sul | B11: Atilio Vivacqua | C11: 77.9296875
A12: Central Norte | B12: Baixo Guandu | C12: 65.83442838
A13: Central Norte | B13: Barra de São Francisco | C13: 67.34605377
A14: Central Norte | B14: Boa Esperança | C14: 60.86956522
A15: Sul | B15: Bom Jesus do Norte | C15: 53.35892514
A16: Metropolitana | B16: Brejetuba | C16: 82.8685259
A17: Sul | B17: Cachoeiro de Itapemirim | C17: 78.14401062
A18: Metropolitana | B18: Cariacica | C18: 74.06545602
A19: Sul | B19: Castelo | C19: 78.14861461
A20: Central Norte | B20: Colatina | C20: 62.87306724
A21: Central Norte | B21: Conceição da Barra | C21: 56.54420207
A22: Metropolitana | B22: Conceição do Castelo | C22: 77.36486486
A23: Sul | B23: Divino de São Lourenço | C23: 62.13235294
A24: Metropolitana | B24: Domingos Martins | C24: 78.39721254
A25: Sul | B25: Dores do Rio Preto | C25: 76.37795276
A26: Central Norte | B26: Ecoporanga | C26: 62.26912929
A27: Metropolitana | B27: Fundão | C27: 76.62473795
A28: Central Norte | B28: Governador Lindenberg | C28: 75.27272727
A29: Sul | B29: Guaçuí | C29: 67.90450928
A30: Metropolitana | B30: Guarapari | C30: 70.20919224
A31: Metropolitana | B31: Ibatiba | C31: 70.89337176
A32: Metropolitana | B32: Ibiraçu | C32: 76.65505226
A33: Sul | B33: Ibitirama | C33: 72.42582897
A34: Sul | B34: Iconha | C34: 73.62204724
A35: Sul | B35: Irupi | C35: 66.66666667
A36: Metropolitana | B36: Itaguaçu | C36: 66.23376623
A37: Sul | B37: Itapemirim | C37: 59.4351733
A38: Metropolitana | B38: Itarana | C38: 67.75700935
A39: Sul | B39: Iúna | C39: 63.04347826
A40: Central Norte | B40: Jaguaré | C40: 61.76142698
A41: Sul | B41: Jerônimo Monteiro | C41: 81.88277087
A42: Metropolitana | B42: João Neiva | C42: 72.98937785
A43: Metropolitana | B43: Laranja da Terra | C43: 67.00819672
A44: Central Norte | B44: Linhares | C44: 70.68410894
A45: Central Norte | B45: Mantenópolis | C45: 78.16901408
A46: Sul | B46: Marataízes | C46: 82.67083519
A47: Metropolitana | B47: Marechal Floriano | C47: 77.54880694
A48: Central Norte | B48: Marilândia | C48: 73.63636364
A49: Sul | B49: Mimoso do Sul | C49: 68.76617774
A50: Central Norte | B50: Montanha | C50: 75.71428571
A51: Central Norte | B51: Mucurici | C51: 65.61264822
A52: Sul | B52: Muniz Freire | C52: 67.42424242
A53: Sul | B53: Muqui | C53: 69.18429003
A54: Central Norte | B54: Nova Venécia | C54: 53.27835052
A55: Central Norte | B55: Pancas | C55: 67.65327696
A56: Central Norte | B56: Pedro Canário | C56: 71.66799681
A57: Central Norte | B57: Pinheiros | C57: 61.82074806
A58: Sul | B58: Piúma | C58: 68.32412523
A59: Central Norte | B59: Ponto Belo | C59: 62.62626263
A60: Sul | B60: Presidente Kennedy | C60: 88.35616438
A61: Central Norte | B61: Rio Bananal | C61: 80.50505051
A62: Sul | B62: Rio Novo do Sul | C62: 61.87739464
A63: Metropolitana | B63: Santa Leopoldina | C63: 51.18110236
A64: Metropolitana | B64: Santa Maria de Jetibá | C64: 74.56593149
A65: Metropolitana | B65: Santa Teresa | C65: 76.94497154
A66: Central Norte | B66: São Domingos do Norte | C66: 71.70731707
A67: Central Norte | B67: São Gabriel da Palha | C67: 55.7549505
A68: Sul | B68: São José do Calçado | C68: 66.48550725
A69: Central Norte | B69: São Mateus | C69: 63.07506053
A70: Central Norte | B70: São Roque do Canaã | C70: 78.06451613
A71: Metropolitana | B71: Serra | C71: 70.01341451
A72: Central Norte | B72: Sooretama | C72: 78.36734694
A73: Sul | B73: Vargem Alta | C73: 73.84169884
A74: Metropolitana | B74: Venda Nova do Imigrante | C74: 71.30124777
A75: Metropolitana | B75: Viana | C75: 72.62443439
A76: Central Norte | B76: Vila Pavão | C76: 83.62445415
A77: Central Norte | B77: Vila Valério | C77: 87.46312684
A78: Metropolitana | B78: Vila Velha | C78: 75.95764984
A79: Metropolitana | B79: Vitória | C79: 79.70882621
A80: Total | C80: 76.32212268
A82: Meningocócica Conjudada C e Meningocócica ACWY
A83: Período avaliado: 2016-2024
A84: Fonte: http://tabnet.datasus.gov.br/ e https://www.vacinaeconfia.es.gov.br
A85: *Dados parciais. Dados de janeiro/2022 a abril/2022 extraídos do TABNET em 10/05/2024
A86: *Dados de Agosto/2024 extraídos do Vacina e Confia em Setembro/2024
A87: População proporcional extraída do Censo IBGE 2022
A88: Cobertura Calculada por município de procedência da vacinação
A90: Observações:
A91: Imunobiológicos que foram recebidos parcialmente pelo estado no mês da análise, sendo distribuídos em quantidades reduzidas às regionais e municípios: Típlice Bacteriana (DTP),Varicela, Hepatite A - Rotina Pediátrica, COVID-19 Monovalente (XBB) - FRASCO .
A92: Imunobiológicos indisponíveis no mês da análise, não sendo possível a distribuição às regionais e municípios: Meningo C Conjugada, Tríplice Bacteriana Acelular (dTpa - CRIE).
A93: Imunobiológicos em falta e sem previsão de entrega: Febre Amarela, Varicela, Tríplice Viral (SCR), COVID-19 Monovalente (XBB) - FRASCO, Tríplice Bacteriana (DTP).

Sheet Cobert. HPV
A1: REGIONAL | B1: MUNICÍPIO | C1: HPV* Quadrivalente D1 Total - Feminino | D1: HPV* Quadrivalente D1 Total - Masculino
A2: METROPOLITANA | B2: Afonso Cláudio | C2: 85.63049853 | D2: 79.01131127
A3: CENTRAL-NORTE | B3: Água Doce do Norte | C3: 86.72745694 | D3: 61.19554205
A4: CENTRAL-NORTE | B4: Águia Branca | C4: 71.40902873 | D4: 76.88098495
A5: SUL | B5: Alegre | C5: 85.07097406 | D5: 67.35193343
A6: SUL | B6: Alfredo Chaves | C6: 82.40165631 | D6: 60.04140787
A7: CENTRAL-NORTE | B7: Alto Rio Novo | C7: 103.1509121 | D7: 91.87396352
A8: SUL | B8: Anchieta | C8: 94.59576308 | D8: 84.30609598
A9: SUL | B9: Apiacá | C9: 72.42026266 | D9: 51.78236398
A10: METROPOLITANA | B10: Aracruz | C10: 86.23471883 | D10: 72.05378973
A11: SUL | B11: Atílio Vivácqua | C11: 103.2663317 | D11: 92.46231156
A12: CENTRAL-NORTE | B12: Baixo Guandu | C12: 85.2158744 | D12: 68.55647623
A13: CENTRAL-NORTE | B13: Barra de São Francisco | C13: 76.9053782 | D13: 60.74201898
A14: CENTRAL-NORTE | B14: Boa Esperança | C14: 88.08388942 | D14: 51.66825548
A15: SUL | B15: Bom Jesus do Norte | C15: 86.97916667 | D15: 67.1875
A16: METROPOLITANA | B16: Brejetuba | C16: 92.81961471 | D16: 74.25569177
A17: SUL | B17: Cachoeiro de Itapemirim | C17: 88.68465554 | D17: 87.46415705
A18: METROPOLITANA | B18: Cariacica | C18: 85.01471769 | D18: 50.12041745
A19: SUL | B19: Castelo | C19: 94.17637271 | D19: 87.85357737
A20: CENTRAL-NORTE | B20: Colatina | C20: 55.09984455 | D20: 45.96436685
A21: CENTRAL-NORTE | B21: Conceição da Barra | C21: 83.07332293 | D21: 70.04680187
A22: METROPOLITANA | B22: Conceição do Castelo | C22: 99.67141292 | D22: 84.3373494
A23: SUL | B23: Divino de São Lourenço | C23: 77.77777778 | D23: 89.39393939
A24: METROPOLITANA | B24: Domingos Martins | C24: 93.50249904 | D24: 78.12379854
A25: SUL | B25: Dores do Rio Preto | C25: 96.51376147 | D25: 86.23853211
A26: CENTRAL-NORTE | B26: Ecoporanga | C26: 84.85958486 | D26: 68.98656899
A27: METROPOLITANA | B27: Fundão | C27: 83.53188507 | D27: 65.59215137
A28: CENTRAL-NORTE | B28: Governador Lindenberg | C28: 90.88669951 | D28: 83.49753695
A29: SUL | B29: Guaçuí | C29: 89.04531456 | D29: 72.23933128
A30: METROPOLITANA | B30: Guarapari | C30: 77.74486774 | D30: 44.81666837
A31: METROPOLITANA | B31: Ibatiba | C31: 89.9315738 | D31: 78.0058651
A32: METROPOLITANA | B32: Ibiraçu | C32: 92.46344207 | D32: 67.0416198
A33: SUL | B33: Ibitirama | C33: 50.64782097 | D33: 62.19081272
A34: SUL | B34: Iconha | C34: 95.11568123 | D34: 88.68894602
A35: SUL | B35: Irupi | C35: 70.3374778 | D35: 84.54706927
A36: METROPOLITANA | B36: Itaguaçu | C36: 94.79638009 | D36: 47.28506787
A37: SUL | B37: Itapemirim | C37: 70.342426 | D37: 70.45850261
A38: METROPOLITANA | B38: Itarana | C38: 86.33540373 | D38: 78.26086957
A39: SUL | B39: Iúna | C39: 78.26832405 | D39: 81.52593228
A40: CENTRAL-NORTE | B40: Jaguaré | C40: 93.1292009 | D40: 76.92307692
A41: SUL | B41: Jerônimo Monteiro | C41: 96.46772229 | D41: 87.69792935
A42: METROPOLITANA | B42: João Neiva | C42: 97.09543568 | D42: 75.5186722
A43: METROPOLITANA | B43: Laranja da Terra | C43: 81.67115903 | D43: 65.22911051
A44: CENTRAL-NORTE | B44: Linhares | C44: 78.35772938 | D44: 62.3348804
A45: CENTRAL-NORTE | B45: Mantenópolis | C45: 91.45052834 | D45: 61.67146974
A46: SUL | B46: Marataízes | C46: 97.14971497 | D46: 98.34983498
A47: METROPOLITANA | B47: Marechal Floriano | C47: 96.71641791 | D47: 68.05970149
A48: CENTRAL-NORTE | B48: Marilândia | C48: 102.9925187 | D48: 92.01995012
A49: SUL | B49: Mimoso do Sul | C49: 81.56956005 | D49: 71.70035672
A50: CENTRAL-NORTE | B50: Montanha | C50: 95.39052497 | D50: 86.1715749
A51: CENTRAL-NORTE | B51: Mucurici | C51: 98.32402235 | D51: 77.09497207
A52: SUL | B52: Muniz Freire | C52: 92.5872093 | D52: 93.45930233
A53: SUL | B53: Muqui | C53: 85.17034068 | D53: 75.95190381
A54: CENTRAL-NORTE | B54: Nova Venécia | C54: 89.40016434 | D54: 80.47110381
A55: CENTRAL-NORTE | B55: Pancas | C55: 89.37677054 | D55: 79.74504249
A56: CENTRAL-NORTE | B56: Pedro Canário | C56: 91.63090129 | D56: 76.60944206
A57: CENTRAL-NORTE | B57: Pinheiros | C57: 79.9047619 | D57: 60.57142857
A58: SUL | B58: Piúma | C58: 72.85464098 | D58: 64.09807356
A59: CENTRAL-NORTE | B59: Ponto Belo | C59: 93.68421053 | D59: 77.54385965
A60: SUL | B60: Presidente Kennedy | C60: 87.04663212 | D60: 85.14680484
A61: CENTRAL-NORTE | B61: Rio Bananal | C61: 102.8420357 | D61: 101.6523463
A62: SUL | B62: Rio Novo do Sul | C62: 74.36548223 | D62: 84.26395939
A63: METROPOLITANA | B63: Santa Leopoldina | C63: 65.60846561 | D63: 38.30687831
A64: METROPOLITANA | B64: Santa Maria de Jetibá | C64: 91.12574475 | D64: 55.00156789
A65: METROPOLITANA | B65: Santa Teresa | C65: 103.879027 | D65: 74.68770546
A66: CENTRAL-NORTE | B66: São Domingos do Norte | C66: 98.84297521 | D66: 80.99173554
A67: CENTRAL-NORTE | B67: São Gabriel da Palha | C67: 82.67117498 | D67: 72.9501268
A68: SUL | B68: São José do Calçado | C68: 83.80024361 | D68: 86.96711328
A69: CENTRAL-NORTE | B69: São Mateus | C69: 85.44487913 | D69: 64.78082054
A70: CENTRAL-NORTE | B70: São Roque do Canaã | C70: 106.6473988 | D70: 75.43352601
A71: METROPOLITANA | B71: Serra | C71: 82.93489837 | D71: 42.95846457
A72: CENTRAL-NORTE | B72: Sooretama | C72: 85.16932659 | D72: 79.48618139
A73: SUL | B73: Vargem Alta | C73: 87.91500664 | D73: 88.18061089
A74: METROPOLITANA | B74: Venda Nova do Imigrante | C74: 100.3076923 | D74: 88.73846154
A75: METROPOLITANA | B75: Viana | C75: 91.4929388 | D75: 69.199731
A76: CENTRAL-NORTE | B76: Vila Pavão | C76: 97.6945245 | D76: 71.75792507
A77: CENTRAL-NORTE | B77: Vila Valério | C77: 105.7768924 | D77: 86.05577689
A78: METROPOLITANA | B78: Vila Velha | C78: 90.34066928 | D78: 65.43261984
A79: METROPOLITANA | B79: Vitória | C79: 101.8018859 | D79: 66.80982168
A80: TOTAL | C80: 86.02890942 | D80: 80.30760429
A83: Cobertura Vacinal HPV 2024
A84: Período avaliado: 2013-2024
A85: Fonte: http://tabnet.datasus.gov.br/
A86: Fonte: https://www.vacinaeconfia.es.gov.br
A87: *Dados parciais. Dados de janeiro/2022 a abril/2022 extraídos do TABNET em 10/05/2024
A88: *Dados de Agosto/2024 extraídos do Vacina e Confia em Setembro/2024
A89: População proporcional extraída do Censo IBGE 2022
A90: Cobertura Calculada por município de procedência da vacinação
A92: Observações:
A93: Imunobiológicos que foram recebidos parcialmente pelo estado no mês da análise, sendo distribuídos em quantidades reduzidas às regionais e municípios: Típlice Bacteriana (DTP),Varicela, Hepatite A - Rotina Pediátrica, COVID-19 Monovalente (XBB) - FRASCO .
A94: Imunobiológicos indisponíveis no mês da análise, não sendo possível a distribuição às regionais e municípios: Meningo C Conjugada, Tríplice Bacteriana Acelular (dTpa - CRIE).
A95: Imunobiológicos em falta e sem previsão de entrega: Febre Amarela, Varicela, Tríplice Viral (SCR), COVID-19 Monovalente (XBB) - FRASCO, Tríplice Bacteriana (DTP).

Sheet dTpa gestantes - procedência
A1: REGIONAL | B1: MUNICÍPIO | C1: ¹POPULAÇÃO GESTANTE ANUAL | D1: ²POPULAÇÃO PROPORCIONAL | E1: DOSES APLICADAS dTpa GESTANTES | F1: COBERTURA VACINAL dTpa GESTANTES
A2: Metropolitana | B2: Afonso Cláudio | C2: 383 | D2: 263 | E2: 176 | F2: =E2/D2 -> 0.6692015209
A3: Norte | B3: Água Doce do Norte | C3: 202 | D3: 152 | E3: 102 | F3: =E3/D3 -> 0.6710526316
A4: Central | B4: Águia Branca | C4: 172 | D4: 117 | E4: 77 | F4: 0.6581196581
A5: Sul | B5: Alegre | C5: 324 | D5: 213 | E5: 197 | F5: 0.9248826291
A6: Sul | B6: Alfredo Chaves | C6: 139 | D6: 82 | E6: 77 | F6: 0.9390243902
A7: Central | B7: Alto Rio Novo | C7: 88 | D7: 58 | E7: 58 | F7: 1
A8: Sul | B8: Anchieta | C8: 374 | D8: 255 | E8: 225 | F8: 0.8823529412
A9: Sul | B9: Apiacá | C9: 66 | D9: 46 | E9: 42 | F9: 0.9130434783
A10: Metropolitana | B10: Aracruz | C10: 1425 | D10: 951 | E10: 840 | F10: 0.8832807571
A11: Sul | B11: Atilio Vivacqua | C11: 136 | D11: 91 | E11: 106 | F11: 1.164835165
A12: Central | B12: Baixo Guandu | C12: 392 | D12: 251 | E12: 183 | F12: 0.7290836653
A13: Norte | B13: Barra de São Francisco | C13: 545 | D13: 380 | E13: 283 | F13: 0.7447368421
A14: Norte | B14: Boa Esperança | C14: 205 | D14: 139 | E14: 120 | F14: 0.8633093525
A15: Sul | B15: Bom Jesus do Norte | C15: 89 | D15: 65 | E15: 59 | F15: 0.9076923077
A16: Metropolitana | B16: Brejetuba | C16: 204 | D16: 137 | E16: 130 | F16: 0.9489051095
A17: Sul | B17: Cachoeiro de Itapemirim | C17: 2416 | D17: 1690 | E17: 1332 | F17: 0.7881656805
A18: Metropolitana | B18: Cariacica | C18: 4860 | D18: 3332 | E18: 2509 | F18: 0.7530012005
A19: Sul | B19: Castelo | C19: 444 | D19: 301 | E19: 246 | F19: 0.8172757475
A20: Central | B20: Colatina | C20: 1525 | D20: 1055 | E20: 923 | F20: 0.8748815166
A21: Norte | B21: Conceição da Barra | C21: 381 | D21: 254 | E21: 232 | F21: 0.9133858268
A22: Metropolitana | B22: Conceição do Castelo | C22: 152 | D22: 109 | E22: 90 | F22: 0.8256880734
A23: Sul | B23: Divino de São Lourenço | C23: 69 | D23: 46 | E23: 23 | F23: 0.5
A24: Metropolitana | B24: Domingos Martins | C24: 409 | D24: 270 | E24: 283 | F24: 1.048148148
A25: Sul | B25: Dores do Rio Preto | C25: 97 | D25: 68 | E25: 56 | F25: 0.8235294118
A26: Norte | B26: Ecoporanga | C26: 265 | D26: 189 | E26: 157 | F26: 0.8306878307
A27: Metropolitana | B27: Fundão | C27: 222 | D27: 158 | E27: 130 | F27: 0.8227848101
A28: Central | B28: Governador Lindenberg | C28: 128 | D28: 82 | E28: 75 | F28: 0.9146341463
A29: Sul | B29: Guaçuí | C29: 394 | D29: 265 | E29: 199 | F29: 0.7509433962
A30: Metropolitana | B30: Guarapari | C30: 1606 | D30: 1058 | E30: 936 | F30: 0.8846880907
A31: Metropolitana | B31: Ibatiba | C31: 362 | D31: 247 | E31: 243 | F31: 0.983805668
A32: Metropolitana | B32: Ibiraçu | C32: 159 | D32: 117 | E32: 101 | F32: 0.8632478632
A33: Sul | B33: Ibitirama | C33: 143 | D33: 97 | E33: 95 | F33: 0.9793814433
A34: Sul | B34: Iconha | C34: 116 | D34: 79 | E34: 78 | F34: 0.9873417722
A35: Sul | B35: Irupi | C35: 207 | D35: 147 | E35: 125 | F35: 0.8503401361
A36: Metropolitana | B36: Itaguaçu | C36: 138 | D36: 98 | E36: 95 | F36: 0.9693877551
A37: Sul | B37: Itapemirim | C37: 543 | D37: 354 | E37: 279 | F37: 0.7881355932
A38: Metropolitana | B38: Itarana | C38: 141 | D38: 101 | E38: 88 | F38: 0.8712871287
A39: Sul | B39: Iúna | C39: 481 | D39: 314 | E39: 227 | F39: 0.7229299363
A40: Norte | B40: Jaguaré | C40: 472 | D40: 321 | E40: 287 | F40: 0.8940809969
A41: Sul | B41: Jerônimo Monteiro | C41: 153 | D41: 102 | E41: 83 | F41: 0.8137254902
A42: Metropolitana | B42: João Neiva | C42: 164 | D42: 111 | E42: 94 | F42: 0.8468468468
A43: Metropolitana | B43: Laranja da Terra | C43: 87 | D43: 62 | E43: 70 | F43: 1.129032258
A44: Central | B44: Linhares | C44: 2621 | D44: 1822 | E44: 1422 | F44: 0.7804610318
A45: Central | B45: Mantenópolis | C45: 153 | D45: 106 | E45: 86 | F45: 0.8113207547
A46: Sul | B46: Marataízes | C46: 552 | D46: 394 | E46: 358 | F46: 0.9086294416
A47: Metropolitana | B47: Marechal Floriano | C47: 221 | D47: 139 | E47: 128 | F47: 0.9208633094
A48: Central | B48: Marilândia | C48: 163 | D48: 112 | E48: 88 | F48: 0.7857142857
A49: Sul | B49: Mimoso do Sul | C49: 266 | D49: 181 | E49: 145 | F49: 0.8011049724
A50: Norte | B50: Montanha | C50: 239 | D50: 165 | E50: 134 | F50: 0.8121212121
A51: Norte | B51: Mucurici | C51: 77 | D51: 47 | E51: 49 | F51: 1.042553191
A52: Sul | B52: Muniz Freire | C52: 213 | D52: 145 | E52: 146 | F52: 1.006896552
A53: Sul | B53: Muqui | C53: 163 | D53: 118 | E53: 102 | F53: 0.8644067797
A54: Norte | B54: Nova Venécia | C54: 653 | D54: 465 | E54: 389 | F54: 0.8365591398
A55: Central | B55: Pancas | C55: 210 | D55: 145 | E55: 128 | F55: 0.8827586207
A56: Norte | B56: Pedro Canário | C56: 323 | D56: 231 | E56: 182 | F56: 0.7878787879
A57: Norte | B57: Pinheiros | C57: 326 | D57: 222 | E57: 175 | F57: 0.7882882883
A58: Sul | B58: Piúma | C58: 291 | D58: 193 | E58: 181 | F58: 0.9378238342
A59: Norte | B59: Ponto Belo | C59: 77 | D59: 50 | E59: 49 | F59: 0.98
A60: Sul | B60: Presidente Kennedy | C60: 191 | D60: 137 | E60: 126 | F60: 0.9197080292
A61: Central | B61: Rio Bananal | C61: 281 | D61: 197 | E61: 185 | F61: 0.9390862944
A62: Sul | B62: Rio Novo do Sul | C62: 111 | D62: 71 | E62: 64 | F62: 0.9014084507
A63: Metropolitana | B63: Santa Leopoldina | C63: 100 | D63: 62 | E63: 49 | F63: 0.7903225806
A64: Metropolitana | B64: Santa Maria de Jetibá | C64: 612 | D64: 396 | E64: 415 | F64: 1.047979798
A65: Metropolitana | B65: Santa Teresa | C65: 308 | D65: 212 | E65: 167 | F65: 0.7877358491
A66: Central | B66: São Domingos do Norte | C66: 115 | D66: 74 | E66: 58 | F66: 0.7837837838
A67: Central | B67: São Gabriel da Palha | C67: 464 | D67: 320 | E67: 253 | F67: =E67/D67 -> 0.790625
A68: Sul | B68: São José do Calçado | C68: 101 | D68: 78 | E68: 58 | F68: 0.7435897436
A69: Norte | B69: São Mateus | C69: 1947 | D69: 1333 | E69: 871 | F69: 0.6534133533
A70: Central | B70: São Roque do Canaã | C70: 123 | D70: 96 | E70: 77 | F70: 0.8020833333
A71: Metropolitana | B71: Serra | C71: 7293 | D71: 5065 | E71: 3908 | F71: 0.7715695953
A72: Central | B72: Sooretama | C72: 433 | D72: 304 | E72: 269 | F72: 0.8848684211
A73: Sul | B73: Vargem Alta | C73: 261 | D73: 180 | E73: 155 | F73: 0.8611111111
A74: Metropolitana | B74: Venda Nova do Imigrante | C74: 377 | D74: 254 | E74: 221 | F74: 0.8700787402
A75: Metropolitana | B75: Viana | C75: 938 | D75: 635 | E75: 575 | F75: 0.905511811
A76: Norte | B76: Vila Pavão | C76: 91 | D76: 65 | E76: 76 | F76: 1.169230769
A77: Central | B77: Vila Valério | C77: 254 | D77: 172 | E77: 141 | F77: 0.8197674419
A78: Metropolitana | B78: Vila Velha | C78: 5636 | D78: 3799 | E78: 2889 | F78: 0.7604632798
A79: Metropolitana | B79: Vitória | C79: 3631 | D79: 2463 | E79: 2217 | F79: 0.9001218027
B81: Total Norte | C81: =SUMIF($A$2:$A$79,"Norte",C$2:C$79) -> 5803 | D81: =SUMIF($A$2:$A$79,"Norte",D$2:D$79) -> 4013 | E81: =SUMIF($A$2:$A$79,"Norte",E$2:E$79) -> 3106 | F81: 0.7739845502
B82: Total Central | C82: =SUMIF($A$2:$A$79,"CENTRAL",C$2:C$79) -> 7122 | D82: =SUMIF($A$2:$A$79,"CENTRAL",D$2:D$79) -> 4911 | E82: =SUMIF($A$2:$A$79,"CENTRAL",E$2:E$79) -> 4023 | F82: 0.8191814294
B83: Total Metropolitana | C83: =SUMIF($A$2:$A$79,"METROPOLITANA",C$2:C$79) -> 29428 | D83: =SUMIF($A$2:$A$79,"METROPOLITANA",D$2:D$79) -> 20039 | E83: =SUMIF($A$2:$A$79,"METROPOLITANA",E$2:E$79) -> 16354 | F83: 0.8161085883
B84: Total Sul | C84: =SUMIF($A$2:$A$79,"SUL",C$2:C$79) -> 8340 | D84: =SUMIF($A$2:$A$79,"SUL",D$2:D$79) -> 5712 | E84: =SUMIF($A$2:$A$79,"SUL",E$2:E$79) -> 4784 | F84: 0.837535014
B85: TOTAL ES | C85: =SUM(C2:C79) -> 50693 | D85: =SUM(D2:D79) -> 34675 | E85: =SUM(E2:E79) -> 28267 | F85: =E85/D85 -> 0.8151982696
B86: HOMOGENEIDADE ENTRE MUNICÍPIOS | E86: =COUNTIF(F2:F79,">=0,95") -> 13 | F86: =E86/78 -> 0.1666666667
A89: Fonte: Vacina e Confia, em 13 de setembro de 2024.**
A90: **Dados referente às doses aplicadas no período de Janeiro a Agosto de 2024
A91: Cobertura Calculada por município de procedência/ocorrência da vacinação
A92: 1 População anual extraída do MS/SVS/DASIS - SINASC/DASIS/SVS/MS 2023 (hoje preliminares) referente ao período de julho a dezembro de 2023 e SINASC/DASIS/SVS/MS 2024 referente ao período de janeiro a junho de 2024.
A93: ² População proporcional extraída do MS/SVS/DASIS - SINASC/DASIS/SVS/MS 2023 (hoje preliminares) referente ao período de julho e agosto de 2023 somada a população extraída do SINASC/DASIS/SVS/MS 2024 referente ao período de janeiro e junho de 2024.
A94: Sinasc, atualizado em 05 de Setembro de 2024.
A95: Homogeineidade: O cálculo da Homogeineidade entre vacinas é feito de acordo com a pactuação estabelecida no Plano Plurianual (PPA) vigente no período 2024-2027.
A97: Observações:
A98: Imunobiológicos que foram recebidos parcialmente pelo estado no mês da análise, sendo distribuídos em quantidades reduzidas às regionais e municípios: Típlice Bacteriana (DTP),Varicela, Hepatite A - Rotina Pediátrica, COVID-19 Monovalente (XBB) - FRASCO .
A99: Imunobiológicos indisponíveis no mês da análise, não sendo possível a distribuição às regionais e municípios: Meningo C Conjugada, Tríplice Bacteriana Acelular (dTpa - CRIE).
A100: Imunobiológicos em falta e sem previsão de entrega: Febre Amarela, Varicela, Tríplice Viral (SCR), COVID-19 Monovalente (XBB) - FRASCO, Tríplice Bacteriana (DTP).

Sheet dTpa gestantes - residência
A1: REGIONAL | B1: MUNICÍPIO | C1: ¹POPULAÇÃO GESTANTE ANUAL | D1: ¹POPULAÇÃO PROPORCIONAL | E1: DOSES APLICADAS dTpa GESTANTES | F1: COBERTURA VACINAL dTpa GESTANTES
A2: Metropolitana | B2: Afonso Cláudio | C2: 383 | D2: 263 | E2: 180 | F2: =E2/D2 -> 0.6844106464
A3: Norte | B3: Água Doce do Norte | C3: 202 | D3: 152 | E3: 82 | F3: =E3/D3 -> 0.5394736842
A4: Central | B4: Águia Branca | C4: 172 | D4: 117 | E4: 65 | F4: 0.5555555556
A5: Sul | B5: Alegre | C5: 324 | D5: 213 | E5: 216 | F5: 1.014084507
A6: Sul | B6: Alfredo Chaves | C6: 139 | D6: 82 | E6: 90 | F6: 1.097560976
A7: Central | B7: Alto Rio Novo | C7: 88 | D7: 58 | E7: 58 | F7: 1
A8: Sul | B8: Anchieta | C8: 374 | D8: 255 | E8: 208 | F8: 0.8156862745
A9: Sul | B9: Apiacá | C9: 66 | D9: 46 | E9: 41 | F9: 0.8913043478
A10: Metropolitana | B10: Aracruz | C10: 1425 | D10: 951 | E10: 749 | F10: 0.7875920084
A11: Sul | B11: Atilio Vivacqua | C11: 136 | D11: 91 | E11: 91 | F11: 1
A12: Central | B12: Baixo Guandu | C12: 392 | D12: 251 | E12: 187 | F12: 0.7450199203
A13: Norte | B13: Barra de São Francisco | C13: 545 | D13: 380 | E13: 294 | F13: 0.7736842105
A14: Norte | B14: Boa Esperança | C14: 205 | D14: 139 | E14: 115 | F14: 0.8273381295
A15: Sul | B15: Bom Jesus do Norte | C15: 89 | D15: 65 | E15: 37 | F15: 0.5692307692
A16: Metropolitana | B16: Brejetuba | C16: 204 | D16: 137 | E16: 114 | F16: 0.8321167883
A17: Sul | B17: Cachoeiro de Itapemirim | C17: 2416 | D17: 1690 | E17: 1306 | F17: 0.7727810651
A18: Metropolitana | B18: Cariacica | C18: 4860 | D18: 3332 | E18: 2849 | F18: 0.8550420168
A19: Sul | B19: Castelo | C19: 444 | D19: 301 | E19: 260 | F19: 0.8637873754
A20: Central | B20: Colatina | C20: 1525 | D20: 1055 | E20: 819 | F20: 0.7763033175
A21: Norte | B21: Conceição da Barra | C21: 381 | D21: 254 | E21: 224 | F21: 0.8818897638
A22: Metropolitana | B22: Conceição do Castelo | C22: 152 | D22: 109 | E22: 105 | F22: 0.9633027523
A23: Sul | B23: Divino de São Lourenço | C23: 69 | D23: 46 | E23: 27 | F23: 0.5869565217
A24: Metropolitana | B24: Domingos Martins | C24: 409 | D24: 270 | E24: 297 | F24: 1.1
A25: Sul | B25: Dores do Rio Preto | C25: 97 | D25: 68 | E25: 42 | F25: 0.6176470588
A26: Norte | B26: Ecoporanga | C26: 265 | D26: 189 | E26: 165 | F26: 0.873015873
A27: Metropolitana | B27: Fundão | C27: 222 | D27: 158 | E27: 117 | F27: 0.7405063291
A28: Central | B28: Governador Lindenberg | C28: 128 | D28: 82 | E28: 91 | F28: 1.109756098
A29: Sul | B29: Guaçuí | C29: 394 | D29: 265 | E29: 180 | F29: 0.679245283
A30: Metropolitana | B30: Guarapari | C30: 1606 | D30: 1058 | E30: 877 | F30: 0.8289224953
A31: Metropolitana | B31: Ibatiba | C31: 362 | D31: 247 | E31: 236 | F31: 0.955465587
A32: Metropolitana | B32: Ibiraçu | C32: 159 | D32: 117 | E32: 108 | F32: 0.9230769231
A33: Sul | B33: Ibitirama | C33: 143 | D33: 97 | E33: 82 | F33: 0.8453608247
A34: Sul | B34: Iconha | C34: 116 | D34: 79 | E34: 93 | F34: 1.17721519
A35: Sul | B35: Irupi | C35: 207 | D35: 147 | E35: 96 | F35: 0.6530612245
A36: Metropolitana | B36: Itaguaçu | C36: 138 | D36: 98 | E36: 85 | F36: 0.8673469388
A37: Sul | B37: Itapemirim | C37: 543 | D37: 354 | E37: 301 | F37: 0.8502824859
A38: Metropolitana | B38: Itarana | C38: 141 | D38: 101 | E38: 81 | F38: 0.801980198
A39: Sul | B39: Iúna | C39: 481 | D39: 314 | E39: 238 | F39: 0.7579617834
A40: Norte | B40: Jaguaré | C40: 472 | D40: 321 | E40: 278 | F40: 0.8660436137
A41: Sul | B41: Jerônimo Monteiro | C41: 153 | D41: 102 | E41: 72 | F41: 0.7058823529
A42: Metropolitana | B42: João Neiva | C42: 164 | D42: 111 | E42: 94 | F42: 0.8468468468
A43: Metropolitana | B43: Laranja da Terra | C43: 87 | D43: 62 | E43: 65 | F43: 1.048387097
A44: Central | B44: Linhares | C44: 2621 | D44: 1822 | E44: 1374 | F44: 0.7541163557
A45: Central | B45: Mantenópolis | C45: 153 | D45: 106 | E45: 72 | F45: 0.679245283
A46: Sul | B46: Marataízes | C46: 552 | D46: 394 | E46: 315 | F46: 0.7994923858
A47: Metropolitana | B47: Marechal Floriano | C47: 221 | D47: 139 | E47: 124 | F47: 0.8920863309
A48: Central | B48: Marilândia | C48: 163 | D48: 112 | E48: 93 | F48: 0.8303571429
A49: Sul | B49: Mimoso do Sul | C49: 266 | D49: 181 | E49: 146 | F49: 0.8066298343
A50: Norte | B50: Montanha | C50: 239 | D50: 165 | E50: 135 | F50: 0.8181818182
A51: Norte | B51: Mucurici | C51: 77 | D51: 47 | E51: 53 | F51: 1.127659574
A52: Sul | B52: Muniz Freire | C52: 213 | D52: 145 | E52: 117 | F52: 0.8068965517
A53: Sul | B53: Muqui | C53: 163 | D53: 118 | E53: 106 | F53: 0.8983050847
A54: Norte | B54: Nova Venécia | C54: 653 | D54: 465 | E54: 436 | F54: 0.9376344086
A55: Central | B55: Pancas | C55: 210 | D55: 145 | E55: 140 | F55: 0.9655172414
A56: Norte | B56: Pedro Canário | C56: 323 | D56: 231 | E56: 199 | F56: 0.8614718615
A57: Norte | B57: Pinheiros | C57: 326 | D57: 222 | E57: 162 | F57: 0.7297297297
A58: Sul | B58: Piúma | C58: 291 | D58: 193 | E58: 177 | F58: 0.9170984456
A59: Norte | B59: Ponto Belo | C59: 77 | D59: 50 | E59: 55 | F59: 1.1
A60: Sul | B60: Presidente Kennedy | C60: 191 | D60: 137 | E60: 122 | F60: 0.8905109489
A61: Central | B61: Rio Bananal | C61: 281 | D61: 197 | E61: 197 | F61: 1
A62: Sul | B62: Rio Novo do Sul | C62: 111 | D62: 71 | E62: 68 | F62: 0.9577464789
A63: Metropolitana | B63: Santa Leopoldina | C63: 100 | D63: 62 | E63: 56 | F63: 0.9032258065
A64: Metropolitana | B64: Santa Maria de Jetibá | C64: 612 | D64: 396 | E64: 354 | F64: 0.8939393939
A65: Metropolitana | B65: Santa Teresa | C65: 308 | D65: 212 | E65: 184 | F65: 0.8679245283
A66: Central | B66: São Domingos do Norte | C66: 115 | D66: 74 | E66: 68 | F66: 0.9189189189
A67: Central | B67: São Gabriel da Palha | C67: 464 | D67: 320 | E67: 239 | F67: =E67/D67 -> 0.746875
A68: Sul | B68: São José do Calçado | C68: 101 | D68: 78 | E68: 65 | F68: 0.8333333333
A69: Norte | B69: São Mateus | C69: 1947 | D69: 1333 | E69: 785 | F69: 0.5888972243
A70: Central | B70: São Roque do Canaã | C70: 123 | D70: 96 | E70: 93 | F70: 0.96875
A71: Metropolitana | B71: Serra | C71: 7293 | D71: 5065 | E71: 3666 | F71: 0.7237907206
A72: Central | B72: Sooretama | C72: 433 | D72: 304 | E72: 280 | F72: 0.9210526316
A73: Sul | B73: Vargem Alta | C73: 261 | D73: 180 | E73: 148 | F73: 0.8222222222
A74: Metropolitana | B74: Venda Nova do Imigrante | C74: 377 | D74: 254 | E74: 218 | F74: 0.8582677165
A75: Metropolitana | B75: Viana | C75: 938 | D75: 635 | E75: 585 | F75: 0.9212598425
A76: Norte | B76: Vila Pavão | C76: 91 | D76: 65 | E76: 77 | F76: 1.184615385
A77: Central | B77: Vila Valério | C77: 254 | D77: 172 | E77: 128 | F77: 0.7441860465
A78: Metropolitana | B78: Vila Velha | C78: 5636 | D78: 3799 | E78: 2632 | F78: 0.6928138984
A79: Metropolitana | B79: Vitória | C79: 3631 | D79: 2463 | E79: 1891 | F79: 0.7677628908
B81: Total Norte | C81: =SUMIF($A$2:$A$79,"Norte",C$2:C$79) -> 5803 | D81: =SUMIF($A$2:$A$79,"Norte",D$2:D$79) -> 4013 | E81: =SUMIF($A$2:$A$79,"Norte",E$2:E$79) -> 3060 | F81: 0.7625218041
B82: Total Central | C82: =SUMIF($A$2:$A$79,"CENTRAL",C$2:C$79) -> 7122 | D82: =SUMIF($A$2:$A$79,"CENTRAL",D$2:D$79) -> 4911 | E82: =SUMIF($A$2:$A$79,"CENTRAL",E$2:E$79) -> 3904 | F82: 0.794950112
B83: Total Metropolitana | C83: =SUMIF($A$2:$A$79,"METROPOLITANA",C$2:C$79) -> 29428 | D83: =SUMIF($A$2:$A$79,"METROPOLITANA",D$2:D$79) -> 20039 | E83: =SUMIF($A$2:$A$79,"METROPOLITANA",E$2:E$79) -> 15667 | F83: 0.7818254404
B84: Total Sul | C84: =SUMIF($A$2:$A$79,"SUL",C$2:C$79) -> 8340 | D84: =SUMIF($A$2:$A$79,"SUL",D$2:D$79) -> 5712 | E84: =SUMIF($A$2:$A$79,"SUL",E$2:E$79) -> 4644 | F84: 0.8130252101
B85: TOTAL ES | C85: =SUM(C2:C79) -> 50693 | D85: =SUM(D2:D79) -> 34675 | E85: =SUM(E2:E79) -> 27275 | F85: =E85/D85 -> 0.7865897621
B86: HOMOGENEIDADE ENTRE MUNICÍPIOS | E86: =COUNTIF(F2:F79,">=0,95") -> 17 | F86: =E86/78 -> 0.2179487179
A89: Fonte: Vacina e Confia, em 13 de setembro de 2024.**
A90: **Dados referente às doses aplicadas no período de Janeiro a Agosto de 2024
A91: Cobertura Calculada por município de residência do cidadão (no Vacina e Confia, a origem da informação é o endereço que consta no cadastro do cidadão preenchido manualmente por meio do autocadastro ou pelo cadastro realizado por um profissional de saúde no momento do atendimento).
A92: 1 População anual extraída do MS/SVS/DASIS - SINASC/DASIS/SVS/MS 2023 (hoje preliminares) referente ao período de julho a dezembro de 2023 e SINASC/DASIS/SVS/MS 2024 referente ao período de janeiro a junho de 2024.
A93: ² População proporcional extraída do MS/SVS/DASIS - SINASC/DASIS/SVS/MS 2023 (hoje preliminares) referente ao período de julho e agosto de 2023 somada a população extraída do SINASC/DASIS/SVS/MS 2024 referente ao período de janeiro e junho de 2024.
A94: Sinasc, atualizado em 05 de Setembro de 2024.
A95: Homogeineidade: O cálculo da Homogeineidade entre vacinas é feito de acordo com a pactuação estabelecida no Plano Plurianual (PPA) vigente no período 2024-2027.
A97: Observações:
A98: Imunobiológicos que foram recebidos parcialmente pelo estado no mês da análise, sendo distribuídos em quantidades reduzidas às regionais e municípios: Típlice Bacteriana (DTP),Varicela, Hepatite A - Rotina Pediátrica, COVID-19 Monovalente (XBB) - FRASCO .
A99: Imunobiológicos indisponíveis no mês da análise, não sendo possível a distribuição às regionais e municípios: Meningo C Conjugada, Tríplice Bacteriana Acelular (dTpa - CRIE).
A100: Imunobiológicos em falta e sem previsão de entrega: Febre Amarela, Varicela, Tríplice Viral (SCR), COVID-19 Monovalente (XBB) - FRASCO, Tríplice Bacteriana (DTP).

Sheet PROTEÇÃO

Sheet cálculos1 (hidden)
C1: 0.9 | E1: 0.95
A2: Regional | B2: Município | C2: Cobertura Vacinal BCG | D2: Cobertura Vacinal Rotavírus | E2: Cobertura Vacinal Pentavalente | F2: Cobertura Vacinal Poliomielite | G2: Cobertura Vacinal Pneumo 10 | H2: Cobertura Vacinal Tríplice Viral | I2: Cobertura Vacinal Meningo C | J2: Cobertura Vacinal Febre Amarela | K2: Cobertura Vacinal Hepatite A | L2: Cobertura Varicela | M2: META 90% | N2: META 95% | O2: ATINGIRAM META | P2: PQA-VS
A3: Metropolitana | B3: Afonso Cláudio | C3: ='CV Rotina <2A - procedência'!H3 -> 0.7794676806 | D3: ='CV Rotina <2A - procedência'!P3 -> 0.897338403 | E3: ='CV Rotina <2A - procedência'!J3 -> 0.9201520913 | F3: ='CV Rotina <2A - procedência'!L3 -> 0.9125475285 | G3: ='CV Rotina <2A - procedência'!N3 -> 0.9201520913 | H3: ='CV Rotina <2A - procedência'!X3 -> 0.9733840304 | I3: ='CV Rotina <2A - procedência'!R3 -> 0.8935361217 | J3: ='CV Rotina <2A - procedência'!T3 -> 0.8745247148 | K3: ='CV Rotina <2A - procedência'!V3 -> 0.9505703422 | L3: ='CV Rotina <2A - procedência'!Z3 -> 0.4904942966 | M3: =COUNTIF(C3:D3,">=0,9") -> 0 | N3: =COUNTIFS(E3:L3,">=0,95") -> 2 | O3: =SUM(M3:N3) -> 2 | P3: =COUNTIF(E3:H3,">=0,95") -> 1
A4: Norte | B4: Água Doce do Norte | C4: ='CV Rotina <2A - procedência'!H4 -> 0.4342105263 | D4: ='CV Rotina <2A - procedência'!P4 -> 0.7565789474 | E4: ='CV Rotina <2A - procedência'!J4 -> 0.7368421053 | F4: ='CV Rotina <2A - procedência'!L4 -> 0.7236842105 | G4: ='CV Rotina <2A - procedência'!N4 -> 0.7763157895 | H4: ='CV Rotina <2A - procedência'!X4 -> 0.6776315789 | I4: ='CV Rotina <2A - procedência'!R4 -> 0.6973684211 | J4: ='CV Rotina <2A - procedência'!T4 -> 0.5197368421 | K4: ='CV Rotina <2A - procedência'!V4 -> 0.6315789474 | L4: ='CV Rotina <2A - procedência'!Z4 -> 0.2368421053 | M4: 0 | N4: 0 | O4: =SUM(M4:N4) -> 0 | P4: =COUNTIF(E4:H4,">=0,95") -> 0
A5: Central | B5: Águia Branca | C5: ='CV Rotina <2A - procedência'!H5 -> 0.6153846154 | D5: ='CV Rotina <2A - procedência'!P5 -> 0.9829059829 | E5: ='CV Rotina <2A - procedência'!J5 -> 0.9230769231 | F5: ='CV Rotina <2A - procedência'!L5 -> 0.9145299145 | G5: ='CV Rotina <2A - procedência'!N5 -> 0.9487179487 | H5: ='CV Rotina <2A - procedência'!X5 -> 0.8376068376 | I5: ='CV Rotina <2A - procedência'!R5 -> 0.8974358974 | J5: ='CV Rotina <2A - procedência'!T5 -> 0.7948717949 | K5: ='CV Rotina <2A - procedência'!V5 -> 0.735042735 | L5: ='CV Rotina <2A - procedência'!Z5 -> 0.2820512821 | M5: 1 | N5: 0 | O5: 1 | P5: 0
A6: Sul | B6: Alegre | C6: ='CV Rotina <2A - procedência'!H6 -> 0.6384976526 | D6: ='CV Rotina <2A - procedência'!P6 -> 0.9906103286 | E6: ='CV Rotina <2A - procedência'!J6 -> 1.046948357 | F6: ='CV Rotina <2A - procedência'!L6 -> 1.061032864 | G6: ='CV Rotina <2A - procedência'!N6 -> 1.028169014 | H6: ='CV Rotina <2A - procedência'!X6 -> 1 | I6: ='CV Rotina <2A - procedência'!R6 -> 1.009389671 | J6: ='CV Rotina <2A - procedência'!T6 -> 0.9342723005 | K6: ='CV Rotina <2A - procedência'!V6 -> 0.9342723005 | L6: ='CV Rotina <2A - procedência'!Z6 -> 0.2863849765 | M6: 1 | N6: 5 | O6: 6 | P6: 4
A7: Sul | B7: Alfredo Chaves | C7: ='CV Rotina <2A - procedência'!H7 -> 0.5731707317 | D7: ='CV Rotina <2A - procedência'!P7 -> 1.268292683 | E7: ='CV Rotina <2A - procedência'!J7 -> 1.256097561 | F7: ='CV Rotina <2A - procedência'!L7 -> 1.231707317 | G7: ='CV Rotina <2A - procedência'!N7 -> 1.243902439 | H7: ='CV Rotina <2A - procedência'!X7 -> 1.170731707 | I7: ='CV Rotina <2A - procedência'!R7 -> 1.304878049 | J7: ='CV Rotina <2A - procedência'!T7 -> 1.195121951 | K7: ='CV Rotina <2A - procedência'!V7 -> 1.170731707 | L7: ='CV Rotina <2A - procedência'!Z7 -> 0.7195121951 | M7: 1 | N7: 7 | O7: 8 | P7: 4
A8: Central | B8: Alto Rio Novo | C8: ='CV Rotina <2A - procedência'!H8 -> 0.3965517241 | D8: ='CV Rotina <2A - procedência'!P8 -> 1.137931034 | E8: ='CV Rotina <2A - procedência'!J8 -> 1.051724138 | F8: ='CV Rotina <2A - procedência'!L8 -> 1.017241379 | G8: ='CV Rotina <2A - procedência'!N8 -> 1.120689655 | H8: ='CV Rotina <2A - procedência'!X8 -> 1.120689655 | I8: ='CV Rotina <2A - procedência'!R8 -> 1.120689655 | J8: ='CV Rotina <2A - procedência'!T8 -> 0.8793103448 | K8: ='CV Rotina <2A - procedência'!V8 -> 1.24137931 | L8: ='CV Rotina <2A - procedência'!Z8 -> 0.5517241379 | M8: 1 | N8: 6 | O8: 7 | P8: 4
A9: Sul | B9: Anchieta | C9: ='CV Rotina <2A - procedência'!H9 -> 0.5450980392 | D9: ='CV Rotina <2A - procedência'!P9 -> 1.003921569 | E9: ='CV Rotina <2A - procedência'!J9 -> 0.9921568627 | F9: ='CV Rotina <2A - procedência'!L9 -> 1 | G9: ='CV Rotina <2A - procedência'!N9 -> 1.011764706 | H9: ='CV Rotina <2A - procedência'!X9 -> 1.015686275 | I9: ='CV Rotina <2A - procedência'!R9 -> 1.007843137 | J9: ='CV Rotina <2A - procedência'!T9 -> 0.7843137255 | K9: ='CV Rotina <2A - procedência'!V9 -> 1.047058824 | L9: ='CV Rotina <2A - procedência'!Z9 -> 0.4352941176 | M9: 1 | N9: 6 | O9: 7 | P9: 4
A10: Sul | B10: Apiacá | C10: ='CV Rotina <2A - procedência'!H10 -> 0.8043478261 | D10: ='CV Rotina <2A - procedência'!P10 -> 1 | E10: ='CV Rotina <2A - procedência'!J10 -> 0.847826087 | F10: ='CV Rotina <2A - procedência'!L10 -> 0.8695652174 | G10: ='CV Rotina <2A - procedência'!N10 -> 1 | H10: ='CV Rotina <2A - procedência'!X10 -> 1.152173913 | I10: ='CV Rotina <2A - procedência'!R10 -> 0.8913043478 | J10: ='CV Rotina <2A - procedência'!T10 -> 0.8913043478 | K10: ='CV Rotina <2A - procedência'!V10 -> 0.7391304348 | L10: ='CV Rotina <2A - procedência'!Z10 -> 0.1739130435 | M10: 1 | N10: 2 | O10: 3 | P10: 2
A11: Metropolitana | B11: Aracruz | C11: ='CV Rotina <2A - procedência'!H11 -> 0.9768664564 | D11: ='CV Rotina <2A - procedência'!P11 -> 0.9463722397 | E11: ='CV Rotina <2A - procedência'!J11 -> 0.9242902208 | F11: ='CV Rotina <2A - procedência'!L11 -> 0.9242902208 | G11: ='CV Rotina <2A - procedência'!N11 -> 0.9631966351 | H11: ='CV Rotina <2A - procedência'!X11 -> 1.100946372 | I11: ='CV Rotina <2A - procedência'!R11 -> 0.9390115668 | J11: ='CV Rotina <2A - procedência'!T11 -> 0.8159831756 | K11: ='CV Rotina <2A - procedência'!V11 -> 1.058885384 | L11: ='CV Rotina <2A - procedência'!Z11 -> 0.5425867508 | M11: 2 | N11: 3 | O11: 5 | P11: 2
A12: Sul | B12: Atilio Vivacqua | C12: ='CV Rotina <2A - procedência'!H12 -> 0.03296703297 | D12: ='CV Rotina <2A - procedência'!P12 -> 0.9450549451 | E12: ='CV Rotina <2A - procedência'!J12 -> 0.956043956 | F12: ='CV Rotina <2A - procedência'!L12 -> 0.9450549451 | G12: ='CV Rotina <2A - procedência'!N12 -> 0.956043956 | H12: ='CV Rotina <2A - procedência'!X12 -> 1.175824176 | I12: ='CV Rotina <2A - procedência'!R12 -> 0.9340659341 | J12: ='CV Rotina <2A - procedência'!T12 -> 0.7912087912 | K12: ='CV Rotina <2A - procedência'!V12 -> 1.098901099 | L12: ='CV Rotina <2A - procedência'!Z12 -> 0.5494505495 | M12: 1 | N12: 4 | O12: 5 | P12: 3
A13: Central | B13: Baixo Guandu | C13: ='CV Rotina <2A - procedência'!H13 -> 0.5537848606 | D13: ='CV Rotina <2A - procedência'!P13 -> 1.091633466 | E13: ='CV Rotina <2A - procedência'!J13 -> 1.047808765 | F13: ='CV Rotina <2A - procedência'!L13 -> 1.051792829 | G13: ='CV Rotina <2A - procedência'!N13 -> 1.131474104 | H13: ='CV Rotina <2A - procedência'!X13 -> 1.075697211 | I13: ='CV Rotina <2A - procedência'!R13 -> 1.083665339 | J13: ='CV Rotina <2A - procedência'!T13 -> 0.796812749 | K13: ='CV Rotina <2A - procedência'!V13 -> 1.047808765 | L13: ='CV Rotina <2A - procedência'!Z13 -> 0.4860557769 | M13: 1 | N13: 6 | O13: 7 | P13: 4
A14: Norte | B14: Barra de São Francisco | C14: ='CV Rotina <2A - procedência'!H14 -> 0.8842105263 | D14: ='CV Rotina <2A - procedência'!P14 -> 0.9342105263 | E14: ='CV Rotina <2A - procedência'!J14 -> 0.9 | F14: ='CV Rotina <2A - procedência'!L14 -> 0.8894736842 | G14: ='CV Rotina <2A - procedência'!N14 -> 0.9710526316 | H14: ='CV Rotina <2A - procedência'!X14 -> 1.002631579 | I14: ='CV Rotina <2A - procedência'!R14 -> 0.9131578947 | J14: ='CV Rotina <2A - procedência'!T14 -> 0.8289473684 | K14: ='CV Rotina <2A - procedência'!V14 -> 0.8105263158 | L14: ='CV Rotina <2A - procedência'!Z14 -> 0.4894736842 | M14: 1 | N14: 2 | O14: 3 | P14: 2
A15: Norte | B15: Boa Esperança | C15: ='CV Rotina <2A - procedência'!H15 -> 0.3597122302 | D15: ='CV Rotina <2A - procedência'!P15 -> 0.9856115108 | E15: ='CV Rotina <2A - procedência'!J15 -> 0.8273381295 | F15: ='CV Rotina <2A - procedência'!L15 -> 0.8561151079 | G15: ='CV Rotina <2A - procedência'!N15 -> 0.9496402878 | H15: ='CV Rotina <2A - procedência'!X15 -> 1.050359712 | I15: ='CV Rotina <2A - procedência'!R15 -> 0.8848920863 | J15: ='CV Rotina <2A - procedência'!T15 -> 0.7913669065 | K15: ='CV Rotina <2A - procedência'!V15 -> 0.7338129496 | L15: ='CV Rotina <2A - procedência'!Z15 -> 0.5899280576 | M15: 1 | N15: 1 | O15: 2 | P15: 1
A16: Sul | B16: Bom Jesus do Norte | C16: ='CV Rotina <2A - procedência'!H16 -> 0.8769230769 | D16: ='CV Rotina <2A - procedência'!P16 -> 1.169230769 | E16: ='CV Rotina <2A - procedência'!J16 -> 1.215384615 | F16: ='CV Rotina <2A - procedência'!L16 -> 1.184615385 | G16: ='CV Rotina <2A - procedência'!N16 -> 1.2 | H16: ='CV Rotina <2A - procedência'!X16 -> 1.538461538 | I16: ='CV Rotina <2A - procedência'!R16 -> 1.030769231 | J16: ='CV Rotina <2A - procedência'!T16 -> 0.9230769231 | K16: ='CV Rotina <2A - procedência'!V16 -> 0.9230769231 | L16: ='CV Rotina <2A - procedência'!Z16 -> 0.3538461538 | M16: 1 | N16: 5 | O16: 6 | P16: 4
A17: Metropolitana | B17: Brejetuba | C17: ='CV Rotina <2A - procedência'!H17 -> 0.795620438 | D17: ='CV Rotina <2A - procedência'!P17 -> 1.058394161 | E17: ='CV Rotina <2A - procedência'!J17 -> 1.03649635 | F17: ='CV Rotina <2A - procedência'!L17 -> 1.03649635 | G17: ='CV Rotina <2A - procedência'!N17 -> 1.02189781 | H17: ='CV Rotina <2A - procedência'!X17 -> 1.02919708 | I17: ='CV Rotina <2A - procedência'!R17 -> 0.9781021898 | J17: ='CV Rotina <2A - procedência'!T17 -> 0.897810219 | K17: ='CV Rotina <2A - procedência'!V17 -> 0.7737226277 | L17: ='CV Rotina <2A - procedência'!Z17 -> 0.4306569343 | M17: 1 | N17: 5 | O17: 6 | P17: 4
A18: Sul | B18: Cachoeiro de Itapemirim | C18: ='CV Rotina <2A - procedência'!H18 -> 2.003550296 | D18: ='CV Rotina <2A - procedência'!P18 -> 0.8905325444 | E18: ='CV Rotina <2A - procedência'!J18 -> 0.8579881657 | F18: ='CV Rotina <2A - procedência'!L18 -> 0.849704142 | G18: ='CV Rotina <2A - procedência'!N18 -> 0.9124260355 | H18: ='CV Rotina <2A - procedência'!X18 -> 0.9343195266 | I18: ='CV Rotina <2A - procedência'!R18 -> 0.8408284024 | J18: ='CV Rotina <2A - procedência'!T18 -> 0.6307692308 | K18: ='CV Rotina <2A - procedência'!V18 -> 0.8177514793 | L18: ='CV Rotina <2A - procedência'!Z18 -> 0.350887574 | M18: 1 | N18: 0 | O18: 1 | P18: 0
A19: Metropolitana | B19: Cariacica | C19: ='CV Rotina <2A - procedência'!H19 -> 0.5297118848 | D19: ='CV Rotina <2A - procedência'!P19 -> 0.8481392557 | E19: ='CV Rotina <2A - procedência'!J19 -> 0.8358343337 | F19: ='CV Rotina <2A - procedência'!L19 -> 0.8265306122 | G19: ='CV Rotina <2A - procedência'!N19 -> 0.8820528211 | H19: ='CV Rotina <2A - procedência'!X19 -> 0.9144657863 | I19: ='CV Rotina <2A - procedência'!R19 -> 0.8481392557 | J19: ='CV Rotina <2A - procedência'!T19 -> 0.6656662665 | K19: ='CV Rotina <2A - procedência'!V19 -> 0.6455582233 | L19: ='CV Rotina <2A - procedência'!Z19 -> 0.3391356543 | M19: 0 | N19: 0 | O19: 0 | P19: 0
A20: Sul | B20: Castelo | C20: ='CV Rotina <2A - procedência'!H20 -> 0.5514950166 | D20: ='CV Rotina <2A - procedência'!P20 -> 0.9302325581 | E20: ='CV Rotina <2A - procedência'!J20 -> 0.9468438538 | F20: ='CV Rotina <2A - procedência'!L20 -> 0.9468438538 | G20: ='CV Rotina <2A - procedência'!N20 -> 0.950166113 | H20: ='CV Rotina <2A - procedência'!X20 -> 1.07641196 | I20: ='CV Rotina <2A - procedência'!R20 -> 0.8903654485 | J20: ='CV Rotina <2A - procedência'!T20 -> 0.8305647841 | K20: ='CV Rotina <2A - procedência'!V20 -> 0.8073089701 | L20: ='CV Rotina <2A - procedência'!Z20 -> 0.488372093 | M20: 1 | N20: 2 | O20: 3 | P20: 2
A21: Central | B21: Colatina | C21: ='CV Rotina <2A - procedência'!H21 -> 2.120379147 | D21: ='CV Rotina <2A - procedência'!P21 -> 0.9090047393 | E21: ='CV Rotina <2A - procedência'!J21 -> 0.9298578199 | F21: ='CV Rotina <2A - procedência'!L21 -> 0.9203791469 | G21: ='CV Rotina <2A - procedência'!N21 -> 0.9630331754 | H21: ='CV Rotina <2A - procedência'!X21 -> 1.033175355 | I21: ='CV Rotina <2A - procedência'!R21 -> 0.8862559242 | J21: ='CV Rotina <2A - procedência'!T21 -> 0.7601895735 | K21: ='CV Rotina <2A - procedência'!V21 -> 0.6739336493 | L21: ='CV Rotina <2A - procedência'!Z21 -> 0.5014218009 | M21: 2 | N21: 2 | O21: 4 | P21: 2
A22: Norte | B22: Conceição da Barra | C22: ='CV Rotina <2A - procedência'!H22 -> 0.05905511811 | D22: ='CV Rotina <2A - procedência'!P22 -> 0.9960629921 | E22: ='CV Rotina <2A - procedência'!J22 -> 0.9409448819 | F22: ='CV Rotina <2A - procedência'!L22 -> 0.9448818898 | G22: ='CV Rotina <2A - procedência'!N22 -> 1.015748031 | H22: ='CV Rotina <2A - procedência'!X22 -> 1.023622047 | I22: ='CV Rotina <2A - procedência'!R22 -> 0.9763779528 | J22: ='CV Rotina <2A - procedência'!T22 -> 0.8976377953 | K22: ='CV Rotina <2A - procedência'!V22 -> 0.7716535433 | L22: ='CV Rotina <2A - procedência'!Z22 -> 0.4803149606 | M22: 1 | N22: 3 | O22: 4 | P22: 2
A23: Metropolitana | B23: Conceição do Castelo | C23: ='CV Rotina <2A - procedência'!H23 -> 0 | D23: ='CV Rotina <2A - procedência'!P23 -> 0.8532110092 | E23: ='CV Rotina <2A - procedência'!J23 -> 0.8256880734 | F23: ='CV Rotina <2A - procedência'!L23 -> 0.8073394495 | G23: ='CV Rotina <2A - procedência'!N23 -> 0.880733945 | H23: ='CV Rotina <2A - procedência'!X23 -> 0.880733945 | I23: ='CV Rotina <2A - procedência'!R23 -> 0.8256880734 | J23: ='CV Rotina <2A - procedência'!T23 -> 0.9266055046 | K23: ='CV Rotina <2A - procedência'!V23 -> 0.8899082569 | L23: ='CV Rotina <2A - procedência'!Z23 -> 0.5412844037 | M23: 0 | N23: 0 | O23: 0 | P23: 0
A24: Sul | B24: Divino de São Lourenço | C24: ='CV Rotina <2A - procedência'!H24 -> 0.8260869565 | D24: ='CV Rotina <2A - procedência'!P24 -> 1.173913043 | E24: ='CV Rotina <2A - procedência'!J24 -> 1.195652174 | F24: ='CV Rotina <2A - procedência'!L24 -> 1.173913043 | G24: ='CV Rotina <2A - procedência'!N24 -> 1.195652174 | H24: ='CV Rotina <2A - procedência'!X24 -> 0.8695652174 | I24: ='CV Rotina <2A - procedência'!R24 -> 1.195652174 | J24: ='CV Rotina <2A - procedência'!T24 -> 0.9347826087 | K24: ='CV Rotina <2A - procedência'!V24 -> 0.7608695652 | L24: ='CV Rotina <2A - procedência'!Z24 -> 0.5434782609 | M24: 1 | N24: 4 | O24: 5 | P24: 3
A25: Metropolitana | B25: Domingos Martins | C25: ='CV Rotina <2A - procedência'!H25 -> 0.2074074074 | D25: ='CV Rotina <2A - procedência'!P25 -> 0.9925925926 | E25: ='CV Rotina <2A - procedência'!J25 -> 0.9518518519 | F25: ='CV Rotina <2A - procedência'!L25 -> 0.9518518519 | G25: ='CV Rotina <2A - procedência'!N25 -> 1.007407407 | H25: ='CV Rotina <2A - procedência'!X25 -> 1.02962963 | I25: ='CV Rotina <2A - procedência'!R25 -> 0.9407407407 | J25: ='CV Rotina <2A - procedência'!T25 -> 0.8555555556 | K25: ='CV Rotina <2A - procedência'!V25 -> 0.8888888889 | L25: ='CV Rotina <2A - procedência'!Z25 -> 0.6481481481 | M25: 1 | N25: 4 | O25: 5 | P25: 4
A26: Sul | B26: Dores do Rio Preto | C26: ='CV Rotina <2A - procedência'!H26 -> 0.6764705882 | D26: ='CV Rotina <2A - procedência'!P26 -> 1.058823529 | E26: ='CV Rotina <2A - procedência'!J26 -> 1.029411765 | F26: ='CV Rotina <2A - procedência'!L26 -> 1.073529412 | G26: ='CV Rotina <2A - procedência'!N26 -> 1.102941176 | H26: ='CV Rotina <2A - procedência'!X26 -> 1.147058824 | I26: ='CV Rotina <2A - procedência'!R26 -> 1 | J26: ='CV Rotina <2A - procedência'!T26 -> 0.8823529412 | K26: ='CV Rotina <2A - procedência'!V26 -> 0.8382352941 | L26: ='CV Rotina <2A - procedência'!Z26 -> 0.4264705882 | M26: 1 | N26: 5 | O26: 6 | P26: 4
A27: Norte | B27: Ecoporanga | C27: ='CV Rotina <2A - procedência'!H27 -> 0.4761904762 | D27: ='CV Rotina <2A - procedência'!P27 -> 0.8624338624 | E27: ='CV Rotina <2A - procedência'!J27 -> 0.8412698413 | F27: ='CV Rotina <2A - procedência'!L27 -> 0.8253968254 | G27: ='CV Rotina <2A - procedência'!N27 -> 0.9100529101 | H27: ='CV Rotina <2A - procedência'!X27 -> 0.9470899471 | I27: ='CV Rotina <2A - procedência'!R27 -> 0.835978836 | J27: ='CV Rotina <2A - procedência'!T27 -> 0.7407407407 | K27: ='CV Rotina <2A - procedência'!V27 -> 0.8042328042 | L27: ='CV Rotina <2A - procedência'!Z27 -> 0.5132275132 | M27: 0 | N27: 0 | O27: 0 | P27: 0
A28: Metropolitana | B28: Fundão | C28: ='CV Rotina <2A - procedência'!H28 -> 0.417721519 | D28: ='CV Rotina <2A - procedência'!P28 -> 1.037974684 | E28: ='CV Rotina <2A - procedência'!J28 -> 0.9873417722 | F28: ='CV Rotina <2A - procedência'!L28 -> 0.9873417722 | G28: ='CV Rotina <2A - procedência'!N28 -> 1.037974684 | H28: ='CV Rotina <2A - procedência'!X28 -> 0.8607594937 | I28: ='CV Rotina <2A - procedência'!R28 -> 0.917721519 | J28: ='CV Rotina <2A - procedência'!T28 -> 0.7278481013 | K28: ='CV Rotina <2A - procedência'!V28 -> 0.9936708861 | L28: ='CV Rotina <2A - procedência'!Z28 -> 0.582278481 | M28: 1 | N28: 4 | O28: 5 | P28: 3
A29: Central | B29: Governador Lindenberg | C29: ='CV Rotina <2A - procedência'!H29 -> 0.1951219512 | D29: ='CV Rotina <2A - procedência'!P29 -> 0.9756097561 | E29: ='CV Rotina <2A - procedência'!J29 -> 1.036585366 | F29: ='CV Rotina <2A - procedência'!L29 -> 1 | G29: ='CV Rotina <2A - procedência'!N29 -> 0.9512195122 | H29: ='CV Rotina <2A - procedência'!X29 -> 1.134146341 | I29: ='CV Rotina <2A - procedência'!R29 -> 1.024390244 | J29: ='CV Rotina <2A - procedência'!T29 -> 1.06097561 | K29: ='CV Rotina <2A - procedência'!V29 -> 1.012195122 | L29: ='CV Rotina <2A - procedência'!Z29 -> 0.5487804878 | M29: 1 | N29: 7 | O29: 8 | P29: 4
A30: Sul | B30: Guaçuí | C30: ='CV Rotina <2A - procedência'!H30 -> 0.5622641509 | D30: ='CV Rotina <2A - procedência'!P30 -> 0.9056603774 | E30: ='CV Rotina <2A - procedência'!J30 -> 0.9735849057 | F30: ='CV Rotina <2A - procedência'!L30 -> 0.9471698113 | G30: ='CV Rotina <2A - procedência'!N30 -> 0.9773584906 | H30: ='CV Rotina <2A - procedência'!X30 -> 1.116981132 | I30: ='CV Rotina <2A - procedência'!R30 -> 0.8754716981 | J30: ='CV Rotina <2A - procedência'!T30 -> 0.7433962264 | K30: ='CV Rotina <2A - procedência'!V30 -> 0.8716981132 | L30: ='CV Rotina <2A - procedência'!Z30 -> 0.3811320755 | M30: 1 | N30: 3 | O30: 4 | P30: 3
A31: Metropolitana | B31: Guarapari | C31: ='CV Rotina <2A - procedência'!H31 -> 0.9054820416 | D31: ='CV Rotina <2A - procedência'!P31 -> 0.9310018904 | E31: ='CV Rotina <2A - procedência'!J31 -> 0.870510397 | F31: ='CV Rotina <2A - procedência'!L31 -> 0.8449905482 | G31: ='CV Rotina <2A - procedência'!N31 -> 0.9744801512 | H31: ='CV Rotina <2A - procedência'!X31 -> 0.9508506616 | I31: ='CV Rotina <2A - procedência'!R31 -> 0.8941398866 | J31: ='CV Rotina <2A - procedência'!T31 -> 0.6578449905 | K31: ='CV Rotina <2A - procedência'!V31 -> 0.8402646503 | L31: ='CV Rotina <2A - procedência'!Z31 -> 0.4754253308 | M31: 2 | N31: 2 | O31: 4 | P31: 2
A32: Metropolitana | B32: Ibatiba | C32: ='CV Rotina <2A - procedência'!H32 -> 0.8947368421 | D32: ='CV Rotina <2A - procedência'!P32 -> 0.979757085 | E32: ='CV Rotina <2A - procedência'!J32 -> 1.020242915 | F32: ='CV Rotina <2A - procedência'!L32 -> 1.020242915 | G32: ='CV Rotina <2A - procedência'!N32 -> 1.024291498 | H32: ='CV Rotina <2A - procedência'!X32 -> 1.072874494 | I32: ='CV Rotina <2A - procedência'!R32 -> 1.008097166 | J32: ='CV Rotina <2A - procedência'!T32 -> 0.9230769231 | K32: ='CV Rotina <2A - procedência'!V32 -> 0.9230769231 | L32: ='CV Rotina <2A - procedência'!Z32 -> 0.2226720648 | M32: 1 | N32: 5 | O32: 6 | P32: 4
A33: Metropolitana | B33: Ibiraçu | C33: ='CV Rotina <2A - procedência'!H33 -> 0.1623931624 | D33: ='CV Rotina <2A - procedência'!P33 -> 0.7777777778 | E33: ='CV Rotina <2A - procedência'!J33 -> 0.7094017094 | F33: ='CV Rotina <2A - procedência'!L33 -> 0.7008547009 | G33: ='CV Rotina <2A - procedência'!N33 -> 0.7863247863 | H33: ='CV Rotina <2A - procedência'!X33 -> 0.8461538462 | I33: ='CV Rotina <2A - procedência'!R33 -> 0.8205128205 | J33: ='CV Rotina <2A - procedência'!T33 -> 0.735042735 | K33: ='CV Rotina <2A - procedência'!V33 -> 0.6581196581 | L33: ='CV Rotina <2A - procedência'!Z33 -> 0.3760683761 | M33: 0 | N33: 0 | O33: 0 | P33: 0
A34: Sul | B34: Ibitirama | C34: ='CV Rotina <2A - procedência'!H34 -> 0.6288659794 | D34: ='CV Rotina <2A - procedência'!P34 -> 0.8865979381 | E34: ='CV Rotina <2A - procedência'!J34 -> 0.824742268 | F34: ='CV Rotina <2A - procedência'!L34 -> 0.8659793814 | G34: ='CV Rotina <2A - procedência'!N34 -> 0.8762886598 | H34: ='CV Rotina <2A - procedência'!X34 -> 1.020618557 | I34: ='CV Rotina <2A - procedência'!R34 -> 0.7422680412 | J34: ='CV Rotina <2A - procedência'!T34 -> 0.6494845361 | K34: ='CV Rotina <2A - procedência'!V34 -> 0.8659793814 | L34: ='CV Rotina <2A - procedência'!Z34 -> 0.4948453608 | M34: 0 | N34: 1 | O34: 1 | P34: 1
A35: Sul | B35: Iconha | C35: ='CV Rotina <2A - procedência'!H35 -> 0.3417721519 | D35: ='CV Rotina <2A - procedência'!P35 -> 0.9873417722 | E35: ='CV Rotina <2A - procedência'!J35 -> 0.9240506329 | F35: ='CV Rotina <2A - procedência'!L35 -> 0.8987341772 | G35: ='CV Rotina <2A - procedência'!N35 -> 0.9620253165 | H35: ='CV Rotina <2A - procedência'!X35 -> 1.329113924 | I35: ='CV Rotina <2A - procedência'!R35 -> 0.9113924051 | J35: ='CV Rotina <2A - procedência'!T35 -> 1.063291139 | K35: ='CV Rotina <2A - procedência'!V35 -> 1.101265823 | L35: ='CV Rotina <2A - procedência'!Z35 -> 0.3797468354 | M35: =COUNTIF(C35:D35,">=0,9") -> 1 | N35: =COUNTIFS(E35:L35,">=0,95") -> 4 | O35: 5 | P35: 2
A36: Sul | B36: Irupi | C36: ='CV Rotina <2A - procedência'!H36 -> 0.6258503401 | D36: ='CV Rotina <2A - procedência'!P36 -> 1.027210884 | E36: ='CV Rotina <2A - procedência'!J36 -> 0.9523809524 | F36: ='CV Rotina <2A - procedência'!L36 -> 0.9455782313 | G36: ='CV Rotina <2A - procedência'!N36 -> 1.027210884 | H36: ='CV Rotina <2A - procedência'!X36 -> 1.074829932 | I36: ='CV Rotina <2A - procedência'!R36 -> 1.020408163 | J36: ='CV Rotina <2A - procedência'!T36 -> 0.8231292517 | K36: ='CV Rotina <2A - procedência'!V36 -> 0.8843537415 | L36: ='CV Rotina <2A - procedência'!Z36 -> 0.1972789116 | M36: 1 | N36: 4 | O36: 5 | P36: 3
A37: Metropolitana | B37: Itaguaçu | C37: ='CV Rotina <2A - procedência'!H37 -> 0.6326530612 | D37: ='CV Rotina <2A - procedência'!P37 -> 0.9693877551 | E37: ='CV Rotina <2A - procedência'!J37 -> 0.8469387755 | F37: ='CV Rotina <2A - procedência'!L37 -> 0.8469387755 | G37: ='CV Rotina <2A - procedência'!N37 -> 0.9693877551 | H37: ='CV Rotina <2A - procedência'!X37 -> 1.020408163 | I37: ='CV Rotina <2A - procedência'!R37 -> 0.9183673469 | J37: ='CV Rotina <2A - procedência'!T37 -> 0.9591836735 | K37: ='CV Rotina <2A - procedência'!V37 -> 1.010204082 | L37: ='CV Rotina <2A - procedência'!Z37 -> 0.6632653061 | M37: 1 | N37: 4 | O37: 5 | P37: 2
A38: Sul | B38: Itapemirim | C38: ='CV Rotina <2A - procedência'!H38 -> 0.4717514124 | D38: ='CV Rotina <2A - procedência'!P38 -> 0.8333333333 | E38: ='CV Rotina <2A - procedência'!J38 -> 0.8728813559 | F38: ='CV Rotina <2A - procedência'!L38 -> 0.8644067797 | G38: ='CV Rotina <2A - procedência'!N38 -> 0.9152542373 | H38: ='CV Rotina <2A - procedência'!X38 -> 0.9209039548 | I38: ='CV Rotina <2A - procedência'!R38 -> 0.8531073446 | J38: ='CV Rotina <2A - procedência'!T38 -> 0.5282485876 | K38: ='CV Rotina <2A - procedência'!V38 -> 0.7796610169 | L38: ='CV Rotina <2A - procedência'!Z38 -> 0.3813559322 | M38: 0 | N38: 0 | O38: 0 | P38: 0
A39: Metropolitana | B39: Itarana | C39: ='CV Rotina <2A - procedência'!H39 -> 0.8910891089 | D39: ='CV Rotina <2A - procedência'!P39 -> 0.8613861386 | E39: ='CV Rotina <2A - procedência'!J39 -> 0.8613861386 | F39: ='CV Rotina <2A - procedência'!L39 -> 0.8514851485 | G39: ='CV Rotina <2A - procedência'!N39 -> 0.8415841584 | H39: ='CV Rotina <2A - procedência'!X39 -> 0.9108910891 | I39: ='CV Rotina <2A - procedência'!R39 -> 0.7722772277 | J39: ='CV Rotina <2A - procedência'!T39 -> 0.8415841584 | K39: ='CV Rotina <2A - procedência'!V39 -> 0.6138613861 | L39: ='CV Rotina <2A - procedência'!Z39 -> 0.5841584158 | M39: 0 | N39: 0 | O39: 0 | P39: 0
A40: Sul | B40: Iúna | C40: ='CV Rotina <2A - procedência'!H40 -> 0.678343949 | D40: ='CV Rotina <2A - procedência'!P40 -> 0.9363057325 | E40: ='CV Rotina <2A - procedência'!J40 -> 0.949044586 | F40: ='CV Rotina <2A - procedência'!L40 -> 0.9426751592 | G40: ='CV Rotina <2A - procedência'!N40 -> 0.9426751592 | H40: ='CV Rotina <2A - procedência'!X40 -> 0.9331210191 | I40: ='CV Rotina <2A - procedência'!R40 -> 0.8853503185 | J40: ='CV Rotina <2A - procedência'!T40 -> 0.8789808917 | K40: ='CV Rotina <2A - procedência'!V40 -> 0.7006369427 | L40: ='CV Rotina <2A - procedência'!Z40 -> 0.4649681529 | M40: 1 | N40: 0 | O40: 1 | P40: 0
A41: Norte | B41: Jaguaré | C41: ='CV Rotina <2A - procedência'!H41 -> 0.7975077882 | D41: ='CV Rotina <2A - procedência'!P41 -> 0.8940809969 | E41: ='CV Rotina <2A - procedência'!J41 -> 0.9314641745 | F41: ='CV Rotina <2A - procedência'!L41 -> 0.9221183801 | G41: ='CV Rotina <2A - procedência'!N41 -> 0.9034267913 | H41: ='CV Rotina <2A - procedência'!X41 -> 1.040498442 | I41: ='CV Rotina <2A - procedência'!R41 -> 0.8971962617 | J41: ='CV Rotina <2A - procedência'!T41 -> 0.8535825545 | K41: ='CV Rotina <2A - procedência'!V41 -> 0.8193146417 | L41: ='CV Rotina <2A - procedência'!Z41 -> 0.3987538941 | M41: 0 | N41: 1 | O41: 1 | P41: 1
A42: Sul | B42: Jerônimo Monteiro | C42: ='CV Rotina <2A - procedência'!H42 -> 0.1078431373 | D42: ='CV Rotina <2A - procedência'!P42 -> 0.9705882353 | E42: ='CV Rotina <2A - procedência'!J42 -> 1.078431373 | F42: ='CV Rotina <2A - procedência'!L42 -> 1.078431373 | G42: ='CV Rotina <2A - procedência'!N42 -> 0.9803921569 | H42: ='CV Rotina <2A - procedência'!X42 -> 1.029411765 | I42: ='CV Rotina <2A - procedência'!R42 -> 0.9803921569 | J42: ='CV Rotina <2A - procedência'!T42 -> 1.019607843 | K42: ='CV Rotina <2A - procedência'!V42 -> 1.078431373 | L42: ='CV Rotina <2A - procedência'!Z42 -> 0.3137254902 | M42: 1 | N42: 7 | O42: 8 | P42: 4
A43: Metropolitana | B43: João Neiva | C43: ='CV Rotina <2A - procedência'!H43 -> 0.2882882883 | D43: ='CV Rotina <2A - procedência'!P43 -> 1.027027027 | E43: ='CV Rotina <2A - procedência'!J43 -> 0.9279279279 | F43: ='CV Rotina <2A - procedência'!L43 -> 0.9459459459 | G43: ='CV Rotina <2A - procedência'!N43 -> 1.027027027 | H43: ='CV Rotina <2A - procedência'!X43 -> 1.207207207 | I43: ='CV Rotina <2A - procedência'!R43 -> 0.9099099099 | J43: ='CV Rotina <2A - procedência'!T43 -> 0.990990991 | K43: ='CV Rotina <2A - procedência'!V43 -> 0.9279279279 | L43: ='CV Rotina <2A - procedência'!Z43 -> 0.5045045045 | M43: 1 | N43: 3 | O43: 4 | P43: 2
A44: Metropolitana | B44: Laranja da Terra | C44: ='CV Rotina <2A - procedência'!H44 -> 0.8709677419 | D44: ='CV Rotina <2A - procedência'!P44 -> 0.9677419355 | E44: ='CV Rotina <2A - procedência'!J44 -> 1.032258065 | F44: ='CV Rotina <2A - procedência'!L44 -> 1.032258065 | G44: ='CV Rotina <2A - procedência'!N44 -> 0.9838709677 | H44: ='CV Rotina <2A - procedência'!X44 -> 1.516129032 | I44: ='CV Rotina <2A - procedência'!R44 -> 1.032258065 | J44: ='CV Rotina <2A - procedência'!T44 -> 1.306451613 | K44: ='CV Rotina <2A - procedência'!V44 -> 1.35483871 | L44: ='CV Rotina <2A - procedência'!Z44 -> 1.032258065 | M44: 1 | N44: 8 | O44: 9 | P44: 4
A45: Central | B45: Linhares | C45: ='CV Rotina <2A - procedência'!H45 -> 0.8951701427 | D45: ='CV Rotina <2A - procedência'!P45 -> 0.8287596048 | E45: ='CV Rotina <2A - procedência'!J45 -> 0.7892425906 | F45: ='CV Rotina <2A - procedência'!L45 -> 0.7870472009 | G45: ='CV Rotina <2A - procedência'!N45 -> 0.8199780461 | H45: ='CV Rotina <2A - procedência'!X45 -> 0.8408342481 | I45: ='CV Rotina <2A - procedência'!R45 -> 0.8018660812 | J45: ='CV Rotina <2A - procedência'!T45 -> 0.6635565313 | K45: ='CV Rotina <2A - procedência'!V45 -> 0.7557628979 | L45: ='CV Rotina <2A - procedência'!Z45 -> 0.4039517014 | M45: 0 | N45: 0 | O45: 0 | P45: 0
A46: Central | B46: Mantenópolis | C46: ='CV Rotina <2A - procedência'!H46 -> 0.5094339623 | D46: ='CV Rotina <2A - procedência'!P46 -> 0.8490566038 | E46: ='CV Rotina <2A - procedência'!J46 -> 0.9150943396 | F46: ='CV Rotina <2A - procedência'!L46 -> 0.9528301887 | G46: ='CV Rotina <2A - procedência'!N46 -> 0.8773584906 | H46: ='CV Rotina <2A - procedência'!X46 -> 1.08490566 | I46: ='CV Rotina <2A - procedência'!R46 -> 0.820754717 | J46: ='CV Rotina <2A - procedência'!T46 -> 0.8773584906 | K46: ='CV Rotina <2A - procedência'!V46 -> 0.8867924528 | L46: ='CV Rotina <2A - procedência'!Z46 -> 0.5188679245 | M46: 0 | N46: 2 | O46: 2 | P46: 2
A47: Sul | B47: Marataízes | C47: ='CV Rotina <2A - procedência'!H47 -> 0.4187817259 | D47: ='CV Rotina <2A - procedência'!P47 -> 0.9644670051 | E47: ='CV Rotina <2A - procedência'!J47 -> 0.9441624365 | F47: ='CV Rotina <2A - procedência'!L47 -> 0.9441624365 | G47: ='CV Rotina <2A - procedência'!N47 -> 1.015228426 | H47: ='CV Rotina <2A - procedência'!X47 -> 0.9974619289 | I47: ='CV Rotina <2A - procedência'!R47 -> 0.9720812183 | J47: ='CV Rotina <2A - procedência'!T47 -> 0.6319796954 | K47: ='CV Rotina <2A - procedência'!V47 -> 0.9441624365 | L47: ='CV Rotina <2A - procedência'!Z47 -> 0.4492385787 | M47: 1 | N47: 3 | O47: 4 | P47: 2
A48: Metropolitana | B48: Marechal Floriano | C48: ='CV Rotina <2A - procedência'!H48 -> 0.2158273381 | D48: ='CV Rotina <2A - procedência'!P48 -> 1.043165468 | E48: ='CV Rotina <2A - procedência'!J48 -> 0.9568345324 | F48: ='CV Rotina <2A - procedência'!L48 -> 0.9496402878 | G48: ='CV Rotina <2A - procedência'!N48 -> 1.057553957 | H48: ='CV Rotina <2A - procedência'!X48 -> 1.09352518 | I48: ='CV Rotina <2A - procedência'!R48 -> 1.043165468 | J48: ='CV Rotina <2A - procedência'!T48 -> 0.8057553957 | K48: ='CV Rotina <2A - procedência'!V48 -> 1.079136691 | L48: ='CV Rotina <2A - procedência'!Z48 -> 0.7625899281 | M48: 1 | N48: 5 | O48: 6 | P48: 3
A49: Central | B49: Marilândia | C49: ='CV Rotina <2A - procedência'!H49 -> 0.3571428571 | D49: ='CV Rotina <2A - procedência'!P49 -> 0.8928571429 | E49: ='CV Rotina <2A - procedência'!J49 -> 0.7857142857 | F49: ='CV Rotina <2A - procedência'!L49 -> 0.7857142857 | G49: ='CV Rotina <2A - procedência'!N49 -> 0.7946428571 | H49: ='CV Rotina <2A - procedência'!X49 -> 0.8392857143 | I49: ='CV Rotina <2A - procedência'!R49 -> 0.7946428571 | J49: ='CV Rotina <2A - procedência'!T49 -> 0.8660714286 | K49: ='CV Rotina <2A - procedência'!V49 -> 0.7857142857 | L49: ='CV Rotina <2A - procedência'!Z49 -> 0.5625 | M49: 0 | N49: 0 | O49: 0 | P49: 0
A50: Sul | B50: Mimoso do Sul | C50: ='CV Rotina <2A - procedência'!H50 -> 0.1712707182 | D50: ='CV Rotina <2A - procedência'!P50 -> 0.6574585635 | E50: ='CV Rotina <2A - procedência'!J50 -> 0.7182320442 | F50: ='CV Rotina <2A - procedência'!L50 -> 0.7127071823 | G50: ='CV Rotina <2A - procedência'!N50 -> 0.679558011 | H50: ='CV Rotina <2A - procedência'!X50 -> 0.8232044199 | I50: ='CV Rotina <2A - procedência'!R50 -> 0.6740331492 | J50: ='CV Rotina <2A - procedência'!T50 -> 0.6464088398 | K50: ='CV Rotina <2A - procedência'!V50 -> 0.635359116 | L50: ='CV Rotina <2A - procedência'!Z50 -> 0.4364640884 | M50: 0 | N50: 0 | O50: 0 | P50: 0
A51: Norte | B51: Montanha | C51: ='CV Rotina <2A - procedência'!H51 -> 0.3818181818 | D51: ='CV Rotina <2A - procedência'!P51 -> 1.054545455 | E51: ='CV Rotina <2A - procedência'!J51 -> 1.151515152 | F51: ='CV Rotina <2A - procedência'!L51 -> 1.163636364 | G51: ='CV Rotina <2A - procedência'!N51 -> 1.054545455 | H51: ='CV Rotina <2A - procedência'!X51 -> 1.16969697 | I51: ='CV Rotina <2A - procedência'!R51 -> 1.072727273 | J51: ='CV Rotina <2A - procedência'!T51 -> 1.084848485 | K51: ='CV Rotina <2A - procedência'!V51 -> 1.054545455 | L51: ='CV Rotina <2A - procedência'!Z51 -> 0.5878787879 | M51: 1 | N51: 7 | O51: 8 | P51: 4
A52: Norte | B52: Mucurici | C52: ='CV Rotina <2A - procedência'!H52 -> 0.1914893617 | D52: ='CV Rotina <2A - procedência'!P52 -> 1.085106383 | E52: ='CV Rotina <2A - procedência'!J52 -> 1.191489362 | F52: ='CV Rotina <2A - procedência'!L52 -> 1.191489362 | G52: ='CV Rotina <2A - procedência'!N52 -> 1.106382979 | H52: ='CV Rotina <2A - procedência'!X52 -> 1.319148936 | I52: ='CV Rotina <2A - procedência'!R52 -> 1.085106383 | J52: ='CV Rotina <2A - procedência'!T52 -> 1.29787234 | K52: ='CV Rotina <2A - procedência'!V52 -> 0.914893617 | L52: ='CV Rotina <2A - procedência'!Z52 -> 0.5744680851 | M52: 1 | N52: 6 | O52: 7 | P52: 4
A53: Sul | B53: Muniz Freire | C53: ='CV Rotina <2A - procedência'!H53 -> 0.6551724138 | D53: ='CV Rotina <2A - procedência'!P53 -> 1.062068966 | E53: ='CV Rotina <2A - procedência'!J53 -> 1.048275862 | F53: ='CV Rotina <2A - procedência'!L53 -> 1.013793103 | G53: ='CV Rotina <2A - procedência'!N53 -> 1.055172414 | H53: ='CV Rotina <2A - procedência'!X53 -> 1.213793103 | I53: ='CV Rotina <2A - procedência'!R53 -> 1.013793103 | J53: ='CV Rotina <2A - procedência'!T53 -> 1.055172414 | K53: ='CV Rotina <2A - procedência'!V53 -> 1.075862069 | L53: ='CV Rotina <2A - procedência'!Z53 -> 0.4689655172 | M53: 1 | N53: 7 | O53: 8 | P53: 4
A54: Sul | B54: Muqui | C54: ='CV Rotina <2A - procedência'!H54 -> 0.1271186441 | D54: ='CV Rotina <2A - procedência'!P54 -> 0.8220338983 | E54: ='CV Rotina <2A - procedência'!J54 -> 0.9661016949 | F54: ='CV Rotina <2A - procedência'!L54 -> 0.9661016949 | G54: ='CV Rotina <2A - procedência'!N54 -> 0.8220338983 | H54: ='CV Rotina <2A - procedência'!X54 -> 1.033898305 | I54: ='CV Rotina <2A - procedência'!R54 -> 0.9237288136 | J54: ='CV Rotina <2A - procedência'!T54 -> 0.9322033898 | K54: ='CV Rotina <2A - procedência'!V54 -> 0.7457627119 | L54: ='CV Rotina <2A - procedência'!Z54 -> 0.4152542373 | M54: 0 | N54: 3 | O54: 3 | P54: 3
A55: Norte | B55: Nova Venécia | C55: ='CV Rotina <2A - procedência'!H55 -> 0.5698924731 | D55: ='CV Rotina <2A - procedência'!P55 -> 0.847311828 | E55: ='CV Rotina <2A - procedência'!J55 -> 0.9053763441 | F55: ='CV Rotina <2A - procedência'!L55 -> 0.9010752688 | G55: ='CV Rotina <2A - procedência'!N55 -> 0.8451612903 | H55: ='CV Rotina <2A - procedência'!X55 -> 1.034408602 | I55: ='CV Rotina <2A - procedência'!R55 -> 0.8967741935 | J55: ='CV Rotina <2A - procedência'!T55 -> 0.888172043 | K55: ='CV Rotina <2A - procedência'!V55 -> 0.7978494624 | L55: ='CV Rotina <2A - procedência'!Z55 -> 0.4623655914 | M55: 0 | N55: 1 | O55: 1 | P55: 1
A56: Central | B56: Pancas | C56: ='CV Rotina <2A - procedência'!H56 -> 0.4689655172 | D56: ='CV Rotina <2A - procedência'!P56 -> 0.9172413793 | E56: ='CV Rotina <2A - procedência'!J56 -> 0.9931034483 | F56: ='CV Rotina <2A - procedência'!L56 -> 0.9931034483 | G56: ='CV Rotina <2A - procedência'!N56 -> 0.9310344828 | H56: ='CV Rotina <2A - procedência'!X56 -> 0.9448275862 | I56: ='CV Rotina <2A - procedência'!R56 -> 1.013793103 | J56: ='CV Rotina <2A - procedência'!T56 -> 0.9448275862 | K56: ='CV Rotina <2A - procedência'!V56 -> 0.924137931 | L56: ='CV Rotina <2A - procedência'!Z56 -> 0.7517241379 | M56: 1 | N56: 3 | O56: 4 | P56: 2
A57: Norte | B57: Pedro Canário | C57: ='CV Rotina <2A - procedência'!H57 -> 0.06060606061 | D57: ='CV Rotina <2A - procedência'!P57 -> 0.9047619048 | E57: ='CV Rotina <2A - procedência'!J57 -> 0.9264069264 | F57: ='CV Rotina <2A - procedência'!L57 -> 0.9264069264 | G57: ='CV Rotina <2A - procedência'!N57 -> 0.9220779221 | H57: ='CV Rotina <2A - procedência'!X57 -> 1.082251082 | I57: ='CV Rotina <2A - procedência'!R57 -> 0.9177489177 | J57: ='CV Rotina <2A - procedência'!T57 -> 0.8095238095 | K57: ='CV Rotina <2A - procedência'!V57 -> 0.6623376623 | L57: ='CV Rotina <2A - procedência'!Z57 -> 0.5281385281 | M57: 1 | N57: 1 | O57: 2 | P57: 1
A58: Norte | B58: Pinheiros | C58: ='CV Rotina <2A - procedência'!H58 -> 0.04054054054 | D58: ='CV Rotina <2A - procedência'!P58 -> 0.9459459459 | E58: ='CV Rotina <2A - procedência'!J58 -> 1.036036036 | F58: ='CV Rotina <2A - procedência'!L58 -> 1.031531532 | G58: ='CV Rotina <2A - procedência'!N58 -> 0.9504504505 | H58: ='CV Rotina <2A - procedência'!X58 -> 0.9414414414 | I58: ='CV Rotina <2A - procedência'!R58 -> 0.9234234234 | J58: ='CV Rotina <2A - procedência'!T58 -> 0.8198198198 | K58: ='CV Rotina <2A - procedência'!V58 -> 0.7657657658 | L58: ='CV Rotina <2A - procedência'!Z58 -> 0.3333333333 | M58: 1 | N58: 3 | O58: 4 | P58: 3
A59: Sul | B59: Piúma | C59: ='CV Rotina <2A - procedência'!H59 -> 0.6269430052 | D59: ='CV Rotina <2A - procedência'!P59 -> 0.9430051813 | E59: ='CV Rotina <2A - procedência'!J59 -> 0.9430051813 | F59: ='CV Rotina <2A - procedência'!L59 -> 0.9378238342 | G59: ='CV Rotina <2A - procedência'!N59 -> 1.010362694 | H59: ='CV Rotina <2A - procedência'!X59 -> 0.9430051813 | I59: ='CV Rotina <2A - procedência'!R59 -> 0.8393782383 | J59: ='CV Rotina <2A - procedência'!T59 -> 0.6373056995 | K59: ='CV Rotina <2A - procedência'!V59 -> 0.8186528497 | L59: ='CV Rotina <2A - procedência'!Z59 -> 0.3989637306 | M59: 1 | N59: 1 | O59: 2 | P59: 1
A60: Norte | B60: Ponto Belo | C60: ='CV Rotina <2A - procedência'!H60 -> 0.14 | D60: ='CV Rotina <2A - procedência'!P60 -> 0.96 | E60: ='CV Rotina <2A - procedência'!J60 -> 0.94 | F60: ='CV Rotina <2A - procedência'!L60 -> 0.92 | G60: ='CV Rotina <2A - procedência'!N60 -> 0.94 | H60: ='CV Rotina <2A - procedência'!X60 -> 1.22 | I60: ='CV Rotina <2A - procedência'!R60 -> 0.88 | J60: ='CV Rotina <2A - procedência'!T60 -> 0.92 | K60: ='CV Rotina <2A - procedência'!V60 -> 0.66 | L60: ='CV Rotina <2A - procedência'!Z60 -> 0.46 | M60: 1 | N60: 1 | O60: 2 | P60: 1
A61: Sul | B61: Presidente Kennedy | C61: ='CV Rotina <2A - procedência'!H61 -> 0.08759124088 | D61: ='CV Rotina <2A - procedência'!P61 -> 0.8832116788 | E61: ='CV Rotina <2A - procedência'!J61 -> 0.7883211679 | F61: ='CV Rotina <2A - procedência'!L61 -> 0.795620438 | G61: ='CV Rotina <2A - procedência'!N61 -> 0.8832116788 | H61: ='CV Rotina <2A - procedência'!X61 -> 1.138686131 | I61: ='CV Rotina <2A - procedência'!R61 -> 0.9051094891 | J61: ='CV Rotina <2A - procedência'!T61 -> 0.7372262774 | K61: ='CV Rotina <2A - procedência'!V61 -> 1.02919708 | L61: ='CV Rotina <2A - procedência'!Z61 -> 0.4598540146 | M61: 0 | N61: 2 | O61: 2 | P61: 1
A62: Central | B62: Rio Bananal | C62: ='CV Rotina <2A - procedência'!H62 -> 0.1827411168 | D62: ='CV Rotina <2A - procedência'!P62 -> 0.9695431472 | E62: ='CV Rotina <2A - procedência'!J62 -> 0.9289340102 | F62: ='CV Rotina <2A - procedência'!L62 -> 0.923857868 | G62: ='CV Rotina <2A - procedência'!N62 -> 0.9340101523 | H62: ='CV Rotina <2A - procedência'!X62 -> 1.162436548 | I62: ='CV Rotina <2A - procedência'!R62 -> 0.8172588832 | J62: ='CV Rotina <2A - procedência'!T62 -> 0.9593908629 | K62: ='CV Rotina <2A - procedência'!V62 -> 1.055837563 | L62: ='CV Rotina <2A - procedência'!Z62 -> 0.5482233503 | M62: 1 | N62: 3 | O62: 4 | P62: 1
A63: Sul | B63: Rio Novo do Sul | C63: ='CV Rotina <2A - procedência'!H63 -> 0.3661971831 | D63: ='CV Rotina <2A - procedência'!P63 -> 0.9577464789 | E63: ='CV Rotina <2A - procedência'!J63 -> 1.225352113 | F63: ='CV Rotina <2A - procedência'!L63 -> 1.197183099 | G63: ='CV Rotina <2A - procedência'!N63 -> 0.9436619718 | H63: ='CV Rotina <2A - procedência'!X63 -> 1.169014085 | I63: ='CV Rotina <2A - procedência'!R63 -> 1.070422535 | J63: ='CV Rotina <2A - procedência'!T63 -> 0.9436619718 | K63: ='CV Rotina <2A - procedência'!V63 -> 1.14084507 | L63: ='CV Rotina <2A - procedência'!Z63 -> 0.7183098592 | M63: 1 | N63: 5 | O63: 6 | P63: 3
A64: Metropolitana | B64: Santa Leopoldina | C64: ='CV Rotina <2A - procedência'!H64 -> 0.2741935484 | D64: ='CV Rotina <2A - procedência'!P64 -> 1.064516129 | E64: ='CV Rotina <2A - procedência'!J64 -> 1.112903226 | F64: ='CV Rotina <2A - procedência'!L64 -> 1.129032258 | G64: ='CV Rotina <2A - procedência'!N64 -> 1.016129032 | H64: ='CV Rotina <2A - procedência'!X64 -> 1.274193548 | I64: ='CV Rotina <2A - procedência'!R64 -> 1.129032258 | J64: ='CV Rotina <2A - procedência'!T64 -> 0.9677419355 | K64: ='CV Rotina <2A - procedência'!V64 -> 1.35483871 | L64: ='CV Rotina <2A - procedência'!Z64 -> 0.2096774194 | M64: 1 | N64: 7 | O64: 8 | P64: 4
A65: Metropolitana | B65: Santa Maria de Jetibá | C65: ='CV Rotina <2A - procedência'!H65 -> 0.8535353535 | D65: ='CV Rotina <2A - procedência'!P65 -> 1.015151515 | E65: ='CV Rotina <2A - procedência'!J65 -> 0.9595959596 | F65: ='CV Rotina <2A - procedência'!L65 -> 0.9570707071 | G65: ='CV Rotina <2A - procedência'!N65 -> 0.9924242424 | H65: ='CV Rotina <2A - procedência'!X65 -> 1.083333333 | I65: ='CV Rotina <2A - procedência'!R65 -> 1.002525253 | J65: ='CV Rotina <2A - procedência'!T65 -> 0.7904040404 | K65: ='CV Rotina <2A - procedência'!V65 -> 1.083333333 | L65: ='CV Rotina <2A - procedência'!Z65 -> 0.4545454545 | M65: 1 | N65: 6 | O65: 7 | P65: 4
A66: Metropolitana | B66: Santa Teresa | C66: ='CV Rotina <2A - procedência'!H66 -> 0.6981132075 | D66: ='CV Rotina <2A - procedência'!P66 -> 0.8962264151 | E66: ='CV Rotina <2A - procedência'!J66 -> 0.9103773585 | F66: ='CV Rotina <2A - procedência'!L66 -> 0.9150943396 | G66: ='CV Rotina <2A - procedência'!N66 -> 0.9339622642 | H66: ='CV Rotina <2A - procedência'!X66 -> 0.9056603774 | I66: ='CV Rotina <2A - procedência'!R66 -> 0.8301886792 | J66: ='CV Rotina <2A - procedência'!T66 -> 0.7169811321 | K66: ='CV Rotina <2A - procedência'!V66 -> 0.7216981132 | L66: ='CV Rotina <2A - procedência'!Z66 -> 0.5330188679 | M66: 0 | N66: 0 | O66: 0 | P66: 0
A67: Central | B67: São Domingos do Norte | C67: ='CV Rotina <2A - procedência'!H67 -> 0.4594594595 | D67: ='CV Rotina <2A - procedência'!P67 -> 1.013513514 | E67: ='CV Rotina <2A - procedência'!J67 -> 0.9324324324 | F67: ='CV Rotina <2A - procedência'!L67 -> 0.9324324324 | G67: ='CV Rotina <2A - procedência'!N67 -> 1.040540541 | H67: ='CV Rotina <2A - procedência'!X67 -> 1.054054054 | I67: ='CV Rotina <2A - procedência'!R67 -> 0.9594594595 | J67: ='CV Rotina <2A - procedência'!T67 -> 0.972972973 | K67: ='CV Rotina <2A - procedência'!V67 -> 0.6621621622 | L67: ='CV Rotina <2A - procedência'!Z67 -> 0.3918918919 | M67: =COUNTIF(C67:D67,">=0,9") -> 1 | N67: =COUNTIFS(E67:L67,">=0,95") -> 4 | O67: 5 | P67: 2
A68: Central | B68: São Gabriel da Palha | C68: ='CV Rotina <2A - procedência'!H68 -> 0.565625 | D68: ='CV Rotina <2A - procedência'!P68 -> 0.878125 | E68: ='CV Rotina <2A - procedência'!J68 -> 0.875 | F68: ='CV Rotina <2A - procedência'!L68 -> 0.88125 | G68: ='CV Rotina <2A - procedência'!N68 -> 0.9 | H68: ='CV Rotina <2A - procedência'!X68 -> 0.828125 | I68: ='CV Rotina <2A - procedência'!R68 -> 0.85 | J68: ='CV Rotina <2A - procedência'!T68 -> 0.709375 | K68: ='CV Rotina <2A - procedência'!V68 -> 0.73125 | L68: ='CV Rotina <2A - procedência'!Z68 -> 0.378125 | M68: 0 | N68: 0 | O68: =SUM(M68:N68) -> 0 | P68: =COUNTIF(E68:H68,">=0,95") -> 0
A69: Sul | B69: São José do Calçado | C69: ='CV Rotina <2A - procedência'!H69 -> 0.6666666667 | D69: ='CV Rotina <2A - procedência'!P69 -> 0.8717948718 | E69: ='CV Rotina <2A - procedência'!J69 -> 1.08974359 | F69: ='CV Rotina <2A - procedência'!L69 -> 1.08974359 | G69: ='CV Rotina <2A - procedência'!N69 -> 0.9743589744 | H69: ='CV Rotina <2A - procedência'!X69 -> 1.179487179 | I69: ='CV Rotina <2A - procedência'!R69 -> 0.9615384615 | J69: ='CV Rotina <2A - procedência'!T69 -> 0.8461538462 | K69: ='CV Rotina <2A - procedência'!V69 -> 0.8846153846 | L69: ='CV Rotina <2A - procedência'!Z69 -> 0.5256410256 | M69: 0 | N69: 5 | O69: 5 | P69: 4
A70: Norte | B70: São Mateus | C70: ='CV Rotina <2A - procedência'!H70 -> 1.427606902 | D70: ='CV Rotina <2A - procedência'!P70 -> 0.824456114 | E70: ='CV Rotina <2A - procedência'!J70 -> 0.872468117 | F70: ='CV Rotina <2A - procedência'!L70 -> 0.8552138035 | G70: ='CV Rotina <2A - procedência'!N70 -> 0.8867216804 | H70: ='CV Rotina <2A - procedência'!X70 -> 0.831207802 | I70: ='CV Rotina <2A - procedência'!R70 -> 0.8019504876 | J70: ='CV Rotina <2A - procedência'!T70 -> 0.6339084771 | K70: ='CV Rotina <2A - procedência'!V70 -> 0.7051762941 | L70: ='CV Rotina <2A - procedência'!Z70 -> 0.3645911478 | M70: 1 | N70: 0 | O70: 1 | P70: 0
A71: Central | B71: São Roque do Canaã | C71: ='CV Rotina <2A - procedência'!H71 -> 0.3020833333 | D71: ='CV Rotina <2A - procedência'!P71 -> 0.8229166667 | E71: ='CV Rotina <2A - procedência'!J71 -> 0.8229166667 | F71: ='CV Rotina <2A - procedência'!L71 -> 0.8125 | G71: ='CV Rotina <2A - procedência'!N71 -> 0.7395833333 | H71: ='CV Rotina <2A - procedência'!X71 -> 1.041666667 | I71: ='CV Rotina <2A - procedência'!R71 -> 0.8541666667 | J71: ='CV Rotina <2A - procedência'!T71 -> 0.7395833333 | K71: ='CV Rotina <2A - procedência'!V71 -> 0.8854166667 | L71: ='CV Rotina <2A - procedência'!Z71 -> 0.40625 | M71: 0 | N71: 1 | O71: 1 | P71: 1
A72: Metropolitana | B72: Serra | C72: ='CV Rotina <2A - procedência'!H72 -> 1.13840079 | D72: ='CV Rotina <2A - procedência'!P72 -> 0.8227048371 | E72: ='CV Rotina <2A - procedência'!J72 -> 0.8011846002 | F72: ='CV Rotina <2A - procedência'!L72 -> 0.7964461994 | G72: ='CV Rotina <2A - procedência'!N72 -> 0.850148075 | H72: ='CV Rotina <2A - procedência'!X72 -> 0.8412635735 | I72: ='CV Rotina <2A - procedência'!R72 -> 0.8069101678 | J72: ='CV Rotina <2A - procedência'!T72 -> 0.6373149062 | K72: ='CV Rotina <2A - procedência'!V72 -> 0.4825271471 | L72: ='CV Rotina <2A - procedência'!Z72 -> 0.2734452122 | M72: 1 | N72: 0 | O72: 1 | P72: 0
A73: Central | B73: Sooretama | C73: ='CV Rotina <2A - procedência'!H73 -> 0.08881578947 | D73: ='CV Rotina <2A - procedência'!P73 -> 0.9407894737 | E73: ='CV Rotina <2A - procedência'!J73 -> 0.8388157895 | F73: ='CV Rotina <2A - procedência'!L73 -> 0.8453947368 | G73: ='CV Rotina <2A - procedência'!N73 -> 0.9440789474 | H73: ='CV Rotina <2A - procedência'!X73 -> 0.9243421053 | I73: ='CV Rotina <2A - procedência'!R73 -> 0.7927631579 | J73: ='CV Rotina <2A - procedência'!T73 -> 0.7796052632 | K73: ='CV Rotina <2A - procedência'!V73 -> 0.8684210526 | L73: ='CV Rotina <2A - procedência'!Z73 -> 0.3519736842 | M73: 1 | N73: 0 | O73: 1 | P73: 0
A74: Sul | B74: Vargem Alta | C74: ='CV Rotina <2A - procedência'!H74 -> 0.1 | D74: ='CV Rotina <2A - procedência'!P74 -> 0.9333333333 | E74: ='CV Rotina <2A - procedência'!J74 -> 0.8166666667 | F74: ='CV Rotina <2A - procedência'!L74 -> 0.8166666667 | G74: ='CV Rotina <2A - procedência'!N74 -> 0.8888888889 | H74: ='CV Rotina <2A - procedência'!X74 -> 0.9611111111 | I74: ='CV Rotina <2A - procedência'!R74 -> 0.8944444444 | J74: ='CV Rotina <2A - procedência'!T74 -> 0.7722222222 | K74: ='CV Rotina <2A - procedência'!V74 -> 0.9166666667 | L74: ='CV Rotina <2A - procedência'!Z74 -> 0.45 | M74: 1 | N74: 1 | O74: 2 | P74: 1
A75: Metropolitana | B75: Venda Nova do Imigrante | C75: ='CV Rotina <2A - procedência'!H75 -> 1.122047244 | D75: ='CV Rotina <2A - procedência'!P75 -> 0.8976377953 | E75: ='CV Rotina <2A - procedência'!J75 -> 1.027559055 | F75: ='CV Rotina <2A - procedência'!L75 -> 1.027559055 | G75: ='CV Rotina <2A - procedência'!N75 -> 0.9212598425 | H75: ='CV Rotina <2A - procedência'!X75 -> 1.196850394 | I75: ='CV Rotina <2A - procedência'!R75 -> 0.9488188976 | J75: ='CV Rotina <2A - procedência'!T75 -> 0.9645669291 | K75: ='CV Rotina <2A - procedência'!V75 -> 0.7047244094 | L75: ='CV Rotina <2A - procedência'!Z75 -> 0.4566929134 | M75: 1 | N75: 4 | O75: 5 | P75: 3
A76: Metropolitana | B76: Viana | C76: ='CV Rotina <2A - procedência'!H76 -> 0.1748031496 | D76: ='CV Rotina <2A - procedência'!P76 -> 0.9338582677 | E76: ='CV Rotina <2A - procedência'!J76 -> 0.8771653543 | F76: ='CV Rotina <2A - procedência'!L76 -> 0.8582677165 | G76: ='CV Rotina <2A - procedência'!N76 -> 0.9732283465 | H76: ='CV Rotina <2A - procedência'!X76 -> 0.9496062992 | I76: ='CV Rotina <2A - procedência'!R76 -> 0.9291338583 | J76: ='CV Rotina <2A - procedência'!T76 -> 0.6582677165 | K76: ='CV Rotina <2A - procedência'!V76 -> 0.7968503937 | L76: ='CV Rotina <2A - procedência'!Z76 -> 0.2897637795 | M76: 1 | N76: 1 | O76: 2 | P76: 1
A77: Norte | B77: Vila Pavão | C77: ='CV Rotina <2A - procedência'!H77 -> 0.6615384615 | D77: ='CV Rotina <2A - procedência'!P77 -> 1 | E77: ='CV Rotina <2A - procedência'!J77 -> 0.9538461538 | F77: ='CV Rotina <2A - procedência'!L77 -> 0.9384615385 | G77: ='CV Rotina <2A - procedência'!N77 -> 1.015384615 | H77: ='CV Rotina <2A - procedência'!X77 -> 1.307692308 | I77: ='CV Rotina <2A - procedência'!R77 -> 0.9692307692 | J77: ='CV Rotina <2A - procedência'!T77 -> 1.046153846 | K77: ='CV Rotina <2A - procedência'!V77 -> 1.369230769 | L77: ='CV Rotina <2A - procedência'!Z77 -> 0.6461538462 | M77: 1 | N77: 6 | O77: 7 | P77: 3
A78: Central | B78: Vila Valério | C78: ='CV Rotina <2A - procedência'!H78 -> 0.2965116279 | D78: ='CV Rotina <2A - procedência'!P78 -> 0.9127906977 | E78: ='CV Rotina <2A - procedência'!J78 -> 0.8430232558 | F78: ='CV Rotina <2A - procedência'!L78 -> 0.8139534884 | G78: ='CV Rotina <2A - procedência'!N78 -> 0.8779069767 | H78: ='CV Rotina <2A - procedência'!X78 -> 0.9825581395 | I78: ='CV Rotina <2A - procedência'!R78 -> 0.9360465116 | J78: ='CV Rotina <2A - procedência'!T78 -> 0.8081395349 | K78: ='CV Rotina <2A - procedência'!V78 -> 0.8720930233 | L78: ='CV Rotina <2A - procedência'!Z78 -> 0.4069767442 | M78: 1 | N78: 1 | O78: 2 | P78: 1
A79: Metropolitana | B79: Vila Velha | C79: ='CV Rotina <2A - procedência'!H79 -> 0.7691497763 | D79: ='CV Rotina <2A - procedência'!P79 -> 0.8486443801 | E79: ='CV Rotina <2A - procedência'!J79 -> 0.8067912609 | F79: ='CV Rotina <2A - procedência'!L79 -> 0.8065280337 | G79: ='CV Rotina <2A - procedência'!N79 -> 0.8639115557 | H79: ='CV Rotina <2A - procedência'!X79 -> 0.8983943143 | I79: ='CV Rotina <2A - procedência'!R79 -> 0.8354830218 | J79: ='CV Rotina <2A - procedência'!T79 -> 0.6693866807 | K79: ='CV Rotina <2A - procedência'!V79 -> 0.7454593314 | L79: ='CV Rotina <2A - procedência'!Z79 -> 0.3864174783 | M79: 0 | N79: 0 | O79: 0 | P79: 0
A80: Metropolitana | B80: Vitória | C80: ='CV Rotina <2A - procedência'!H80 -> 1.978075518 | D80: ='CV Rotina <2A - procedência'!P80 -> 0.9983759643 | E80: ='CV Rotina <2A - procedência'!J80 -> 1.088509947 | F80: ='CV Rotina <2A - procedência'!L80 -> 1.088509947 | G80: ='CV Rotina <2A - procedência'!N80 -> 1.051563134 | H80: ='CV Rotina <2A - procedência'!X80 -> 1.131952903 | I80: ='CV Rotina <2A - procedência'!R80 -> 1.027202598 | J80: ='CV Rotina <2A - procedência'!T80 -> 0.7190418189 | K80: ='CV Rotina <2A - procedência'!V80 -> 1.06090134 | L80: ='CV Rotina <2A - procedência'!Z80 -> 0.5456760049 | M80: 2 | N80: 6 | O80: 8 | P80: 4
B82: Total Norte | C82: ='CV Rotina <2A - procedência'!H82 -> 0.7789683529 | D82: ='CV Rotina <2A - procedência'!P82 -> 0.8871168702 | E82: ='CV Rotina <2A - procedência'!J82 -> 0.9092947919 | F82: ='CV Rotina <2A - procedência'!L82 -> 0.9010715176 | G82: ='CV Rotina <2A - procedência'!N82 -> 0.9162721156 | H82: ='CV Rotina <2A - procedência'!X82 -> 0.9598803887 | I82: ='CV Rotina <2A - procedência'!R82 -> 0.8741589833 | J82: ='CV Rotina <2A - procedência'!T82 -> 0.779217543 | K82: ='CV Rotina <2A - procedência'!V82 -> 0.7699975081 | L82: ='CV Rotina <2A - procedência'!Z82 -> 0.4328432594 | M82: =COUNTIF(C82:D82,">=0,9") -> 0 | N82: =COUNTIFS(E82:L82,">=0,95") -> 1 | O82: =SUM(M82:N82) -> 1 | P82: =COUNTIF(E82:H82,">=0,95") -> 1
B83: Total Central | C83: ='CV Rotina <2A - procedência'!H83 -> 0.944410507 | D83: ='CV Rotina <2A - procedência'!P83 -> 0.8951333741 | E83: ='CV Rotina <2A - procedência'!J83 -> 0.8706984321 | F83: ='CV Rotina <2A - procedência'!L83 -> 0.8670331908 | G83: ='CV Rotina <2A - procedência'!N83 -> 0.900631236 | H83: ='CV Rotina <2A - procedência'!X83 -> 0.9399307677 | I83: ='CV Rotina <2A - procedência'!R83 -> 0.8619425779 | J83: ='CV Rotina <2A - procedência'!T83 -> 0.7542252087 | K83: ='CV Rotina <2A - procedência'!V83 -> 0.7937283649 | L83: ='CV Rotina <2A - procedência'!Z83 -> 0.447566687 | M83: =COUNTIF(C83:D83,">=0,9") -> 1 | N83: =COUNTIFS(E83:L83,">=0,95") -> 0 | O83: =SUM(M83:N83) -> 1 | P83: =COUNTIF(E83:H83,">=0,95") -> 0
B84: Total Metropolitana | C84: ='CV Rotina <2A - procedência'!H84 -> 0.9508957533 | D84: ='CV Rotina <2A - procedência'!P84 -> 0.8872698238 | E84: ='CV Rotina <2A - procedência'!J84 -> 0.875343081 | F84: ='CV Rotina <2A - procedência'!L84 -> 0.8704027147 | G84: ='CV Rotina <2A - procedência'!N84 -> 0.9147662059 | H84: ='CV Rotina <2A - procedência'!X84 -> 0.9487499376 | I84: ='CV Rotina <2A - procedência'!R84 -> 0.8788362693 | J84: ='CV Rotina <2A - procedência'!T84 -> 0.6994360996 | K84: ='CV Rotina <2A - procedência'!V84 -> 0.7455461849 | L84: ='CV Rotina <2A - procedência'!Z84 -> 0.3949797894 | M84: =COUNTIF(C84:D84,">=0,9") -> 1 | N84: =COUNTIFS(E84:L84,">=0,95") -> 0 | O84: =SUM(M84:N84) -> 1 | P84: =COUNTIF(E84:H84,">=0,95") -> 0
B85: Total Sul | C85: ='CV Rotina <2A - procedência'!H85 -> 0.9296218487 | D85: ='CV Rotina <2A - procedência'!P85 -> 0.9261204482 | E85: ='CV Rotina <2A - procedência'!J85 -> 0.9259453782 | F85: ='CV Rotina <2A - procedência'!L85 -> 0.9206932773 | G85: ='CV Rotina <2A - procedência'!N85 -> 0.9508053221 | H85: ='CV Rotina <2A - procedência'!X85 -> 1.007878151 | I85: ='CV Rotina <2A - procedência'!R85 -> 0.9014355742 | J85: ='CV Rotina <2A - procedência'!T85 -> 0.7433473389 | K85: ='CV Rotina <2A - procedência'!V85 -> 0.8676470588 | L85: ='CV Rotina <2A - procedência'!Z85 -> 0.4049369748 | M85: =COUNTIF(C85:D85,">=0,9") -> 2 | N85: =COUNTIFS(E85:L85,">=0,95") -> 2 | O85: =SUM(M85:N85) -> 4 | P85: =COUNTIF(E85:H85,">=0,95") -> 2
B86: Total Espírito Santo | C86: ='CV Rotina <2A - procedência'!H86 -> 0.9265753425 | D86: ='CV Rotina <2A - procedência'!P86 -> 0.8947656813 | E86: ='CV Rotina <2A - procedência'!J86 -> 0.8869502523 | F86: ='CV Rotina <2A - procedência'!L86 -> 0.8817591925 | G86: ='CV Rotina <2A - procedência'!N86 -> 0.9188752704 | H86: ='CV Rotina <2A - procedência'!X86 -> 0.9585291997 | I86: ='CV Rotina <2A - procedência'!R86 -> 0.8796250901 | J86: ='CV Rotina <2A - procedência'!T86 -> 0.7236625811 | K86: ='CV Rotina <2A - procedência'!V86 -> 0.7753136265 | L86: ='CV Rotina <2A - procedência'!Z86 -> 0.4084498919 | M86: =COUNTIF(C86:D86,">=0,9") -> 1 | N86: =COUNTIFS(E86:L86,">=0,95") -> 1 | O86: =SUM(M86:N86) -> 2 | P86: =COUNTIF(E86:H86,">=0,95") -> 1
A89: Fonte: SIPNI/DATASUS, em 09 de junho de 2023.*
A90: Vacina e Confia, em 12 de junho de 2023.**
A91: *Dados referentes às doses aplicadas pelas clínicas particulares de janeiro a maio de 2023
A92: **Dados referente às doses aplicadas no período de janeiro a maio de 2023
A93: Cobertura Calculada por município de vacinação
A94: 1 População proporcional extraída do MS/SVS/DASIS - Sistema de Informações sobre Nascidos Vivos - SINASC
A95: 2000 a 2021 – Estimativas preliminares elaboradas pelo Ministério da Saúde/SVS/DASNT/CGIAE
A96: Nota: Dados preliminares 2021

Sheet cálculos2 (hidden)
C1: 0.9 | E1: 0.95
A2: Regional | B2: Município | C2: Cobertura Vacinal BCG | D2: Cobertura Vacinal Rotavírus | E2: Cobertura Vacinal Pentavalente | F2: Cobertura Vacinal Poliomielite | G2: Cobertura Vacinal Pneumo 10 | H2: Cobertura Vacinal Tríplice Viral | I2: Cobertura Vacinal Meningo C | J2: Cobertura Vacinal Febre Amarela | K2: Cobertura Vacinal Hepatite A | L2: Cobertura Varicela | M2: META 90% | N2: META 95% | O2: ATINGIRAM META | P2: PQA-VS
A3: Metropolitana | B3: Afonso Cláudio | C3: ='CV Rotina <2A - residência'!H3 -> 0.8669201521 | D3: ='CV Rotina <2A - residência'!P3 -> 0.9543726236 | E3: ='CV Rotina <2A - residência'!J3 -> 1.007604563 | F3: ='CV Rotina <2A - residência'!L3 -> 0.9961977186 | G3: ='CV Rotina <2A - residência'!N3 -> 0.9657794677 | H3: ='CV Rotina <2A - residência'!X3 -> 1.019011407 | I3: ='CV Rotina <2A - residência'!R3 -> 0.9581749049 | J3: ='CV Rotina <2A - residência'!T3 -> 0.9581749049 | K3: ='CV Rotina <2A - residência'!V3 -> 0.9885931559 | L3: ='CV Rotina <2A - residência'!Z3 -> 0.5057034221 | M3: =COUNTIF(C3:D3,">=0,9") -> 1 | N3: =COUNTIFS(E3:L3,">=0,95") -> 7 | O3: =SUM(M3:N3) -> 8 | P3: =COUNTIF(E3:H3,">=0,95") -> 4
A4: Norte | B4: Água Doce do Norte | C4: ='CV Rotina <2A - residência'!H4 -> 0.9013157895 | D4: ='CV Rotina <2A - residência'!P4 -> 0.7828947368 | E4: ='CV Rotina <2A - residência'!J4 -> 0.7763157895 | F4: ='CV Rotina <2A - residência'!L4 -> 0.7565789474 | G4: ='CV Rotina <2A - residência'!N4 -> 0.8026315789 | H4: ='CV Rotina <2A - residência'!X4 -> 0.6776315789 | I4: ='CV Rotina <2A - residência'!R4 -> 0.7368421053 | J4: ='CV Rotina <2A - residência'!T4 -> 0.5394736842 | K4: ='CV Rotina <2A - residência'!V4 -> 0.5921052632 | L4: ='CV Rotina <2A - residência'!Z4 -> 0.2171052632 | M4: 1 | N4: 0 | O4: =SUM(M4:N4) -> 1 | P4: =COUNTIF(E4:H4,">=0,95") -> 0
A5: Central | B5: Águia Branca | C5: ='CV Rotina <2A - residência'!H5 -> 0.9145299145 | D5: ='CV Rotina <2A - residência'!P5 -> 0.9914529915 | E5: ='CV Rotina <2A - residência'!J5 -> 0.9401709402 | F5: ='CV Rotina <2A - residência'!L5 -> 0.9401709402 | G5: ='CV Rotina <2A - residência'!N5 -> 1 | H5: ='CV Rotina <2A - residência'!X5 -> 0.8632478632 | I5: ='CV Rotina <2A - residência'!R5 -> 0.8888888889 | J5: ='CV Rotina <2A - residência'!T5 -> 0.7948717949 | K5: ='CV Rotina <2A - residência'!V5 -> 0.7948717949 | L5: ='CV Rotina <2A - residência'!Z5 -> 0.3076923077 | M5: 2 | N5: 1 | O5: 3 | P5: 1
A6: Sul | B6: Alegre | C6: ='CV Rotina <2A - residência'!H6 -> 0.9014084507 | D6: ='CV Rotina <2A - residência'!P6 -> 0.9953051643 | E6: ='CV Rotina <2A - residência'!J6 -> 0.9765258216 | F6: ='CV Rotina <2A - residência'!L6 -> 0.985915493 | G6: ='CV Rotina <2A - residência'!N6 -> 1.018779343 | H6: ='CV Rotina <2A - residência'!X6 -> 0.9765258216 | I6: ='CV Rotina <2A - residência'!R6 -> 0.9671361502 | J6: ='CV Rotina <2A - residência'!T6 -> 0.9248826291 | K6: ='CV Rotina <2A - residência'!V6 -> 0.9154929577 | L6: ='CV Rotina <2A - residência'!Z6 -> 0.2816901408 | M6: 2 | N6: 5 | O6: 7 | P6: 4
A7: Sul | B7: Alfredo Chaves | C7: ='CV Rotina <2A - residência'!H7 -> 0.8414634146 | D7: ='CV Rotina <2A - residência'!P7 -> 1.219512195 | E7: ='CV Rotina <2A - residência'!J7 -> 1.207317073 | F7: ='CV Rotina <2A - residência'!L7 -> 1.195121951 | G7: ='CV Rotina <2A - residência'!N7 -> 1.195121951 | H7: ='CV Rotina <2A - residência'!X7 -> 1.085365854 | I7: ='CV Rotina <2A - residência'!R7 -> 1.219512195 | J7: ='CV Rotina <2A - residência'!T7 -> 1.207317073 | K7: ='CV Rotina <2A - residência'!V7 -> 1.097560976 | L7: ='CV Rotina <2A - residência'!Z7 -> 0.7317073171 | M7: 1 | N7: 7 | O7: 8 | P7: 4
A8: Central | B8: Alto Rio Novo | C8: ='CV Rotina <2A - residência'!H8 -> 0.8965517241 | D8: ='CV Rotina <2A - residência'!P8 -> 1.086206897 | E8: ='CV Rotina <2A - residência'!J8 -> 1.051724138 | F8: ='CV Rotina <2A - residência'!L8 -> 1.034482759 | G8: ='CV Rotina <2A - residência'!N8 -> 1.086206897 | H8: ='CV Rotina <2A - residência'!X8 -> 1.051724138 | I8: ='CV Rotina <2A - residência'!R8 -> 1.051724138 | J8: ='CV Rotina <2A - residência'!T8 -> 0.8103448276 | K8: ='CV Rotina <2A - residência'!V8 -> 1.034482759 | L8: ='CV Rotina <2A - residência'!Z8 -> 0.4310344828 | M8: 1 | N8: 6 | O8: 7 | P8: 4
A9: Sul | B9: Anchieta | C9: ='CV Rotina <2A - residência'!H9 -> 0.8901960784 | D9: ='CV Rotina <2A - residência'!P9 -> 1.035294118 | E9: ='CV Rotina <2A - residência'!J9 -> 1.078431373 | F9: ='CV Rotina <2A - residência'!L9 -> 1.08627451 | G9: ='CV Rotina <2A - residência'!N9 -> 1.050980392 | H9: ='CV Rotina <2A - residência'!X9 -> 1.082352941 | I9: ='CV Rotina <2A - residência'!R9 -> 1.062745098 | J9: ='CV Rotina <2A - residência'!T9 -> 0.8392156863 | K9: ='CV Rotina <2A - residência'!V9 -> 1.02745098 | L9: ='CV Rotina <2A - residência'!Z9 -> 0.4823529412 | M9: 1 | N9: 6 | O9: 7 | P9: 4
A10: Sul | B10: Apiacá | C10: ='CV Rotina <2A - residência'!H10 -> 1.043478261 | D10: ='CV Rotina <2A - residência'!P10 -> 0.9347826087 | E10: ='CV Rotina <2A - residência'!J10 -> 0.8695652174 | F10: ='CV Rotina <2A - residência'!L10 -> 0.8695652174 | G10: ='CV Rotina <2A - residência'!N10 -> 0.9565217391 | H10: ='CV Rotina <2A - residência'!X10 -> 1.02173913 | I10: ='CV Rotina <2A - residência'!R10 -> 0.9347826087 | J10: ='CV Rotina <2A - residência'!T10 -> 0.8260869565 | K10: ='CV Rotina <2A - residência'!V10 -> 0.6086956522 | L10: ='CV Rotina <2A - residência'!Z10 -> 0.1304347826 | M10: 2 | N10: 2 | O10: 4 | P10: 2
A11: Metropolitana | B11: Aracruz | C11: ='CV Rotina <2A - residência'!H11 -> 0.9779179811 | D11: ='CV Rotina <2A - residência'!P11 -> 0.9495268139 | E11: ='CV Rotina <2A - residência'!J11 -> 0.9137749737 | F11: ='CV Rotina <2A - residência'!L11 -> 0.9148264984 | G11: ='CV Rotina <2A - residência'!N11 -> 0.9631966351 | H11: ='CV Rotina <2A - residência'!X11 -> 1.048370137 | I11: ='CV Rotina <2A - residência'!R11 -> 0.9316508938 | J11: ='CV Rotina <2A - residência'!T11 -> 0.7791798107 | K11: ='CV Rotina <2A - residência'!V11 -> 0.9936908517 | L11: ='CV Rotina <2A - residência'!Z11 -> 0.5152471083 | M11: 2 | N11: 3 | O11: 5 | P11: 2
A12: Sul | B12: Atilio Vivacqua | C12: ='CV Rotina <2A - residência'!H12 -> 1.010989011 | D12: ='CV Rotina <2A - residência'!P12 -> 0.8791208791 | E12: ='CV Rotina <2A - residência'!J12 -> 0.9010989011 | F12: ='CV Rotina <2A - residência'!L12 -> 0.8901098901 | G12: ='CV Rotina <2A - residência'!N12 -> 0.8901098901 | H12: ='CV Rotina <2A - residência'!X12 -> 1.010989011 | I12: ='CV Rotina <2A - residência'!R12 -> 0.9120879121 | J12: ='CV Rotina <2A - residência'!T12 -> 0.6923076923 | K12: ='CV Rotina <2A - residência'!V12 -> 0.978021978 | L12: ='CV Rotina <2A - residência'!Z12 -> 0.4725274725 | M12: 1 | N12: 2 | O12: 3 | P12: 1
A13: Central | B13: Baixo Guandu | C13: ='CV Rotina <2A - residência'!H13 -> 0.9800796813 | D13: ='CV Rotina <2A - residência'!P13 -> 1.071713147 | E13: ='CV Rotina <2A - residência'!J13 -> 1.011952191 | F13: ='CV Rotina <2A - residência'!L13 -> 1.015936255 | G13: ='CV Rotina <2A - residência'!N13 -> 1.09561753 | H13: ='CV Rotina <2A - residência'!X13 -> 1.019920319 | I13: ='CV Rotina <2A - residência'!R13 -> 1.067729084 | J13: ='CV Rotina <2A - residência'!T13 -> 0.8087649402 | K13: ='CV Rotina <2A - residência'!V13 -> 1.03187251 | L13: ='CV Rotina <2A - residência'!Z13 -> 0.5019920319 | M13: 2 | N13: 6 | O13: 8 | P13: 4
A14: Norte | B14: Barra de São Francisco | C14: ='CV Rotina <2A - residência'!H14 -> 1.007894737 | D14: ='CV Rotina <2A - residência'!P14 -> 0.9078947368 | E14: ='CV Rotina <2A - residência'!J14 -> 0.8921052632 | F14: ='CV Rotina <2A - residência'!L14 -> 0.8763157895 | G14: ='CV Rotina <2A - residência'!N14 -> 0.95 | H14: ='CV Rotina <2A - residência'!X14 -> 0.9815789474 | I14: ='CV Rotina <2A - residência'!R14 -> 0.9131578947 | J14: ='CV Rotina <2A - residência'!T14 -> 0.8421052632 | K14: ='CV Rotina <2A - residência'!V14 -> 0.8157894737 | L14: ='CV Rotina <2A - residência'!Z14 -> 0.5026315789 | M14: 2 | N14: 2 | O14: 4 | P14: 2
A15: Norte | B15: Boa Esperança | C15: ='CV Rotina <2A - residência'!H15 -> 0.6834532374 | D15: ='CV Rotina <2A - residência'!P15 -> 0.9784172662 | E15: ='CV Rotina <2A - residência'!J15 -> 0.8489208633 | F15: ='CV Rotina <2A - residência'!L15 -> 0.8848920863 | G15: ='CV Rotina <2A - residência'!N15 -> 0.9712230216 | H15: ='CV Rotina <2A - residência'!X15 -> 1 | I15: ='CV Rotina <2A - residência'!R15 -> 0.9136690647 | J15: ='CV Rotina <2A - residência'!T15 -> 0.8273381295 | K15: ='CV Rotina <2A - residência'!V15 -> 0.7122302158 | L15: ='CV Rotina <2A - residência'!Z15 -> 0.5899280576 | M15: 1 | N15: 2 | O15: 3 | P15: 2
A16: Sul | B16: Bom Jesus do Norte | C16: ='CV Rotina <2A - residência'!H16 -> 0.7384615385 | D16: ='CV Rotina <2A - residência'!P16 -> 1 | E16: ='CV Rotina <2A - residência'!J16 -> 1.107692308 | F16: ='CV Rotina <2A - residência'!L16 -> 1.076923077 | G16: ='CV Rotina <2A - residência'!N16 -> 1.030769231 | H16: ='CV Rotina <2A - residência'!X16 -> 1.092307692 | I16: ='CV Rotina <2A - residência'!R16 -> 0.8615384615 | J16: ='CV Rotina <2A - residência'!T16 -> 0.8923076923 | K16: ='CV Rotina <2A - residência'!V16 -> 0.5692307692 | L16: ='CV Rotina <2A - residência'!Z16 -> 0.1538461538 | M16: 1 | N16: 4 | O16: 5 | P16: 4
A17: Metropolitana | B17: Brejetuba | C17: ='CV Rotina <2A - residência'!H17 -> 0.9197080292 | D17: ='CV Rotina <2A - residência'!P17 -> 1.03649635 | E17: ='CV Rotina <2A - residência'!J17 -> 1 | F17: ='CV Rotina <2A - residência'!L17 -> 1 | G17: ='CV Rotina <2A - residência'!N17 -> 1 | H17: ='CV Rotina <2A - residência'!X17 -> 1.01459854 | I17: ='CV Rotina <2A - residência'!R17 -> 0.9635036496 | J17: ='CV Rotina <2A - residência'!T17 -> 0.8759124088 | K17: ='CV Rotina <2A - residência'!V17 -> 0.795620438 | L17: ='CV Rotina <2A - residência'!Z17 -> 0.4233576642 | M17: 2 | N17: 5 | O17: 7 | P17: 4
A18: Sul | B18: Cachoeiro de Itapemirim | C18: ='CV Rotina <2A - residência'!H18 -> 1.104142012 | D18: ='CV Rotina <2A - residência'!P18 -> 0.875147929 | E18: ='CV Rotina <2A - residência'!J18 -> 0.8390532544 | F18: ='CV Rotina <2A - residência'!L18 -> 0.8301775148 | G18: ='CV Rotina <2A - residência'!N18 -> 0.8893491124 | H18: ='CV Rotina <2A - residência'!X18 -> 0.9420118343 | I18: ='CV Rotina <2A - residência'!R18 -> 0.8207100592 | J18: ='CV Rotina <2A - residência'!T18 -> 0.6408284024 | K18: ='CV Rotina <2A - residência'!V18 -> 0.8408284024 | L18: ='CV Rotina <2A - residência'!Z18 -> 0.3603550296 | M18: 1 | N18: 0 | O18: 1 | P18: 0
A19: Metropolitana | B19: Cariacica | C19: ='CV Rotina <2A - residência'!H19 -> 0.9105642257 | D19: ='CV Rotina <2A - residência'!P19 -> 0.8670468187 | E19: ='CV Rotina <2A - residência'!J19 -> 0.8634453782 | F19: ='CV Rotina <2A - residência'!L19 -> 0.8547418968 | G19: ='CV Rotina <2A - residência'!N19 -> 0.9108643457 | H19: ='CV Rotina <2A - residência'!X19 -> 0.9174669868 | I19: ='CV Rotina <2A - residência'!R19 -> 0.8619447779 | J19: ='CV Rotina <2A - residência'!T19 -> 0.6674669868 | K19: ='CV Rotina <2A - residência'!V19 -> 0.6863745498 | L19: ='CV Rotina <2A - residência'!Z19 -> 0.3592436975 | M19: 1 | N19: 0 | O19: 1 | P19: 0
A20: Sul | B20: Castelo | C20: ='CV Rotina <2A - residência'!H20 -> 0.7873754153 | D20: ='CV Rotina <2A - residência'!P20 -> 0.9435215947 | E20: ='CV Rotina <2A - residência'!J20 -> 0.9800664452 | F20: ='CV Rotina <2A - residência'!L20 -> 0.9800664452 | G20: ='CV Rotina <2A - residência'!N20 -> 0.9800664452 | H20: ='CV Rotina <2A - residência'!X20 -> 1.033222591 | I20: ='CV Rotina <2A - residência'!R20 -> 0.9169435216 | J20: ='CV Rotina <2A - residência'!T20 -> 0.853820598 | K20: ='CV Rotina <2A - residência'!V20 -> 0.8139534884 | L20: ='CV Rotina <2A - residência'!Z20 -> 0.4817275748 | M20: 1 | N20: 4 | O20: 5 | P20: 4
A21: Central | B21: Colatina | C21: ='CV Rotina <2A - residência'!H21 -> 0.990521327 | D21: ='CV Rotina <2A - residência'!P21 -> 0.891943128 | E21: ='CV Rotina <2A - residência'!J21 -> 0.9004739336 | F21: ='CV Rotina <2A - residência'!L21 -> 0.8900473934 | G21: ='CV Rotina <2A - residência'!N21 -> 0.9090047393 | H21: ='CV Rotina <2A - residência'!X21 -> 0.9819905213 | I21: ='CV Rotina <2A - residência'!R21 -> 0.8815165877 | J21: ='CV Rotina <2A - residência'!T21 -> 0.7687203791 | K21: ='CV Rotina <2A - residência'!V21 -> 0.6995260664 | L21: ='CV Rotina <2A - residência'!Z21 -> 0.4872037915 | M21: 1 | N21: 1 | O21: 2 | P21: 1
A22: Norte | B22: Conceição da Barra | C22: ='CV Rotina <2A - residência'!H22 -> 0.437007874 | D22: ='CV Rotina <2A - residência'!P22 -> 0.9291338583 | E22: ='CV Rotina <2A - residência'!J22 -> 0.9606299213 | F22: ='CV Rotina <2A - residência'!L22 -> 0.9724409449 | G22: ='CV Rotina <2A - residência'!N22 -> 0.9606299213 | H22: ='CV Rotina <2A - residência'!X22 -> 1.031496063 | I22: ='CV Rotina <2A - residência'!R22 -> 0.9724409449 | J22: ='CV Rotina <2A - residência'!T22 -> 0.9173228346 | K22: ='CV Rotina <2A - residência'!V22 -> 0.8070866142 | L22: ='CV Rotina <2A - residência'!Z22 -> 0.4921259843 | M22: 1 | N22: 5 | O22: 6 | P22: 4
A23: Metropolitana | B23: Conceição do Castelo | C23: ='CV Rotina <2A - residência'!H23 -> 0.880733945 | D23: ='CV Rotina <2A - residência'!P23 -> 0.7614678899 | E23: ='CV Rotina <2A - residência'!J23 -> 0.7431192661 | F23: ='CV Rotina <2A - residência'!L23 -> 0.7155963303 | G23: ='CV Rotina <2A - residência'!N23 -> 0.7798165138 | H23: ='CV Rotina <2A - residência'!X23 -> 0.8073394495 | I23: ='CV Rotina <2A - residência'!R23 -> 0.7155963303 | J23: ='CV Rotina <2A - residência'!T23 -> 0.7889908257 | K23: ='CV Rotina <2A - residência'!V23 -> 0.8073394495 | L23: ='CV Rotina <2A - residência'!Z23 -> 0.504587156 | M23: 0 | N23: 0 | O23: 0 | P23: 0
A24: Sul | B24: Divino de São Lourenço | C24: ='CV Rotina <2A - residência'!H24 -> 1.02173913 | D24: ='CV Rotina <2A - residência'!P24 -> 1.195652174 | E24: ='CV Rotina <2A - residência'!J24 -> 1.173913043 | F24: ='CV Rotina <2A - residência'!L24 -> 1.173913043 | G24: ='CV Rotina <2A - residência'!N24 -> 1.217391304 | H24: ='CV Rotina <2A - residência'!X24 -> 0.8260869565 | I24: ='CV Rotina <2A - residência'!R24 -> 1.173913043 | J24: ='CV Rotina <2A - residência'!T24 -> 0.9130434783 | K24: ='CV Rotina <2A - residência'!V24 -> 0.7173913043 | L24: ='CV Rotina <2A - residência'!Z24 -> 0.4565217391 | M24: 2 | N24: 4 | O24: 6 | P24: 3
A25: Metropolitana | B25: Domingos Martins | C25: ='CV Rotina <2A - residência'!H25 -> 0.9555555556 | D25: ='CV Rotina <2A - residência'!P25 -> 1.007407407 | E25: ='CV Rotina <2A - residência'!J25 -> 0.9333333333 | F25: ='CV Rotina <2A - residência'!L25 -> 0.9259259259 | G25: ='CV Rotina <2A - residência'!N25 -> 1.018518519 | H25: ='CV Rotina <2A - residência'!X25 -> 0.9888888889 | I25: ='CV Rotina <2A - residência'!R25 -> 0.937037037 | J25: ='CV Rotina <2A - residência'!T25 -> 0.8148148148 | K25: ='CV Rotina <2A - residência'!V25 -> 0.8888888889 | L25: ='CV Rotina <2A - residência'!Z25 -> 0.6444444444 | M25: 2 | N25: 2 | O25: 4 | P25: 2
A26: Sul | B26: Dores do Rio Preto | C26: ='CV Rotina <2A - residência'!H26 -> 0.6470588235 | D26: ='CV Rotina <2A - residência'!P26 -> 0.9264705882 | E26: ='CV Rotina <2A - residência'!J26 -> 0.8676470588 | F26: ='CV Rotina <2A - residência'!L26 -> 0.9117647059 | G26: ='CV Rotina <2A - residência'!N26 -> 0.9705882353 | H26: ='CV Rotina <2A - residência'!X26 -> 0.7794117647 | I26: ='CV Rotina <2A - residência'!R26 -> 0.8823529412 | J26: ='CV Rotina <2A - residência'!T26 -> 0.7352941176 | K26: ='CV Rotina <2A - residência'!V26 -> 0.75 | L26: ='CV Rotina <2A - residência'!Z26 -> 0.3235294118 | M26: 1 | N26: 1 | O26: 2 | P26: 1
A27: Norte | B27: Ecoporanga | C27: ='CV Rotina <2A - residência'!H27 -> 0.9470899471 | D27: ='CV Rotina <2A - residência'!P27 -> 0.9206349206 | E27: ='CV Rotina <2A - residência'!J27 -> 0.873015873 | F27: ='CV Rotina <2A - residência'!L27 -> 0.8571428571 | G27: ='CV Rotina <2A - residência'!N27 -> 0.9682539683 | H27: ='CV Rotina <2A - residência'!X27 -> 0.9100529101 | I27: ='CV Rotina <2A - residência'!R27 -> 0.8677248677 | J27: ='CV Rotina <2A - residência'!T27 -> 0.7724867725 | K27: ='CV Rotina <2A - residência'!V27 -> 0.835978836 | L27: ='CV Rotina <2A - residência'!Z27 -> 0.5185185185 | M27: 2 | N27: 1 | O27: 3 | P27: 1
A28: Metropolitana | B28: Fundão | C28: ='CV Rotina <2A - residência'!H28 -> 0.835443038 | D28: ='CV Rotina <2A - residência'!P28 -> 0.9620253165 | E28: ='CV Rotina <2A - residência'!J28 -> 0.9367088608 | F28: ='CV Rotina <2A - residência'!L28 -> 0.9303797468 | G28: ='CV Rotina <2A - residência'!N28 -> 0.9493670886 | H28: ='CV Rotina <2A - residência'!X28 -> 0.8797468354 | I28: ='CV Rotina <2A - residência'!R28 -> 0.8481012658 | J28: ='CV Rotina <2A - residência'!T28 -> 0.7594936709 | K28: ='CV Rotina <2A - residência'!V28 -> 0.9113924051 | L28: ='CV Rotina <2A - residência'!Z28 -> 0.5696202532 | M28: 1 | N28: 0 | O28: 1 | P28: 0
A29: Central | B29: Governador Lindenberg | C29: ='CV Rotina <2A - residência'!H29 -> 0.8048780488 | D29: ='CV Rotina <2A - residência'!P29 -> 1.048780488 | E29: ='CV Rotina <2A - residência'!J29 -> 1.06097561 | F29: ='CV Rotina <2A - residência'!L29 -> 1.036585366 | G29: ='CV Rotina <2A - residência'!N29 -> 1.06097561 | H29: ='CV Rotina <2A - residência'!X29 -> 1.12195122 | I29: ='CV Rotina <2A - residência'!R29 -> 1.036585366 | J29: ='CV Rotina <2A - residência'!T29 -> 1.134146341 | K29: ='CV Rotina <2A - residência'!V29 -> 0.9634146341 | L29: ='CV Rotina <2A - residência'!Z29 -> 0.6097560976 | M29: 1 | N29: 7 | O29: 8 | P29: 4
A30: Sul | B30: Guaçuí | C30: ='CV Rotina <2A - residência'!H30 -> 0.8 | D30: ='CV Rotina <2A - residência'!P30 -> 0.9320754717 | E30: ='CV Rotina <2A - residência'!J30 -> 1.022641509 | F30: ='CV Rotina <2A - residência'!L30 -> 1.00754717 | G30: ='CV Rotina <2A - residência'!N30 -> 1.01509434 | H30: ='CV Rotina <2A - residência'!X30 -> 0.8339622642 | I30: ='CV Rotina <2A - residência'!R30 -> 0.920754717 | J30: ='CV Rotina <2A - residência'!T30 -> 0.7698113208 | K30: ='CV Rotina <2A - residência'!V30 -> 0.8867924528 | L30: ='CV Rotina <2A - residência'!Z30 -> 0.4150943396 | M30: 1 | N30: 3 | O30: 4 | P30: 3
A31: Metropolitana | B31: Guarapari | C31: ='CV Rotina <2A - residência'!H31 -> 1.0463138 | D31: ='CV Rotina <2A - residência'!P31 -> 0.97731569 | E31: ='CV Rotina <2A - residência'!J31 -> 0.9083175803 | F31: ='CV Rotina <2A - residência'!L31 -> 0.8827977316 | G31: ='CV Rotina <2A - residência'!N31 -> 1.019848771 | H31: ='CV Rotina <2A - residência'!X31 -> 0.965973535 | I31: ='CV Rotina <2A - residência'!R31 -> 0.9328922495 | J31: ='CV Rotina <2A - residência'!T31 -> 0.6956521739 | K31: ='CV Rotina <2A - residência'!V31 -> 0.8582230624 | L31: ='CV Rotina <2A - residência'!Z31 -> 0.4697542533 | M31: 2 | N31: 2 | O31: 4 | P31: 2
A32: Metropolitana | B32: Ibatiba | C32: ='CV Rotina <2A - residência'!H32 -> 1.072874494 | D32: ='CV Rotina <2A - residência'!P32 -> 0.95951417 | E32: ='CV Rotina <2A - residência'!J32 -> 0.983805668 | F32: ='CV Rotina <2A - residência'!L32 -> 0.979757085 | G32: ='CV Rotina <2A - residência'!N32 -> 1.004048583 | H32: ='CV Rotina <2A - residência'!X32 -> 1.004048583 | I32: ='CV Rotina <2A - residência'!R32 -> 0.983805668 | J32: ='CV Rotina <2A - residência'!T32 -> 0.8987854251 | K32: ='CV Rotina <2A - residência'!V32 -> 0.8987854251 | L32: ='CV Rotina <2A - residência'!Z32 -> 0.2510121457 | M32: 2 | N32: 5 | O32: 7 | P32: 4
A33: Metropolitana | B33: Ibiraçu | C33: ='CV Rotina <2A - residência'!H33 -> 0.8205128205 | D33: ='CV Rotina <2A - residência'!P33 -> 0.7606837607 | E33: ='CV Rotina <2A - residência'!J33 -> 0.735042735 | F33: ='CV Rotina <2A - residência'!L33 -> 0.7179487179 | G33: ='CV Rotina <2A - residência'!N33 -> 0.7692307692 | H33: ='CV Rotina <2A - residência'!X33 -> 0.7606837607 | I33: ='CV Rotina <2A - residência'!R33 -> 0.7692307692 | J33: ='CV Rotina <2A - residência'!T33 -> 0.7435897436 | K33: ='CV Rotina <2A - residência'!V33 -> 0.641025641 | L33: ='CV Rotina <2A - residência'!Z33 -> 0.2991452991 | M33: 0 | N33: 0 | O33: 0 | P33: 0
A34: Sul | B34: Ibitirama | C34: ='CV Rotina <2A - residência'!H34 -> 0.8969072165 | D34: ='CV Rotina <2A - residência'!P34 -> 0.8659793814 | E34: ='CV Rotina <2A - residência'!J34 -> 0.8350515464 | F34: ='CV Rotina <2A - residência'!L34 -> 0.8350515464 | G34: ='CV Rotina <2A - residência'!N34 -> 0.8453608247 | H34: ='CV Rotina <2A - residência'!X34 -> 0.8350515464 | I34: ='CV Rotina <2A - residência'!R34 -> 0.7525773196 | J34: ='CV Rotina <2A - residência'!T34 -> 0.6597938144 | K34: ='CV Rotina <2A - residência'!V34 -> 0.793814433 | L34: ='CV Rotina <2A - residência'!Z34 -> 0.4226804124 | M34: 0 | N34: 0 | O34: 0 | P34: 0
A35: Sul | B35: Iconha | C35: ='CV Rotina <2A - residência'!H35 -> 0.6835443038 | D35: ='CV Rotina <2A - residência'!P35 -> 1 | E35: ='CV Rotina <2A - residência'!J35 -> 0.9620253165 | F35: ='CV Rotina <2A - residência'!L35 -> 0.9113924051 | G35: ='CV Rotina <2A - residência'!N35 -> 1 | H35: ='CV Rotina <2A - residência'!X35 -> 1.291139241 | I35: ='CV Rotina <2A - residência'!R35 -> 0.8734177215 | J35: ='CV Rotina <2A - residência'!T35 -> 0.9493670886 | K35: ='CV Rotina <2A - residência'!V35 -> 1.101265823 | L35: ='CV Rotina <2A - residência'!Z35 -> 0.5443037975 | M35: =COUNTIF(C35:D35,">=0,9") -> 1 | N35: 4 | O35: =SUM(M35:N35) -> 5 | P35: 3
A36: Sul | B36: Irupi | C36: ='CV Rotina <2A - residência'!H36 -> 0.7551020408 | D36: ='CV Rotina <2A - residência'!P36 -> 0.9659863946 | E36: ='CV Rotina <2A - residência'!J36 -> 0.9047619048 | F36: ='CV Rotina <2A - residência'!L36 -> 0.8979591837 | G36: ='CV Rotina <2A - residência'!N36 -> 0.9659863946 | H36: ='CV Rotina <2A - residência'!X36 -> 1.034013605 | I36: ='CV Rotina <2A - residência'!R36 -> 0.9659863946 | J36: ='CV Rotina <2A - residência'!T36 -> 0.8163265306 | K36: ='CV Rotina <2A - residência'!V36 -> 0.8911564626 | L36: ='CV Rotina <2A - residência'!Z36 -> 0.2517006803 | M36: 1 | N36: 3 | O36: 4 | P36: 2
A37: Metropolitana | B37: Itaguaçu | C37: ='CV Rotina <2A - residência'!H37 -> 0.9693877551 | D37: ='CV Rotina <2A - residência'!P37 -> 0.9489795918 | E37: ='CV Rotina <2A - residência'!J37 -> 0.8775510204 | F37: ='CV Rotina <2A - residência'!L37 -> 0.8673469388 | G37: ='CV Rotina <2A - residência'!N37 -> 0.9489795918 | H37: ='CV Rotina <2A - residência'!X37 -> 1.030612245 | I37: ='CV Rotina <2A - residência'!R37 -> 0.9285714286 | J37: ='CV Rotina <2A - residência'!T37 -> 0.9183673469 | K37: ='CV Rotina <2A - residência'!V37 -> 1.010204082 | L37: ='CV Rotina <2A - residência'!Z37 -> 0.6224489796 | M37: 2 | N37: 2 | O37: 4 | P37: 1
A38: Sul | B38: Itapemirim | C38: ='CV Rotina <2A - residência'!H38 -> 0.8474576271 | D38: ='CV Rotina <2A - residência'!P38 -> 0.8672316384 | E38: ='CV Rotina <2A - residência'!J38 -> 0.918079096 | F38: ='CV Rotina <2A - residência'!L38 -> 0.9237288136 | G38: ='CV Rotina <2A - residência'!N38 -> 0.9661016949 | H38: ='CV Rotina <2A - residência'!X38 -> 0.9152542373 | I38: ='CV Rotina <2A - residência'!R38 -> 0.8926553672 | J38: ='CV Rotina <2A - residência'!T38 -> 0.5649717514 | K38: ='CV Rotina <2A - residência'!V38 -> 0.8446327684 | L38: ='CV Rotina <2A - residência'!Z38 -> 0.4039548023 | M38: 0 | N38: 1 | O38: 1 | P38: 1
A39: Metropolitana | B39: Itarana | C39: ='CV Rotina <2A - residência'!H39 -> 1.108910891 | D39: ='CV Rotina <2A - residência'!P39 -> 0.900990099 | E39: ='CV Rotina <2A - residência'!J39 -> 0.8712871287 | F39: ='CV Rotina <2A - residência'!L39 -> 0.8613861386 | G39: ='CV Rotina <2A - residência'!N39 -> 0.9405940594 | H39: ='CV Rotina <2A - residência'!X39 -> 0.8811881188 | I39: ='CV Rotina <2A - residência'!R39 -> 0.8118811881 | J39: ='CV Rotina <2A - residência'!T39 -> 0.8316831683 | K39: ='CV Rotina <2A - residência'!V39 -> 0.6138613861 | L39: ='CV Rotina <2A - residência'!Z39 -> 0.5841584158 | M39: 2 | N39: 0 | O39: 2 | P39: 0
A40: Sul | B40: Iúna | C40: ='CV Rotina <2A - residência'!H40 -> 0.7101910828 | D40: ='CV Rotina <2A - residência'!P40 -> 0.9363057325 | E40: ='CV Rotina <2A - residência'!J40 -> 0.9363057325 | F40: ='CV Rotina <2A - residência'!L40 -> 0.9299363057 | G40: ='CV Rotina <2A - residência'!N40 -> 0.9458598726 | H40: ='CV Rotina <2A - residência'!X40 -> 0.9554140127 | I40: ='CV Rotina <2A - residência'!R40 -> 0.8853503185 | J40: ='CV Rotina <2A - residência'!T40 -> 0.8598726115 | K40: ='CV Rotina <2A - residência'!V40 -> 0.7261146497 | L40: ='CV Rotina <2A - residência'!Z40 -> 0.4394904459 | M40: 1 | N40: 1 | O40: 2 | P40: 1
A41: Norte | B41: Jaguaré | C41: ='CV Rotina <2A - residência'!H41 -> 0.9626168224 | D41: ='CV Rotina <2A - residência'!P41 -> 0.953271028 | E41: ='CV Rotina <2A - residência'!J41 -> 0.9968847352 | F41: ='CV Rotina <2A - residência'!L41 -> 0.9875389408 | G41: ='CV Rotina <2A - residência'!N41 -> 0.984423676 | H41: ='CV Rotina <2A - residência'!X41 -> 0.9875389408 | I41: ='CV Rotina <2A - residência'!R41 -> 0.9470404984 | J41: ='CV Rotina <2A - residência'!T41 -> 0.8535825545 | K41: ='CV Rotina <2A - residência'!V41 -> 0.8348909657 | L41: ='CV Rotina <2A - residência'!Z41 -> 0.4205607477 | M41: 2 | N41: 4 | O41: 6 | P41: 4
A42: Sul | B42: Jerônimo Monteiro | C42: ='CV Rotina <2A - residência'!H42 -> 0.9215686275 | D42: ='CV Rotina <2A - residência'!P42 -> 1.049019608 | E42: ='CV Rotina <2A - residência'!J42 -> 1.078431373 | F42: ='CV Rotina <2A - residência'!L42 -> 1.068627451 | G42: ='CV Rotina <2A - residência'!N42 -> 1.078431373 | H42: ='CV Rotina <2A - residência'!X42 -> 1.039215686 | I42: ='CV Rotina <2A - residência'!R42 -> 0.9901960784 | J42: ='CV Rotina <2A - residência'!T42 -> 1.039215686 | K42: ='CV Rotina <2A - residência'!V42 -> 1 | L42: ='CV Rotina <2A - residência'!Z42 -> 0.3137254902 | M42: 2 | N42: 7 | O42: 9 | P42: 4
A43: Metropolitana | B43: João Neiva | C43: ='CV Rotina <2A - residência'!H43 -> 0.8738738739 | D43: ='CV Rotina <2A - residência'!P43 -> 1.009009009 | E43: ='CV Rotina <2A - residência'!J43 -> 0.9189189189 | F43: ='CV Rotina <2A - residência'!L43 -> 0.9099099099 | G43: ='CV Rotina <2A - residência'!N43 -> 1.018018018 | H43: ='CV Rotina <2A - residência'!X43 -> 1.162162162 | I43: ='CV Rotina <2A - residência'!R43 -> 0.9189189189 | J43: ='CV Rotina <2A - residência'!T43 -> 0.9279279279 | K43: ='CV Rotina <2A - residência'!V43 -> 0.9369369369 | L43: ='CV Rotina <2A - residência'!Z43 -> 0.5225225225 | M43: 1 | N43: 2 | O43: 3 | P43: 2
A44: Metropolitana | B44: Laranja da Terra | C44: ='CV Rotina <2A - residência'!H44 -> 1.048387097 | D44: ='CV Rotina <2A - residência'!P44 -> 0.8548387097 | E44: ='CV Rotina <2A - residência'!J44 -> 0.9032258065 | F44: ='CV Rotina <2A - residência'!L44 -> 0.9032258065 | G44: ='CV Rotina <2A - residência'!N44 -> 0.8548387097 | H44: ='CV Rotina <2A - residência'!X44 -> 1.387096774 | I44: ='CV Rotina <2A - residência'!R44 -> 0.9516129032 | J44: ='CV Rotina <2A - residência'!T44 -> 1.096774194 | K44: ='CV Rotina <2A - residência'!V44 -> 1.306451613 | L44: ='CV Rotina <2A - residência'!Z44 -> 0.9516129032 | M44: 1 | N44: 5 | O44: 6 | P44: 1
A45: Central | B45: Linhares | C45: ='CV Rotina <2A - residência'!H45 -> 0.7074643249 | D45: ='CV Rotina <2A - residência'!P45 -> 0.8358946213 | E45: ='CV Rotina <2A - residência'!J45 -> 0.8051591658 | F45: ='CV Rotina <2A - residência'!L45 -> 0.8035126235 | G45: ='CV Rotina <2A - residência'!N45 -> 0.8249176729 | H45: ='CV Rotina <2A - residência'!X45 -> 0.8424807903 | I45: ='CV Rotina <2A - residência'!R45 -> 0.8057080132 | J45: ='CV Rotina <2A - residência'!T45 -> 0.6805708013 | K45: ='CV Rotina <2A - residência'!V45 -> 0.7672886937 | L45: ='CV Rotina <2A - residência'!Z45 -> 0.3940724479 | M45: 0 | N45: 0 | O45: 0 | P45: 0
A46: Central | B46: Mantenópolis | C46: ='CV Rotina <2A - residência'!H46 -> 1.066037736 | D46: ='CV Rotina <2A - residência'!P46 -> 0.858490566 | E46: ='CV Rotina <2A - residência'!J46 -> 0.9150943396 | F46: ='CV Rotina <2A - residência'!L46 -> 0.9339622642 | G46: ='CV Rotina <2A - residência'!N46 -> 0.9056603774 | H46: ='CV Rotina <2A - residência'!X46 -> 1.08490566 | I46: ='CV Rotina <2A - residência'!R46 -> 0.8301886792 | J46: ='CV Rotina <2A - residência'!T46 -> 0.9056603774 | K46: ='CV Rotina <2A - residência'!V46 -> 0.8490566038 | L46: ='CV Rotina <2A - residência'!Z46 -> 0.4811320755 | M46: 1 | N46: 1 | O46: 2 | P46: 1
A47: Sul | B47: Marataízes | C47: ='CV Rotina <2A - residência'!H47 -> 0.8730964467 | D47: ='CV Rotina <2A - residência'!P47 -> 0.9543147208 | E47: ='CV Rotina <2A - residência'!J47 -> 0.8959390863 | F47: ='CV Rotina <2A - residência'!L47 -> 0.8934010152 | G47: ='CV Rotina <2A - residência'!N47 -> 0.9898477157 | H47: ='CV Rotina <2A - residência'!X47 -> 0.9670050761 | I47: ='CV Rotina <2A - residência'!R47 -> 0.9568527919 | J47: ='CV Rotina <2A - residência'!T47 -> 0.5989847716 | K47: ='CV Rotina <2A - residência'!V47 -> 0.8375634518 | L47: ='CV Rotina <2A - residência'!Z47 -> 0.4010152284 | M47: 1 | N47: 3 | O47: 4 | P47: 2
A48: Metropolitana | B48: Marechal Floriano | C48: ='CV Rotina <2A - residência'!H48 -> 0.9136690647 | D48: ='CV Rotina <2A - residência'!P48 -> 1.071942446 | E48: ='CV Rotina <2A - residência'!J48 -> 1.014388489 | F48: ='CV Rotina <2A - residência'!L48 -> 1.007194245 | G48: ='CV Rotina <2A - residência'!N48 -> 1.086330935 | H48: ='CV Rotina <2A - residência'!X48 -> 1.043165468 | I48: ='CV Rotina <2A - residência'!R48 -> 1.086330935 | J48: ='CV Rotina <2A - residência'!T48 -> 0.7769784173 | K48: ='CV Rotina <2A - residência'!V48 -> 1.021582734 | L48: ='CV Rotina <2A - residência'!Z48 -> 0.6834532374 | M48: 2 | N48: 6 | O48: 8 | P48: 4
A49: Central | B49: Marilândia | C49: ='CV Rotina <2A - residência'!H49 -> 0.7946428571 | D49: ='CV Rotina <2A - residência'!P49 -> 0.9464285714 | E49: ='CV Rotina <2A - residência'!J49 -> 1 | F49: ='CV Rotina <2A - residência'!L49 -> 0.9910714286 | G49: ='CV Rotina <2A - residência'!N49 -> 0.9464285714 | H49: ='CV Rotina <2A - residência'!X49 -> 0.9285714286 | I49: ='CV Rotina <2A - residência'!R49 -> 0.9196428571 | J49: ='CV Rotina <2A - residência'!T49 -> 0.9107142857 | K49: ='CV Rotina <2A - residência'!V49 -> 0.8303571429 | L49: ='CV Rotina <2A - residência'!Z49 -> 0.5982142857 | M49: 1 | N49: 2 | O49: 3 | P49: 2
A50: Sul | B50: Mimoso do Sul | C50: ='CV Rotina <2A - residência'!H50 -> 0.8232044199 | D50: ='CV Rotina <2A - residência'!P50 -> 0.7900552486 | E50: ='CV Rotina <2A - residência'!J50 -> 0.8563535912 | F50: ='CV Rotina <2A - residência'!L50 -> 0.8508287293 | G50: ='CV Rotina <2A - residência'!N50 -> 0.8011049724 | H50: ='CV Rotina <2A - residência'!X50 -> 0.8729281768 | I50: ='CV Rotina <2A - residência'!R50 -> 0.7955801105 | J50: ='CV Rotina <2A - residência'!T50 -> 0.7016574586 | K50: ='CV Rotina <2A - residência'!V50 -> 0.7016574586 | L50: ='CV Rotina <2A - residência'!Z50 -> 0.4475138122 | M50: 0 | N50: 0 | O50: 0 | P50: 0
A51: Norte | B51: Montanha | C51: ='CV Rotina <2A - residência'!H51 -> 0.5757575758 | D51: ='CV Rotina <2A - residência'!P51 -> 0.8909090909 | E51: ='CV Rotina <2A - residência'!J51 -> 1.060606061 | F51: ='CV Rotina <2A - residência'!L51 -> 1.066666667 | G51: ='CV Rotina <2A - residência'!N51 -> 0.8727272727 | H51: ='CV Rotina <2A - residência'!X51 -> 1.036363636 | I51: ='CV Rotina <2A - residência'!R51 -> 0.8909090909 | J51: ='CV Rotina <2A - residência'!T51 -> 1.036363636 | K51: ='CV Rotina <2A - residência'!V51 -> 0.9757575758 | L51: ='CV Rotina <2A - residência'!Z51 -> 0.5212121212 | M51: 0 | N51: 5 | O51: 5 | P51: 3
A52: Norte | B52: Mucurici | C52: ='CV Rotina <2A - residência'!H52 -> 0.6595744681 | D52: ='CV Rotina <2A - residência'!P52 -> 1.14893617 | E52: ='CV Rotina <2A - residência'!J52 -> 1.255319149 | F52: ='CV Rotina <2A - residência'!L52 -> 1.255319149 | G52: ='CV Rotina <2A - residência'!N52 -> 1.14893617 | H52: ='CV Rotina <2A - residência'!X52 -> 1.170212766 | I52: ='CV Rotina <2A - residência'!R52 -> 1.127659574 | J52: ='CV Rotina <2A - residência'!T52 -> 1.276595745 | K52: ='CV Rotina <2A - residência'!V52 -> 0.9574468085 | L52: ='CV Rotina <2A - residência'!Z52 -> 0.6382978723 | M52: 1 | N52: 7 | O52: 8 | P52: 4
A53: Sul | B53: Muniz Freire | C53: ='CV Rotina <2A - residência'!H53 -> 0.9793103448 | D53: ='CV Rotina <2A - residência'!P53 -> 1.048275862 | E53: ='CV Rotina <2A - residência'!J53 -> 1.062068966 | F53: ='CV Rotina <2A - residência'!L53 -> 1.034482759 | G53: ='CV Rotina <2A - residência'!N53 -> 1.075862069 | H53: ='CV Rotina <2A - residência'!X53 -> 1.103448276 | I53: ='CV Rotina <2A - residência'!R53 -> 1.013793103 | J53: ='CV Rotina <2A - residência'!T53 -> 1.027586207 | K53: ='CV Rotina <2A - residência'!V53 -> 0.9793103448 | L53: ='CV Rotina <2A - residência'!Z53 -> 0.4206896552 | M53: 2 | N53: 7 | O53: 9 | P53: 4
A54: Sul | B54: Muqui | C54: ='CV Rotina <2A - residência'!H54 -> 0.7796610169 | D54: ='CV Rotina <2A - residência'!P54 -> 0.7627118644 | E54: ='CV Rotina <2A - residência'!J54 -> 0.8983050847 | F54: ='CV Rotina <2A - residência'!L54 -> 0.8983050847 | G54: ='CV Rotina <2A - residência'!N54 -> 0.7627118644 | H54: ='CV Rotina <2A - residência'!X54 -> 0.9237288136 | I54: ='CV Rotina <2A - residência'!R54 -> 0.8644067797 | J54: ='CV Rotina <2A - residência'!T54 -> 0.8898305085 | K54: ='CV Rotina <2A - residência'!V54 -> 0.7881355932 | L54: ='CV Rotina <2A - residência'!Z54 -> 0.406779661 | M54: 0 | N54: 0 | O54: 0 | P54: 0
A55: Norte | B55: Nova Venécia | C55: ='CV Rotina <2A - residência'!H55 -> 0.8688172043 | D55: ='CV Rotina <2A - residência'!P55 -> 0.8795698925 | E55: ='CV Rotina <2A - residência'!J55 -> 0.9720430108 | F55: ='CV Rotina <2A - residência'!L55 -> 0.9698924731 | G55: ='CV Rotina <2A - residência'!N55 -> 0.9161290323 | H55: ='CV Rotina <2A - residência'!X55 -> 1.017204301 | I55: ='CV Rotina <2A - residência'!R55 -> 0.9548387097 | J55: ='CV Rotina <2A - residência'!T55 -> 0.888172043 | K55: ='CV Rotina <2A - residência'!V55 -> 0.7892473118 | L55: ='CV Rotina <2A - residência'!Z55 -> 0.4903225806 | M55: 0 | N55: 4 | O55: 4 | P55: 3
A56: Central | B56: Pancas | C56: ='CV Rotina <2A - residência'!H56 -> 0.9310344828 | D56: ='CV Rotina <2A - residência'!P56 -> 1.013793103 | E56: ='CV Rotina <2A - residência'!J56 -> 1.082758621 | F56: ='CV Rotina <2A - residência'!L56 -> 1.082758621 | G56: ='CV Rotina <2A - residência'!N56 -> 1.027586207 | H56: ='CV Rotina <2A - residência'!X56 -> 1.020689655 | I56: ='CV Rotina <2A - residência'!R56 -> 1.062068966 | J56: ='CV Rotina <2A - residência'!T56 -> 0.9655172414 | K56: ='CV Rotina <2A - residência'!V56 -> 0.9793103448 | L56: ='CV Rotina <2A - residência'!Z56 -> 0.8068965517 | M56: 2 | N56: 7 | O56: 9 | P56: 4
A57: Norte | B57: Pedro Canário | C57: ='CV Rotina <2A - residência'!H57 -> 0.4935064935 | D57: ='CV Rotina <2A - residência'!P57 -> 0.7705627706 | E57: ='CV Rotina <2A - residência'!J57 -> 0.9134199134 | F57: ='CV Rotina <2A - residência'!L57 -> 0.9047619048 | G57: ='CV Rotina <2A - residência'!N57 -> 0.7965367965 | H57: ='CV Rotina <2A - residência'!X57 -> 1.0995671 | I57: ='CV Rotina <2A - residência'!R57 -> 0.8398268398 | J57: ='CV Rotina <2A - residência'!T57 -> 0.7965367965 | K57: ='CV Rotina <2A - residência'!V57 -> 0.7316017316 | L57: ='CV Rotina <2A - residência'!Z57 -> 0.5497835498 | M57: 0 | N57: 1 | O57: 1 | P57: 1
